Workbook

Sheet MainDisplay
B1: ZNA?1 | C1: =RTD("cqg.rtd",,"ContractData",B1,"LongDescription",,"T") -> Nikkei 225 Index - All Sessions (SGX), Dec 20
G2: Singapore Exchange (SGX) Derivatives Dashboard | U2: Excel Ribbon | W2: =RTD("cqg.rtd", ,"SystemInfo", "Linetime")+13/24 -> 44115.00459
B4: Description | H4: Last | I4: NC LT | J4: % | K4: Volume | L4: Last | M4: LQ | N4: LQ NC | O4: Charts | Q4: =C1&" 30-minute Volume Bars" -> Nikkei 225 Index - All Sessions (SGX), Dec 20 30-minute Volume Bars
H5: Trade | I5: Today | J5: NC | L5: Quote | M5: NC | N5: ATR (20)
B6: =Data!R2 -> HDFC Bank, Oct 20 (ZHDB) | H6: =Data!L2 -> 1227.75 | I6: =Data!M2 -> 34.3 | J6: =Data!N2 -> 0.02874020696 | K6: =IF(Data!O2=0,"",Data!O2) -> 2 | L6: =Data!P2 -> 1235.15 | M6: =Data!Q2 -> 41.7 | N6: =Data!K2 -> 0.02616470588 | P6: ZND?1
B7: =Data!R3 -> MSCI Singapore Stock Index, Oct 20 (ZG) | H7: =Data!L3 -> 292.2 | I7: =Data!M3 -> 1.2 | J7: =Data!N3 -> 0.00412371134 | K7: =IF(Data!O3=0,"",Data!O3) -> 1984 | L7: =Data!P3 -> 293.00 A | M7: =Data!Q3 -> 2.65 | N7: =Data!K3 -> 0.006587942822 | P7: ZNA?1
B8: =Data!R4 -> MSCI Taiwan Stock Index - All Sessions, Oct 20 (ZAA) | H8: =Data!L4 -> 515.9 | I8: =Data!M4 -> 4.8 | J8: =Data!N4 -> 0.009391508511 | K8: =IF(Data!O4=0,"",Data!O4) -> 7466 | L8: =Data!P4 -> 517.4 A | M8: =Data!Q4 -> 5.5 | N8: =Data!K4 -> 0.006271379704 | P8: ZN?1
B9: =Data!R5 -> FTSE Taiwan Index, Oct 20 (TWN) | H9: =Data!L5 -> 1131.25 | I9: =Data!M5 -> 9.5 | J9: =Data!N5 -> 0.008468910185 | K9: =IF(Data!O5=0,"",Data!O5) -> 2702 | L9: =Data!P5 -> 1131.25 | M9: =Data!Q5 -> 10 | N9: =Data!K5 -> 0.004400440044 | P9: ZMSI?1
B10: =Data!R6 -> SGX FTSE China A50 Index, Oct 20 (CN) | H10: =Data!L6 -> 15493 | I10: =Data!M6 -> 40 | J10: =Data!N6 -> 0.002588494144 | K10: =IF(Data!O6=0,"",Data!O6) -> 21963 | L10: =Data!P6 -> 15511.0 A | M10: =Data!Q6 -> 90 | N10: =Data!K6 -> 0.00352699128 | P10: ZIN?1
B11: =Data!R7 -> Nikkei 225 Index - All Sessions (SGX), Dec 20 (ZNA) | H11: =Data!L7 -> 23570 | I11: =Data!M7 -> -75 | J11: =Data!N7 -> -0.003171917953 | K11: =IF(Data!O7=0,"",Data!O7) -> 18365 | L11: =Data!P7 -> 23680 A | M11: =Data!Q7 -> 100 | N11: =Data!K7 -> 0.003079291763 | P11: ZHDB?1
B12: =Data!R8 -> Nifty 50 Index, Oct 20 (ZIN) | H12: =Data!L8 -> 11972.5 | I12: =Data!M8 -> 123.5 | J12: =Data!N8 -> 0.01042282049 | K12: =IF(Data!O8=0,"",Data!O8) -> 7819 | L12: =Data!P8 -> 12020.0 A | M12: =Data!Q8 -> 59 | N12: =Data!K8 -> 0.003036150778 | P12: ZGS?1
B13: =Data!R9 -> MSCI Taiwan Stock Index day session, Oct 20 (ZA) | H13: =Data!L9 -> 511.9 | I13: =Data!M9 -> 0.8 | J13: =Data!N9 -> 0.001565251419 | K13: =IF(Data!O9=0,"",Data!O9) -> 8062 | L13: =Data!P9 -> 511.9 | M13: =Data!Q9 -> 0.8 | N13: =Data!K9 -> 0.00108401084 | P13: ZG?1
B14: =Data!R10 -> Bharti Airtel, Oct 20 (ZBHA) | H14: =Data!L10 ->  | I14: =Data!M10 ->  | J14: =Data!N10 ->  | K14: =IF(Data!O10=0,"",Data!O10) ->  | L14: =Data!P10 -> 425.75 | M14: =Data!Q10 -> 0.7 | N14: =Data!K10 -> 0.0006373776463 | P14: ZBHA?1
B15: =Data!R11 -> MSCI Singapore Stock Index Day Session, Oct 20 (ZGS) | H15: =Data!L11 -> 290.3 | I15: =Data!M11 -> -0.7 | J15: =Data!N11 -> -0.002405498282 | K15: =IF(Data!O11=0,"",Data!O11) -> 16310 | L15: =Data!P11 -> 290.35 | M15: =Data!Q11 -> -0.65 | N15: =Data!K11 -> -0.001728723404 | P15: ZAA?1
B16: =Data!R12 -> Maruti Suzuki India, Oct 20 (ZMSI) | H16: =Data!L12 ->  | I16: =Data!M12 ->  | J16: =Data!N12 ->  | K16: =IF(Data!O12=0,"",Data!O12) -> 26 | L16: =Data!P12 -> 7071.55 | M16: =Data!Q12 -> -18.2 | N16: =Data!K12 -> -0.001896623593 | P16: ZA?1
B17: =Data!R13 -> Nikkei 225 Index (SGX) Day Session, Dec 20 (ZN) | H17: =Data!L13 -> 23580 | I17: =Data!M13 -> -65 | J17: =Data!N13 -> -0.002748995559 | K17: =IF(Data!O13=0,"",Data!O13) -> 38631 | L17: =Data!P13 -> 23580 | M17: =Data!Q13 -> -65 | N17: =Data!K13 -> -0.002357207616 | P17: TWN?1
B18: =Data!R14 -> MSCI Philippines NTR (USD) Index, Oct 20 (NPH) | H18: =Data!L14 ->  | I18: =Data!M14 ->  | J18: =Data!N14 ->  | K18: =IF(Data!O14=0,"",Data!O14) ->  | L18: =Data!P14 ->  | M18: =Data!Q14 ->  | N18: =Data!K14 -> No Quotes | P18: NTW?1
B19: =Data!R15 -> Nifty Bank Index, Oct 20 (INB) | H19: =Data!L15 ->  | I19: =Data!M15 ->  | J19: =Data!N15 ->  | K19: =IF(Data!O15=0,"",Data!O15) ->  | L19: =Data!P15 ->  | M19: =Data!Q15 ->  | N19: =Data!K15 -> No Quotes | P19: NTL?1
B20: =Data!R16 -> Nikkei Dividend Point Index Futures, Dec 24 (ZND) | H20: =Data!L16 ->  | I20: =Data!M16 ->  | J20: =Data!N16 ->  | K20: =IF(Data!O16=0,"",Data!O16) ->  | L20: =Data!P16 ->  | M20: =Data!Q16 ->  | N20: =Data!K16 -> No Quotes | P20: NPH?1
B21: =Data!R17 -> MSCI Malaysia NTR (USD) Index, Oct 20 (NMY) | H21: =Data!L17 ->  | I21: =Data!M17 ->  | J21: =Data!N17 ->  | K21: =IF(Data!O17=0,"",Data!O17) ->  | L21: =Data!P17 ->  | M21: =Data!Q17 ->  | N21: =Data!K17 -> No Quotes | P21: NMY?1
B22: =Data!R18 -> MSCI Thailand NTR (USD) Index, Oct 20 (NTL) | H22: =Data!L18 ->  | I22: =Data!M18 ->  | J22: =Data!N18 ->  | K22: =IF(Data!O18=0,"",Data!O18) ->  | L22: =Data!P18 ->  | M22: =Data!Q18 ->  | N22: =Data!K18 -> No Quotes | P22: INN?1
B23: =Data!R19 -> MSCI Indonesia NTR Index, Oct 20 (IDN) | H23: =Data!L19 ->  | I23: =Data!M19 ->  | J23: =Data!N19 ->  | K23: =IF(Data!O19=0,"",Data!O19) ->  | L23: =Data!P19 ->  | M23: =Data!Q19 ->  | N23: =Data!K19 -> No Quotes | P23: INB?1
B24: =Data!R20 -> MSCI India NTR Index, Dec 20 (INN) | H24: =Data!L20 ->  | I24: =Data!M20 ->  | J24: =Data!N20 ->  | K24: =IF(Data!O20=0,"",Data!O20) ->  | L24: =Data!P20 ->  | M24: =Data!Q20 ->  | N24: =Data!K20 -> No Quotes | P24: IDN?1
B25: =Data!R21 -> MSCI Taiwan NTR Index, Oct 20 (NTW) | H25: =Data!L21 ->  | I25: =Data!M21 ->  | J25: =Data!N21 ->  | K25: =IF(Data!O21=0,"",Data!O21) ->  | L25: =Data!P21 ->  | M25: =Data!Q21 ->  | N25: =Data!K21 -> No Quotes | P25: CN?1
D26: Bollinger Band Lookback: | G26: 20 | I26: Hstorical Volatilty Lookback: | L26: 20
C48: CQG Inc., Copyright © 2020 | G48: Designed by Thom Hartle | P48: The Dashboard can take up to 5-minutes to fully populate.

Sheet Data (hidden)
A1: Symbol | B1: Description | C1: OI | D1: NC LQ | E1: NQ LQ/ATR | L1: Last Trade | M1: NC LT | N1: % NC | O1: Contr Vol | P1: Last Quote | Q1: NC LQ | T1: NC Last T | U1: % NC | V1: Y_Settle
A2: F.US.CN | B2: =RTD("cqg.rtd", ,"ContractData",A2, "LongDescription",, "T") -> SGX FTSE China A50 Index, Oct 20 | C2: =RTD("cqg.rtd", ,"ContractData",A2, "TOI",, "T") -> 744311 | D2: =RTD("cqg.rtd", ,"ContractData",A2, "NetLastQuoteToday",, "T") -> 90 | E2: =IFERROR(D2/RTD("cqg.rtd",,"StudyData","ATR("&A2&",MAType:=Sim,Period:=20)","Bar",, "Close", "ADC","-1",,,,,"T")/100,"No Quotes") -> 0.00352699128 | F2: =IFERROR(RANK(E2,$E$2:$E$21,0)+COUNTIF($E$2:E2,E2)-1,21-COUNTIF($E$2:E2,E2)) -> 5 | G2: =A2 -> F.US.CN | H2: =E2 -> 0.00352699128 | I2: 1 | J2: =VLOOKUP(I2,$F$2:$H$21,2,FALSE) -> F.US.ZHDB | K2: =VLOOKUP(I2,$F$2:$H$21,3,FALSE) -> 0.02616470588 | L2: =RTD("cqg.rtd", ,"ContractData",J2, "LastTradeToday",, "T") -> 1227.75 | M2: =T2 -> 34.3 | N2: =U2 -> 0.02874020696 | O2: =RTD("cqg.rtd", ,"ContractData", J2, "T_CVol",, "T") -> 2 | P2: =RTD("cqg.rtd", ,"ContractData",J2, "LastQuoteToday",, "B") -> 1235.15 | Q2: =RTD("cqg.rtd", ,"ContractData",J2, "NetLastQuoteToday",, "T") -> 41.7 | R2: =RTD("cqg.rtd", ,"ContractData",J2, "LongDescription",, "T")&" ("&S2& ")" -> HDFC Bank, Oct 20 (ZHDB) | S2: =RIGHT(J2,LEN(J2)-5) -> ZHDB | T2: =IF(L2="","",L2-V2) -> 34.3 | U2: =IF(L2="","",(L2-V2)/V2) -> 0.02874020696 | V2: =RTD("cqg.rtd", ,"ContractData",J2, "Y_Settlement",, "T") -> 1193.45
A3: F.US.ZIN | B3: =RTD("cqg.rtd", ,"ContractData",A3, "LongDescription",, "T") -> Nifty 50 Index, Oct 20 | C3: =RTD("cqg.rtd", ,"ContractData",A3, "TOI",, "T") -> 229537 | D3: =RTD("cqg.rtd", ,"ContractData",A3, "NetLastQuoteToday",, "T") -> 59 | E3: =IFERROR(D3/RTD("cqg.rtd",,"StudyData","ATR("&A3&",MAType:=Sim,Period:=20)","Bar",, "Close", "ADC","-1",,,,,"T")/100,"No Quotes") -> 0.003036150778 | F3: =IFERROR(RANK(E3,$E$2:$E$21,0)+COUNTIF($E$2:E3,E3)-1,21-COUNTIF($E$2:E3,E3)) -> 7 | G3: F.US.ZIN | H3: =E3 -> 0.003036150778 | I3: 2 | J3: =VLOOKUP(I3,$F$2:$H$21,2,FALSE) -> F.US.ZG | K3: =VLOOKUP(I3,$F$2:$H$21,3,FALSE) -> 0.006587942822 | L3: =RTD("cqg.rtd", ,"ContractData",J3, "LastTradeToday",, "T") -> 292.2 | M3: =T3 -> 1.2 | N3: =U3 -> 0.00412371134 | O3: =RTD("cqg.rtd", ,"ContractData", J3, "T_CVol",, "T") -> 1984 | P3: =RTD("cqg.rtd", ,"ContractData",J3, "LastQuoteToday",, "B") -> 293.00 A | Q3: =RTD("cqg.rtd", ,"ContractData",J3, "NetLastQuoteToday",, "T") -> 2.65 | R3: =RTD("cqg.rtd", ,"ContractData",J3, "LongDescription",, "T")&" ("&S3& ")" -> MSCI Singapore Stock Index, Oct 20 (ZG) | S3: =RIGHT(J3,LEN(J3)-5) -> ZG | T3: =IF(L3="","",L3-V3) -> 1.2 | U3: =IF(L3="","",(L3-V3)/V3) -> 0.00412371134 | V3: =RTD("cqg.rtd", ,"ContractData",J3, "Y_Settlement",, "T") -> 291
A4: F.US.ZG | B4: =RTD("cqg.rtd", ,"ContractData",A4, "LongDescription",, "T") -> MSCI Singapore Stock Index, Oct 20 | C4: =RTD("cqg.rtd", ,"ContractData",A4, "TOI",, "T") -> 146390 | D4: =RTD("cqg.rtd", ,"ContractData",A4, "NetLastQuoteToday",, "T") -> 2.65 | E4: =IFERROR(D4/RTD("cqg.rtd",,"StudyData","ATR("&A4&",MAType:=Sim,Period:=20)","Bar",, "Close", "ADC","-1",,,,,"T")/100,"No Quotes") -> 0.006587942822 | F4: =IFERROR(RANK(E4,$E$2:$E$21,0)+COUNTIF($E$2:E4,E4)-1,21-COUNTIF($E$2:E4,E4)) -> 2 | G4: F.US.ZG | H4: 0.006587942822 | I4: 3 | J4: F.US.ZAA | K4: 0.006271379704 | L4: =RTD("cqg.rtd", ,"ContractData",J4, "LastTradeToday",, "T") -> 515.9 | M4: 4.8 | N4: 0.009391508511 | O4: =RTD("cqg.rtd", ,"ContractData", J4, "T_CVol",, "T") -> 7466 | P4: =RTD("cqg.rtd", ,"ContractData",J4, "LastQuoteToday",, "B") -> 517.4 A | Q4: =RTD("cqg.rtd", ,"ContractData",J4, "NetLastQuoteToday",, "T") -> 5.5 | R4: =RTD("cqg.rtd", ,"ContractData",J4, "LongDescription",, "T")&" ("&S4& ")" -> MSCI Taiwan Stock Index - All Sessions, Oct 20 (ZAA) | S4: ZAA | T4: 4.8 | U4: 0.009391508511 | V4: =RTD("cqg.rtd", ,"ContractData",J4, "Y_Settlement",, "T") -> 511.1
A5: F.US.ZGS | B5: =RTD("cqg.rtd", ,"ContractData",A5, "LongDescription",, "T") -> MSCI Singapore Stock Index Day Session, Oct 20 | C5: =RTD("cqg.rtd", ,"ContractData",A5, "TOI",, "T") -> 146390 | D5: =RTD("cqg.rtd", ,"ContractData",A5, "NetLastQuoteToday",, "T") -> -0.65 | E5: =IFERROR(D5/RTD("cqg.rtd",,"StudyData","ATR("&A5&",MAType:=Sim,Period:=20)","Bar",, "Close", "ADC","-1",,,,,"T")/100,"No Quotes") -> -0.001728723404 | F5: =IFERROR(RANK(E5,$E$2:$E$21,0)+COUNTIF($E$2:E5,E5)-1,21-COUNTIF($E$2:E5,E5)) -> 10 | G5: F.US.ZGS | H5: -0.001728723404 | I5: 4 | J5: F.US.TWN | K5: 0.004400440044 | L5: =RTD("cqg.rtd", ,"ContractData",J5, "LastTradeToday",, "T") -> 1131.25 | M5: 9.5 | N5: 0.008468910185 | O5: =RTD("cqg.rtd", ,"ContractData", J5, "T_CVol",, "T") -> 2702 | P5: =RTD("cqg.rtd", ,"ContractData",J5, "LastQuoteToday",, "B") -> 1131.25 | Q5: =RTD("cqg.rtd", ,"ContractData",J5, "NetLastQuoteToday",, "T") -> 10 | R5: =RTD("cqg.rtd", ,"ContractData",J5, "LongDescription",, "T")&" ("&S5& ")" -> FTSE Taiwan Index, Oct 20 (TWN) | S5: TWN | T5: 9.5 | U5: 0.008468910185 | V5: =RTD("cqg.rtd", ,"ContractData",J5, "Y_Settlement",, "T") -> 1121.75
A6: F.US.ZA | B6: =RTD("cqg.rtd", ,"ContractData",A6, "LongDescription",, "T") -> MSCI Taiwan Stock Index day session, Oct 20 | C6: =RTD("cqg.rtd", ,"ContractData",A6, "TOI",, "T") -> 109888 | D6: =RTD("cqg.rtd", ,"ContractData",A6, "NetLastQuoteToday",, "T") -> 0.8 | E6: =IFERROR(D6/RTD("cqg.rtd",,"StudyData","ATR("&A6&",MAType:=Sim,Period:=20)","Bar",, "Close", "ADC","-1",,,,,"T")/100,"No Quotes") -> 0.00108401084 | F6: =IFERROR(RANK(E6,$E$2:$E$21,0)+COUNTIF($E$2:E6,E6)-1,21-COUNTIF($E$2:E6,E6)) -> 8 | G6: F.US.ZA | H6: 0.00108401084 | I6: 5 | J6: F.US.CN | K6: 0.00352699128 | L6: =RTD("cqg.rtd", ,"ContractData",J6, "LastTradeToday",, "T") -> 15493 | M6: 40 | N6: 0.002588494144 | O6: =RTD("cqg.rtd", ,"ContractData", J6, "T_CVol",, "T") -> 21963 | P6: =RTD("cqg.rtd", ,"ContractData",J6, "LastQuoteToday",, "B") -> 15511.0 A | Q6: =RTD("cqg.rtd", ,"ContractData",J6, "NetLastQuoteToday",, "T") -> 90 | R6: =RTD("cqg.rtd", ,"ContractData",J6, "LongDescription",, "T")&" ("&S6& ")" -> SGX FTSE China A50 Index, Oct 20 (CN) | S6: CN | T6: 40 | U6: 0.002588494144 | V6: =RTD("cqg.rtd", ,"ContractData",J6, "Y_Settlement",, "T") -> 15453
A7: F.US.ZAA | B7: =RTD("cqg.rtd", ,"ContractData",A7, "LongDescription",, "T") -> MSCI Taiwan Stock Index - All Sessions, Oct 20 | C7: =RTD("cqg.rtd", ,"ContractData",A7, "TOI",, "T") -> 109888 | D7: =RTD("cqg.rtd", ,"ContractData",A7, "NetLastQuoteToday",, "T") -> 5.5 | E7: =IFERROR(D7/RTD("cqg.rtd",,"StudyData","ATR("&A7&",MAType:=Sim,Period:=20)","Bar",, "Close", "ADC","-1",,,,,"T")/100,"No Quotes") -> 0.006271379704 | F7: =IFERROR(RANK(E7,$E$2:$E$21,0)+COUNTIF($E$2:E7,E7)-1,21-COUNTIF($E$2:E7,E7)) -> 3 | G7: F.US.ZAA | H7: 0.006271379704 | I7: 6 | J7: F.US.ZNA | K7: 0.003079291763 | L7: =RTD("cqg.rtd", ,"ContractData",J7, "LastTradeToday",, "T") -> 23570 | M7: -75 | N7: -0.003171917953 | O7: =RTD("cqg.rtd", ,"ContractData", J7, "T_CVol",, "T") -> 18365 | P7: =RTD("cqg.rtd", ,"ContractData",J7, "LastQuoteToday",, "B") -> 23680 A | Q7: =RTD("cqg.rtd", ,"ContractData",J7, "NetLastQuoteToday",, "T") -> 100 | R7: =RTD("cqg.rtd", ,"ContractData",J7, "LongDescription",, "T")&" ("&S7& ")" -> Nikkei 225 Index - All Sessions (SGX), Dec 20 (ZNA) | S7: ZNA | T7: -75 | U7: -0.003171917953 | V7: =RTD("cqg.rtd", ,"ContractData",J7, "Y_Settlement",, "T") -> 23645
A8: F.US.ZNA | B8: =RTD("cqg.rtd", ,"ContractData",A8, "LongDescription",, "T") -> Nikkei 225 Index - All Sessions (SGX), Dec 20 | C8: =RTD("cqg.rtd", ,"ContractData",A8, "TOI",, "T") -> 139355 | D8: =RTD("cqg.rtd", ,"ContractData",A8, "NetLastQuoteToday",, "T") -> 100 | E8: =IFERROR(D8/RTD("cqg.rtd",,"StudyData","ATR("&A8&",MAType:=Sim,Period:=20)","Bar",, "Close", "ADC","-1",,,,,"T")/100,"No Quotes") -> 0.003079291763 | F8: =IFERROR(RANK(E8,$E$2:$E$21,0)+COUNTIF($E$2:E8,E8)-1,21-COUNTIF($E$2:E8,E8)) -> 6 | G8: F.US.ZNA | H8: 0.003079291763 | I8: 7 | J8: F.US.ZIN | K8: 0.003036150778 | L8: =RTD("cqg.rtd", ,"ContractData",J8, "LastTradeToday",, "T") -> 11972.5 | M8: 123.5 | N8: 0.01042282049 | O8: =RTD("cqg.rtd", ,"ContractData", J8, "T_CVol",, "T") -> 7819 | P8: =RTD("cqg.rtd", ,"ContractData",J8, "LastQuoteToday",, "B") -> 12020.0 A | Q8: =RTD("cqg.rtd", ,"ContractData",J8, "NetLastQuoteToday",, "T") -> 59 | R8: =RTD("cqg.rtd", ,"ContractData",J8, "LongDescription",, "T")&" ("&S8& ")" -> Nifty 50 Index, Oct 20 (ZIN) | S8: ZIN | T8: 123.5 | U8: 0.01042282049 | V8: =RTD("cqg.rtd", ,"ContractData",J8, "Y_Settlement",, "T") -> 11849
A9: F.US.ZN | B9: =RTD("cqg.rtd", ,"ContractData",A9, "LongDescription",, "T") -> Nikkei 225 Index (SGX) Day Session, Dec 20 | C9: =RTD("cqg.rtd", ,"ContractData",A9, "TOI",, "T") -> 139355 | D9: =RTD("cqg.rtd", ,"ContractData",A9, "NetLastQuoteToday",, "T") -> -65 | E9: =IFERROR(D9/RTD("cqg.rtd",,"StudyData","ATR("&A9&",MAType:=Sim,Period:=20)","Bar",, "Close", "ADC","-1",,,,,"T")/100,"No Quotes") -> -0.002357207616 | F9: =IFERROR(RANK(E9,$E$2:$E$21,0)+COUNTIF($E$2:E9,E9)-1,21-COUNTIF($E$2:E9,E9)) -> 12 | G9: F.US.ZN | H9: -0.002357207616 | I9: 8 | J9: F.US.ZA | K9: 0.00108401084 | L9: =RTD("cqg.rtd", ,"ContractData",J9, "LastTradeToday",, "T") -> 511.9 | M9: 0.8 | N9: 0.001565251419 | O9: =RTD("cqg.rtd", ,"ContractData", J9, "T_CVol",, "T") -> 8062 | P9: =RTD("cqg.rtd", ,"ContractData",J9, "LastQuoteToday",, "B") -> 511.9 | Q9: =RTD("cqg.rtd", ,"ContractData",J9, "NetLastQuoteToday",, "T") -> 0.8 | R9: =RTD("cqg.rtd", ,"ContractData",J9, "LongDescription",, "T")&" ("&S9& ")" -> MSCI Taiwan Stock Index day session, Oct 20 (ZA) | S9: ZA | T9: 0.8 | U9: 0.001565251419 | V9: =RTD("cqg.rtd", ,"ContractData",J9, "Y_Settlement",, "T") -> 511.1
A10: F.US.NTW | B10: =RTD("cqg.rtd", ,"ContractData",A10, "LongDescription",, "T") -> MSCI Taiwan NTR Index, Oct 20 | C10: =RTD("cqg.rtd", ,"ContractData",A10, "TOI",, "T") -> 38854 | D10: =RTD("cqg.rtd", ,"ContractData",A10, "NetLastQuoteToday",, "T") ->  | E10: =IFERROR(D10/RTD("cqg.rtd",,"StudyData","ATR("&A10&",MAType:=Sim,Period:=20)","Bar",, "Close", "ADC","-1",,,,,"T")/100,"No Quotes") -> No Quotes | F10: =IFERROR(RANK(E10,$E$2:$E$21,0)+COUNTIF($E$2:E10,E10)-1,21-COUNTIF($E$2:E10,E10)) -> 20 | G10: F.US.NTW | H10: No Quotes | I10: 9 | J10: F.US.ZBHA | K10: 0.0006373776463 | L10: =RTD("cqg.rtd", ,"ContractData",J10, "LastTradeToday",, "T") ->  | O10: =RTD("cqg.rtd", ,"ContractData", J10, "T_CVol",, "T") -> 0 | P10: =RTD("cqg.rtd", ,"ContractData",J10, "LastQuoteToday",, "B") -> 425.75 | Q10: =RTD("cqg.rtd", ,"ContractData",J10, "NetLastQuoteToday",, "T") -> 0.7 | R10: =RTD("cqg.rtd", ,"ContractData",J10, "LongDescription",, "T")&" ("&S10& ")" -> Bharti Airtel, Oct 20 (ZBHA) | S10: ZBHA | V10: =RTD("cqg.rtd", ,"ContractData",J10, "Y_Settlement",, "T") -> 425.05
A11: F.US.INN | B11: =RTD("cqg.rtd", ,"ContractData",A11, "LongDescription",, "T") -> MSCI India NTR Index, Dec 20 | C11: =RTD("cqg.rtd", ,"ContractData",A11, "TOI",, "T") -> 54284 | D11: =RTD("cqg.rtd", ,"ContractData",A11, "NetLastQuoteToday",, "T") ->  | E11: =IFERROR(D11/RTD("cqg.rtd",,"StudyData","ATR("&A11&",MAType:=Sim,Period:=20)","Bar",, "Close", "ADC","-1",,,,,"T")/100,"No Quotes") -> No Quotes | F11: =IFERROR(RANK(E11,$E$2:$E$21,0)+COUNTIF($E$2:E11,E11)-1,21-COUNTIF($E$2:E11,E11)) -> 19 | G11: F.US.INN | H11: No Quotes | I11: 10 | J11: F.US.ZGS | K11: -0.001728723404 | L11: =RTD("cqg.rtd", ,"ContractData",J11, "LastTradeToday",, "T") -> 290.3 | M11: -0.7 | N11: -0.002405498282 | O11: =RTD("cqg.rtd", ,"ContractData", J11, "T_CVol",, "T") -> 16310 | P11: =RTD("cqg.rtd", ,"ContractData",J11, "LastQuoteToday",, "B") -> 290.35 | Q11: =RTD("cqg.rtd", ,"ContractData",J11, "NetLastQuoteToday",, "T") -> -0.65 | R11: =RTD("cqg.rtd", ,"ContractData",J11, "LongDescription",, "T")&" ("&S11& ")" -> MSCI Singapore Stock Index Day Session, Oct 20 (ZGS) | S11: ZGS | T11: -0.7 | U11: -0.002405498282 | V11: =RTD("cqg.rtd", ,"ContractData",J11, "Y_Settlement",, "T") -> 291
A12: F.US.IDN | B12: =RTD("cqg.rtd", ,"ContractData",A12, "LongDescription",, "T") -> MSCI Indonesia NTR Index, Oct 20 | C12: =RTD("cqg.rtd", ,"ContractData",A12, "TOI",, "T") -> 19089 | D12: =RTD("cqg.rtd", ,"ContractData",A12, "NetLastQuoteToday",, "T") ->  | E12: =IFERROR(D12/RTD("cqg.rtd",,"StudyData","ATR("&A12&",MAType:=Sim,Period:=20)","Bar",, "Close", "ADC","-1",,,,,"T")/100,"No Quotes") -> No Quotes | F12: =IFERROR(RANK(E12,$E$2:$E$21,0)+COUNTIF($E$2:E12,E12)-1,21-COUNTIF($E$2:E12,E12)) -> 18 | G12: F.US.IDN | H12: No Quotes | I12: 11 | J12: F.US.ZMSI | K12: -0.001896623593 | L12: =RTD("cqg.rtd", ,"ContractData",J12, "LastTradeToday",, "T") ->  | O12: =RTD("cqg.rtd", ,"ContractData", J12, "T_CVol",, "T") -> 26 | P12: =RTD("cqg.rtd", ,"ContractData",J12, "LastQuoteToday",, "B") -> 7071.55 | Q12: =RTD("cqg.rtd", ,"ContractData",J12, "NetLastQuoteToday",, "T") -> -18.2 | R12: =RTD("cqg.rtd", ,"ContractData",J12, "LongDescription",, "T")&" ("&S12& ")" -> Maruti Suzuki India, Oct 20 (ZMSI) | S12: ZMSI | V12: =RTD("cqg.rtd", ,"ContractData",J12, "Y_Settlement",, "T") -> 7089.75
A13: F.US.NTL | B13: =RTD("cqg.rtd", ,"ContractData",A13, "LongDescription",, "T") -> MSCI Thailand NTR (USD) Index, Oct 20 | C13: =RTD("cqg.rtd", ,"ContractData",A13, "TOI",, "T") -> 13238 | D13: =RTD("cqg.rtd", ,"ContractData",A13, "NetLastQuoteToday",, "T") ->  | E13: =IFERROR(D13/RTD("cqg.rtd",,"StudyData","ATR("&A13&",MAType:=Sim,Period:=20)","Bar",, "Close", "ADC","-1",,,,,"T")/100,"No Quotes") -> No Quotes | F13: =IFERROR(RANK(E13,$E$2:$E$21,0)+COUNTIF($E$2:E13,E13)-1,21-COUNTIF($E$2:E13,E13)) -> 17 | G13: F.US.NTL | H13: No Quotes | I13: 12 | J13: F.US.ZN | K13: -0.002357207616 | L13: =RTD("cqg.rtd", ,"ContractData",J13, "LastTradeToday",, "T") -> 23580 | M13: -65 | N13: -0.002748995559 | O13: =RTD("cqg.rtd", ,"ContractData", J13, "T_CVol",, "T") -> 38631 | P13: =RTD("cqg.rtd", ,"ContractData",J13, "LastQuoteToday",, "B") -> 23580 | Q13: =RTD("cqg.rtd", ,"ContractData",J13, "NetLastQuoteToday",, "T") -> -65 | R13: =RTD("cqg.rtd", ,"ContractData",J13, "LongDescription",, "T")&" ("&S13& ")" -> Nikkei 225 Index (SGX) Day Session, Dec 20 (ZN) | S13: ZN | T13: -65 | U13: -0.002748995559 | V13: =RTD("cqg.rtd", ,"ContractData",J13, "Y_Settlement",, "T") -> 23645
A14: F.US.NMY | B14: =RTD("cqg.rtd", ,"ContractData",A14, "LongDescription",, "T") -> MSCI Malaysia NTR (USD) Index, Oct 20 | C14: =RTD("cqg.rtd", ,"ContractData",A14, "TOI",, "T") -> 11928 | D14: =RTD("cqg.rtd", ,"ContractData",A14, "NetLastQuoteToday",, "T") ->  | E14: =IFERROR(D14/RTD("cqg.rtd",,"StudyData","ATR("&A14&",MAType:=Sim,Period:=20)","Bar",, "Close", "ADC","-1",,,,,"T")/100,"No Quotes") -> No Quotes | F14: =IFERROR(RANK(E14,$E$2:$E$21,0)+COUNTIF($E$2:E14,E14)-1,21-COUNTIF($E$2:E14,E14)) -> 16 | G14: F.US.NMY | H14: No Quotes | I14: 13 | J14: F.US.NPH | K14: No Quotes | L14: =RTD("cqg.rtd", ,"ContractData",J14, "LastTradeToday",, "T") ->  | O14: =RTD("cqg.rtd", ,"ContractData", J14, "T_CVol",, "T") -> 0 | P14: =RTD("cqg.rtd", ,"ContractData",J14, "LastQuoteToday",, "B") ->  | Q14: =RTD("cqg.rtd", ,"ContractData",J14, "NetLastQuoteToday",, "T") ->  | R14: =RTD("cqg.rtd", ,"ContractData",J14, "LongDescription",, "T")&" ("&S14& ")" -> MSCI Philippines NTR (USD) Index, Oct 20 (NPH) | S14: NPH | V14: =RTD("cqg.rtd", ,"ContractData",J14, "Y_Settlement",, "T") -> 414.1
A15: F.US.ZND | B15: =RTD("cqg.rtd", ,"ContractData",A15, "LongDescription",, "T") -> Nikkei Dividend Point Index Futures, Dec 24 | C15: =RTD("cqg.rtd", ,"ContractData",A15, "TOI",, "T") -> 17094 | D15: =RTD("cqg.rtd", ,"ContractData",A15, "NetLastQuoteToday",, "T") ->  | E15: =IFERROR(D15/RTD("cqg.rtd",,"StudyData","ATR("&A15&",MAType:=Sim,Period:=20)","Bar",, "Close", "ADC","-1",,,,,"T")/100,"No Quotes") -> No Quotes | F15: =IFERROR(RANK(E15,$E$2:$E$21,0)+COUNTIF($E$2:E15,E15)-1,21-COUNTIF($E$2:E15,E15)) -> 15 | G15: F.US.ZND | H15: No Quotes | I15: 14 | J15: F.US.INB | K15: No Quotes | L15: =RTD("cqg.rtd", ,"ContractData",J15, "LastTradeToday",, "T") ->  | O15: =RTD("cqg.rtd", ,"ContractData", J15, "T_CVol",, "T") -> 0 | P15: =RTD("cqg.rtd", ,"ContractData",J15, "LastQuoteToday",, "B") ->  | Q15: =RTD("cqg.rtd", ,"ContractData",J15, "NetLastQuoteToday",, "T") ->  | R15: =RTD("cqg.rtd", ,"ContractData",J15, "LongDescription",, "T")&" ("&S15& ")" -> Nifty Bank Index, Oct 20 (INB) | S15: INB | V15: =RTD("cqg.rtd", ,"ContractData",J15, "Y_Settlement",, "T") -> 23224
A16: F.US.INB | B16: =RTD("cqg.rtd", ,"ContractData",A16, "LongDescription",, "T") -> Nifty Bank Index, Oct 20 | C16: =RTD("cqg.rtd", ,"ContractData",A16, "TOI",, "T") -> 8289 | D16: =RTD("cqg.rtd", ,"ContractData",A16, "NetLastQuoteToday",, "T") ->  | E16: =IFERROR(D16/RTD("cqg.rtd",,"StudyData","ATR("&A16&",MAType:=Sim,Period:=20)","Bar",, "Close", "ADC","-1",,,,,"T")/100,"No Quotes") -> No Quotes | F16: =IFERROR(RANK(E16,$E$2:$E$21,0)+COUNTIF($E$2:E16,E16)-1,21-COUNTIF($E$2:E16,E16)) -> 14 | G16: F.US.INB | H16: No Quotes | I16: 15 | J16: F.US.ZND | K16: No Quotes | L16: =RTD("cqg.rtd", ,"ContractData",J16, "LastTradeToday",, "T") ->  | O16: =RTD("cqg.rtd", ,"ContractData", J16, "T_CVol",, "T") -> 0 | P16: =RTD("cqg.rtd", ,"ContractData",J16, "LastQuoteToday",, "B") ->  | Q16: =RTD("cqg.rtd", ,"ContractData",J16, "NetLastQuoteToday",, "T") ->  | R16: =RTD("cqg.rtd", ,"ContractData",J16, "LongDescription",, "T")&" ("&S16& ")" -> Nikkei Dividend Point Index Futures, Dec 24 (ZND) | S16: ZND | V16: =RTD("cqg.rtd", ,"ContractData",J16, "Y_Settlement",, "T") -> 430.7
A17: F.US.TWN | B17: =RTD("cqg.rtd", ,"ContractData",A17, "LongDescription",, "T") -> FTSE Taiwan Index, Oct 20 | C17: =RTD("cqg.rtd", ,"ContractData",A17, "TOI",, "T") -> 19739 | D17: =RTD("cqg.rtd", ,"ContractData",A17, "NetLastQuoteToday",, "T") -> 10 | E17: =IFERROR(D17/RTD("cqg.rtd",,"StudyData","ATR("&A17&",MAType:=Sim,Period:=20)","Bar",, "Close", "ADC","-1",,,,,"T")/100,"No Quotes") -> 0.004400440044 | F17: =IFERROR(RANK(E17,$E$2:$E$21,0)+COUNTIF($E$2:E17,E17)-1,21-COUNTIF($E$2:E17,E17)) -> 4 | G17: F.US.TWN | H17: 0.004400440044 | I17: 16 | J17: F.US.NMY | K17: No Quotes | L17: =RTD("cqg.rtd", ,"ContractData",J17, "LastTradeToday",, "T") ->  | O17: =RTD("cqg.rtd", ,"ContractData", J17, "T_CVol",, "T") -> 0 | P17: =RTD("cqg.rtd", ,"ContractData",J17, "LastQuoteToday",, "B") ->  | Q17: =RTD("cqg.rtd", ,"ContractData",J17, "NetLastQuoteToday",, "T") ->  | R17: =RTD("cqg.rtd", ,"ContractData",J17, "LongDescription",, "T")&" ("&S17& ")" -> MSCI Malaysia NTR (USD) Index, Oct 20 (NMY) | S17: NMY | V17: =RTD("cqg.rtd", ,"ContractData",J17, "Y_Settlement",, "T") -> 354.4
A18: F.US.ZBHA | B18: =RTD("cqg.rtd", ,"ContractData",A18, "LongDescription",, "T") -> Bharti Airtel, Oct 20 | C18: =RTD("cqg.rtd", ,"ContractData",A18, "TOI",, "T") -> 7598 | D18: =RTD("cqg.rtd", ,"ContractData",A18, "NetLastQuoteToday",, "T") -> 0.7 | E18: =IFERROR(D18/RTD("cqg.rtd",,"StudyData","ATR("&A18&",MAType:=Sim,Period:=20)","Bar",, "Close", "ADC","-1",,,,,"T")/100,"No Quotes") -> 0.0006373776463 | F18: =IFERROR(RANK(E18,$E$2:$E$21,0)+COUNTIF($E$2:E18,E18)-1,21-COUNTIF($E$2:E18,E18)) -> 9 | G18: F.US.ZBHA | H18: 0.0006373776463 | I18: 17 | J18: F.US.NTL | K18: No Quotes | L18: =RTD("cqg.rtd", ,"ContractData",J18, "LastTradeToday",, "T") ->  | O18: =RTD("cqg.rtd", ,"ContractData", J18, "T_CVol",, "T") -> 0 | P18: =RTD("cqg.rtd", ,"ContractData",J18, "LastQuoteToday",, "B") ->  | Q18: =RTD("cqg.rtd", ,"ContractData",J18, "NetLastQuoteToday",, "T") ->  | R18: =RTD("cqg.rtd", ,"ContractData",J18, "LongDescription",, "T")&" ("&S18& ")" -> MSCI Thailand NTR (USD) Index, Oct 20 (NTL) | S18: NTL | V18: =RTD("cqg.rtd", ,"ContractData",J18, "Y_Settlement",, "T") -> 1042
A19: F.US.NPH | B19: =RTD("cqg.rtd", ,"ContractData",A19, "LongDescription",, "T") -> MSCI Philippines NTR (USD) Index, Oct 20 | C19: =RTD("cqg.rtd", ,"ContractData",A19, "TOI",, "T") -> 3275 | D19: =RTD("cqg.rtd", ,"ContractData",A19, "NetLastQuoteToday",, "T") ->  | E19: =IFERROR(D19/RTD("cqg.rtd",,"StudyData","ATR("&A19&",MAType:=Sim,Period:=20)","Bar",, "Close", "ADC","-1",,,,,"T")/100,"No Quotes") -> No Quotes | F19: =IFERROR(RANK(E19,$E$2:$E$21,0)+COUNTIF($E$2:E19,E19)-1,21-COUNTIF($E$2:E19,E19)) -> 13 | G19: F.US.NPH | H19: No Quotes | I19: 18 | J19: F.US.IDN | K19: No Quotes | L19: =RTD("cqg.rtd", ,"ContractData",J19, "LastTradeToday",, "T") ->  | O19: =RTD("cqg.rtd", ,"ContractData", J19, "T_CVol",, "T") -> 0 | P19: =RTD("cqg.rtd", ,"ContractData",J19, "LastQuoteToday",, "B") ->  | Q19: =RTD("cqg.rtd", ,"ContractData",J19, "NetLastQuoteToday",, "T") ->  | R19: =RTD("cqg.rtd", ,"ContractData",J19, "LongDescription",, "T")&" ("&S19& ")" -> MSCI Indonesia NTR Index, Oct 20 (IDN) | S19: IDN | V19: =RTD("cqg.rtd", ,"ContractData",J19, "Y_Settlement",, "T") -> 1289.5
A20: F.US.ZMSI | B20: =RTD("cqg.rtd", ,"ContractData",A20, "LongDescription",, "T") -> Maruti Suzuki India, Oct 20 | C20: =RTD("cqg.rtd", ,"ContractData",A20, "TOI",, "T") -> 2935 | D20: =RTD("cqg.rtd", ,"ContractData",A20, "NetLastQuoteToday",, "T") -> -18.2 | E20: =IFERROR(D20/RTD("cqg.rtd",,"StudyData","ATR("&A20&",MAType:=Sim,Period:=20)","Bar",, "Close", "ADC","-1",,,,,"T")/100,"No Quotes") -> -0.001896623593 | F20: =IFERROR(RANK(E20,$E$2:$E$21,0)+COUNTIF($E$2:E20,E20)-1,21-COUNTIF($E$2:E20,E20)) -> 11 | G20: F.US.ZMSI | H20: -0.001896623593 | I20: 19 | J20: F.US.INN | K20: No Quotes | L20: =RTD("cqg.rtd", ,"ContractData",J20, "LastTradeToday",, "T") ->  | O20: =RTD("cqg.rtd", ,"ContractData", J20, "T_CVol",, "T") -> 0 | P20: =RTD("cqg.rtd", ,"ContractData",J20, "LastQuoteToday",, "B") ->  | Q20: =RTD("cqg.rtd", ,"ContractData",J20, "NetLastQuoteToday",, "T") ->  | R20: =RTD("cqg.rtd", ,"ContractData",J20, "LongDescription",, "T")&" ("&S20& ")" -> MSCI India NTR Index, Dec 20 (INN) | S20: INN | V20: =RTD("cqg.rtd", ,"ContractData",J20, "Y_Settlement",, "T") -> 696.5
A21: F.US.ZHDB | B21: =RTD("cqg.rtd", ,"ContractData",A21, "LongDescription",, "T") -> HDFC Bank, Oct 20 | C21: =RTD("cqg.rtd", ,"ContractData",A21, "TOI",, "T") -> 2800 | D21: =RTD("cqg.rtd", ,"ContractData",A21, "NetLastQuoteToday",, "T") -> 41.7 | E21: =IFERROR(D21/RTD("cqg.rtd",,"StudyData","ATR("&A21&",MAType:=Sim,Period:=20)","Bar",, "Close", "ADC","-1",,,,,"T")/100,"No Quotes") -> 0.02616470588 | F21: =IFERROR(RANK(E21,$E$2:$E$21,0)+COUNTIF($E$2:E21,E21)-1,21-COUNTIF($E$2:E21,E21)) -> 1 | G21: F.US.ZHDB | H21: 0.02616470588 | I21: 20 | J21: F.US.NTW | K21: No Quotes | L21: =RTD("cqg.rtd", ,"ContractData",J21, "LastTradeToday",, "T") ->  | O21: =RTD("cqg.rtd", ,"ContractData", J21, "T_CVol",, "T") -> 0 | P21: =RTD("cqg.rtd", ,"ContractData",J21, "LastQuoteToday",, "B") ->  | Q21: =RTD("cqg.rtd", ,"ContractData",J21, "NetLastQuoteToday",, "T") ->  | R21: =RTD("cqg.rtd", ,"ContractData",J21, "LongDescription",, "T")&" ("&S21& ")" -> MSCI Taiwan NTR Index, Oct 20 (NTW) | S21: NTW | V21: =RTD("cqg.rtd", ,"ContractData",J21, "Y_Settlement",, "T") -> 451.9
S23: ZND | U23: =RTD("cqg.rtd", ,"ContractData", S23, "T_CVol",, "T") -> 0 | V23: V3
L24: =RTD("cqg.rtd", ,"ContractData",J4, "T_Settlement",, "T") -> 511.9 | S24: ZNA | U24: =RTD("cqg.rtd", ,"ContractData", S24, "T_CVol",, "T") -> 18365 | V24: V2
S25: ZN | U25: =RTD("cqg.rtd", ,"ContractData", S25, "T_CVol",, "T") -> 38631 | V25: V4
S26: ZMSI | U26: =RTD("cqg.rtd", ,"ContractData", S26, "T_CVol",, "T") -> 26 | V26: V5
S27: ZIN | U27: =RTD("cqg.rtd", ,"ContractData", S27, "T_CVol",, "T") -> 7819 | V27: V6
S28: ZHDB | U28: =RTD("cqg.rtd", ,"ContractData", S28, "T_CVol",, "T") -> 2 | V28: V7
S29: ZGS | U29: =RTD("cqg.rtd", ,"ContractData", S29, "T_CVol",, "T") -> 16310 | V29: V8
S30: ZG | U30: =RTD("cqg.rtd", ,"ContractData", S30, "T_CVol",, "T") -> 1984 | V30: V9
S31: ZBHA | U31: =RTD("cqg.rtd", ,"ContractData", S31, "T_CVol",, "T") -> 0 | V31: V10
S32: ZAA | U32: =RTD("cqg.rtd", ,"ContractData", S32, "T_CVol",, "T") -> 7466 | V32: V11
S33: ZA | U33: =RTD("cqg.rtd", ,"ContractData", S33, "T_CVol",, "T") -> 8062 | V33: V12
S34: TWN | U34: =RTD("cqg.rtd", ,"ContractData", S34, "T_CVol",, "T") -> 2702 | V34: V13
S35: NTW | U35: =RTD("cqg.rtd", ,"ContractData", S35, "T_CVol",, "T") -> 0 | V35: V14
S36: NTL | U36: =RTD("cqg.rtd", ,"ContractData", S36, "T_CVol",, "T") -> 0 | V36: V15
S37: NPH | U37: =RTD("cqg.rtd", ,"ContractData", S37, "T_CVol",, "T") -> 0 | V37: V16
S38: NMY | U38: =RTD("cqg.rtd", ,"ContractData", S38, "T_CVol",, "T") -> 0 | V38: V17
S39: INN | U39: =RTD("cqg.rtd", ,"ContractData", S39, "T_CVol",, "T") -> 0 | V39: V18
S40: INB | U40: =RTD("cqg.rtd", ,"ContractData", S40, "T_CVol",, "T") -> 0 | V40: V19
S41: IDN | U41: =RTD("cqg.rtd", ,"ContractData", S41, "T_CVol",, "T") -> 0 | V41: V20
S42: CN | U42: =RTD("cqg.rtd", ,"ContractData", S42, "T_CVol",, "T") -> 21963 | V42: V1

Sheet Volume (hidden)
A1: 0 | B1: 14:55:00 | C1: =RTD("cqg.rtd",,"StudyData",$D$12, "Bar", "", "Time","D","0",,,,,"T") -> 2020-10-12 | D1: =YEAR(C1) -> 2020 | E1: =MONTH(C1) -> 10 | F1: =DAY(C1) -> 12 | H1: =IF(A1="",NA(),RTD("cqg.rtd",,"StudyData", "If(HasVal("&$D$12&"),Vol("&$D$12&"),none) when LocalYear("&$D$12&")="&$D$2&" and localMonth("&$D$12&") ="&$E$2&" and LocalDay("&$D$12&")="&$F$2&" and Barix("&$D$12&",reference:=StartOfDay)="&A1&"", "Bar", "", "Close","A30C","0","All",,,"False","T","EveryTick")) -> 312 | I1: =IFERROR(IF(A1="",NA(),AVERAGE(J1:R1)),0) -> 1178.666667 | J1: =IF(A1="",NA(),RTD("cqg.rtd",,"StudyData", "If(HasVal("&$D$12&"),Vol("&$D$12&"),none) when LocalYear("&$D$12&")="&$D$3&" and localMonth("&$D$12&") ="&$E$3&" and LocalDay("&$D$12&")="&$F$3&" and Barix("&$D$12&",reference:=StartOfDay)="&A1&"", "Bar", "", "Close","A30C","0","All",,,"False","T","EveryTick")) -> 605 | K1: =IF(A1="",NA(),RTD("cqg.rtd",,"StudyData", "If(HasVal("&$D$12&"),Vol("&$D$12&"),none) when LocalYear("&$D$12&")="&$D$4&" and localMonth("&$D$12&") ="&$E$4&" and LocalDay("&$D$12&")="&$F$4&" and Barix("&$D$12&",reference:=StartOfDay)="&A1&"", "Bar", "", "Close","A30C","0","All",,,"False","T","EveryTick")) -> 1050 | L1: =IF(A1="",NA(),RTD("cqg.rtd",,"StudyData", "If(HasVal("&$D$12&"),Vol("&$D$12&"),none) when LocalYear("&$D$12&")="&$D$5&" and localMonth("&$D$12&") ="&$E$5&" and LocalDay("&$D$12&")="&$F$5&" and Barix("&$D$12&",reference:=StartOfDay)="&A1&"", "Bar", "", "Close","A30C","0","All",,,"False","T","EveryTick")) -> 649 | M1: =IF(A1="",NA(),RTD("cqg.rtd",,"StudyData", "If(HasVal("&$D$12&"),Vol("&$D$12&"),none) when LocalYear("&$D$12&")="&$D$6&" and localMonth("&$D$12&") ="&$E$6&" and LocalDay("&$D$12&")="&$F$6&" and Barix("&$D$12&",reference:=StartOfDay)="&A1&"", "Bar", "", "Close","A30C","0","All",,,"False","T","EveryTick")) -> 875 | N1: =IF(A1="",NA(),RTD("cqg.rtd",,"StudyData", "If(HasVal("&$D$12&"),Vol("&$D$12&"),none) when LocalYear("&$D$12&")="&$D$7&" and localMonth("&$D$12&") ="&$E$7&" and LocalDay("&$D$12&")="&$F$7&" and Barix("&$D$12&",reference:=StartOfDay)="&A1&"", "Bar", "", "Close","A30C","0","All",,,"False","T","EveryTick")) -> 2108 | O1: =IF(A1="",NA(),RTD("cqg.rtd",,"StudyData", "If(HasVal("&$D$12&"),Vol("&$D$12&"),none) when LocalYear("&$D$12&")="&$D$8&" and localMonth("&$D$12&") ="&$E$8&" and LocalDay("&$D$12&")="&$F$8&" and Barix("&$D$12&",reference:=StartOfDay)="&A1&"", "Bar", "", "Close","A30C","0","All",,,"False","T","EveryTick")) -> 1403 | P1: =IF(A1="",NA(),RTD("cqg.rtd",,"StudyData", "If(HasVal("&$D$12&"),Vol("&$D$12&"),none) when LocalYear("&$D$12&")="&$D$9&" and localMonth("&$D$12&") ="&$E$9&" and LocalDay("&$D$12&")="&$F$9&" and Barix("&$D$12&",reference:=StartOfDay)="&A1&"", "Bar", "", "Close","A30C","0","All",,,"False","T","EveryTick")) -> 1499 | Q1: =IF(A1="",NA(),RTD("cqg.rtd",,"StudyData", "If(HasVal("&$D$12&"),Vol("&$D$12&"),none) when LocalYear("&$D$12&")="&$D$10&" and localMonth("&$D$12&") ="&$E$10&" and LocalDay("&$D$12&")="&$F$10&" and Barix("&$D$12&",reference:=StartOfDay)="&A1&"", "Bar", "", "Close","A30C","0","All",,,"False","T","EveryTick")) -> 977 | R1: =IF(A1="",NA(),RTD("cqg.rtd",,"StudyData", "If(HasVal("&$D$12&"),Vol("&$D$12&"),none) when LocalYear("&$D$12&")="&$D$11&" and localMonth("&$D$12&") ="&$E$11&" and LocalDay("&$D$12&")="&$F$11&" and Barix("&$D$12&",reference:=StartOfDay)="&A1&"", "Bar", "", "Close","A30C","0","All",,,"False","T","EveryTick")) -> 1442 | S1: =IF(H1>(1+($T$1/100))*I1,H1,NA()) ->  | T1: 0
A2: =IF($D$12="QGA","",A1+1) -> 1 | B2: 15:25:00 | C2: =RTD("cqg.rtd",,"StudyData",$D$12, "Bar", "", "Time","D","-1",,,,,"T") -> 2020-10-09 | D2: =YEAR(C2) -> 2020 | E2: =MONTH(C2) -> 10 | F2: =DAY(C2) -> 9 | G2: =RTD("cqg.rtd",,"StudyData",$D$12, "Bar", "", "Close","D","-1",,,,,"T") -> 23580 | H2: =IF(A2="",NA(),RTD("cqg.rtd",,"StudyData", "If(HasVal("&$D$12&"),Vol("&$D$12&"),none) when LocalYear("&$D$12&")="&$D$2&" and localMonth("&$D$12&") ="&$E$2&" and LocalDay("&$D$12&")="&$F$2&" and Barix("&$D$12&",reference:=StartOfDay)="&A2&"", "Bar", "", "Close","A30C","0","All",,,"False","T","EveryTick")) -> 1551 | I2: =IFERROR(IF(A2="",NA(),AVERAGE(J2:R2)),0) -> 1849.444444 | J2: =IF(A2="",NA(),RTD("cqg.rtd",,"StudyData", "If(HasVal("&$D$12&"),Vol("&$D$12&"),none) when LocalYear("&$D$12&")="&$D$3&" and localMonth("&$D$12&") ="&$E$3&" and LocalDay("&$D$12&")="&$F$3&" and Barix("&$D$12&",reference:=StartOfDay)="&A2&"", "Bar", "", "Close","A30C","0","All",,,"False","T","EveryTick")) -> 1159 | K2: =IF(A2="",NA(),RTD("cqg.rtd",,"StudyData", "If(HasVal("&$D$12&"),Vol("&$D$12&"),none) when LocalYear("&$D$12&")="&$D$4&" and localMonth("&$D$12&") ="&$E$4&" and LocalDay("&$D$12&")="&$F$4&" and Barix("&$D$12&",reference:=StartOfDay)="&A2&"", "Bar", "", "Close","A30C","0","All",,,"False","T","EveryTick")) -> 1777 | L2: =IF(A2="",NA(),RTD("cqg.rtd",,"StudyData", "If(HasVal("&$D$12&"),Vol("&$D$12&"),none) when LocalYear("&$D$12&")="&$D$5&" and localMonth("&$D$12&") ="&$E$5&" and LocalDay("&$D$12&")="&$F$5&" and Barix("&$D$12&",reference:=StartOfDay)="&A2&"", "Bar", "", "Close","A30C","0","All",,,"False","T","EveryTick")) -> 1583 | M2: =IF(A2="",NA(),RTD("cqg.rtd",,"StudyData", "If(HasVal("&$D$12&"),Vol("&$D$12&"),none) when LocalYear("&$D$12&")="&$D$6&" and localMonth("&$D$12&") ="&$E$6&" and LocalDay("&$D$12&")="&$F$6&" and Barix("&$D$12&",reference:=StartOfDay)="&A2&"", "Bar", "", "Close","A30C","0","All",,,"False","T","EveryTick")) -> 1488 | N2: =IF(A2="",NA(),RTD("cqg.rtd",,"StudyData", "If(HasVal("&$D$12&"),Vol("&$D$12&"),none) when LocalYear("&$D$12&")="&$D$7&" and localMonth("&$D$12&") ="&$E$7&" and LocalDay("&$D$12&")="&$F$7&" and Barix("&$D$12&",reference:=StartOfDay)="&A2&"", "Bar", "", "Close","A30C","0","All",,,"False","T","EveryTick")) -> 3135 | O2: =IF(A2="",NA(),RTD("cqg.rtd",,"StudyData", "If(HasVal("&$D$12&"),Vol("&$D$12&"),none) when LocalYear("&$D$12&")="&$D$8&" and localMonth("&$D$12&") ="&$E$8&" and LocalDay("&$D$12&")="&$F$8&" and Barix("&$D$12&",reference:=StartOfDay)="&A2&"", "Bar", "", "Close","A30C","0","All",,,"False","T","EveryTick")) -> 1911 | P2: =IF(A2="",NA(),RTD("cqg.rtd",,"StudyData", "If(HasVal("&$D$12&"),Vol("&$D$12&"),none) when LocalYear("&$D$12&")="&$D$9&" and localMonth("&$D$12&") ="&$E$9&" and LocalDay("&$D$12&")="&$F$9&" and Barix("&$D$12&",reference:=StartOfDay)="&A2&"", "Bar", "", "Close","A30C","0","All",,,"False","T","EveryTick")) -> 2737 | Q2: =IF(A2="",NA(),RTD("cqg.rtd",,"StudyData", "If(HasVal("&$D$12&"),Vol("&$D$12&"),none) when LocalYear("&$D$12&")="&$D$10&" and localMonth("&$D$12&") ="&$E$10&" and LocalDay("&$D$12&")="&$F$10&" and Barix("&$D$12&",reference:=StartOfDay)="&A2&"", "Bar", "", "Close","A30C","0","All",,,"False","T","EveryTick")) -> 1749 | R2: =IF(A2="",NA(),RTD("cqg.rtd",,"StudyData", "If(HasVal("&$D$12&"),Vol("&$D$12&"),none) when LocalYear("&$D$12&")="&$D$11&" and localMonth("&$D$12&") ="&$E$11&" and LocalDay("&$D$12&")="&$F$11&" and Barix("&$D$12&",reference:=StartOfDay)="&A2&"", "Bar", "", "Close","A30C","0","All",,,"False","T","EveryTick")) -> 1106 | S2: =IF(H2>(1+($T$1/100))*I2,H2,NA()) -> 
A3: =IF($D$12="QGA","",A2+1) -> 2 | B3: 15:55:00 | C3: =RTD("cqg.rtd",,"StudyData",$D$12, "Bar", "", "Time","D","-2",,,,,"T") -> 2020-10-08 | D3: 2020 | E3: 10 | F3: 8 | G3: =RTD("cqg.rtd",,"StudyData",$D$12, "Bar", "", "Close","D","-2",,,,,"T") -> 23645 | H3: =IF(A3="",NA(),RTD("cqg.rtd",,"StudyData", "If(HasVal("&$D$12&"),Vol("&$D$12&"),none) when LocalYear("&$D$12&")="&$D$2&" and localMonth("&$D$12&") ="&$E$2&" and LocalDay("&$D$12&")="&$F$2&" and Barix("&$D$12&",reference:=StartOfDay)="&A3&"", "Bar", "", "Close","A30C","0","All",,,"False","T","EveryTick")) -> 783 | I3: 1361.444444 | J3: =IF(A3="",NA(),RTD("cqg.rtd",,"StudyData", "If(HasVal("&$D$12&"),Vol("&$D$12&"),none) when LocalYear("&$D$12&")="&$D$3&" and localMonth("&$D$12&") ="&$E$3&" and LocalDay("&$D$12&")="&$F$3&" and Barix("&$D$12&",reference:=StartOfDay)="&A3&"", "Bar", "", "Close","A30C","0","All",,,"False","T","EveryTick")) -> 1295 | K3: =IF(A3="",NA(),RTD("cqg.rtd",,"StudyData", "If(HasVal("&$D$12&"),Vol("&$D$12&"),none) when LocalYear("&$D$12&")="&$D$4&" and localMonth("&$D$12&") ="&$E$4&" and LocalDay("&$D$12&")="&$F$4&" and Barix("&$D$12&",reference:=StartOfDay)="&A3&"", "Bar", "", "Close","A30C","0","All",,,"False","T","EveryTick")) -> 872 | L3: =IF(A3="",NA(),RTD("cqg.rtd",,"StudyData", "If(HasVal("&$D$12&"),Vol("&$D$12&"),none) when LocalYear("&$D$12&")="&$D$5&" and localMonth("&$D$12&") ="&$E$5&" and LocalDay("&$D$12&")="&$F$5&" and Barix("&$D$12&",reference:=StartOfDay)="&A3&"", "Bar", "", "Close","A30C","0","All",,,"False","T","EveryTick")) -> 1641 | M3: =IF(A3="",NA(),RTD("cqg.rtd",,"StudyData", "If(HasVal("&$D$12&"),Vol("&$D$12&"),none) when LocalYear("&$D$12&")="&$D$6&" and localMonth("&$D$12&") ="&$E$6&" and LocalDay("&$D$12&")="&$F$6&" and Barix("&$D$12&",reference:=StartOfDay)="&A3&"", "Bar", "", "Close","A30C","0","All",,,"False","T","EveryTick")) -> 1173 | N3: =IF(A3="",NA(),RTD("cqg.rtd",,"StudyData", "If(HasVal("&$D$12&"),Vol("&$D$12&"),none) when LocalYear("&$D$12&")="&$D$7&" and localMonth("&$D$12&") ="&$E$7&" and LocalDay("&$D$12&")="&$F$7&" and Barix("&$D$12&",reference:=StartOfDay)="&A3&"", "Bar", "", "Close","A30C","0","All",,,"False","T","EveryTick")) -> 1601 | O3: =IF(A3="",NA(),RTD("cqg.rtd",,"StudyData", "If(HasVal("&$D$12&"),Vol("&$D$12&"),none) when LocalYear("&$D$12&")="&$D$8&" and localMonth("&$D$12&") ="&$E$8&" and LocalDay("&$D$12&")="&$F$8&" and Barix("&$D$12&",reference:=StartOfDay)="&A3&"", "Bar", "", "Close","A30C","0","All",,,"False","T","EveryTick")) -> 764 | P3: =IF(A3="",NA(),RTD("cqg.rtd",,"StudyData", "If(HasVal("&$D$12&"),Vol("&$D$12&"),none) when LocalYear("&$D$12&")="&$D$9&" and localMonth("&$D$12&") ="&$E$9&" and LocalDay("&$D$12&")="&$F$9&" and Barix("&$D$12&",reference:=StartOfDay)="&A3&"", "Bar", "", "Close","A30C","0","All",,,"False","T","EveryTick")) -> 1906 | Q3: =IF(A3="",NA(),RTD("cqg.rtd",,"StudyData", "If(HasVal("&$D$12&"),Vol("&$D$12&"),none) when LocalYear("&$D$12&")="&$D$10&" and localMonth("&$D$12&") ="&$E$10&" and LocalDay("&$D$12&")="&$F$10&" and Barix("&$D$12&",reference:=StartOfDay)="&A3&"", "Bar", "", "Close","A30C","0","All",,,"False","T","EveryTick")) -> 1354 | R3: =IF(A3="",NA(),RTD("cqg.rtd",,"StudyData", "If(HasVal("&$D$12&"),Vol("&$D$12&"),none) when LocalYear("&$D$12&")="&$D$11&" and localMonth("&$D$12&") ="&$E$11&" and LocalDay("&$D$12&")="&$F$11&" and Barix("&$D$12&",reference:=StartOfDay)="&A3&"", "Bar", "", "Close","A30C","0","All",,,"False","T","EveryTick")) -> 1647
A4: 3 | B4: 16:25:00 | C4: =RTD("cqg.rtd",,"StudyData",$D$12, "Bar", "", "Time","D","-3",,,,,"T") -> 2020-10-07 | D4: 2020 | E4: 10 | F4: 7 | G4: =RTD("cqg.rtd",,"StudyData",$D$12, "Bar", "", "Close","D","-3",,,,,"T") -> 23405 | H4: =IF(A4="",NA(),RTD("cqg.rtd",,"StudyData", "If(HasVal("&$D$12&"),Vol("&$D$12&"),none) when LocalYear("&$D$12&")="&$D$2&" and localMonth("&$D$12&") ="&$E$2&" and LocalDay("&$D$12&")="&$F$2&" and Barix("&$D$12&",reference:=StartOfDay)="&A4&"", "Bar", "", "Close","A30C","0","All",,,"False","T","EveryTick")) -> 460 | I4: 891.6666667 | J4: =IF(A4="",NA(),RTD("cqg.rtd",,"StudyData", "If(HasVal("&$D$12&"),Vol("&$D$12&"),none) when LocalYear("&$D$12&")="&$D$3&" and localMonth("&$D$12&") ="&$E$3&" and LocalDay("&$D$12&")="&$F$3&" and Barix("&$D$12&",reference:=StartOfDay)="&A4&"", "Bar", "", "Close","A30C","0","All",,,"False","T","EveryTick")) -> 686 | K4: =IF(A4="",NA(),RTD("cqg.rtd",,"StudyData", "If(HasVal("&$D$12&"),Vol("&$D$12&"),none) when LocalYear("&$D$12&")="&$D$4&" and localMonth("&$D$12&") ="&$E$4&" and LocalDay("&$D$12&")="&$F$4&" and Barix("&$D$12&",reference:=StartOfDay)="&A4&"", "Bar", "", "Close","A30C","0","All",,,"False","T","EveryTick")) -> 695 | L4: =IF(A4="",NA(),RTD("cqg.rtd",,"StudyData", "If(HasVal("&$D$12&"),Vol("&$D$12&"),none) when LocalYear("&$D$12&")="&$D$5&" and localMonth("&$D$12&") ="&$E$5&" and LocalDay("&$D$12&")="&$F$5&" and Barix("&$D$12&",reference:=StartOfDay)="&A4&"", "Bar", "", "Close","A30C","0","All",,,"False","T","EveryTick")) -> 760 | M4: =IF(A4="",NA(),RTD("cqg.rtd",,"StudyData", "If(HasVal("&$D$12&"),Vol("&$D$12&"),none) when LocalYear("&$D$12&")="&$D$6&" and localMonth("&$D$12&") ="&$E$6&" and LocalDay("&$D$12&")="&$F$6&" and Barix("&$D$12&",reference:=StartOfDay)="&A4&"", "Bar", "", "Close","A30C","0","All",,,"False","T","EveryTick")) -> 771 | N4: =IF(A4="",NA(),RTD("cqg.rtd",,"StudyData", "If(HasVal("&$D$12&"),Vol("&$D$12&"),none) when LocalYear("&$D$12&")="&$D$7&" and localMonth("&$D$12&") ="&$E$7&" and LocalDay("&$D$12&")="&$F$7&" and Barix("&$D$12&",reference:=StartOfDay)="&A4&"", "Bar", "", "Close","A30C","0","All",,,"False","T","EveryTick")) -> 809 | O4: =IF(A4="",NA(),RTD("cqg.rtd",,"StudyData", "If(HasVal("&$D$12&"),Vol("&$D$12&"),none) when LocalYear("&$D$12&")="&$D$8&" and localMonth("&$D$12&") ="&$E$8&" and LocalDay("&$D$12&")="&$F$8&" and Barix("&$D$12&",reference:=StartOfDay)="&A4&"", "Bar", "", "Close","A30C","0","All",,,"False","T","EveryTick")) -> 1673 | P4: =IF(A4="",NA(),RTD("cqg.rtd",,"StudyData", "If(HasVal("&$D$12&"),Vol("&$D$12&"),none) when LocalYear("&$D$12&")="&$D$9&" and localMonth("&$D$12&") ="&$E$9&" and LocalDay("&$D$12&")="&$F$9&" and Barix("&$D$12&",reference:=StartOfDay)="&A4&"", "Bar", "", "Close","A30C","0","All",,,"False","T","EveryTick")) -> 1044 | Q4: =IF(A4="",NA(),RTD("cqg.rtd",,"StudyData", "If(HasVal("&$D$12&"),Vol("&$D$12&"),none) when LocalYear("&$D$12&")="&$D$10&" and localMonth("&$D$12&") ="&$E$10&" and LocalDay("&$D$12&")="&$F$10&" and Barix("&$D$12&",reference:=StartOfDay)="&A4&"", "Bar", "", "Close","A30C","0","All",,,"False","T","EveryTick")) -> 850 | R4: =IF(A4="",NA(),RTD("cqg.rtd",,"StudyData", "If(HasVal("&$D$12&"),Vol("&$D$12&"),none) when LocalYear("&$D$12&")="&$D$11&" and localMonth("&$D$12&") ="&$E$11&" and LocalDay("&$D$12&")="&$F$11&" and Barix("&$D$12&",reference:=StartOfDay)="&A4&"", "Bar", "", "Close","A30C","0","All",,,"False","T","EveryTick")) -> 737
A5: 4 | B5: 16:55:00 | C5: =RTD("cqg.rtd",,"StudyData",$D$12, "Bar", "", "Time","D","-4",,,,,"T") -> 2020-10-06 | D5: 2020 | E5: 10 | F5: 6 | G5: =RTD("cqg.rtd",,"StudyData",$D$12, "Bar", "", "Close","D","-4",,,,,"T") -> 23405 | H5: =IF(A5="",NA(),RTD("cqg.rtd",,"StudyData", "If(HasVal("&$D$12&"),Vol("&$D$12&"),none) when LocalYear("&$D$12&")="&$D$2&" and localMonth("&$D$12&") ="&$E$2&" and LocalDay("&$D$12&")="&$F$2&" and Barix("&$D$12&",reference:=StartOfDay)="&A5&"", "Bar", "", "Close","A30C","0","All",,,"False","T","EveryTick")) -> 604 | I5: 731.4444444 | J5: =IF(A5="",NA(),RTD("cqg.rtd",,"StudyData", "If(HasVal("&$D$12&"),Vol("&$D$12&"),none) when LocalYear("&$D$12&")="&$D$3&" and localMonth("&$D$12&") ="&$E$3&" and LocalDay("&$D$12&")="&$F$3&" and Barix("&$D$12&",reference:=StartOfDay)="&A5&"", "Bar", "", "Close","A30C","0","All",,,"False","T","EveryTick")) -> 767 | K5: =IF(A5="",NA(),RTD("cqg.rtd",,"StudyData", "If(HasVal("&$D$12&"),Vol("&$D$12&"),none) when LocalYear("&$D$12&")="&$D$4&" and localMonth("&$D$12&") ="&$E$4&" and LocalDay("&$D$12&")="&$F$4&" and Barix("&$D$12&",reference:=StartOfDay)="&A5&"", "Bar", "", "Close","A30C","0","All",,,"False","T","EveryTick")) -> 608 | L5: =IF(A5="",NA(),RTD("cqg.rtd",,"StudyData", "If(HasVal("&$D$12&"),Vol("&$D$12&"),none) when LocalYear("&$D$12&")="&$D$5&" and localMonth("&$D$12&") ="&$E$5&" and LocalDay("&$D$12&")="&$F$5&" and Barix("&$D$12&",reference:=StartOfDay)="&A5&"", "Bar", "", "Close","A30C","0","All",,,"False","T","EveryTick")) -> 912 | M5: =IF(A5="",NA(),RTD("cqg.rtd",,"StudyData", "If(HasVal("&$D$12&"),Vol("&$D$12&"),none) when LocalYear("&$D$12&")="&$D$6&" and localMonth("&$D$12&") ="&$E$6&" and LocalDay("&$D$12&")="&$F$6&" and Barix("&$D$12&",reference:=StartOfDay)="&A5&"", "Bar", "", "Close","A30C","0","All",,,"False","T","EveryTick")) -> 603 | N5: =IF(A5="",NA(),RTD("cqg.rtd",,"StudyData", "If(HasVal("&$D$12&"),Vol("&$D$12&"),none) when LocalYear("&$D$12&")="&$D$7&" and localMonth("&$D$12&") ="&$E$7&" and LocalDay("&$D$12&")="&$F$7&" and Barix("&$D$12&",reference:=StartOfDay)="&A5&"", "Bar", "", "Close","A30C","0","All",,,"False","T","EveryTick")) -> 715 | O5: =IF(A5="",NA(),RTD("cqg.rtd",,"StudyData", "If(HasVal("&$D$12&"),Vol("&$D$12&"),none) when LocalYear("&$D$12&")="&$D$8&" and localMonth("&$D$12&") ="&$E$8&" and LocalDay("&$D$12&")="&$F$8&" and Barix("&$D$12&",reference:=StartOfDay)="&A5&"", "Bar", "", "Close","A30C","0","All",,,"False","T","EveryTick")) -> 907 | P5: =IF(A5="",NA(),RTD("cqg.rtd",,"StudyData", "If(HasVal("&$D$12&"),Vol("&$D$12&"),none) when LocalYear("&$D$12&")="&$D$9&" and localMonth("&$D$12&") ="&$E$9&" and LocalDay("&$D$12&")="&$F$9&" and Barix("&$D$12&",reference:=StartOfDay)="&A5&"", "Bar", "", "Close","A30C","0","All",,,"False","T","EveryTick")) -> 882 | Q5: =IF(A5="",NA(),RTD("cqg.rtd",,"StudyData", "If(HasVal("&$D$12&"),Vol("&$D$12&"),none) when LocalYear("&$D$12&")="&$D$10&" and localMonth("&$D$12&") ="&$E$10&" and LocalDay("&$D$12&")="&$F$10&" and Barix("&$D$12&",reference:=StartOfDay)="&A5&"", "Bar", "", "Close","A30C","0","All",,,"False","T","EveryTick")) -> 698 | R5: =IF(A5="",NA(),RTD("cqg.rtd",,"StudyData", "If(HasVal("&$D$12&"),Vol("&$D$12&"),none) when LocalYear("&$D$12&")="&$D$11&" and localMonth("&$D$12&") ="&$E$11&" and LocalDay("&$D$12&")="&$F$11&" and Barix("&$D$12&",reference:=StartOfDay)="&A5&"", "Bar", "", "Close","A30C","0","All",,,"False","T","EveryTick")) -> 491
A6: 5 | B6: 17:25:00 | C6: =RTD("cqg.rtd",,"StudyData",$D$12, "Bar", "", "Time","D","-5",,,,,"T") -> 2020-10-05 | D6: 2020 | E6: 10 | F6: 5 | G6: =RTD("cqg.rtd",,"StudyData",$D$12, "Bar", "", "Close","D","-5",,,,,"T") -> 23305 | H6: =IF(A6="",NA(),RTD("cqg.rtd",,"StudyData", "If(HasVal("&$D$12&"),Vol("&$D$12&"),none) when LocalYear("&$D$12&")="&$D$2&" and localMonth("&$D$12&") ="&$E$2&" and LocalDay("&$D$12&")="&$F$2&" and Barix("&$D$12&",reference:=StartOfDay)="&A6&"", "Bar", "", "Close","A30C","0","All",,,"False","T","EveryTick")) -> 452 | I6: 718.7777778 | J6: =IF(A6="",NA(),RTD("cqg.rtd",,"StudyData", "If(HasVal("&$D$12&"),Vol("&$D$12&"),none) when LocalYear("&$D$12&")="&$D$3&" and localMonth("&$D$12&") ="&$E$3&" and LocalDay("&$D$12&")="&$F$3&" and Barix("&$D$12&",reference:=StartOfDay)="&A6&"", "Bar", "", "Close","A30C","0","All",,,"False","T","EveryTick")) -> 1013 | K6: =IF(A6="",NA(),RTD("cqg.rtd",,"StudyData", "If(HasVal("&$D$12&"),Vol("&$D$12&"),none) when LocalYear("&$D$12&")="&$D$4&" and localMonth("&$D$12&") ="&$E$4&" and LocalDay("&$D$12&")="&$F$4&" and Barix("&$D$12&",reference:=StartOfDay)="&A6&"", "Bar", "", "Close","A30C","0","All",,,"False","T","EveryTick")) -> 507 | L6: =IF(A6="",NA(),RTD("cqg.rtd",,"StudyData", "If(HasVal("&$D$12&"),Vol("&$D$12&"),none) when LocalYear("&$D$12&")="&$D$5&" and localMonth("&$D$12&") ="&$E$5&" and LocalDay("&$D$12&")="&$F$5&" and Barix("&$D$12&",reference:=StartOfDay)="&A6&"", "Bar", "", "Close","A30C","0","All",,,"False","T","EveryTick")) -> 757 | M6: =IF(A6="",NA(),RTD("cqg.rtd",,"StudyData", "If(HasVal("&$D$12&"),Vol("&$D$12&"),none) when LocalYear("&$D$12&")="&$D$6&" and localMonth("&$D$12&") ="&$E$6&" and LocalDay("&$D$12&")="&$F$6&" and Barix("&$D$12&",reference:=StartOfDay)="&A6&"", "Bar", "", "Close","A30C","0","All",,,"False","T","EveryTick")) -> 525 | N6: =IF(A6="",NA(),RTD("cqg.rtd",,"StudyData", "If(HasVal("&$D$12&"),Vol("&$D$12&"),none) when LocalYear("&$D$12&")="&$D$7&" and localMonth("&$D$12&") ="&$E$7&" and LocalDay("&$D$12&")="&$F$7&" and Barix("&$D$12&",reference:=StartOfDay)="&A6&"", "Bar", "", "Close","A30C","0","All",,,"False","T","EveryTick")) -> 1231 | O6: =IF(A6="",NA(),RTD("cqg.rtd",,"StudyData", "If(HasVal("&$D$12&"),Vol("&$D$12&"),none) when LocalYear("&$D$12&")="&$D$8&" and localMonth("&$D$12&") ="&$E$8&" and LocalDay("&$D$12&")="&$F$8&" and Barix("&$D$12&",reference:=StartOfDay)="&A6&"", "Bar", "", "Close","A30C","0","All",,,"False","T","EveryTick")) -> 618 | P6: =IF(A6="",NA(),RTD("cqg.rtd",,"StudyData", "If(HasVal("&$D$12&"),Vol("&$D$12&"),none) when LocalYear("&$D$12&")="&$D$9&" and localMonth("&$D$12&") ="&$E$9&" and LocalDay("&$D$12&")="&$F$9&" and Barix("&$D$12&",reference:=StartOfDay)="&A6&"", "Bar", "", "Close","A30C","0","All",,,"False","T","EveryTick")) -> 650 | Q6: =IF(A6="",NA(),RTD("cqg.rtd",,"StudyData", "If(HasVal("&$D$12&"),Vol("&$D$12&"),none) when LocalYear("&$D$12&")="&$D$10&" and localMonth("&$D$12&") ="&$E$10&" and LocalDay("&$D$12&")="&$F$10&" and Barix("&$D$12&",reference:=StartOfDay)="&A6&"", "Bar", "", "Close","A30C","0","All",,,"False","T","EveryTick")) -> 677 | R6: =IF(A6="",NA(),RTD("cqg.rtd",,"StudyData", "If(HasVal("&$D$12&"),Vol("&$D$12&"),none) when LocalYear("&$D$12&")="&$D$11&" and localMonth("&$D$12&") ="&$E$11&" and LocalDay("&$D$12&")="&$F$11&" and Barix("&$D$12&",reference:=StartOfDay)="&A6&"", "Bar", "", "Close","A30C","0","All",,,"False","T","EveryTick")) -> 491
A7: 6 | B7: 17:55:00 | C7: =RTD("cqg.rtd",,"StudyData",$D$12, "Bar", "", "Time","D","-6",,,,,"T") -> 2020-10-02 | D7: 2020 | E7: 10 | F7: 2 | G7: =RTD("cqg.rtd",,"StudyData",$D$12, "Bar", "", "Close","D","-6",,,,,"T") -> 23030 | H7: =IF(A7="",NA(),RTD("cqg.rtd",,"StudyData", "If(HasVal("&$D$12&"),Vol("&$D$12&"),none) when LocalYear("&$D$12&")="&$D$2&" and localMonth("&$D$12&") ="&$E$2&" and LocalDay("&$D$12&")="&$F$2&" and Barix("&$D$12&",reference:=StartOfDay)="&A7&"", "Bar", "", "Close","A30C","0","All",,,"False","T","EveryTick")) -> 363 | I7: 825.5555556 | J7: =IF(A7="",NA(),RTD("cqg.rtd",,"StudyData", "If(HasVal("&$D$12&"),Vol("&$D$12&"),none) when LocalYear("&$D$12&")="&$D$3&" and localMonth("&$D$12&") ="&$E$3&" and LocalDay("&$D$12&")="&$F$3&" and Barix("&$D$12&",reference:=StartOfDay)="&A7&"", "Bar", "", "Close","A30C","0","All",,,"False","T","EveryTick")) -> 391 | K7: =IF(A7="",NA(),RTD("cqg.rtd",,"StudyData", "If(HasVal("&$D$12&"),Vol("&$D$12&"),none) when LocalYear("&$D$12&")="&$D$4&" and localMonth("&$D$12&") ="&$E$4&" and LocalDay("&$D$12&")="&$F$4&" and Barix("&$D$12&",reference:=StartOfDay)="&A7&"", "Bar", "", "Close","A30C","0","All",,,"False","T","EveryTick")) -> 544 | L7: =IF(A7="",NA(),RTD("cqg.rtd",,"StudyData", "If(HasVal("&$D$12&"),Vol("&$D$12&"),none) when LocalYear("&$D$12&")="&$D$5&" and localMonth("&$D$12&") ="&$E$5&" and LocalDay("&$D$12&")="&$F$5&" and Barix("&$D$12&",reference:=StartOfDay)="&A7&"", "Bar", "", "Close","A30C","0","All",,,"False","T","EveryTick")) -> 493 | M7: =IF(A7="",NA(),RTD("cqg.rtd",,"StudyData", "If(HasVal("&$D$12&"),Vol("&$D$12&"),none) when LocalYear("&$D$12&")="&$D$6&" and localMonth("&$D$12&") ="&$E$6&" and LocalDay("&$D$12&")="&$F$6&" and Barix("&$D$12&",reference:=StartOfDay)="&A7&"", "Bar", "", "Close","A30C","0","All",,,"False","T","EveryTick")) -> 695 | N7: =IF(A7="",NA(),RTD("cqg.rtd",,"StudyData", "If(HasVal("&$D$12&"),Vol("&$D$12&"),none) when LocalYear("&$D$12&")="&$D$7&" and localMonth("&$D$12&") ="&$E$7&" and LocalDay("&$D$12&")="&$F$7&" and Barix("&$D$12&",reference:=StartOfDay)="&A7&"", "Bar", "", "Close","A30C","0","All",,,"False","T","EveryTick")) -> 767 | O7: =IF(A7="",NA(),RTD("cqg.rtd",,"StudyData", "If(HasVal("&$D$12&"),Vol("&$D$12&"),none) when LocalYear("&$D$12&")="&$D$8&" and localMonth("&$D$12&") ="&$E$8&" and LocalDay("&$D$12&")="&$F$8&" and Barix("&$D$12&",reference:=StartOfDay)="&A7&"", "Bar", "", "Close","A30C","0","All",,,"False","T","EveryTick")) -> 751 | P7: =IF(A7="",NA(),RTD("cqg.rtd",,"StudyData", "If(HasVal("&$D$12&"),Vol("&$D$12&"),none) when LocalYear("&$D$12&")="&$D$9&" and localMonth("&$D$12&") ="&$E$9&" and LocalDay("&$D$12&")="&$F$9&" and Barix("&$D$12&",reference:=StartOfDay)="&A7&"", "Bar", "", "Close","A30C","0","All",,,"False","T","EveryTick")) -> 1400 | Q7: =IF(A7="",NA(),RTD("cqg.rtd",,"StudyData", "If(HasVal("&$D$12&"),Vol("&$D$12&"),none) when LocalYear("&$D$12&")="&$D$10&" and localMonth("&$D$12&") ="&$E$10&" and LocalDay("&$D$12&")="&$F$10&" and Barix("&$D$12&",reference:=StartOfDay)="&A7&"", "Bar", "", "Close","A30C","0","All",,,"False","T","EveryTick")) -> 1208 | R7: =IF(A7="",NA(),RTD("cqg.rtd",,"StudyData", "If(HasVal("&$D$12&"),Vol("&$D$12&"),none) when LocalYear("&$D$12&")="&$D$11&" and localMonth("&$D$12&") ="&$E$11&" and LocalDay("&$D$12&")="&$F$11&" and Barix("&$D$12&",reference:=StartOfDay)="&A7&"", "Bar", "", "Close","A30C","0","All",,,"False","T","EveryTick")) -> 1181
A8: 7 | B8: 18:25:00 | C8: =RTD("cqg.rtd",,"StudyData",$D$12, "Bar", "", "Time","D","-7",,,,,"T") -> 2020-10-01 | D8: 2020 | E8: 10 | F8: 1 | G8: =RTD("cqg.rtd",,"StudyData",$D$12, "Bar", "", "Close","D","-7",,,,,"T") -> 23330 | H8: =IF(A8="",NA(),RTD("cqg.rtd",,"StudyData", "If(HasVal("&$D$12&"),Vol("&$D$12&"),none) when LocalYear("&$D$12&")="&$D$2&" and localMonth("&$D$12&") ="&$E$2&" and LocalDay("&$D$12&")="&$F$2&" and Barix("&$D$12&",reference:=StartOfDay)="&A8&"", "Bar", "", "Close","A30C","0","All",,,"False","T","EveryTick")) -> 367 | I8: 522.5555556 | J8: =IF(A8="",NA(),RTD("cqg.rtd",,"StudyData", "If(HasVal("&$D$12&"),Vol("&$D$12&"),none) when LocalYear("&$D$12&")="&$D$3&" and localMonth("&$D$12&") ="&$E$3&" and LocalDay("&$D$12&")="&$F$3&" and Barix("&$D$12&",reference:=StartOfDay)="&A8&"", "Bar", "", "Close","A30C","0","All",,,"False","T","EveryTick")) -> 573 | K8: =IF(A8="",NA(),RTD("cqg.rtd",,"StudyData", "If(HasVal("&$D$12&"),Vol("&$D$12&"),none) when LocalYear("&$D$12&")="&$D$4&" and localMonth("&$D$12&") ="&$E$4&" and LocalDay("&$D$12&")="&$F$4&" and Barix("&$D$12&",reference:=StartOfDay)="&A8&"", "Bar", "", "Close","A30C","0","All",,,"False","T","EveryTick")) -> 293 | L8: =IF(A8="",NA(),RTD("cqg.rtd",,"StudyData", "If(HasVal("&$D$12&"),Vol("&$D$12&"),none) when LocalYear("&$D$12&")="&$D$5&" and localMonth("&$D$12&") ="&$E$5&" and LocalDay("&$D$12&")="&$F$5&" and Barix("&$D$12&",reference:=StartOfDay)="&A8&"", "Bar", "", "Close","A30C","0","All",,,"False","T","EveryTick")) -> 458 | M8: =IF(A8="",NA(),RTD("cqg.rtd",,"StudyData", "If(HasVal("&$D$12&"),Vol("&$D$12&"),none) when LocalYear("&$D$12&")="&$D$6&" and localMonth("&$D$12&") ="&$E$6&" and LocalDay("&$D$12&")="&$F$6&" and Barix("&$D$12&",reference:=StartOfDay)="&A8&"", "Bar", "", "Close","A30C","0","All",,,"False","T","EveryTick")) -> 232 | N8: =IF(A8="",NA(),RTD("cqg.rtd",,"StudyData", "If(HasVal("&$D$12&"),Vol("&$D$12&"),none) when LocalYear("&$D$12&")="&$D$7&" and localMonth("&$D$12&") ="&$E$7&" and LocalDay("&$D$12&")="&$F$7&" and Barix("&$D$12&",reference:=StartOfDay)="&A8&"", "Bar", "", "Close","A30C","0","All",,,"False","T","EveryTick")) -> 700 | O8: =IF(A8="",NA(),RTD("cqg.rtd",,"StudyData", "If(HasVal("&$D$12&"),Vol("&$D$12&"),none) when LocalYear("&$D$12&")="&$D$8&" and localMonth("&$D$12&") ="&$E$8&" and LocalDay("&$D$12&")="&$F$8&" and Barix("&$D$12&",reference:=StartOfDay)="&A8&"", "Bar", "", "Close","A30C","0","All",,,"False","T","EveryTick")) -> 400 | P8: =IF(A8="",NA(),RTD("cqg.rtd",,"StudyData", "If(HasVal("&$D$12&"),Vol("&$D$12&"),none) when LocalYear("&$D$12&")="&$D$9&" and localMonth("&$D$12&") ="&$E$9&" and LocalDay("&$D$12&")="&$F$9&" and Barix("&$D$12&",reference:=StartOfDay)="&A8&"", "Bar", "", "Close","A30C","0","All",,,"False","T","EveryTick")) -> 1046 | Q8: =IF(A8="",NA(),RTD("cqg.rtd",,"StudyData", "If(HasVal("&$D$12&"),Vol("&$D$12&"),none) when LocalYear("&$D$12&")="&$D$10&" and localMonth("&$D$12&") ="&$E$10&" and LocalDay("&$D$12&")="&$F$10&" and Barix("&$D$12&",reference:=StartOfDay)="&A8&"", "Bar", "", "Close","A30C","0","All",,,"False","T","EveryTick")) -> 507 | R8: =IF(A8="",NA(),RTD("cqg.rtd",,"StudyData", "If(HasVal("&$D$12&"),Vol("&$D$12&"),none) when LocalYear("&$D$12&")="&$D$11&" and localMonth("&$D$12&") ="&$E$11&" and LocalDay("&$D$12&")="&$F$11&" and Barix("&$D$12&",reference:=StartOfDay)="&A8&"", "Bar", "", "Close","A30C","0","All",,,"False","T","EveryTick")) -> 494
A9: 8 | B9: 18:55:00 | C9: =RTD("cqg.rtd",,"StudyData",$D$12, "Bar", "", "Time","D","-8",,,,,"T") -> 2020-09-30 | D9: 2020 | E9: 9 | F9: 30 | G9: =RTD("cqg.rtd",,"StudyData",$D$12, "Bar", "", "Close","D","-8",,,,,"T") -> 23205 | H9: =IF(A9="",NA(),RTD("cqg.rtd",,"StudyData", "If(HasVal("&$D$12&"),Vol("&$D$12&"),none) when LocalYear("&$D$12&")="&$D$2&" and localMonth("&$D$12&") ="&$E$2&" and LocalDay("&$D$12&")="&$F$2&" and Barix("&$D$12&",reference:=StartOfDay)="&A9&"", "Bar", "", "Close","A30C","0","All",,,"False","T","EveryTick")) -> 376 | I9: 580.3333333 | J9: =IF(A9="",NA(),RTD("cqg.rtd",,"StudyData", "If(HasVal("&$D$12&"),Vol("&$D$12&"),none) when LocalYear("&$D$12&")="&$D$3&" and localMonth("&$D$12&") ="&$E$3&" and LocalDay("&$D$12&")="&$F$3&" and Barix("&$D$12&",reference:=StartOfDay)="&A9&"", "Bar", "", "Close","A30C","0","All",,,"False","T","EveryTick")) -> 444 | K9: =IF(A9="",NA(),RTD("cqg.rtd",,"StudyData", "If(HasVal("&$D$12&"),Vol("&$D$12&"),none) when LocalYear("&$D$12&")="&$D$4&" and localMonth("&$D$12&") ="&$E$4&" and LocalDay("&$D$12&")="&$F$4&" and Barix("&$D$12&",reference:=StartOfDay)="&A9&"", "Bar", "", "Close","A30C","0","All",,,"False","T","EveryTick")) -> 814 | L9: =IF(A9="",NA(),RTD("cqg.rtd",,"StudyData", "If(HasVal("&$D$12&"),Vol("&$D$12&"),none) when LocalYear("&$D$12&")="&$D$5&" and localMonth("&$D$12&") ="&$E$5&" and LocalDay("&$D$12&")="&$F$5&" and Barix("&$D$12&",reference:=StartOfDay)="&A9&"", "Bar", "", "Close","A30C","0","All",,,"False","T","EveryTick")) -> 393 | M9: =IF(A9="",NA(),RTD("cqg.rtd",,"StudyData", "If(HasVal("&$D$12&"),Vol("&$D$12&"),none) when LocalYear("&$D$12&")="&$D$6&" and localMonth("&$D$12&") ="&$E$6&" and LocalDay("&$D$12&")="&$F$6&" and Barix("&$D$12&",reference:=StartOfDay)="&A9&"", "Bar", "", "Close","A30C","0","All",,,"False","T","EveryTick")) -> 476 | N9: =IF(A9="",NA(),RTD("cqg.rtd",,"StudyData", "If(HasVal("&$D$12&"),Vol("&$D$12&"),none) when LocalYear("&$D$12&")="&$D$7&" and localMonth("&$D$12&") ="&$E$7&" and LocalDay("&$D$12&")="&$F$7&" and Barix("&$D$12&",reference:=StartOfDay)="&A9&"", "Bar", "", "Close","A30C","0","All",,,"False","T","EveryTick")) -> 519 | O9: =IF(A9="",NA(),RTD("cqg.rtd",,"StudyData", "If(HasVal("&$D$12&"),Vol("&$D$12&"),none) when LocalYear("&$D$12&")="&$D$8&" and localMonth("&$D$12&") ="&$E$8&" and LocalDay("&$D$12&")="&$F$8&" and Barix("&$D$12&",reference:=StartOfDay)="&A9&"", "Bar", "", "Close","A30C","0","All",,,"False","T","EveryTick")) -> 424 | P9: =IF(A9="",NA(),RTD("cqg.rtd",,"StudyData", "If(HasVal("&$D$12&"),Vol("&$D$12&"),none) when LocalYear("&$D$12&")="&$D$9&" and localMonth("&$D$12&") ="&$E$9&" and LocalDay("&$D$12&")="&$F$9&" and Barix("&$D$12&",reference:=StartOfDay)="&A9&"", "Bar", "", "Close","A30C","0","All",,,"False","T","EveryTick")) -> 841 | Q9: =IF(A9="",NA(),RTD("cqg.rtd",,"StudyData", "If(HasVal("&$D$12&"),Vol("&$D$12&"),none) when LocalYear("&$D$12&")="&$D$10&" and localMonth("&$D$12&") ="&$E$10&" and LocalDay("&$D$12&")="&$F$10&" and Barix("&$D$12&",reference:=StartOfDay)="&A9&"", "Bar", "", "Close","A30C","0","All",,,"False","T","EveryTick")) -> 697 | R9: =IF(A9="",NA(),RTD("cqg.rtd",,"StudyData", "If(HasVal("&$D$12&"),Vol("&$D$12&"),none) when LocalYear("&$D$12&")="&$D$11&" and localMonth("&$D$12&") ="&$E$11&" and LocalDay("&$D$12&")="&$F$11&" and Barix("&$D$12&",reference:=StartOfDay)="&A9&"", "Bar", "", "Close","A30C","0","All",,,"False","T","EveryTick")) -> 615
A10: 9 | B10: 19:25:00 | C10: =RTD("cqg.rtd",,"StudyData",$D$12, "Bar", "", "Time","D","-9",,,,,"T") -> 2020-09-29 | D10: 2020 | E10: 9 | F10: 29 | G10: =RTD("cqg.rtd",,"StudyData",$D$12, "Bar", "", "Close","D","-9",,,,,"T") -> 23505 | H10: =IF(A10="",NA(),RTD("cqg.rtd",,"StudyData", "If(HasVal("&$D$12&"),Vol("&$D$12&"),none) when LocalYear("&$D$12&")="&$D$2&" and localMonth("&$D$12&") ="&$E$2&" and LocalDay("&$D$12&")="&$F$2&" and Barix("&$D$12&",reference:=StartOfDay)="&A10&"", "Bar", "", "Close","A30C","0","All",,,"False","T","EveryTick")) -> 340 | I10: 473.2222222 | J10: =IF(A10="",NA(),RTD("cqg.rtd",,"StudyData", "If(HasVal("&$D$12&"),Vol("&$D$12&"),none) when LocalYear("&$D$12&")="&$D$3&" and localMonth("&$D$12&") ="&$E$3&" and LocalDay("&$D$12&")="&$F$3&" and Barix("&$D$12&",reference:=StartOfDay)="&A10&"", "Bar", "", "Close","A30C","0","All",,,"False","T","EveryTick")) -> 295 | K10: =IF(A10="",NA(),RTD("cqg.rtd",,"StudyData", "If(HasVal("&$D$12&"),Vol("&$D$12&"),none) when LocalYear("&$D$12&")="&$D$4&" and localMonth("&$D$12&") ="&$E$4&" and LocalDay("&$D$12&")="&$F$4&" and Barix("&$D$12&",reference:=StartOfDay)="&A10&"", "Bar", "", "Close","A30C","0","All",,,"False","T","EveryTick")) -> 255 | L10: =IF(A10="",NA(),RTD("cqg.rtd",,"StudyData", "If(HasVal("&$D$12&"),Vol("&$D$12&"),none) when LocalYear("&$D$12&")="&$D$5&" and localMonth("&$D$12&") ="&$E$5&" and LocalDay("&$D$12&")="&$F$5&" and Barix("&$D$12&",reference:=StartOfDay)="&A10&"", "Bar", "", "Close","A30C","0","All",,,"False","T","EveryTick")) -> 835 | M10: =IF(A10="",NA(),RTD("cqg.rtd",,"StudyData", "If(HasVal("&$D$12&"),Vol("&$D$12&"),none) when LocalYear("&$D$12&")="&$D$6&" and localMonth("&$D$12&") ="&$E$6&" and LocalDay("&$D$12&")="&$F$6&" and Barix("&$D$12&",reference:=StartOfDay)="&A10&"", "Bar", "", "Close","A30C","0","All",,,"False","T","EveryTick")) -> 226 | N10: =IF(A10="",NA(),RTD("cqg.rtd",,"StudyData", "If(HasVal("&$D$12&"),Vol("&$D$12&"),none) when LocalYear("&$D$12&")="&$D$7&" and localMonth("&$D$12&") ="&$E$7&" and LocalDay("&$D$12&")="&$F$7&" and Barix("&$D$12&",reference:=StartOfDay)="&A10&"", "Bar", "", "Close","A30C","0","All",,,"False","T","EveryTick")) -> 654 | O10: =IF(A10="",NA(),RTD("cqg.rtd",,"StudyData", "If(HasVal("&$D$12&"),Vol("&$D$12&"),none) when LocalYear("&$D$12&")="&$D$8&" and localMonth("&$D$12&") ="&$E$8&" and LocalDay("&$D$12&")="&$F$8&" and Barix("&$D$12&",reference:=StartOfDay)="&A10&"", "Bar", "", "Close","A30C","0","All",,,"False","T","EveryTick")) -> 532 | P10: =IF(A10="",NA(),RTD("cqg.rtd",,"StudyData", "If(HasVal("&$D$12&"),Vol("&$D$12&"),none) when LocalYear("&$D$12&")="&$D$9&" and localMonth("&$D$12&") ="&$E$9&" and LocalDay("&$D$12&")="&$F$9&" and Barix("&$D$12&",reference:=StartOfDay)="&A10&"", "Bar", "", "Close","A30C","0","All",,,"False","T","EveryTick")) -> 574 | Q10: =IF(A10="",NA(),RTD("cqg.rtd",,"StudyData", "If(HasVal("&$D$12&"),Vol("&$D$12&"),none) when LocalYear("&$D$12&")="&$D$10&" and localMonth("&$D$12&") ="&$E$10&" and LocalDay("&$D$12&")="&$F$10&" and Barix("&$D$12&",reference:=StartOfDay)="&A10&"", "Bar", "", "Close","A30C","0","All",,,"False","T","EveryTick")) -> 349 | R10: =IF(A10="",NA(),RTD("cqg.rtd",,"StudyData", "If(HasVal("&$D$12&"),Vol("&$D$12&"),none) when LocalYear("&$D$12&")="&$D$11&" and localMonth("&$D$12&") ="&$E$11&" and LocalDay("&$D$12&")="&$F$11&" and Barix("&$D$12&",reference:=StartOfDay)="&A10&"", "Bar", "", "Close","A30C","0","All",,,"False","T","EveryTick")) -> 539
A11: 10 | B11: 19:55:00 | C11: =RTD("cqg.rtd",,"StudyData",$D$12, "Bar", "", "Time","D","-10",,,,,"T") -> 2020-09-28 | D11: 2020 | E11: 9 | F11: 28 | G11: =RTD("cqg.rtd",,"StudyData",$D$12, "Bar", "", "Close","D","-10",,,,,"T") -> 23285 | H11: =IF(A11="",NA(),RTD("cqg.rtd",,"StudyData", "If(HasVal("&$D$12&"),Vol("&$D$12&"),none) when LocalYear("&$D$12&")="&$D$2&" and localMonth("&$D$12&") ="&$E$2&" and LocalDay("&$D$12&")="&$F$2&" and Barix("&$D$12&",reference:=StartOfDay)="&A11&"", "Bar", "", "Close","A30C","0","All",,,"False","T","EveryTick")) -> 799 | I11: 633 | J11: =IF(A11="",NA(),RTD("cqg.rtd",,"StudyData", "If(HasVal("&$D$12&"),Vol("&$D$12&"),none) when LocalYear("&$D$12&")="&$D$3&" and localMonth("&$D$12&") ="&$E$3&" and LocalDay("&$D$12&")="&$F$3&" and Barix("&$D$12&",reference:=StartOfDay)="&A11&"", "Bar", "", "Close","A30C","0","All",,,"False","T","EveryTick")) -> 594 | K11: =IF(A11="",NA(),RTD("cqg.rtd",,"StudyData", "If(HasVal("&$D$12&"),Vol("&$D$12&"),none) when LocalYear("&$D$12&")="&$D$4&" and localMonth("&$D$12&") ="&$E$4&" and LocalDay("&$D$12&")="&$F$4&" and Barix("&$D$12&",reference:=StartOfDay)="&A11&"", "Bar", "", "Close","A30C","0","All",,,"False","T","EveryTick")) -> 372 | L11: =IF(A11="",NA(),RTD("cqg.rtd",,"StudyData", "If(HasVal("&$D$12&"),Vol("&$D$12&"),none) when LocalYear("&$D$12&")="&$D$5&" and localMonth("&$D$12&") ="&$E$5&" and LocalDay("&$D$12&")="&$F$5&" and Barix("&$D$12&",reference:=StartOfDay)="&A11&"", "Bar", "", "Close","A30C","0","All",,,"False","T","EveryTick")) -> 731 | M11: =IF(A11="",NA(),RTD("cqg.rtd",,"StudyData", "If(HasVal("&$D$12&"),Vol("&$D$12&"),none) when LocalYear("&$D$12&")="&$D$6&" and localMonth("&$D$12&") ="&$E$6&" and LocalDay("&$D$12&")="&$F$6&" and Barix("&$D$12&",reference:=StartOfDay)="&A11&"", "Bar", "", "Close","A30C","0","All",,,"False","T","EveryTick")) -> 691 | N11: =IF(A11="",NA(),RTD("cqg.rtd",,"StudyData", "If(HasVal("&$D$12&"),Vol("&$D$12&"),none) when LocalYear("&$D$12&")="&$D$7&" and localMonth("&$D$12&") ="&$E$7&" and LocalDay("&$D$12&")="&$F$7&" and Barix("&$D$12&",reference:=StartOfDay)="&A11&"", "Bar", "", "Close","A30C","0","All",,,"False","T","EveryTick")) -> 859 | O11: =IF(A11="",NA(),RTD("cqg.rtd",,"StudyData", "If(HasVal("&$D$12&"),Vol("&$D$12&"),none) when LocalYear("&$D$12&")="&$D$8&" and localMonth("&$D$12&") ="&$E$8&" and LocalDay("&$D$12&")="&$F$8&" and Barix("&$D$12&",reference:=StartOfDay)="&A11&"", "Bar", "", "Close","A30C","0","All",,,"False","T","EveryTick")) -> 669 | P11: =IF(A11="",NA(),RTD("cqg.rtd",,"StudyData", "If(HasVal("&$D$12&"),Vol("&$D$12&"),none) when LocalYear("&$D$12&")="&$D$9&" and localMonth("&$D$12&") ="&$E$9&" and LocalDay("&$D$12&")="&$F$9&" and Barix("&$D$12&",reference:=StartOfDay)="&A11&"", "Bar", "", "Close","A30C","0","All",,,"False","T","EveryTick")) -> 555 | Q11: =IF(A11="",NA(),RTD("cqg.rtd",,"StudyData", "If(HasVal("&$D$12&"),Vol("&$D$12&"),none) when LocalYear("&$D$12&")="&$D$10&" and localMonth("&$D$12&") ="&$E$10&" and LocalDay("&$D$12&")="&$F$10&" and Barix("&$D$12&",reference:=StartOfDay)="&A11&"", "Bar", "", "Close","A30C","0","All",,,"False","T","EveryTick")) -> 542 | R11: =IF(A11="",NA(),RTD("cqg.rtd",,"StudyData", "If(HasVal("&$D$12&"),Vol("&$D$12&"),none) when LocalYear("&$D$12&")="&$D$11&" and localMonth("&$D$12&") ="&$E$11&" and LocalDay("&$D$12&")="&$F$11&" and Barix("&$D$12&",reference:=StartOfDay)="&A11&"", "Bar", "", "Close","A30C","0","All",,,"False","T","EveryTick")) -> 684 | S11: 799
A12: 11 | B12: 20:25:00 | D12: ZNA | H12: =IF(A12="",NA(),RTD("cqg.rtd",,"StudyData", "If(HasVal("&$D$12&"),Vol("&$D$12&"),none) when LocalYear("&$D$12&")="&$D$2&" and localMonth("&$D$12&") ="&$E$2&" and LocalDay("&$D$12&")="&$F$2&" and Barix("&$D$12&",reference:=StartOfDay)="&A12&"", "Bar", "", "Close","A30C","0","All",,,"False","T","EveryTick")) -> 1111 | I12: 541.2222222 | J12: =IF(A12="",NA(),RTD("cqg.rtd",,"StudyData", "If(HasVal("&$D$12&"),Vol("&$D$12&"),none) when LocalYear("&$D$12&")="&$D$3&" and localMonth("&$D$12&") ="&$E$3&" and LocalDay("&$D$12&")="&$F$3&" and Barix("&$D$12&",reference:=StartOfDay)="&A12&"", "Bar", "", "Close","A30C","0","All",,,"False","T","EveryTick")) -> 367 | K12: =IF(A12="",NA(),RTD("cqg.rtd",,"StudyData", "If(HasVal("&$D$12&"),Vol("&$D$12&"),none) when LocalYear("&$D$12&")="&$D$4&" and localMonth("&$D$12&") ="&$E$4&" and LocalDay("&$D$12&")="&$F$4&" and Barix("&$D$12&",reference:=StartOfDay)="&A12&"", "Bar", "", "Close","A30C","0","All",,,"False","T","EveryTick")) -> 338 | L12: =IF(A12="",NA(),RTD("cqg.rtd",,"StudyData", "If(HasVal("&$D$12&"),Vol("&$D$12&"),none) when LocalYear("&$D$12&")="&$D$5&" and localMonth("&$D$12&") ="&$E$5&" and LocalDay("&$D$12&")="&$F$5&" and Barix("&$D$12&",reference:=StartOfDay)="&A12&"", "Bar", "", "Close","A30C","0","All",,,"False","T","EveryTick")) -> 640 | M12: =IF(A12="",NA(),RTD("cqg.rtd",,"StudyData", "If(HasVal("&$D$12&"),Vol("&$D$12&"),none) when LocalYear("&$D$12&")="&$D$6&" and localMonth("&$D$12&") ="&$E$6&" and LocalDay("&$D$12&")="&$F$6&" and Barix("&$D$12&",reference:=StartOfDay)="&A12&"", "Bar", "", "Close","A30C","0","All",,,"False","T","EveryTick")) -> 327 | N12: =IF(A12="",NA(),RTD("cqg.rtd",,"StudyData", "If(HasVal("&$D$12&"),Vol("&$D$12&"),none) when LocalYear("&$D$12&")="&$D$7&" and localMonth("&$D$12&") ="&$E$7&" and LocalDay("&$D$12&")="&$F$7&" and Barix("&$D$12&",reference:=StartOfDay)="&A12&"", "Bar", "", "Close","A30C","0","All",,,"False","T","EveryTick")) -> 1014 | O12: =IF(A12="",NA(),RTD("cqg.rtd",,"StudyData", "If(HasVal("&$D$12&"),Vol("&$D$12&"),none) when LocalYear("&$D$12&")="&$D$8&" and localMonth("&$D$12&") ="&$E$8&" and LocalDay("&$D$12&")="&$F$8&" and Barix("&$D$12&",reference:=StartOfDay)="&A12&"", "Bar", "", "Close","A30C","0","All",,,"False","T","EveryTick")) -> 465 | P12: =IF(A12="",NA(),RTD("cqg.rtd",,"StudyData", "If(HasVal("&$D$12&"),Vol("&$D$12&"),none) when LocalYear("&$D$12&")="&$D$9&" and localMonth("&$D$12&") ="&$E$9&" and LocalDay("&$D$12&")="&$F$9&" and Barix("&$D$12&",reference:=StartOfDay)="&A12&"", "Bar", "", "Close","A30C","0","All",,,"False","T","EveryTick")) -> 969 | Q12: =IF(A12="",NA(),RTD("cqg.rtd",,"StudyData", "If(HasVal("&$D$12&"),Vol("&$D$12&"),none) when LocalYear("&$D$12&")="&$D$10&" and localMonth("&$D$12&") ="&$E$10&" and LocalDay("&$D$12&")="&$F$10&" and Barix("&$D$12&",reference:=StartOfDay)="&A12&"", "Bar", "", "Close","A30C","0","All",,,"False","T","EveryTick")) -> 248 | R12: =IF(A12="",NA(),RTD("cqg.rtd",,"StudyData", "If(HasVal("&$D$12&"),Vol("&$D$12&"),none) when LocalYear("&$D$12&")="&$D$11&" and localMonth("&$D$12&") ="&$E$11&" and LocalDay("&$D$12&")="&$F$11&" and Barix("&$D$12&",reference:=StartOfDay)="&A12&"", "Bar", "", "Close","A30C","0","All",,,"False","T","EveryTick")) -> 503 | S12: 1111
A13: =IF($D$12="QGA",0,A12+1) -> 12 | B13: 20:55:00 | D13: =RTD("cqg.rtd", ,"ContractData",D12, "LastQuoteToday",, "T") -> 23680 | G13: =C1 -> 2020-10-12 | H13: =IF(A13="",NA(),RTD("cqg.rtd",,"StudyData", "If(HasVal("&$D$12&"),Vol("&$D$12&"),none) when LocalYear("&$D$12&")="&$D$2&" and localMonth("&$D$12&") ="&$E$2&" and LocalDay("&$D$12&")="&$F$2&" and Barix("&$D$12&",reference:=StartOfDay)="&A13&"", "Bar", "", "Close","A30C","0","All",,,"False","T","EveryTick")) -> 575 | I13: 537 | J13: =IF(A13="",NA(),RTD("cqg.rtd",,"StudyData", "If(HasVal("&$D$12&"),Vol("&$D$12&"),none) when LocalYear("&$D$12&")="&$D$3&" and localMonth("&$D$12&") ="&$E$3&" and LocalDay("&$D$12&")="&$F$3&" and Barix("&$D$12&",reference:=StartOfDay)="&A13&"", "Bar", "", "Close","A30C","0","All",,,"False","T","EveryTick")) -> 167 | K13: =IF(A13="",NA(),RTD("cqg.rtd",,"StudyData", "If(HasVal("&$D$12&"),Vol("&$D$12&"),none) when LocalYear("&$D$12&")="&$D$4&" and localMonth("&$D$12&") ="&$E$4&" and LocalDay("&$D$12&")="&$F$4&" and Barix("&$D$12&",reference:=StartOfDay)="&A13&"", "Bar", "", "Close","A30C","0","All",,,"False","T","EveryTick")) -> 328 | L13: =IF(A13="",NA(),RTD("cqg.rtd",,"StudyData", "If(HasVal("&$D$12&"),Vol("&$D$12&"),none) when LocalYear("&$D$12&")="&$D$5&" and localMonth("&$D$12&") ="&$E$5&" and LocalDay("&$D$12&")="&$F$5&" and Barix("&$D$12&",reference:=StartOfDay)="&A13&"", "Bar", "", "Close","A30C","0","All",,,"False","T","EveryTick")) -> 612 | M13: =IF(A13="",NA(),RTD("cqg.rtd",,"StudyData", "If(HasVal("&$D$12&"),Vol("&$D$12&"),none) when LocalYear("&$D$12&")="&$D$6&" and localMonth("&$D$12&") ="&$E$6&" and LocalDay("&$D$12&")="&$F$6&" and Barix("&$D$12&",reference:=StartOfDay)="&A13&"", "Bar", "", "Close","A30C","0","All",,,"False","T","EveryTick")) -> 386 | N13: =IF(A13="",NA(),RTD("cqg.rtd",,"StudyData", "If(HasVal("&$D$12&"),Vol("&$D$12&"),none) when LocalYear("&$D$12&")="&$D$7&" and localMonth("&$D$12&") ="&$E$7&" and LocalDay("&$D$12&")="&$F$7&" and Barix("&$D$12&",reference:=StartOfDay)="&A13&"", "Bar", "", "Close","A30C","0","All",,,"False","T","EveryTick")) -> 780 | O13: =IF(A13="",NA(),RTD("cqg.rtd",,"StudyData", "If(HasVal("&$D$12&"),Vol("&$D$12&"),none) when LocalYear("&$D$12&")="&$D$8&" and localMonth("&$D$12&") ="&$E$8&" and LocalDay("&$D$12&")="&$F$8&" and Barix("&$D$12&",reference:=StartOfDay)="&A13&"", "Bar", "", "Close","A30C","0","All",,,"False","T","EveryTick")) -> 1172 | P13: =IF(A13="",NA(),RTD("cqg.rtd",,"StudyData", "If(HasVal("&$D$12&"),Vol("&$D$12&"),none) when LocalYear("&$D$12&")="&$D$9&" and localMonth("&$D$12&") ="&$E$9&" and LocalDay("&$D$12&")="&$F$9&" and Barix("&$D$12&",reference:=StartOfDay)="&A13&"", "Bar", "", "Close","A30C","0","All",,,"False","T","EveryTick")) -> 718 | Q13: =IF(A13="",NA(),RTD("cqg.rtd",,"StudyData", "If(HasVal("&$D$12&"),Vol("&$D$12&"),none) when LocalYear("&$D$12&")="&$D$10&" and localMonth("&$D$12&") ="&$E$10&" and LocalDay("&$D$12&")="&$F$10&" and Barix("&$D$12&",reference:=StartOfDay)="&A13&"", "Bar", "", "Close","A30C","0","All",,,"False","T","EveryTick")) -> 404 | R13: =IF(A13="",NA(),RTD("cqg.rtd",,"StudyData", "If(HasVal("&$D$12&"),Vol("&$D$12&"),none) when LocalYear("&$D$12&")="&$D$11&" and localMonth("&$D$12&") ="&$E$11&" and LocalDay("&$D$12&")="&$F$11&" and Barix("&$D$12&",reference:=StartOfDay)="&A13&"", "Bar", "", "Close","A30C","0","All",,,"False","T","EveryTick")) -> 266 | S13: 575
A14: =A13+1 -> 13 | B14: 21:25:00 | D14: =RTD("cqg.rtd", ,"ContractData",D12, "LongDescription",, "T") -> Nikkei 225 Index - All Sessions (SGX), Dec 20 | G14: =C2 -> 2020-10-09 | H14: =IF(A14="",NA(),RTD("cqg.rtd",,"StudyData", "If(HasVal("&$D$12&"),Vol("&$D$12&"),none) when LocalYear("&$D$12&")="&$D$2&" and localMonth("&$D$12&") ="&$E$2&" and LocalDay("&$D$12&")="&$F$2&" and Barix("&$D$12&",reference:=StartOfDay)="&A14&"", "Bar", "", "Close","A30C","0","All",,,"False","T","EveryTick")) -> 958 | I14: 1609.555556 | J14: =IF(A14="",NA(),RTD("cqg.rtd",,"StudyData", "If(HasVal("&$D$12&"),Vol("&$D$12&"),none) when LocalYear("&$D$12&")="&$D$3&" and localMonth("&$D$12&") ="&$E$3&" and LocalDay("&$D$12&")="&$F$3&" and Barix("&$D$12&",reference:=StartOfDay)="&A14&"", "Bar", "", "Close","A30C","0","All",,,"False","T","EveryTick")) -> 1110 | K14: =IF(A14="",NA(),RTD("cqg.rtd",,"StudyData", "If(HasVal("&$D$12&"),Vol("&$D$12&"),none) when LocalYear("&$D$12&")="&$D$4&" and localMonth("&$D$12&") ="&$E$4&" and LocalDay("&$D$12&")="&$F$4&" and Barix("&$D$12&",reference:=StartOfDay)="&A14&"", "Bar", "", "Close","A30C","0","All",,,"False","T","EveryTick")) -> 842 | L14: =IF(A14="",NA(),RTD("cqg.rtd",,"StudyData", "If(HasVal("&$D$12&"),Vol("&$D$12&"),none) when LocalYear("&$D$12&")="&$D$5&" and localMonth("&$D$12&") ="&$E$5&" and LocalDay("&$D$12&")="&$F$5&" and Barix("&$D$12&",reference:=StartOfDay)="&A14&"", "Bar", "", "Close","A30C","0","All",,,"False","T","EveryTick")) -> 1111 | M14: =IF(A14="",NA(),RTD("cqg.rtd",,"StudyData", "If(HasVal("&$D$12&"),Vol("&$D$12&"),none) when LocalYear("&$D$12&")="&$D$6&" and localMonth("&$D$12&") ="&$E$6&" and LocalDay("&$D$12&")="&$F$6&" and Barix("&$D$12&",reference:=StartOfDay)="&A14&"", "Bar", "", "Close","A30C","0","All",,,"False","T","EveryTick")) -> 1648 | N14: =IF(A14="",NA(),RTD("cqg.rtd",,"StudyData", "If(HasVal("&$D$12&"),Vol("&$D$12&"),none) when LocalYear("&$D$12&")="&$D$7&" and localMonth("&$D$12&") ="&$E$7&" and LocalDay("&$D$12&")="&$F$7&" and Barix("&$D$12&",reference:=StartOfDay)="&A14&"", "Bar", "", "Close","A30C","0","All",,,"False","T","EveryTick")) -> 3143 | O14: =IF(A14="",NA(),RTD("cqg.rtd",,"StudyData", "If(HasVal("&$D$12&"),Vol("&$D$12&"),none) when LocalYear("&$D$12&")="&$D$8&" and localMonth("&$D$12&") ="&$E$8&" and LocalDay("&$D$12&")="&$F$8&" and Barix("&$D$12&",reference:=StartOfDay)="&A14&"", "Bar", "", "Close","A30C","0","All",,,"False","T","EveryTick")) -> 1611 | P14: =IF(A14="",NA(),RTD("cqg.rtd",,"StudyData", "If(HasVal("&$D$12&"),Vol("&$D$12&"),none) when LocalYear("&$D$12&")="&$D$9&" and localMonth("&$D$12&") ="&$E$9&" and LocalDay("&$D$12&")="&$F$9&" and Barix("&$D$12&",reference:=StartOfDay)="&A14&"", "Bar", "", "Close","A30C","0","All",,,"False","T","EveryTick")) -> 1940 | Q14: =IF(A14="",NA(),RTD("cqg.rtd",,"StudyData", "If(HasVal("&$D$12&"),Vol("&$D$12&"),none) when LocalYear("&$D$12&")="&$D$10&" and localMonth("&$D$12&") ="&$E$10&" and LocalDay("&$D$12&")="&$F$10&" and Barix("&$D$12&",reference:=StartOfDay)="&A14&"", "Bar", "", "Close","A30C","0","All",,,"False","T","EveryTick")) -> 1703 | R14: =IF(A14="",NA(),RTD("cqg.rtd",,"StudyData", "If(HasVal("&$D$12&"),Vol("&$D$12&"),none) when LocalYear("&$D$12&")="&$D$11&" and localMonth("&$D$12&") ="&$E$11&" and LocalDay("&$D$12&")="&$F$11&" and Barix("&$D$12&",reference:=StartOfDay)="&A14&"", "Bar", "", "Close","A30C","0","All",,,"False","T","EveryTick")) -> 1378
A15: 14 | B15: 21:55:00 | G15: 2020-10-08 | H15: =IF(A15="",NA(),RTD("cqg.rtd",,"StudyData", "If(HasVal("&$D$12&"),Vol("&$D$12&"),none) when LocalYear("&$D$12&")="&$D$2&" and localMonth("&$D$12&") ="&$E$2&" and LocalDay("&$D$12&")="&$F$2&" and Barix("&$D$12&",reference:=StartOfDay)="&A15&"", "Bar", "", "Close","A30C","0","All",,,"False","T","EveryTick")) -> 999 | I15: 1369.111111 | J15: =IF(A15="",NA(),RTD("cqg.rtd",,"StudyData", "If(HasVal("&$D$12&"),Vol("&$D$12&"),none) when LocalYear("&$D$12&")="&$D$3&" and localMonth("&$D$12&") ="&$E$3&" and LocalDay("&$D$12&")="&$F$3&" and Barix("&$D$12&",reference:=StartOfDay)="&A15&"", "Bar", "", "Close","A30C","0","All",,,"False","T","EveryTick")) -> 1147 | K15: =IF(A15="",NA(),RTD("cqg.rtd",,"StudyData", "If(HasVal("&$D$12&"),Vol("&$D$12&"),none) when LocalYear("&$D$12&")="&$D$4&" and localMonth("&$D$12&") ="&$E$4&" and LocalDay("&$D$12&")="&$F$4&" and Barix("&$D$12&",reference:=StartOfDay)="&A15&"", "Bar", "", "Close","A30C","0","All",,,"False","T","EveryTick")) -> 1101 | L15: =IF(A15="",NA(),RTD("cqg.rtd",,"StudyData", "If(HasVal("&$D$12&"),Vol("&$D$12&"),none) when LocalYear("&$D$12&")="&$D$5&" and localMonth("&$D$12&") ="&$E$5&" and LocalDay("&$D$12&")="&$F$5&" and Barix("&$D$12&",reference:=StartOfDay)="&A15&"", "Bar", "", "Close","A30C","0","All",,,"False","T","EveryTick")) -> 634 | M15: =IF(A15="",NA(),RTD("cqg.rtd",,"StudyData", "If(HasVal("&$D$12&"),Vol("&$D$12&"),none) when LocalYear("&$D$12&")="&$D$6&" and localMonth("&$D$12&") ="&$E$6&" and LocalDay("&$D$12&")="&$F$6&" and Barix("&$D$12&",reference:=StartOfDay)="&A15&"", "Bar", "", "Close","A30C","0","All",,,"False","T","EveryTick")) -> 1406 | N15: =IF(A15="",NA(),RTD("cqg.rtd",,"StudyData", "If(HasVal("&$D$12&"),Vol("&$D$12&"),none) when LocalYear("&$D$12&")="&$D$7&" and localMonth("&$D$12&") ="&$E$7&" and LocalDay("&$D$12&")="&$F$7&" and Barix("&$D$12&",reference:=StartOfDay)="&A15&"", "Bar", "", "Close","A30C","0","All",,,"False","T","EveryTick")) -> 1696 | O15: =IF(A15="",NA(),RTD("cqg.rtd",,"StudyData", "If(HasVal("&$D$12&"),Vol("&$D$12&"),none) when LocalYear("&$D$12&")="&$D$8&" and localMonth("&$D$12&") ="&$E$8&" and LocalDay("&$D$12&")="&$F$8&" and Barix("&$D$12&",reference:=StartOfDay)="&A15&"", "Bar", "", "Close","A30C","0","All",,,"False","T","EveryTick")) -> 1993 | P15: =IF(A15="",NA(),RTD("cqg.rtd",,"StudyData", "If(HasVal("&$D$12&"),Vol("&$D$12&"),none) when LocalYear("&$D$12&")="&$D$9&" and localMonth("&$D$12&") ="&$E$9&" and LocalDay("&$D$12&")="&$F$9&" and Barix("&$D$12&",reference:=StartOfDay)="&A15&"", "Bar", "", "Close","A30C","0","All",,,"False","T","EveryTick")) -> 2240 | Q15: =IF(A15="",NA(),RTD("cqg.rtd",,"StudyData", "If(HasVal("&$D$12&"),Vol("&$D$12&"),none) when LocalYear("&$D$12&")="&$D$10&" and localMonth("&$D$12&") ="&$E$10&" and LocalDay("&$D$12&")="&$F$10&" and Barix("&$D$12&",reference:=StartOfDay)="&A15&"", "Bar", "", "Close","A30C","0","All",,,"False","T","EveryTick")) -> 1045 | R15: =IF(A15="",NA(),RTD("cqg.rtd",,"StudyData", "If(HasVal("&$D$12&"),Vol("&$D$12&"),none) when LocalYear("&$D$12&")="&$D$11&" and localMonth("&$D$12&") ="&$E$11&" and LocalDay("&$D$12&")="&$F$11&" and Barix("&$D$12&",reference:=StartOfDay)="&A15&"", "Bar", "", "Close","A30C","0","All",,,"False","T","EveryTick")) -> 1060
A16: 15 | B16: 22:25:00 | D16: =RTD("cqg.rtd", ,"ContractData",D12, "Ticksize",, "T") -> 5 | G16: 2020-10-07 | H16: =IF(A16="",NA(),RTD("cqg.rtd",,"StudyData", "If(HasVal("&$D$12&"),Vol("&$D$12&"),none) when LocalYear("&$D$12&")="&$D$2&" and localMonth("&$D$12&") ="&$E$2&" and LocalDay("&$D$12&")="&$F$2&" and Barix("&$D$12&",reference:=StartOfDay)="&A16&"", "Bar", "", "Close","A30C","0","All",,,"False","T","EveryTick")) -> 1113 | I16: 1358.222222 | J16: =IF(A16="",NA(),RTD("cqg.rtd",,"StudyData", "If(HasVal("&$D$12&"),Vol("&$D$12&"),none) when LocalYear("&$D$12&")="&$D$3&" and localMonth("&$D$12&") ="&$E$3&" and LocalDay("&$D$12&")="&$F$3&" and Barix("&$D$12&",reference:=StartOfDay)="&A16&"", "Bar", "", "Close","A30C","0","All",,,"False","T","EveryTick")) -> 1005 | K16: =IF(A16="",NA(),RTD("cqg.rtd",,"StudyData", "If(HasVal("&$D$12&"),Vol("&$D$12&"),none) when LocalYear("&$D$12&")="&$D$4&" and localMonth("&$D$12&") ="&$E$4&" and LocalDay("&$D$12&")="&$F$4&" and Barix("&$D$12&",reference:=StartOfDay)="&A16&"", "Bar", "", "Close","A30C","0","All",,,"False","T","EveryTick")) -> 1093 | L16: =IF(A16="",NA(),RTD("cqg.rtd",,"StudyData", "If(HasVal("&$D$12&"),Vol("&$D$12&"),none) when LocalYear("&$D$12&")="&$D$5&" and localMonth("&$D$12&") ="&$E$5&" and LocalDay("&$D$12&")="&$F$5&" and Barix("&$D$12&",reference:=StartOfDay)="&A16&"", "Bar", "", "Close","A30C","0","All",,,"False","T","EveryTick")) -> 1081 | M16: =IF(A16="",NA(),RTD("cqg.rtd",,"StudyData", "If(HasVal("&$D$12&"),Vol("&$D$12&"),none) when LocalYear("&$D$12&")="&$D$6&" and localMonth("&$D$12&") ="&$E$6&" and LocalDay("&$D$12&")="&$F$6&" and Barix("&$D$12&",reference:=StartOfDay)="&A16&"", "Bar", "", "Close","A30C","0","All",,,"False","T","EveryTick")) -> 1752 | N16: =IF(A16="",NA(),RTD("cqg.rtd",,"StudyData", "If(HasVal("&$D$12&"),Vol("&$D$12&"),none) when LocalYear("&$D$12&")="&$D$7&" and localMonth("&$D$12&") ="&$E$7&" and LocalDay("&$D$12&")="&$F$7&" and Barix("&$D$12&",reference:=StartOfDay)="&A16&"", "Bar", "", "Close","A30C","0","All",,,"False","T","EveryTick")) -> 1333 | O16: =IF(A16="",NA(),RTD("cqg.rtd",,"StudyData", "If(HasVal("&$D$12&"),Vol("&$D$12&"),none) when LocalYear("&$D$12&")="&$D$8&" and localMonth("&$D$12&") ="&$E$8&" and LocalDay("&$D$12&")="&$F$8&" and Barix("&$D$12&",reference:=StartOfDay)="&A16&"", "Bar", "", "Close","A30C","0","All",,,"False","T","EveryTick")) -> 1343 | P16: =IF(A16="",NA(),RTD("cqg.rtd",,"StudyData", "If(HasVal("&$D$12&"),Vol("&$D$12&"),none) when LocalYear("&$D$12&")="&$D$9&" and localMonth("&$D$12&") ="&$E$9&" and LocalDay("&$D$12&")="&$F$9&" and Barix("&$D$12&",reference:=StartOfDay)="&A16&"", "Bar", "", "Close","A30C","0","All",,,"False","T","EveryTick")) -> 1767 | Q16: =IF(A16="",NA(),RTD("cqg.rtd",,"StudyData", "If(HasVal("&$D$12&"),Vol("&$D$12&"),none) when LocalYear("&$D$12&")="&$D$10&" and localMonth("&$D$12&") ="&$E$10&" and LocalDay("&$D$12&")="&$F$10&" and Barix("&$D$12&",reference:=StartOfDay)="&A16&"", "Bar", "", "Close","A30C","0","All",,,"False","T","EveryTick")) -> 1546 | R16: =IF(A16="",NA(),RTD("cqg.rtd",,"StudyData", "If(HasVal("&$D$12&"),Vol("&$D$12&"),none) when LocalYear("&$D$12&")="&$D$11&" and localMonth("&$D$12&") ="&$E$11&" and LocalDay("&$D$12&")="&$F$11&" and Barix("&$D$12&",reference:=StartOfDay)="&A16&"", "Bar", "", "Close","A30C","0","All",,,"False","T","EveryTick")) -> 1304
A17: 16 | B17: 22:55:00 | D17: =IF(D16>=1,0,IF(LEN(D16)-2=1,2,LEN(D16)-2)) -> 0 | F17: =VLOOKUP(D17,D18:E25,2,FALSE) -> # | G17: 2020-10-06 | H17: =IF(A17="",NA(),RTD("cqg.rtd",,"StudyData", "If(HasVal("&$D$12&"),Vol("&$D$12&"),none) when LocalYear("&$D$12&")="&$D$2&" and localMonth("&$D$12&") ="&$E$2&" and LocalDay("&$D$12&")="&$F$2&" and Barix("&$D$12&",reference:=StartOfDay)="&A17&"", "Bar", "", "Close","A30C","0","All",,,"False","T","EveryTick")) -> 1263 | I17: 1055.888889 | J17: =IF(A17="",NA(),RTD("cqg.rtd",,"StudyData", "If(HasVal("&$D$12&"),Vol("&$D$12&"),none) when LocalYear("&$D$12&")="&$D$3&" and localMonth("&$D$12&") ="&$E$3&" and LocalDay("&$D$12&")="&$F$3&" and Barix("&$D$12&",reference:=StartOfDay)="&A17&"", "Bar", "", "Close","A30C","0","All",,,"False","T","EveryTick")) -> 1164 | K17: =IF(A17="",NA(),RTD("cqg.rtd",,"StudyData", "If(HasVal("&$D$12&"),Vol("&$D$12&"),none) when LocalYear("&$D$12&")="&$D$4&" and localMonth("&$D$12&") ="&$E$4&" and LocalDay("&$D$12&")="&$F$4&" and Barix("&$D$12&",reference:=StartOfDay)="&A17&"", "Bar", "", "Close","A30C","0","All",,,"False","T","EveryTick")) -> 949 | L17: =IF(A17="",NA(),RTD("cqg.rtd",,"StudyData", "If(HasVal("&$D$12&"),Vol("&$D$12&"),none) when LocalYear("&$D$12&")="&$D$5&" and localMonth("&$D$12&") ="&$E$5&" and LocalDay("&$D$12&")="&$F$5&" and Barix("&$D$12&",reference:=StartOfDay)="&A17&"", "Bar", "", "Close","A30C","0","All",,,"False","T","EveryTick")) -> 399 | M17: =IF(A17="",NA(),RTD("cqg.rtd",,"StudyData", "If(HasVal("&$D$12&"),Vol("&$D$12&"),none) when LocalYear("&$D$12&")="&$D$6&" and localMonth("&$D$12&") ="&$E$6&" and LocalDay("&$D$12&")="&$F$6&" and Barix("&$D$12&",reference:=StartOfDay)="&A17&"", "Bar", "", "Close","A30C","0","All",,,"False","T","EveryTick")) -> 1064 | N17: =IF(A17="",NA(),RTD("cqg.rtd",,"StudyData", "If(HasVal("&$D$12&"),Vol("&$D$12&"),none) when LocalYear("&$D$12&")="&$D$7&" and localMonth("&$D$12&") ="&$E$7&" and LocalDay("&$D$12&")="&$F$7&" and Barix("&$D$12&",reference:=StartOfDay)="&A17&"", "Bar", "", "Close","A30C","0","All",,,"False","T","EveryTick")) -> 1647 | O17: =IF(A17="",NA(),RTD("cqg.rtd",,"StudyData", "If(HasVal("&$D$12&"),Vol("&$D$12&"),none) when LocalYear("&$D$12&")="&$D$8&" and localMonth("&$D$12&") ="&$E$8&" and LocalDay("&$D$12&")="&$F$8&" and Barix("&$D$12&",reference:=StartOfDay)="&A17&"", "Bar", "", "Close","A30C","0","All",,,"False","T","EveryTick")) -> 1232 | P17: =IF(A17="",NA(),RTD("cqg.rtd",,"StudyData", "If(HasVal("&$D$12&"),Vol("&$D$12&"),none) when LocalYear("&$D$12&")="&$D$9&" and localMonth("&$D$12&") ="&$E$9&" and LocalDay("&$D$12&")="&$F$9&" and Barix("&$D$12&",reference:=StartOfDay)="&A17&"", "Bar", "", "Close","A30C","0","All",,,"False","T","EveryTick")) -> 1156 | Q17: =IF(A17="",NA(),RTD("cqg.rtd",,"StudyData", "If(HasVal("&$D$12&"),Vol("&$D$12&"),none) when LocalYear("&$D$12&")="&$D$10&" and localMonth("&$D$12&") ="&$E$10&" and LocalDay("&$D$12&")="&$F$10&" and Barix("&$D$12&",reference:=StartOfDay)="&A17&"", "Bar", "", "Close","A30C","0","All",,,"False","T","EveryTick")) -> 1053 | R17: =IF(A17="",NA(),RTD("cqg.rtd",,"StudyData", "If(HasVal("&$D$12&"),Vol("&$D$12&"),none) when LocalYear("&$D$12&")="&$D$11&" and localMonth("&$D$12&") ="&$E$11&" and LocalDay("&$D$12&")="&$F$11&" and Barix("&$D$12&",reference:=StartOfDay)="&A17&"", "Bar", "", "Close","A30C","0","All",,,"False","T","EveryTick")) -> 839 | S17: 1263
A18: 17 | B18: 23:25:00 | D18: 0 | E18: # | G18: 2020-10-05 | H18: =IF(A18="",NA(),RTD("cqg.rtd",,"StudyData", "If(HasVal("&$D$12&"),Vol("&$D$12&"),none) when LocalYear("&$D$12&")="&$D$2&" and localMonth("&$D$12&") ="&$E$2&" and LocalDay("&$D$12&")="&$F$2&" and Barix("&$D$12&",reference:=StartOfDay)="&A18&"", "Bar", "", "Close","A30C","0","All",,,"False","T","EveryTick")) -> 1960 | I18: 1003.555556 | J18: =IF(A18="",NA(),RTD("cqg.rtd",,"StudyData", "If(HasVal("&$D$12&"),Vol("&$D$12&"),none) when LocalYear("&$D$12&")="&$D$3&" and localMonth("&$D$12&") ="&$E$3&" and LocalDay("&$D$12&")="&$F$3&" and Barix("&$D$12&",reference:=StartOfDay)="&A18&"", "Bar", "", "Close","A30C","0","All",,,"False","T","EveryTick")) -> 1381 | K18: =IF(A18="",NA(),RTD("cqg.rtd",,"StudyData", "If(HasVal("&$D$12&"),Vol("&$D$12&"),none) when LocalYear("&$D$12&")="&$D$4&" and localMonth("&$D$12&") ="&$E$4&" and LocalDay("&$D$12&")="&$F$4&" and Barix("&$D$12&",reference:=StartOfDay)="&A18&"", "Bar", "", "Close","A30C","0","All",,,"False","T","EveryTick")) -> 510 | L18: =IF(A18="",NA(),RTD("cqg.rtd",,"StudyData", "If(HasVal("&$D$12&"),Vol("&$D$12&"),none) when LocalYear("&$D$12&")="&$D$5&" and localMonth("&$D$12&") ="&$E$5&" and LocalDay("&$D$12&")="&$F$5&" and Barix("&$D$12&",reference:=StartOfDay)="&A18&"", "Bar", "", "Close","A30C","0","All",,,"False","T","EveryTick")) -> 775 | M18: =IF(A18="",NA(),RTD("cqg.rtd",,"StudyData", "If(HasVal("&$D$12&"),Vol("&$D$12&"),none) when LocalYear("&$D$12&")="&$D$6&" and localMonth("&$D$12&") ="&$E$6&" and LocalDay("&$D$12&")="&$F$6&" and Barix("&$D$12&",reference:=StartOfDay)="&A18&"", "Bar", "", "Close","A30C","0","All",,,"False","T","EveryTick")) -> 893 | N18: =IF(A18="",NA(),RTD("cqg.rtd",,"StudyData", "If(HasVal("&$D$12&"),Vol("&$D$12&"),none) when LocalYear("&$D$12&")="&$D$7&" and localMonth("&$D$12&") ="&$E$7&" and LocalDay("&$D$12&")="&$F$7&" and Barix("&$D$12&",reference:=StartOfDay)="&A18&"", "Bar", "", "Close","A30C","0","All",,,"False","T","EveryTick")) -> 1517 | O18: =IF(A18="",NA(),RTD("cqg.rtd",,"StudyData", "If(HasVal("&$D$12&"),Vol("&$D$12&"),none) when LocalYear("&$D$12&")="&$D$8&" and localMonth("&$D$12&") ="&$E$8&" and LocalDay("&$D$12&")="&$F$8&" and Barix("&$D$12&",reference:=StartOfDay)="&A18&"", "Bar", "", "Close","A30C","0","All",,,"False","T","EveryTick")) -> 1010 | P18: =IF(A18="",NA(),RTD("cqg.rtd",,"StudyData", "If(HasVal("&$D$12&"),Vol("&$D$12&"),none) when LocalYear("&$D$12&")="&$D$9&" and localMonth("&$D$12&") ="&$E$9&" and LocalDay("&$D$12&")="&$F$9&" and Barix("&$D$12&",reference:=StartOfDay)="&A18&"", "Bar", "", "Close","A30C","0","All",,,"False","T","EveryTick")) -> 1215 | Q18: =IF(A18="",NA(),RTD("cqg.rtd",,"StudyData", "If(HasVal("&$D$12&"),Vol("&$D$12&"),none) when LocalYear("&$D$12&")="&$D$10&" and localMonth("&$D$12&") ="&$E$10&" and LocalDay("&$D$12&")="&$F$10&" and Barix("&$D$12&",reference:=StartOfDay)="&A18&"", "Bar", "", "Close","A30C","0","All",,,"False","T","EveryTick")) -> 908 | R18: =IF(A18="",NA(),RTD("cqg.rtd",,"StudyData", "If(HasVal("&$D$12&"),Vol("&$D$12&"),none) when LocalYear("&$D$12&")="&$D$11&" and localMonth("&$D$12&") ="&$E$11&" and LocalDay("&$D$12&")="&$F$11&" and Barix("&$D$12&",reference:=StartOfDay)="&A18&"", "Bar", "", "Close","A30C","0","All",,,"False","T","EveryTick")) -> 823 | S18: 1960
A19: 18 | B19: 23:55:00 | D19: 1 | E19: #.0 | G19: 2020-10-02 | H19: =IF(A19="",NA(),RTD("cqg.rtd",,"StudyData", "If(HasVal("&$D$12&"),Vol("&$D$12&"),none) when LocalYear("&$D$12&")="&$D$2&" and localMonth("&$D$12&") ="&$E$2&" and LocalDay("&$D$12&")="&$F$2&" and Barix("&$D$12&",reference:=StartOfDay)="&A19&"", "Bar", "", "Close","A30C","0","All",,,"False","T","EveryTick")) -> 547 | I19: 684.6666667 | J19: =IF(A19="",NA(),RTD("cqg.rtd",,"StudyData", "If(HasVal("&$D$12&"),Vol("&$D$12&"),none) when LocalYear("&$D$12&")="&$D$3&" and localMonth("&$D$12&") ="&$E$3&" and LocalDay("&$D$12&")="&$F$3&" and Barix("&$D$12&",reference:=StartOfDay)="&A19&"", "Bar", "", "Close","A30C","0","All",,,"False","T","EveryTick")) -> 313 | K19: =IF(A19="",NA(),RTD("cqg.rtd",,"StudyData", "If(HasVal("&$D$12&"),Vol("&$D$12&"),none) when LocalYear("&$D$12&")="&$D$4&" and localMonth("&$D$12&") ="&$E$4&" and LocalDay("&$D$12&")="&$F$4&" and Barix("&$D$12&",reference:=StartOfDay)="&A19&"", "Bar", "", "Close","A30C","0","All",,,"False","T","EveryTick")) -> 177 | L19: =IF(A19="",NA(),RTD("cqg.rtd",,"StudyData", "If(HasVal("&$D$12&"),Vol("&$D$12&"),none) when LocalYear("&$D$12&")="&$D$5&" and localMonth("&$D$12&") ="&$E$5&" and LocalDay("&$D$12&")="&$F$5&" and Barix("&$D$12&",reference:=StartOfDay)="&A19&"", "Bar", "", "Close","A30C","0","All",,,"False","T","EveryTick")) -> 397 | M19: =IF(A19="",NA(),RTD("cqg.rtd",,"StudyData", "If(HasVal("&$D$12&"),Vol("&$D$12&"),none) when LocalYear("&$D$12&")="&$D$6&" and localMonth("&$D$12&") ="&$E$6&" and LocalDay("&$D$12&")="&$F$6&" and Barix("&$D$12&",reference:=StartOfDay)="&A19&"", "Bar", "", "Close","A30C","0","All",,,"False","T","EveryTick")) -> 225 | N19: =IF(A19="",NA(),RTD("cqg.rtd",,"StudyData", "If(HasVal("&$D$12&"),Vol("&$D$12&"),none) when LocalYear("&$D$12&")="&$D$7&" and localMonth("&$D$12&") ="&$E$7&" and LocalDay("&$D$12&")="&$F$7&" and Barix("&$D$12&",reference:=StartOfDay)="&A19&"", "Bar", "", "Close","A30C","0","All",,,"False","T","EveryTick")) -> 2726 | O19: =IF(A19="",NA(),RTD("cqg.rtd",,"StudyData", "If(HasVal("&$D$12&"),Vol("&$D$12&"),none) when LocalYear("&$D$12&")="&$D$8&" and localMonth("&$D$12&") ="&$E$8&" and LocalDay("&$D$12&")="&$F$8&" and Barix("&$D$12&",reference:=StartOfDay)="&A19&"", "Bar", "", "Close","A30C","0","All",,,"False","T","EveryTick")) -> 772 | P19: =IF(A19="",NA(),RTD("cqg.rtd",,"StudyData", "If(HasVal("&$D$12&"),Vol("&$D$12&"),none) when LocalYear("&$D$12&")="&$D$9&" and localMonth("&$D$12&") ="&$E$9&" and LocalDay("&$D$12&")="&$F$9&" and Barix("&$D$12&",reference:=StartOfDay)="&A19&"", "Bar", "", "Close","A30C","0","All",,,"False","T","EveryTick")) -> 536 | Q19: =IF(A19="",NA(),RTD("cqg.rtd",,"StudyData", "If(HasVal("&$D$12&"),Vol("&$D$12&"),none) when LocalYear("&$D$12&")="&$D$10&" and localMonth("&$D$12&") ="&$E$10&" and LocalDay("&$D$12&")="&$F$10&" and Barix("&$D$12&",reference:=StartOfDay)="&A19&"", "Bar", "", "Close","A30C","0","All",,,"False","T","EveryTick")) -> 528 | R19: =IF(A19="",NA(),RTD("cqg.rtd",,"StudyData", "If(HasVal("&$D$12&"),Vol("&$D$12&"),none) when LocalYear("&$D$12&")="&$D$11&" and localMonth("&$D$12&") ="&$E$11&" and LocalDay("&$D$12&")="&$F$11&" and Barix("&$D$12&",reference:=StartOfDay)="&A19&"", "Bar", "", "Close","A30C","0","All",,,"False","T","EveryTick")) -> 488
A20: 19 | B20: 00:25:00 | D20: 2 | E20: #.00 | G20: 2020-10-01 | H20: =IF(WEEKDAY(DATE($D$2,$E$2,$F$2))=6,RTD("cqg.rtd",,"StudyData","If(HasVal("&$D$12&"),Vol("&$D$12&"),none) when LocalYear("&$D$12&")="&$D$2&" and localMonth("&$D$12&") ="&$E$2&" and LocalDay("&$D$12&")="&$F$2&"+1 and Barix("&$D$12&",reference:=StartOfDay)="&A20&"","Bar","","Close","A30C","0","All",,,"False","T","EveryTick"),RTD("cqg.rtd",,"StudyData","If(HasVal("&$D$12&"),Vol("&$D$12&"),none) when LocalYear("&$D$12&")="&$D$1&" and localMonth("&$D$12&") ="&$E$1&" and LocalDay("&$D$12&")="&$F$1&" and Barix("&$D$12&",reference:=StartOfDay)="&A20&"","Bar","","Close","A30C","0","All",,,"False","T","EveryTick")) -> 826 | I20: 446.6666667 | J20: =IF(WEEKDAY(DATE($D$3,$E$3,$F$3))=6,RTD("cqg.rtd",,"StudyData","If(HasVal("&$D$12&"),Vol("&$D$12&"),none) when LocalYear("&$D$12&")="&$D$3&" and localMonth("&$D$12&") ="&$E$3&" and LocalDay("&$D$12&")="&$F$3&"+1 and Barix("&$D$12&",reference:=StartOfDay)="&A20&"","Bar","","Close","A30C","0","All",,,"False","T","EveryTick"),RTD("cqg.rtd",,"StudyData","If(HasVal("&$D$12&"),Vol("&$D$12&"),none) when LocalYear("&$D$12&")="&$D$2&" and localMonth("&$D$12&") ="&$E$2&" and LocalDay("&$D$12&")="&$F$2&" and Barix("&$D$12&",reference:=StartOfDay)="&A20&"","Bar","","Close","A30C","0","All",,,"False","T","EveryTick")) -> 272 | K20: =IF(WEEKDAY(DATE($D$4,$E$4,$F$4))=6,RTD("cqg.rtd",,"StudyData","If(HasVal("&$D$12&"),Vol("&$D$12&"),none) when LocalYear("&$D$12&")="&$D$4&" and localMonth("&$D$12&") ="&$E$4&" and LocalDay("&$D$12&")="&$F$4&"+1 and Barix("&$D$12&",reference:=StartOfDay)="&A20&"","Bar","","Close","A30C","0","All",,,"False","T","EveryTick"),RTD("cqg.rtd",,"StudyData","If(HasVal("&$D$12&"),Vol("&$D$12&"),none) when LocalYear("&$D$12&")="&$D$3&" and localMonth("&$D$12&") ="&$E$3&" and LocalDay("&$D$12&")="&$F$3&" and Barix("&$D$12&",reference:=StartOfDay)="&A20&"","Bar","","Close","A30C","0","All",,,"False","T","EveryTick")) -> 903 | L20: =IF(WEEKDAY(DATE($D$5,$E$5,$F$5))=6,RTD("cqg.rtd",,"StudyData","If(HasVal("&$D$12&"),Vol("&$D$12&"),none) when LocalYear("&$D$12&")="&$D$5&" and localMonth("&$D$12&") ="&$E$5&" and LocalDay("&$D$12&")="&$F$5&"+1 and Barix("&$D$12&",reference:=StartOfDay)="&A20&"","Bar","","Close","A30C","0","All",,,"False","T","EveryTick"),RTD("cqg.rtd",,"StudyData","If(HasVal("&$D$12&"),Vol("&$D$12&"),none) when LocalYear("&$D$12&")="&$D$4&" and localMonth("&$D$12&") ="&$E$4&" and LocalDay("&$D$12&")="&$F$4&" and Barix("&$D$12&",reference:=StartOfDay)="&A20&"","Bar","","Close","A30C","0","All",,,"False","T","EveryTick")) -> 288 | M20: =IF(WEEKDAY(DATE($D$6,$E$6,$F$6))=6,RTD("cqg.rtd",,"StudyData","If(HasVal("&$D$12&"),Vol("&$D$12&"),none) when LocalYear("&$D$12&")="&$D$6&" and localMonth("&$D$12&") ="&$E$6&" and LocalDay("&$D$12&")="&$F$6&"+1 and Barix("&$D$12&",reference:=StartOfDay)="&A20&"","Bar","","Close","A30C","0","All",,,"False","T","EveryTick"),RTD("cqg.rtd",,"StudyData","If(HasVal("&$D$12&"),Vol("&$D$12&"),none) when LocalYear("&$D$12&")="&$D$5&" and localMonth("&$D$12&") ="&$E$5&" and LocalDay("&$D$12&")="&$F$5&" and Barix("&$D$12&",reference:=StartOfDay)="&A20&"","Bar","","Close","A30C","0","All",,,"False","T","EveryTick")) -> 410 | N20: =IF(WEEKDAY(DATE($D$7,$E$7,$F$7))=6,RTD("cqg.rtd",,"StudyData","If(HasVal("&$D$12&"),Vol("&$D$12&"),none) when LocalYear("&$D$12&")="&$D$7&" and localMonth("&$D$12&") ="&$E$7&" and LocalDay("&$D$12&")="&$F$7&"+1 and Barix("&$D$12&",reference:=StartOfDay)="&A20&"","Bar","","Close","A30C","0","All",,,"False","T","EveryTick"),RTD("cqg.rtd",,"StudyData","If(HasVal("&$D$12&"),Vol("&$D$12&"),none) when LocalYear("&$D$12&")="&$D$6&" and localMonth("&$D$12&") ="&$E$6&" and LocalDay("&$D$12&")="&$F$6&" and Barix("&$D$12&",reference:=StartOfDay)="&A20&"","Bar","","Close","A30C","0","All",,,"False","T","EveryTick")) -> 824 | O20: =IF(WEEKDAY(DATE($D$8,$E$8,$F$8))=6,RTD("cqg.rtd",,"StudyData","If(HasVal("&$D$12&"),Vol("&$D$12&"),none) when LocalYear("&$D$12&")="&$D$8&" and localMonth("&$D$12&") ="&$E$8&" and LocalDay("&$D$12&")="&$F$8&"+1 and Barix("&$D$12&",reference:=StartOfDay)="&A20&"","Bar","","Close","A30C","0","All",,,"False","T","EveryTick"),RTD("cqg.rtd",,"StudyData","If(HasVal("&$D$12&"),Vol("&$D$12&"),none) when LocalYear("&$D$12&")="&$D$7&" and localMonth("&$D$12&") ="&$E$7&" and LocalDay("&$D$12&")="&$F$7&" and Barix("&$D$12&",reference:=StartOfDay)="&A20&"","Bar","","Close","A30C","0","All",,,"False","T","EveryTick")) -> 314 | P20: =IF(WEEKDAY(DATE($D$9,$E$9,$F$9))=6,RTD("cqg.rtd",,"StudyData","If(HasVal("&$D$12&"),Vol("&$D$12&"),none) when LocalYear("&$D$12&")="&$D$9&" and localMonth("&$D$12&") ="&$E$9&" and LocalDay("&$D$12&")="&$F$9&"+1 and Barix("&$D$12&",reference:=StartOfDay)="&A20&"","Bar","","Close","A30C","0","All",,,"False","T","EveryTick"),RTD("cqg.rtd",,"StudyData","If(HasVal("&$D$12&"),Vol("&$D$12&"),none) when LocalYear("&$D$12&")="&$D$8&" and localMonth("&$D$12&") ="&$E$8&" and LocalDay("&$D$12&")="&$F$8&" and Barix("&$D$12&",reference:=StartOfDay)="&A20&"","Bar","","Close","A30C","0","All",,,"False","T","EveryTick")) -> 469 | Q20: =IF(WEEKDAY(DATE($D$10,$E$10,$F$10))=6,RTD("cqg.rtd",,"StudyData","If(HasVal("&$D$12&"),Vol("&$D$12&"),none) when LocalYear("&$D$12&")="&$D$10&" and localMonth("&$D$12&") ="&$E$10&" and LocalDay("&$D$12&")="&$F$10&"+1 and Barix("&$D$12&",reference:=StartOfDay)="&A20&"","Bar","","Close","A30C","0","All",,,"False","T","EveryTick"),RTD("cqg.rtd",,"StudyData","If(HasVal("&$D$12&"),Vol("&$D$12&"),none) when LocalYear("&$D$12&")="&$D$9&" and localMonth("&$D$12&") ="&$E$9&" and LocalDay("&$D$12&")="&$F$9&" and Barix("&$D$12&",reference:=StartOfDay)="&A20&"","Bar","","Close","A30C","0","All",,,"False","T","EveryTick")) -> 267 | R20: =IF(WEEKDAY(DATE($D$11,$E$11,$F$11))=6,RTD("cqg.rtd",,"StudyData","If(HasVal("&$D$12&"),Vol("&$D$12&"),none) when LocalYear("&$D$12&")="&$D$11&" and localMonth("&$D$12&") ="&$E$11&" and LocalDay("&$D$12&")="&$F$11&"+1 and Barix("&$D$12&",reference:=StartOfDay)="&A20&"","Bar","","Close","A30C","0","All",,,"False","T","EveryTick"),RTD("cqg.rtd",,"StudyData","If(HasVal("&$D$12&"),Vol("&$D$12&"),none) when LocalYear("&$D$12&")="&$D$10&" and localMonth("&$D$12&") ="&$E$10&" and LocalDay("&$D$12&")="&$F$10&" and Barix("&$D$12&",reference:=StartOfDay)="&A20&"","Bar","","Close","A30C","0","All",,,"False","T","EveryTick")) -> 273 | S20: 826
A21: 20 | B21: 00:55:00 | D21: 3 | E21: #.000 | G21: 2020-09-30 | H21: =IF(WEEKDAY(DATE($D$2,$E$2,$F$2))=6,RTD("cqg.rtd",,"StudyData","If(HasVal("&$D$12&"),Vol("&$D$12&"),none) when LocalYear("&$D$12&")="&$D$2&" and localMonth("&$D$12&") ="&$E$2&" and LocalDay("&$D$12&")="&$F$2&"+1 and Barix("&$D$12&",reference:=StartOfDay)="&A21&"","Bar","","Close","A30C","0","All",,,"False","T","EveryTick"),RTD("cqg.rtd",,"StudyData","If(HasVal("&$D$12&"),Vol("&$D$12&"),none) when LocalYear("&$D$12&")="&$D$1&" and localMonth("&$D$12&") ="&$E$1&" and LocalDay("&$D$12&")="&$F$1&" and Barix("&$D$12&",reference:=StartOfDay)="&A21&"","Bar","","Close","A30C","0","All",,,"False","T","EveryTick")) -> 306 | I21: 429.1111111 | J21: =IF(WEEKDAY(DATE($D$3,$E$3,$F$3))=6,RTD("cqg.rtd",,"StudyData","If(HasVal("&$D$12&"),Vol("&$D$12&"),none) when LocalYear("&$D$12&")="&$D$3&" and localMonth("&$D$12&") ="&$E$3&" and LocalDay("&$D$12&")="&$F$3&"+1 and Barix("&$D$12&",reference:=StartOfDay)="&A21&"","Bar","","Close","A30C","0","All",,,"False","T","EveryTick"),RTD("cqg.rtd",,"StudyData","If(HasVal("&$D$12&"),Vol("&$D$12&"),none) when LocalYear("&$D$12&")="&$D$2&" and localMonth("&$D$12&") ="&$E$2&" and LocalDay("&$D$12&")="&$F$2&" and Barix("&$D$12&",reference:=StartOfDay)="&A21&"","Bar","","Close","A30C","0","All",,,"False","T","EveryTick")) -> 344 | K21: =IF(WEEKDAY(DATE($D$4,$E$4,$F$4))=6,RTD("cqg.rtd",,"StudyData","If(HasVal("&$D$12&"),Vol("&$D$12&"),none) when LocalYear("&$D$12&")="&$D$4&" and localMonth("&$D$12&") ="&$E$4&" and LocalDay("&$D$12&")="&$F$4&"+1 and Barix("&$D$12&",reference:=StartOfDay)="&A21&"","Bar","","Close","A30C","0","All",,,"False","T","EveryTick"),RTD("cqg.rtd",,"StudyData","If(HasVal("&$D$12&"),Vol("&$D$12&"),none) when LocalYear("&$D$12&")="&$D$3&" and localMonth("&$D$12&") ="&$E$3&" and LocalDay("&$D$12&")="&$F$3&" and Barix("&$D$12&",reference:=StartOfDay)="&A21&"","Bar","","Close","A30C","0","All",,,"False","T","EveryTick")) -> 311 | L21: =IF(WEEKDAY(DATE($D$5,$E$5,$F$5))=6,RTD("cqg.rtd",,"StudyData","If(HasVal("&$D$12&"),Vol("&$D$12&"),none) when LocalYear("&$D$12&")="&$D$5&" and localMonth("&$D$12&") ="&$E$5&" and LocalDay("&$D$12&")="&$F$5&"+1 and Barix("&$D$12&",reference:=StartOfDay)="&A21&"","Bar","","Close","A30C","0","All",,,"False","T","EveryTick"),RTD("cqg.rtd",,"StudyData","If(HasVal("&$D$12&"),Vol("&$D$12&"),none) when LocalYear("&$D$12&")="&$D$4&" and localMonth("&$D$12&") ="&$E$4&" and LocalDay("&$D$12&")="&$F$4&" and Barix("&$D$12&",reference:=StartOfDay)="&A21&"","Bar","","Close","A30C","0","All",,,"False","T","EveryTick")) -> 324 | M21: =IF(WEEKDAY(DATE($D$6,$E$6,$F$6))=6,RTD("cqg.rtd",,"StudyData","If(HasVal("&$D$12&"),Vol("&$D$12&"),none) when LocalYear("&$D$12&")="&$D$6&" and localMonth("&$D$12&") ="&$E$6&" and LocalDay("&$D$12&")="&$F$6&"+1 and Barix("&$D$12&",reference:=StartOfDay)="&A21&"","Bar","","Close","A30C","0","All",,,"False","T","EveryTick"),RTD("cqg.rtd",,"StudyData","If(HasVal("&$D$12&"),Vol("&$D$12&"),none) when LocalYear("&$D$12&")="&$D$5&" and localMonth("&$D$12&") ="&$E$5&" and LocalDay("&$D$12&")="&$F$5&" and Barix("&$D$12&",reference:=StartOfDay)="&A21&"","Bar","","Close","A30C","0","All",,,"False","T","EveryTick")) -> 316 | N21: =IF(WEEKDAY(DATE($D$7,$E$7,$F$7))=6,RTD("cqg.rtd",,"StudyData","If(HasVal("&$D$12&"),Vol("&$D$12&"),none) when LocalYear("&$D$12&")="&$D$7&" and localMonth("&$D$12&") ="&$E$7&" and LocalDay("&$D$12&")="&$F$7&"+1 and Barix("&$D$12&",reference:=StartOfDay)="&A21&"","Bar","","Close","A30C","0","All",,,"False","T","EveryTick"),RTD("cqg.rtd",,"StudyData","If(HasVal("&$D$12&"),Vol("&$D$12&"),none) when LocalYear("&$D$12&")="&$D$6&" and localMonth("&$D$12&") ="&$E$6&" and LocalDay("&$D$12&")="&$F$6&" and Barix("&$D$12&",reference:=StartOfDay)="&A21&"","Bar","","Close","A30C","0","All",,,"False","T","EveryTick")) -> 695 | O21: =IF(WEEKDAY(DATE($D$8,$E$8,$F$8))=6,RTD("cqg.rtd",,"StudyData","If(HasVal("&$D$12&"),Vol("&$D$12&"),none) when LocalYear("&$D$12&")="&$D$8&" and localMonth("&$D$12&") ="&$E$8&" and LocalDay("&$D$12&")="&$F$8&"+1 and Barix("&$D$12&",reference:=StartOfDay)="&A21&"","Bar","","Close","A30C","0","All",,,"False","T","EveryTick"),RTD("cqg.rtd",,"StudyData","If(HasVal("&$D$12&"),Vol("&$D$12&"),none) when LocalYear("&$D$12&")="&$D$7&" and localMonth("&$D$12&") ="&$E$7&" and LocalDay("&$D$12&")="&$F$7&" and Barix("&$D$12&",reference:=StartOfDay)="&A21&"","Bar","","Close","A30C","0","All",,,"False","T","EveryTick")) -> 532 | P21: =IF(WEEKDAY(DATE($D$9,$E$9,$F$9))=6,RTD("cqg.rtd",,"StudyData","If(HasVal("&$D$12&"),Vol("&$D$12&"),none) when LocalYear("&$D$12&")="&$D$9&" and localMonth("&$D$12&") ="&$E$9&" and LocalDay("&$D$12&")="&$F$9&"+1 and Barix("&$D$12&",reference:=StartOfDay)="&A21&"","Bar","","Close","A30C","0","All",,,"False","T","EveryTick"),RTD("cqg.rtd",,"StudyData","If(HasVal("&$D$12&"),Vol("&$D$12&"),none) when LocalYear("&$D$12&")="&$D$8&" and localMonth("&$D$12&") ="&$E$8&" and LocalDay("&$D$12&")="&$F$8&" and Barix("&$D$12&",reference:=StartOfDay)="&A21&"","Bar","","Close","A30C","0","All",,,"False","T","EveryTick")) -> 623 | Q21: =IF(WEEKDAY(DATE($D$10,$E$10,$F$10))=6,RTD("cqg.rtd",,"StudyData","If(HasVal("&$D$12&"),Vol("&$D$12&"),none) when LocalYear("&$D$12&")="&$D$10&" and localMonth("&$D$12&") ="&$E$10&" and LocalDay("&$D$12&")="&$F$10&"+1 and Barix("&$D$12&",reference:=StartOfDay)="&A21&"","Bar","","Close","A30C","0","All",,,"False","T","EveryTick"),RTD("cqg.rtd",,"StudyData","If(HasVal("&$D$12&"),Vol("&$D$12&"),none) when LocalYear("&$D$12&")="&$D$9&" and localMonth("&$D$12&") ="&$E$9&" and LocalDay("&$D$12&")="&$F$9&" and Barix("&$D$12&",reference:=StartOfDay)="&A21&"","Bar","","Close","A30C","0","All",,,"False","T","EveryTick")) -> 514 | R21: =IF(WEEKDAY(DATE($D$11,$E$11,$F$11))=6,RTD("cqg.rtd",,"StudyData","If(HasVal("&$D$12&"),Vol("&$D$12&"),none) when LocalYear("&$D$12&")="&$D$11&" and localMonth("&$D$12&") ="&$E$11&" and LocalDay("&$D$12&")="&$F$11&"+1 and Barix("&$D$12&",reference:=StartOfDay)="&A21&"","Bar","","Close","A30C","0","All",,,"False","T","EveryTick"),RTD("cqg.rtd",,"StudyData","If(HasVal("&$D$12&"),Vol("&$D$12&"),none) when LocalYear("&$D$12&")="&$D$10&" and localMonth("&$D$12&") ="&$E$10&" and LocalDay("&$D$12&")="&$F$10&" and Barix("&$D$12&",reference:=StartOfDay)="&A21&"","Bar","","Close","A30C","0","All",,,"False","T","EveryTick")) -> 203
A22: 21 | B22: 01:25:00 | D22: 4 | E22: #.0000 | G22: 2020-09-29 | H22: =IF(WEEKDAY(DATE($D$2,$E$2,$F$2))=6,RTD("cqg.rtd",,"StudyData","If(HasVal("&$D$12&"),Vol("&$D$12&"),none) when LocalYear("&$D$12&")="&$D$2&" and localMonth("&$D$12&") ="&$E$2&" and LocalDay("&$D$12&")="&$F$2&"+1 and Barix("&$D$12&",reference:=StartOfDay)="&A22&"","Bar","","Close","A30C","0","All",,,"False","T","EveryTick"),RTD("cqg.rtd",,"StudyData","If(HasVal("&$D$12&"),Vol("&$D$12&"),none) when LocalYear("&$D$12&")="&$D$1&" and localMonth("&$D$12&") ="&$E$1&" and LocalDay("&$D$12&")="&$F$1&" and Barix("&$D$12&",reference:=StartOfDay)="&A22&"","Bar","","Close","A30C","0","All",,,"False","T","EveryTick")) -> 218 | I22: 407.5555556 | J22: =IF(WEEKDAY(DATE($D$3,$E$3,$F$3))=6,RTD("cqg.rtd",,"StudyData","If(HasVal("&$D$12&"),Vol("&$D$12&"),none) when LocalYear("&$D$12&")="&$D$3&" and localMonth("&$D$12&") ="&$E$3&" and LocalDay("&$D$12&")="&$F$3&"+1 and Barix("&$D$12&",reference:=StartOfDay)="&A22&"","Bar","","Close","A30C","0","All",,,"False","T","EveryTick"),RTD("cqg.rtd",,"StudyData","If(HasVal("&$D$12&"),Vol("&$D$12&"),none) when LocalYear("&$D$12&")="&$D$2&" and localMonth("&$D$12&") ="&$E$2&" and LocalDay("&$D$12&")="&$F$2&" and Barix("&$D$12&",reference:=StartOfDay)="&A22&"","Bar","","Close","A30C","0","All",,,"False","T","EveryTick")) -> 255 | K22: =IF(WEEKDAY(DATE($D$4,$E$4,$F$4))=6,RTD("cqg.rtd",,"StudyData","If(HasVal("&$D$12&"),Vol("&$D$12&"),none) when LocalYear("&$D$12&")="&$D$4&" and localMonth("&$D$12&") ="&$E$4&" and LocalDay("&$D$12&")="&$F$4&"+1 and Barix("&$D$12&",reference:=StartOfDay)="&A22&"","Bar","","Close","A30C","0","All",,,"False","T","EveryTick"),RTD("cqg.rtd",,"StudyData","If(HasVal("&$D$12&"),Vol("&$D$12&"),none) when LocalYear("&$D$12&")="&$D$3&" and localMonth("&$D$12&") ="&$E$3&" and LocalDay("&$D$12&")="&$F$3&" and Barix("&$D$12&",reference:=StartOfDay)="&A22&"","Bar","","Close","A30C","0","All",,,"False","T","EveryTick")) -> 331 | L22: =IF(WEEKDAY(DATE($D$5,$E$5,$F$5))=6,RTD("cqg.rtd",,"StudyData","If(HasVal("&$D$12&"),Vol("&$D$12&"),none) when LocalYear("&$D$12&")="&$D$5&" and localMonth("&$D$12&") ="&$E$5&" and LocalDay("&$D$12&")="&$F$5&"+1 and Barix("&$D$12&",reference:=StartOfDay)="&A22&"","Bar","","Close","A30C","0","All",,,"False","T","EveryTick"),RTD("cqg.rtd",,"StudyData","If(HasVal("&$D$12&"),Vol("&$D$12&"),none) when LocalYear("&$D$12&")="&$D$4&" and localMonth("&$D$12&") ="&$E$4&" and LocalDay("&$D$12&")="&$F$4&" and Barix("&$D$12&",reference:=StartOfDay)="&A22&"","Bar","","Close","A30C","0","All",,,"False","T","EveryTick")) -> 361 | M22: =IF(WEEKDAY(DATE($D$6,$E$6,$F$6))=6,RTD("cqg.rtd",,"StudyData","If(HasVal("&$D$12&"),Vol("&$D$12&"),none) when LocalYear("&$D$12&")="&$D$6&" and localMonth("&$D$12&") ="&$E$6&" and LocalDay("&$D$12&")="&$F$6&"+1 and Barix("&$D$12&",reference:=StartOfDay)="&A22&"","Bar","","Close","A30C","0","All",,,"False","T","EveryTick"),RTD("cqg.rtd",,"StudyData","If(HasVal("&$D$12&"),Vol("&$D$12&"),none) when LocalYear("&$D$12&")="&$D$5&" and localMonth("&$D$12&") ="&$E$5&" and LocalDay("&$D$12&")="&$F$5&" and Barix("&$D$12&",reference:=StartOfDay)="&A22&"","Bar","","Close","A30C","0","All",,,"False","T","EveryTick")) -> 410 | N22: =IF(WEEKDAY(DATE($D$7,$E$7,$F$7))=6,RTD("cqg.rtd",,"StudyData","If(HasVal("&$D$12&"),Vol("&$D$12&"),none) when LocalYear("&$D$12&")="&$D$7&" and localMonth("&$D$12&") ="&$E$7&" and LocalDay("&$D$12&")="&$F$7&"+1 and Barix("&$D$12&",reference:=StartOfDay)="&A22&"","Bar","","Close","A30C","0","All",,,"False","T","EveryTick"),RTD("cqg.rtd",,"StudyData","If(HasVal("&$D$12&"),Vol("&$D$12&"),none) when LocalYear("&$D$12&")="&$D$6&" and localMonth("&$D$12&") ="&$E$6&" and LocalDay("&$D$12&")="&$F$6&" and Barix("&$D$12&",reference:=StartOfDay)="&A22&"","Bar","","Close","A30C","0","All",,,"False","T","EveryTick")) -> 750 | O22: =IF(WEEKDAY(DATE($D$8,$E$8,$F$8))=6,RTD("cqg.rtd",,"StudyData","If(HasVal("&$D$12&"),Vol("&$D$12&"),none) when LocalYear("&$D$12&")="&$D$8&" and localMonth("&$D$12&") ="&$E$8&" and LocalDay("&$D$12&")="&$F$8&"+1 and Barix("&$D$12&",reference:=StartOfDay)="&A22&"","Bar","","Close","A30C","0","All",,,"False","T","EveryTick"),RTD("cqg.rtd",,"StudyData","If(HasVal("&$D$12&"),Vol("&$D$12&"),none) when LocalYear("&$D$12&")="&$D$7&" and localMonth("&$D$12&") ="&$E$7&" and LocalDay("&$D$12&")="&$F$7&" and Barix("&$D$12&",reference:=StartOfDay)="&A22&"","Bar","","Close","A30C","0","All",,,"False","T","EveryTick")) -> 385 | P22: =IF(WEEKDAY(DATE($D$9,$E$9,$F$9))=6,RTD("cqg.rtd",,"StudyData","If(HasVal("&$D$12&"),Vol("&$D$12&"),none) when LocalYear("&$D$12&")="&$D$9&" and localMonth("&$D$12&") ="&$E$9&" and LocalDay("&$D$12&")="&$F$9&"+1 and Barix("&$D$12&",reference:=StartOfDay)="&A22&"","Bar","","Close","A30C","0","All",,,"False","T","EveryTick"),RTD("cqg.rtd",,"StudyData","If(HasVal("&$D$12&"),Vol("&$D$12&"),none) when LocalYear("&$D$12&")="&$D$8&" and localMonth("&$D$12&") ="&$E$8&" and LocalDay("&$D$12&")="&$F$8&" and Barix("&$D$12&",reference:=StartOfDay)="&A22&"","Bar","","Close","A30C","0","All",,,"False","T","EveryTick")) -> 453 | Q22: =IF(WEEKDAY(DATE($D$10,$E$10,$F$10))=6,RTD("cqg.rtd",,"StudyData","If(HasVal("&$D$12&"),Vol("&$D$12&"),none) when LocalYear("&$D$12&")="&$D$10&" and localMonth("&$D$12&") ="&$E$10&" and LocalDay("&$D$12&")="&$F$10&"+1 and Barix("&$D$12&",reference:=StartOfDay)="&A22&"","Bar","","Close","A30C","0","All",,,"False","T","EveryTick"),RTD("cqg.rtd",,"StudyData","If(HasVal("&$D$12&"),Vol("&$D$12&"),none) when LocalYear("&$D$12&")="&$D$9&" and localMonth("&$D$12&") ="&$E$9&" and LocalDay("&$D$12&")="&$F$9&" and Barix("&$D$12&",reference:=StartOfDay)="&A22&"","Bar","","Close","A30C","0","All",,,"False","T","EveryTick")) -> 578 | R22: =IF(WEEKDAY(DATE($D$11,$E$11,$F$11))=6,RTD("cqg.rtd",,"StudyData","If(HasVal("&$D$12&"),Vol("&$D$12&"),none) when LocalYear("&$D$12&")="&$D$11&" and localMonth("&$D$12&") ="&$E$11&" and LocalDay("&$D$12&")="&$F$11&"+1 and Barix("&$D$12&",reference:=StartOfDay)="&A22&"","Bar","","Close","A30C","0","All",,,"False","T","EveryTick"),RTD("cqg.rtd",,"StudyData","If(HasVal("&$D$12&"),Vol("&$D$12&"),none) when LocalYear("&$D$12&")="&$D$10&" and localMonth("&$D$12&") ="&$E$10&" and LocalDay("&$D$12&")="&$F$10&" and Barix("&$D$12&",reference:=StartOfDay)="&A22&"","Bar","","Close","A30C","0","All",,,"False","T","EveryTick")) -> 145
A23: 22 | B23: 01:55:00 | D23: 5 | E23: #.00000 | H23: =IF(WEEKDAY(DATE($D$2,$E$2,$F$2))=6,RTD("cqg.rtd",,"StudyData","If(HasVal("&$D$12&"),Vol("&$D$12&"),none) when LocalYear("&$D$12&")="&$D$2&" and localMonth("&$D$12&") ="&$E$2&" and LocalDay("&$D$12&")="&$F$2&"+1 and Barix("&$D$12&",reference:=StartOfDay)="&A23&"","Bar","","Close","A30C","0","All",,,"False","T","EveryTick"),RTD("cqg.rtd",,"StudyData","If(HasVal("&$D$12&"),Vol("&$D$12&"),none) when LocalYear("&$D$12&")="&$D$1&" and localMonth("&$D$12&") ="&$E$1&" and LocalDay("&$D$12&")="&$F$1&" and Barix("&$D$12&",reference:=StartOfDay)="&A23&"","Bar","","Close","A30C","0","All",,,"False","T","EveryTick")) -> 122 | I23: 736.2222222 | J23: =IF(WEEKDAY(DATE($D$3,$E$3,$F$3))=6,RTD("cqg.rtd",,"StudyData","If(HasVal("&$D$12&"),Vol("&$D$12&"),none) when LocalYear("&$D$12&")="&$D$3&" and localMonth("&$D$12&") ="&$E$3&" and LocalDay("&$D$12&")="&$F$3&"+1 and Barix("&$D$12&",reference:=StartOfDay)="&A23&"","Bar","","Close","A30C","0","All",,,"False","T","EveryTick"),RTD("cqg.rtd",,"StudyData","If(HasVal("&$D$12&"),Vol("&$D$12&"),none) when LocalYear("&$D$12&")="&$D$2&" and localMonth("&$D$12&") ="&$E$2&" and LocalDay("&$D$12&")="&$F$2&" and Barix("&$D$12&",reference:=StartOfDay)="&A23&"","Bar","","Close","A30C","0","All",,,"False","T","EveryTick")) -> 315 | K23: =IF(WEEKDAY(DATE($D$4,$E$4,$F$4))=6,RTD("cqg.rtd",,"StudyData","If(HasVal("&$D$12&"),Vol("&$D$12&"),none) when LocalYear("&$D$12&")="&$D$4&" and localMonth("&$D$12&") ="&$E$4&" and LocalDay("&$D$12&")="&$F$4&"+1 and Barix("&$D$12&",reference:=StartOfDay)="&A23&"","Bar","","Close","A30C","0","All",,,"False","T","EveryTick"),RTD("cqg.rtd",,"StudyData","If(HasVal("&$D$12&"),Vol("&$D$12&"),none) when LocalYear("&$D$12&")="&$D$3&" and localMonth("&$D$12&") ="&$E$3&" and LocalDay("&$D$12&")="&$F$3&" and Barix("&$D$12&",reference:=StartOfDay)="&A23&"","Bar","","Close","A30C","0","All",,,"False","T","EveryTick")) -> 656 | L23: =IF(WEEKDAY(DATE($D$5,$E$5,$F$5))=6,RTD("cqg.rtd",,"StudyData","If(HasVal("&$D$12&"),Vol("&$D$12&"),none) when LocalYear("&$D$12&")="&$D$5&" and localMonth("&$D$12&") ="&$E$5&" and LocalDay("&$D$12&")="&$F$5&"+1 and Barix("&$D$12&",reference:=StartOfDay)="&A23&"","Bar","","Close","A30C","0","All",,,"False","T","EveryTick"),RTD("cqg.rtd",,"StudyData","If(HasVal("&$D$12&"),Vol("&$D$12&"),none) when LocalYear("&$D$12&")="&$D$4&" and localMonth("&$D$12&") ="&$E$4&" and LocalDay("&$D$12&")="&$F$4&" and Barix("&$D$12&",reference:=StartOfDay)="&A23&"","Bar","","Close","A30C","0","All",,,"False","T","EveryTick")) -> 832 | M23: =IF(WEEKDAY(DATE($D$6,$E$6,$F$6))=6,RTD("cqg.rtd",,"StudyData","If(HasVal("&$D$12&"),Vol("&$D$12&"),none) when LocalYear("&$D$12&")="&$D$6&" and localMonth("&$D$12&") ="&$E$6&" and LocalDay("&$D$12&")="&$F$6&"+1 and Barix("&$D$12&",reference:=StartOfDay)="&A23&"","Bar","","Close","A30C","0","All",,,"False","T","EveryTick"),RTD("cqg.rtd",,"StudyData","If(HasVal("&$D$12&"),Vol("&$D$12&"),none) when LocalYear("&$D$12&")="&$D$5&" and localMonth("&$D$12&") ="&$E$5&" and LocalDay("&$D$12&")="&$F$5&" and Barix("&$D$12&",reference:=StartOfDay)="&A23&"","Bar","","Close","A30C","0","All",,,"False","T","EveryTick")) -> 422 | N23: =IF(WEEKDAY(DATE($D$7,$E$7,$F$7))=6,RTD("cqg.rtd",,"StudyData","If(HasVal("&$D$12&"),Vol("&$D$12&"),none) when LocalYear("&$D$12&")="&$D$7&" and localMonth("&$D$12&") ="&$E$7&" and LocalDay("&$D$12&")="&$F$7&"+1 and Barix("&$D$12&",reference:=StartOfDay)="&A23&"","Bar","","Close","A30C","0","All",,,"False","T","EveryTick"),RTD("cqg.rtd",,"StudyData","If(HasVal("&$D$12&"),Vol("&$D$12&"),none) when LocalYear("&$D$12&")="&$D$6&" and localMonth("&$D$12&") ="&$E$6&" and LocalDay("&$D$12&")="&$F$6&" and Barix("&$D$12&",reference:=StartOfDay)="&A23&"","Bar","","Close","A30C","0","All",,,"False","T","EveryTick")) -> 446 | O23: =IF(WEEKDAY(DATE($D$8,$E$8,$F$8))=6,RTD("cqg.rtd",,"StudyData","If(HasVal("&$D$12&"),Vol("&$D$12&"),none) when LocalYear("&$D$12&")="&$D$8&" and localMonth("&$D$12&") ="&$E$8&" and LocalDay("&$D$12&")="&$F$8&"+1 and Barix("&$D$12&",reference:=StartOfDay)="&A23&"","Bar","","Close","A30C","0","All",,,"False","T","EveryTick"),RTD("cqg.rtd",,"StudyData","If(HasVal("&$D$12&"),Vol("&$D$12&"),none) when LocalYear("&$D$12&")="&$D$7&" and localMonth("&$D$12&") ="&$E$7&" and LocalDay("&$D$12&")="&$F$7&" and Barix("&$D$12&",reference:=StartOfDay)="&A23&"","Bar","","Close","A30C","0","All",,,"False","T","EveryTick")) -> 2085 | P23: =IF(WEEKDAY(DATE($D$9,$E$9,$F$9))=6,RTD("cqg.rtd",,"StudyData","If(HasVal("&$D$12&"),Vol("&$D$12&"),none) when LocalYear("&$D$12&")="&$D$9&" and localMonth("&$D$12&") ="&$E$9&" and LocalDay("&$D$12&")="&$F$9&"+1 and Barix("&$D$12&",reference:=StartOfDay)="&A23&"","Bar","","Close","A30C","0","All",,,"False","T","EveryTick"),RTD("cqg.rtd",,"StudyData","If(HasVal("&$D$12&"),Vol("&$D$12&"),none) when LocalYear("&$D$12&")="&$D$8&" and localMonth("&$D$12&") ="&$E$8&" and LocalDay("&$D$12&")="&$F$8&" and Barix("&$D$12&",reference:=StartOfDay)="&A23&"","Bar","","Close","A30C","0","All",,,"False","T","EveryTick")) -> 1365 | Q23: =IF(WEEKDAY(DATE($D$10,$E$10,$F$10))=6,RTD("cqg.rtd",,"StudyData","If(HasVal("&$D$12&"),Vol("&$D$12&"),none) when LocalYear("&$D$12&")="&$D$10&" and localMonth("&$D$12&") ="&$E$10&" and LocalDay("&$D$12&")="&$F$10&"+1 and Barix("&$D$12&",reference:=StartOfDay)="&A23&"","Bar","","Close","A30C","0","All",,,"False","T","EveryTick"),RTD("cqg.rtd",,"StudyData","If(HasVal("&$D$12&"),Vol("&$D$12&"),none) when LocalYear("&$D$12&")="&$D$9&" and localMonth("&$D$12&") ="&$E$9&" and LocalDay("&$D$12&")="&$F$9&" and Barix("&$D$12&",reference:=StartOfDay)="&A23&"","Bar","","Close","A30C","0","All",,,"False","T","EveryTick")) -> 318 | R23: =IF(WEEKDAY(DATE($D$11,$E$11,$F$11))=6,RTD("cqg.rtd",,"StudyData","If(HasVal("&$D$12&"),Vol("&$D$12&"),none) when LocalYear("&$D$12&")="&$D$11&" and localMonth("&$D$12&") ="&$E$11&" and LocalDay("&$D$12&")="&$F$11&"+1 and Barix("&$D$12&",reference:=StartOfDay)="&A23&"","Bar","","Close","A30C","0","All",,,"False","T","EveryTick"),RTD("cqg.rtd",,"StudyData","If(HasVal("&$D$12&"),Vol("&$D$12&"),none) when LocalYear("&$D$12&")="&$D$10&" and localMonth("&$D$12&") ="&$E$10&" and LocalDay("&$D$12&")="&$F$10&" and Barix("&$D$12&",reference:=StartOfDay)="&A23&"","Bar","","Close","A30C","0","All",,,"False","T","EveryTick")) -> 187
A24: 23 | B24: 02:25:00 | D24: 6 | E24: #.000000 | G24: =WEEKDAY(DATE($D$2,$E$2,$F$2)) -> 6 | H24: =IF(WEEKDAY(DATE($D$2,$E$2,$F$2))=6,RTD("cqg.rtd",,"StudyData","If(HasVal("&$D$12&"),Vol("&$D$12&"),none) when LocalYear("&$D$12&")="&$D$2&" and localMonth("&$D$12&") ="&$E$2&" and LocalDay("&$D$12&")="&$F$2&"+1 and Barix("&$D$12&",reference:=StartOfDay)="&A24&"","Bar","","Close","A30C","0","All",,,"False","T","EveryTick"),RTD("cqg.rtd",,"StudyData","If(HasVal("&$D$12&"),Vol("&$D$12&"),none) when LocalYear("&$D$12&")="&$D$1&" and localMonth("&$D$12&") ="&$E$1&" and LocalDay("&$D$12&")="&$F$1&" and Barix("&$D$12&",reference:=StartOfDay)="&A24&"","Bar","","Close","A30C","0","All",,,"False","T","EveryTick")) -> 699 | I24: 855.6666667 | J24: =IF(WEEKDAY(DATE($D$3,$E$3,$F$3))=6,RTD("cqg.rtd",,"StudyData","If(HasVal("&$D$12&"),Vol("&$D$12&"),none) when LocalYear("&$D$12&")="&$D$3&" and localMonth("&$D$12&") ="&$E$3&" and LocalDay("&$D$12&")="&$F$3&"+1 and Barix("&$D$12&",reference:=StartOfDay)="&A24&"","Bar","","Close","A30C","0","All",,,"False","T","EveryTick"),RTD("cqg.rtd",,"StudyData","If(HasVal("&$D$12&"),Vol("&$D$12&"),none) when LocalYear("&$D$12&")="&$D$2&" and localMonth("&$D$12&") ="&$E$2&" and LocalDay("&$D$12&")="&$F$2&" and Barix("&$D$12&",reference:=StartOfDay)="&A24&"","Bar","","Close","A30C","0","All",,,"False","T","EveryTick")) -> 146 | K24: =IF(WEEKDAY(DATE($D$4,$E$4,$F$4))=6,RTD("cqg.rtd",,"StudyData","If(HasVal("&$D$12&"),Vol("&$D$12&"),none) when LocalYear("&$D$12&")="&$D$4&" and localMonth("&$D$12&") ="&$E$4&" and LocalDay("&$D$12&")="&$F$4&"+1 and Barix("&$D$12&",reference:=StartOfDay)="&A24&"","Bar","","Close","A30C","0","All",,,"False","T","EveryTick"),RTD("cqg.rtd",,"StudyData","If(HasVal("&$D$12&"),Vol("&$D$12&"),none) when LocalYear("&$D$12&")="&$D$3&" and localMonth("&$D$12&") ="&$E$3&" and LocalDay("&$D$12&")="&$F$3&" and Barix("&$D$12&",reference:=StartOfDay)="&A24&"","Bar","","Close","A30C","0","All",,,"False","T","EveryTick")) -> 307 | L24: =IF(WEEKDAY(DATE($D$5,$E$5,$F$5))=6,RTD("cqg.rtd",,"StudyData","If(HasVal("&$D$12&"),Vol("&$D$12&"),none) when LocalYear("&$D$12&")="&$D$5&" and localMonth("&$D$12&") ="&$E$5&" and LocalDay("&$D$12&")="&$F$5&"+1 and Barix("&$D$12&",reference:=StartOfDay)="&A24&"","Bar","","Close","A30C","0","All",,,"False","T","EveryTick"),RTD("cqg.rtd",,"StudyData","If(HasVal("&$D$12&"),Vol("&$D$12&"),none) when LocalYear("&$D$12&")="&$D$4&" and localMonth("&$D$12&") ="&$E$4&" and LocalDay("&$D$12&")="&$F$4&" and Barix("&$D$12&",reference:=StartOfDay)="&A24&"","Bar","","Close","A30C","0","All",,,"False","T","EveryTick")) -> 3590 | M24: =IF(WEEKDAY(DATE($D$6,$E$6,$F$6))=6,RTD("cqg.rtd",,"StudyData","If(HasVal("&$D$12&"),Vol("&$D$12&"),none) when LocalYear("&$D$12&")="&$D$6&" and localMonth("&$D$12&") ="&$E$6&" and LocalDay("&$D$12&")="&$F$6&"+1 and Barix("&$D$12&",reference:=StartOfDay)="&A24&"","Bar","","Close","A30C","0","All",,,"False","T","EveryTick"),RTD("cqg.rtd",,"StudyData","If(HasVal("&$D$12&"),Vol("&$D$12&"),none) when LocalYear("&$D$12&")="&$D$5&" and localMonth("&$D$12&") ="&$E$5&" and LocalDay("&$D$12&")="&$F$5&" and Barix("&$D$12&",reference:=StartOfDay)="&A24&"","Bar","","Close","A30C","0","All",,,"False","T","EveryTick")) -> 285 | N24: =IF(WEEKDAY(DATE($D$7,$E$7,$F$7))=6,RTD("cqg.rtd",,"StudyData","If(HasVal("&$D$12&"),Vol("&$D$12&"),none) when LocalYear("&$D$12&")="&$D$7&" and localMonth("&$D$12&") ="&$E$7&" and LocalDay("&$D$12&")="&$F$7&"+1 and Barix("&$D$12&",reference:=StartOfDay)="&A24&"","Bar","","Close","A30C","0","All",,,"False","T","EveryTick"),RTD("cqg.rtd",,"StudyData","If(HasVal("&$D$12&"),Vol("&$D$12&"),none) when LocalYear("&$D$12&")="&$D$6&" and localMonth("&$D$12&") ="&$E$6&" and LocalDay("&$D$12&")="&$F$6&" and Barix("&$D$12&",reference:=StartOfDay)="&A24&"","Bar","","Close","A30C","0","All",,,"False","T","EveryTick")) -> 480 | O24: =IF(WEEKDAY(DATE($D$8,$E$8,$F$8))=6,RTD("cqg.rtd",,"StudyData","If(HasVal("&$D$12&"),Vol("&$D$12&"),none) when LocalYear("&$D$12&")="&$D$8&" and localMonth("&$D$12&") ="&$E$8&" and LocalDay("&$D$12&")="&$F$8&"+1 and Barix("&$D$12&",reference:=StartOfDay)="&A24&"","Bar","","Close","A30C","0","All",,,"False","T","EveryTick"),RTD("cqg.rtd",,"StudyData","If(HasVal("&$D$12&"),Vol("&$D$12&"),none) when LocalYear("&$D$12&")="&$D$7&" and localMonth("&$D$12&") ="&$E$7&" and LocalDay("&$D$12&")="&$F$7&" and Barix("&$D$12&",reference:=StartOfDay)="&A24&"","Bar","","Close","A30C","0","All",,,"False","T","EveryTick")) -> 400 | P24: =IF(WEEKDAY(DATE($D$9,$E$9,$F$9))=6,RTD("cqg.rtd",,"StudyData","If(HasVal("&$D$12&"),Vol("&$D$12&"),none) when LocalYear("&$D$12&")="&$D$9&" and localMonth("&$D$12&") ="&$E$9&" and LocalDay("&$D$12&")="&$F$9&"+1 and Barix("&$D$12&",reference:=StartOfDay)="&A24&"","Bar","","Close","A30C","0","All",,,"False","T","EveryTick"),RTD("cqg.rtd",,"StudyData","If(HasVal("&$D$12&"),Vol("&$D$12&"),none) when LocalYear("&$D$12&")="&$D$8&" and localMonth("&$D$12&") ="&$E$8&" and LocalDay("&$D$12&")="&$F$8&" and Barix("&$D$12&",reference:=StartOfDay)="&A24&"","Bar","","Close","A30C","0","All",,,"False","T","EveryTick")) -> 1777 | Q24: =IF(WEEKDAY(DATE($D$10,$E$10,$F$10))=6,RTD("cqg.rtd",,"StudyData","If(HasVal("&$D$12&"),Vol("&$D$12&"),none) when LocalYear("&$D$12&")="&$D$10&" and localMonth("&$D$12&") ="&$E$10&" and LocalDay("&$D$12&")="&$F$10&"+1 and Barix("&$D$12&",reference:=StartOfDay)="&A24&"","Bar","","Close","A30C","0","All",,,"False","T","EveryTick"),RTD("cqg.rtd",,"StudyData","If(HasVal("&$D$12&"),Vol("&$D$12&"),none) when LocalYear("&$D$12&")="&$D$9&" and localMonth("&$D$12&") ="&$E$9&" and LocalDay("&$D$12&")="&$F$9&" and Barix("&$D$12&",reference:=StartOfDay)="&A24&"","Bar","","Close","A30C","0","All",,,"False","T","EveryTick")) -> 562 | R24: =IF(WEEKDAY(DATE($D$11,$E$11,$F$11))=6,RTD("cqg.rtd",,"StudyData","If(HasVal("&$D$12&"),Vol("&$D$12&"),none) when LocalYear("&$D$12&")="&$D$11&" and localMonth("&$D$12&") ="&$E$11&" and LocalDay("&$D$12&")="&$F$11&"+1 and Barix("&$D$12&",reference:=StartOfDay)="&A24&"","Bar","","Close","A30C","0","All",,,"False","T","EveryTick"),RTD("cqg.rtd",,"StudyData","If(HasVal("&$D$12&"),Vol("&$D$12&"),none) when LocalYear("&$D$12&")="&$D$10&" and localMonth("&$D$12&") ="&$E$10&" and LocalDay("&$D$12&")="&$F$10&" and Barix("&$D$12&",reference:=StartOfDay)="&A24&"","Bar","","Close","A30C","0","All",,,"False","T","EveryTick")) -> 154
A25: 24 | B25: 02:55:00 | D25: 7 | E25: #.0000000 | G25: =RTD("cqg.rtd",,"StudyData","Vol("&$D$12&") when LocalYear("&$D$12&")="&$D$7&" and localMonth("&$D$12&") ="&$E$7&" and LocalDay("&$D$12&")="&$F$7&"+1 and Barix("&$D$12&",reference:=StartOfDay)="&A13&"","Bar","","Close","A30C","0","All",,,"False","T","EveryTick") ->  | H25: =IF(WEEKDAY(DATE($D$2,$E$2,$F$2))=6,RTD("cqg.rtd",,"StudyData","If(HasVal("&$D$12&"),Vol("&$D$12&"),none) when LocalYear("&$D$12&")="&$D$2&" and localMonth("&$D$12&") ="&$E$2&" and LocalDay("&$D$12&")="&$F$2&"+1 and Barix("&$D$12&",reference:=StartOfDay)="&A25&"","Bar","","Close","A30C","0","All",,,"False","T","EveryTick"),RTD("cqg.rtd",,"StudyData","If(HasVal("&$D$12&"),Vol("&$D$12&"),none) when LocalYear("&$D$12&")="&$D$1&" and localMonth("&$D$12&") ="&$E$1&" and LocalDay("&$D$12&")="&$F$1&" and Barix("&$D$12&",reference:=StartOfDay)="&A25&"","Bar","","Close","A30C","0","All",,,"False","T","EveryTick")) -> 126 | I25: 1165 | J25: =IF(WEEKDAY(DATE($D$3,$E$3,$F$3))=6,RTD("cqg.rtd",,"StudyData","If(HasVal("&$D$12&"),Vol("&$D$12&"),none) when LocalYear("&$D$12&")="&$D$3&" and localMonth("&$D$12&") ="&$E$3&" and LocalDay("&$D$12&")="&$F$3&"+1 and Barix("&$D$12&",reference:=StartOfDay)="&A25&"","Bar","","Close","A30C","0","All",,,"False","T","EveryTick"),RTD("cqg.rtd",,"StudyData","If(HasVal("&$D$12&"),Vol("&$D$12&"),none) when LocalYear("&$D$12&")="&$D$2&" and localMonth("&$D$12&") ="&$E$2&" and LocalDay("&$D$12&")="&$F$2&" and Barix("&$D$12&",reference:=StartOfDay)="&A25&"","Bar","","Close","A30C","0","All",,,"False","T","EveryTick")) -> 430 | K25: =IF(WEEKDAY(DATE($D$4,$E$4,$F$4))=6,RTD("cqg.rtd",,"StudyData","If(HasVal("&$D$12&"),Vol("&$D$12&"),none) when LocalYear("&$D$12&")="&$D$4&" and localMonth("&$D$12&") ="&$E$4&" and LocalDay("&$D$12&")="&$F$4&"+1 and Barix("&$D$12&",reference:=StartOfDay)="&A25&"","Bar","","Close","A30C","0","All",,,"False","T","EveryTick"),RTD("cqg.rtd",,"StudyData","If(HasVal("&$D$12&"),Vol("&$D$12&"),none) when LocalYear("&$D$12&")="&$D$3&" and localMonth("&$D$12&") ="&$E$3&" and LocalDay("&$D$12&")="&$F$3&" and Barix("&$D$12&",reference:=StartOfDay)="&A25&"","Bar","","Close","A30C","0","All",,,"False","T","EveryTick")) -> 375 | L25: =IF(WEEKDAY(DATE($D$5,$E$5,$F$5))=6,RTD("cqg.rtd",,"StudyData","If(HasVal("&$D$12&"),Vol("&$D$12&"),none) when LocalYear("&$D$12&")="&$D$5&" and localMonth("&$D$12&") ="&$E$5&" and LocalDay("&$D$12&")="&$F$5&"+1 and Barix("&$D$12&",reference:=StartOfDay)="&A25&"","Bar","","Close","A30C","0","All",,,"False","T","EveryTick"),RTD("cqg.rtd",,"StudyData","If(HasVal("&$D$12&"),Vol("&$D$12&"),none) when LocalYear("&$D$12&")="&$D$4&" and localMonth("&$D$12&") ="&$E$4&" and LocalDay("&$D$12&")="&$F$4&" and Barix("&$D$12&",reference:=StartOfDay)="&A25&"","Bar","","Close","A30C","0","All",,,"False","T","EveryTick")) -> 4619 | M25: =IF(WEEKDAY(DATE($D$6,$E$6,$F$6))=6,RTD("cqg.rtd",,"StudyData","If(HasVal("&$D$12&"),Vol("&$D$12&"),none) when LocalYear("&$D$12&")="&$D$6&" and localMonth("&$D$12&") ="&$E$6&" and LocalDay("&$D$12&")="&$F$6&"+1 and Barix("&$D$12&",reference:=StartOfDay)="&A25&"","Bar","","Close","A30C","0","All",,,"False","T","EveryTick"),RTD("cqg.rtd",,"StudyData","If(HasVal("&$D$12&"),Vol("&$D$12&"),none) when LocalYear("&$D$12&")="&$D$5&" and localMonth("&$D$12&") ="&$E$5&" and LocalDay("&$D$12&")="&$F$5&" and Barix("&$D$12&",reference:=StartOfDay)="&A25&"","Bar","","Close","A30C","0","All",,,"False","T","EveryTick")) -> 575 | N25: =IF(WEEKDAY(DATE($D$7,$E$7,$F$7))=6,RTD("cqg.rtd",,"StudyData","If(HasVal("&$D$12&"),Vol("&$D$12&"),none) when LocalYear("&$D$12&")="&$D$7&" and localMonth("&$D$12&") ="&$E$7&" and LocalDay("&$D$12&")="&$F$7&"+1 and Barix("&$D$12&",reference:=StartOfDay)="&A25&"","Bar","","Close","A30C","0","All",,,"False","T","EveryTick"),RTD("cqg.rtd",,"StudyData","If(HasVal("&$D$12&"),Vol("&$D$12&"),none) when LocalYear("&$D$12&")="&$D$6&" and localMonth("&$D$12&") ="&$E$6&" and LocalDay("&$D$12&")="&$F$6&" and Barix("&$D$12&",reference:=StartOfDay)="&A25&"","Bar","","Close","A30C","0","All",,,"False","T","EveryTick")) -> 1122 | O25: =IF(WEEKDAY(DATE($D$8,$E$8,$F$8))=6,RTD("cqg.rtd",,"StudyData","If(HasVal("&$D$12&"),Vol("&$D$12&"),none) when LocalYear("&$D$12&")="&$D$8&" and localMonth("&$D$12&") ="&$E$8&" and LocalDay("&$D$12&")="&$F$8&"+1 and Barix("&$D$12&",reference:=StartOfDay)="&A25&"","Bar","","Close","A30C","0","All",,,"False","T","EveryTick"),RTD("cqg.rtd",,"StudyData","If(HasVal("&$D$12&"),Vol("&$D$12&"),none) when LocalYear("&$D$12&")="&$D$7&" and localMonth("&$D$12&") ="&$E$7&" and LocalDay("&$D$12&")="&$F$7&" and Barix("&$D$12&",reference:=StartOfDay)="&A25&"","Bar","","Close","A30C","0","All",,,"False","T","EveryTick")) -> 315 | P25: =IF(WEEKDAY(DATE($D$9,$E$9,$F$9))=6,RTD("cqg.rtd",,"StudyData","If(HasVal("&$D$12&"),Vol("&$D$12&"),none) when LocalYear("&$D$12&")="&$D$9&" and localMonth("&$D$12&") ="&$E$9&" and LocalDay("&$D$12&")="&$F$9&"+1 and Barix("&$D$12&",reference:=StartOfDay)="&A25&"","Bar","","Close","A30C","0","All",,,"False","T","EveryTick"),RTD("cqg.rtd",,"StudyData","If(HasVal("&$D$12&"),Vol("&$D$12&"),none) when LocalYear("&$D$12&")="&$D$8&" and localMonth("&$D$12&") ="&$E$8&" and LocalDay("&$D$12&")="&$F$8&" and Barix("&$D$12&",reference:=StartOfDay)="&A25&"","Bar","","Close","A30C","0","All",,,"False","T","EveryTick")) -> 2426 | Q25: =IF(WEEKDAY(DATE($D$10,$E$10,$F$10))=6,RTD("cqg.rtd",,"StudyData","If(HasVal("&$D$12&"),Vol("&$D$12&"),none) when LocalYear("&$D$12&")="&$D$10&" and localMonth("&$D$12&") ="&$E$10&" and LocalDay("&$D$12&")="&$F$10&"+1 and Barix("&$D$12&",reference:=StartOfDay)="&A25&"","Bar","","Close","A30C","0","All",,,"False","T","EveryTick"),RTD("cqg.rtd",,"StudyData","If(HasVal("&$D$12&"),Vol("&$D$12&"),none) when LocalYear("&$D$12&")="&$D$9&" and localMonth("&$D$12&") ="&$E$9&" and LocalDay("&$D$12&")="&$F$9&" and Barix("&$D$12&",reference:=StartOfDay)="&A25&"","Bar","","Close","A30C","0","All",,,"False","T","EveryTick")) -> 376 | R25: =IF(WEEKDAY(DATE($D$11,$E$11,$F$11))=6,RTD("cqg.rtd",,"StudyData","If(HasVal("&$D$12&"),Vol("&$D$12&"),none) when LocalYear("&$D$12&")="&$D$11&" and localMonth("&$D$12&") ="&$E$11&" and LocalDay("&$D$12&")="&$F$11&"+1 and Barix("&$D$12&",reference:=StartOfDay)="&A25&"","Bar","","Close","A30C","0","All",,,"False","T","EveryTick"),RTD("cqg.rtd",,"StudyData","If(HasVal("&$D$12&"),Vol("&$D$12&"),none) when LocalYear("&$D$12&")="&$D$10&" and localMonth("&$D$12&") ="&$E$10&" and LocalDay("&$D$12&")="&$F$10&" and Barix("&$D$12&",reference:=StartOfDay)="&A25&"","Bar","","Close","A30C","0","All",,,"False","T","EveryTick")) -> 247
A26: 25 | B26: 03:25:00 | H26: =IF(WEEKDAY(DATE($D$2,$E$2,$F$2))=6,RTD("cqg.rtd",,"StudyData","If(HasVal("&$D$12&"),Vol("&$D$12&"),none) when LocalYear("&$D$12&")="&$D$2&" and localMonth("&$D$12&") ="&$E$2&" and LocalDay("&$D$12&")="&$F$2&"+1 and Barix("&$D$12&",reference:=StartOfDay)="&A26&"","Bar","","Close","A30C","0","All",,,"False","T","EveryTick"),RTD("cqg.rtd",,"StudyData","If(HasVal("&$D$12&"),Vol("&$D$12&"),none) when LocalYear("&$D$12&")="&$D$1&" and localMonth("&$D$12&") ="&$E$1&" and LocalDay("&$D$12&")="&$F$1&" and Barix("&$D$12&",reference:=StartOfDay)="&A26&"","Bar","","Close","A30C","0","All",,,"False","T","EveryTick")) -> 334 | I26: 962.3333333 | J26: =IF(WEEKDAY(DATE($D$3,$E$3,$F$3))=6,RTD("cqg.rtd",,"StudyData","If(HasVal("&$D$12&"),Vol("&$D$12&"),none) when LocalYear("&$D$12&")="&$D$3&" and localMonth("&$D$12&") ="&$E$3&" and LocalDay("&$D$12&")="&$F$3&"+1 and Barix("&$D$12&",reference:=StartOfDay)="&A26&"","Bar","","Close","A30C","0","All",,,"False","T","EveryTick"),RTD("cqg.rtd",,"StudyData","If(HasVal("&$D$12&"),Vol("&$D$12&"),none) when LocalYear("&$D$12&")="&$D$2&" and localMonth("&$D$12&") ="&$E$2&" and LocalDay("&$D$12&")="&$F$2&" and Barix("&$D$12&",reference:=StartOfDay)="&A26&"","Bar","","Close","A30C","0","All",,,"False","T","EveryTick")) -> 397 | K26: =IF(WEEKDAY(DATE($D$4,$E$4,$F$4))=6,RTD("cqg.rtd",,"StudyData","If(HasVal("&$D$12&"),Vol("&$D$12&"),none) when LocalYear("&$D$12&")="&$D$4&" and localMonth("&$D$12&") ="&$E$4&" and LocalDay("&$D$12&")="&$F$4&"+1 and Barix("&$D$12&",reference:=StartOfDay)="&A26&"","Bar","","Close","A30C","0","All",,,"False","T","EveryTick"),RTD("cqg.rtd",,"StudyData","If(HasVal("&$D$12&"),Vol("&$D$12&"),none) when LocalYear("&$D$12&")="&$D$3&" and localMonth("&$D$12&") ="&$E$3&" and LocalDay("&$D$12&")="&$F$3&" and Barix("&$D$12&",reference:=StartOfDay)="&A26&"","Bar","","Close","A30C","0","All",,,"False","T","EveryTick")) -> 264 | L26: =IF(WEEKDAY(DATE($D$5,$E$5,$F$5))=6,RTD("cqg.rtd",,"StudyData","If(HasVal("&$D$12&"),Vol("&$D$12&"),none) when LocalYear("&$D$12&")="&$D$5&" and localMonth("&$D$12&") ="&$E$5&" and LocalDay("&$D$12&")="&$F$5&"+1 and Barix("&$D$12&",reference:=StartOfDay)="&A26&"","Bar","","Close","A30C","0","All",,,"False","T","EveryTick"),RTD("cqg.rtd",,"StudyData","If(HasVal("&$D$12&"),Vol("&$D$12&"),none) when LocalYear("&$D$12&")="&$D$4&" and localMonth("&$D$12&") ="&$E$4&" and LocalDay("&$D$12&")="&$F$4&" and Barix("&$D$12&",reference:=StartOfDay)="&A26&"","Bar","","Close","A30C","0","All",,,"False","T","EveryTick")) -> 2044 | M26: =IF(WEEKDAY(DATE($D$6,$E$6,$F$6))=6,RTD("cqg.rtd",,"StudyData","If(HasVal("&$D$12&"),Vol("&$D$12&"),none) when LocalYear("&$D$12&")="&$D$6&" and localMonth("&$D$12&") ="&$E$6&" and LocalDay("&$D$12&")="&$F$6&"+1 and Barix("&$D$12&",reference:=StartOfDay)="&A26&"","Bar","","Close","A30C","0","All",,,"False","T","EveryTick"),RTD("cqg.rtd",,"StudyData","If(HasVal("&$D$12&"),Vol("&$D$12&"),none) when LocalYear("&$D$12&")="&$D$5&" and localMonth("&$D$12&") ="&$E$5&" and LocalDay("&$D$12&")="&$F$5&" and Barix("&$D$12&",reference:=StartOfDay)="&A26&"","Bar","","Close","A30C","0","All",,,"False","T","EveryTick")) -> 1038 | N26: =IF(WEEKDAY(DATE($D$7,$E$7,$F$7))=6,RTD("cqg.rtd",,"StudyData","If(HasVal("&$D$12&"),Vol("&$D$12&"),none) when LocalYear("&$D$12&")="&$D$7&" and localMonth("&$D$12&") ="&$E$7&" and LocalDay("&$D$12&")="&$F$7&"+1 and Barix("&$D$12&",reference:=StartOfDay)="&A26&"","Bar","","Close","A30C","0","All",,,"False","T","EveryTick"),RTD("cqg.rtd",,"StudyData","If(HasVal("&$D$12&"),Vol("&$D$12&"),none) when LocalYear("&$D$12&")="&$D$6&" and localMonth("&$D$12&") ="&$E$6&" and LocalDay("&$D$12&")="&$F$6&" and Barix("&$D$12&",reference:=StartOfDay)="&A26&"","Bar","","Close","A30C","0","All",,,"False","T","EveryTick")) -> 646 | O26: =IF(WEEKDAY(DATE($D$8,$E$8,$F$8))=6,RTD("cqg.rtd",,"StudyData","If(HasVal("&$D$12&"),Vol("&$D$12&"),none) when LocalYear("&$D$12&")="&$D$8&" and localMonth("&$D$12&") ="&$E$8&" and LocalDay("&$D$12&")="&$F$8&"+1 and Barix("&$D$12&",reference:=StartOfDay)="&A26&"","Bar","","Close","A30C","0","All",,,"False","T","EveryTick"),RTD("cqg.rtd",,"StudyData","If(HasVal("&$D$12&"),Vol("&$D$12&"),none) when LocalYear("&$D$12&")="&$D$7&" and localMonth("&$D$12&") ="&$E$7&" and LocalDay("&$D$12&")="&$F$7&" and Barix("&$D$12&",reference:=StartOfDay)="&A26&"","Bar","","Close","A30C","0","All",,,"False","T","EveryTick")) -> 1285 | P26: =IF(WEEKDAY(DATE($D$9,$E$9,$F$9))=6,RTD("cqg.rtd",,"StudyData","If(HasVal("&$D$12&"),Vol("&$D$12&"),none) when LocalYear("&$D$12&")="&$D$9&" and localMonth("&$D$12&") ="&$E$9&" and LocalDay("&$D$12&")="&$F$9&"+1 and Barix("&$D$12&",reference:=StartOfDay)="&A26&"","Bar","","Close","A30C","0","All",,,"False","T","EveryTick"),RTD("cqg.rtd",,"StudyData","If(HasVal("&$D$12&"),Vol("&$D$12&"),none) when LocalYear("&$D$12&")="&$D$8&" and localMonth("&$D$12&") ="&$E$8&" and LocalDay("&$D$12&")="&$F$8&" and Barix("&$D$12&",reference:=StartOfDay)="&A26&"","Bar","","Close","A30C","0","All",,,"False","T","EveryTick")) -> 1284 | Q26: =IF(WEEKDAY(DATE($D$10,$E$10,$F$10))=6,RTD("cqg.rtd",,"StudyData","If(HasVal("&$D$12&"),Vol("&$D$12&"),none) when LocalYear("&$D$12&")="&$D$10&" and localMonth("&$D$12&") ="&$E$10&" and LocalDay("&$D$12&")="&$F$10&"+1 and Barix("&$D$12&",reference:=StartOfDay)="&A26&"","Bar","","Close","A30C","0","All",,,"False","T","EveryTick"),RTD("cqg.rtd",,"StudyData","If(HasVal("&$D$12&"),Vol("&$D$12&"),none) when LocalYear("&$D$12&")="&$D$9&" and localMonth("&$D$12&") ="&$E$9&" and LocalDay("&$D$12&")="&$F$9&" and Barix("&$D$12&",reference:=StartOfDay)="&A26&"","Bar","","Close","A30C","0","All",,,"False","T","EveryTick")) -> 1047 | R26: =IF(WEEKDAY(DATE($D$11,$E$11,$F$11))=6,RTD("cqg.rtd",,"StudyData","If(HasVal("&$D$12&"),Vol("&$D$12&"),none) when LocalYear("&$D$12&")="&$D$11&" and localMonth("&$D$12&") ="&$E$11&" and LocalDay("&$D$12&")="&$F$11&"+1 and Barix("&$D$12&",reference:=StartOfDay)="&A26&"","Bar","","Close","A30C","0","All",,,"False","T","EveryTick"),RTD("cqg.rtd",,"StudyData","If(HasVal("&$D$12&"),Vol("&$D$12&"),none) when LocalYear("&$D$12&")="&$D$10&" and localMonth("&$D$12&") ="&$E$10&" and LocalDay("&$D$12&")="&$F$10&" and Barix("&$D$12&",reference:=StartOfDay)="&A26&"","Bar","","Close","A30C","0","All",,,"False","T","EveryTick")) -> 656
A27: 26 | B27: 03:55:00 | D27: 2020 | E27: 8 | F27: 15 | H27: =IF(WEEKDAY(DATE($D$2,$E$2,$F$2))=6,RTD("cqg.rtd",,"StudyData","If(HasVal("&$D$12&"),Vol("&$D$12&"),none) when LocalYear("&$D$12&")="&$D$2&" and localMonth("&$D$12&") ="&$E$2&" and LocalDay("&$D$12&")="&$F$2&"+1 and Barix("&$D$12&",reference:=StartOfDay)="&A27&"","Bar","","Close","A30C","0","All",,,"False","T","EveryTick"),RTD("cqg.rtd",,"StudyData","If(HasVal("&$D$12&"),Vol("&$D$12&"),none) when LocalYear("&$D$12&")="&$D$1&" and localMonth("&$D$12&") ="&$E$1&" and LocalDay("&$D$12&")="&$F$1&" and Barix("&$D$12&",reference:=StartOfDay)="&A27&"","Bar","","Close","A30C","0","All",,,"False","T","EveryTick")) -> 707 | I27: 785.1111111 | J27: =IF(WEEKDAY(DATE($D$3,$E$3,$F$3))=6,RTD("cqg.rtd",,"StudyData","If(HasVal("&$D$12&"),Vol("&$D$12&"),none) when LocalYear("&$D$12&")="&$D$3&" and localMonth("&$D$12&") ="&$E$3&" and LocalDay("&$D$12&")="&$F$3&"+1 and Barix("&$D$12&",reference:=StartOfDay)="&A27&"","Bar","","Close","A30C","0","All",,,"False","T","EveryTick"),RTD("cqg.rtd",,"StudyData","If(HasVal("&$D$12&"),Vol("&$D$12&"),none) when LocalYear("&$D$12&")="&$D$2&" and localMonth("&$D$12&") ="&$E$2&" and LocalDay("&$D$12&")="&$F$2&" and Barix("&$D$12&",reference:=StartOfDay)="&A27&"","Bar","","Close","A30C","0","All",,,"False","T","EveryTick")) -> 392 | K27: =IF(WEEKDAY(DATE($D$4,$E$4,$F$4))=6,RTD("cqg.rtd",,"StudyData","If(HasVal("&$D$12&"),Vol("&$D$12&"),none) when LocalYear("&$D$12&")="&$D$4&" and localMonth("&$D$12&") ="&$E$4&" and LocalDay("&$D$12&")="&$F$4&"+1 and Barix("&$D$12&",reference:=StartOfDay)="&A27&"","Bar","","Close","A30C","0","All",,,"False","T","EveryTick"),RTD("cqg.rtd",,"StudyData","If(HasVal("&$D$12&"),Vol("&$D$12&"),none) when LocalYear("&$D$12&")="&$D$3&" and localMonth("&$D$12&") ="&$E$3&" and LocalDay("&$D$12&")="&$F$3&" and Barix("&$D$12&",reference:=StartOfDay)="&A27&"","Bar","","Close","A30C","0","All",,,"False","T","EveryTick")) -> 605 | L27: =IF(WEEKDAY(DATE($D$5,$E$5,$F$5))=6,RTD("cqg.rtd",,"StudyData","If(HasVal("&$D$12&"),Vol("&$D$12&"),none) when LocalYear("&$D$12&")="&$D$5&" and localMonth("&$D$12&") ="&$E$5&" and LocalDay("&$D$12&")="&$F$5&"+1 and Barix("&$D$12&",reference:=StartOfDay)="&A27&"","Bar","","Close","A30C","0","All",,,"False","T","EveryTick"),RTD("cqg.rtd",,"StudyData","If(HasVal("&$D$12&"),Vol("&$D$12&"),none) when LocalYear("&$D$12&")="&$D$4&" and localMonth("&$D$12&") ="&$E$4&" and LocalDay("&$D$12&")="&$F$4&" and Barix("&$D$12&",reference:=StartOfDay)="&A27&"","Bar","","Close","A30C","0","All",,,"False","T","EveryTick")) -> 728 | M27: =IF(WEEKDAY(DATE($D$6,$E$6,$F$6))=6,RTD("cqg.rtd",,"StudyData","If(HasVal("&$D$12&"),Vol("&$D$12&"),none) when LocalYear("&$D$12&")="&$D$6&" and localMonth("&$D$12&") ="&$E$6&" and LocalDay("&$D$12&")="&$F$6&"+1 and Barix("&$D$12&",reference:=StartOfDay)="&A27&"","Bar","","Close","A30C","0","All",,,"False","T","EveryTick"),RTD("cqg.rtd",,"StudyData","If(HasVal("&$D$12&"),Vol("&$D$12&"),none) when LocalYear("&$D$12&")="&$D$5&" and localMonth("&$D$12&") ="&$E$5&" and LocalDay("&$D$12&")="&$F$5&" and Barix("&$D$12&",reference:=StartOfDay)="&A27&"","Bar","","Close","A30C","0","All",,,"False","T","EveryTick")) -> 642 | N27: =IF(WEEKDAY(DATE($D$7,$E$7,$F$7))=6,RTD("cqg.rtd",,"StudyData","If(HasVal("&$D$12&"),Vol("&$D$12&"),none) when LocalYear("&$D$12&")="&$D$7&" and localMonth("&$D$12&") ="&$E$7&" and LocalDay("&$D$12&")="&$F$7&"+1 and Barix("&$D$12&",reference:=StartOfDay)="&A27&"","Bar","","Close","A30C","0","All",,,"False","T","EveryTick"),RTD("cqg.rtd",,"StudyData","If(HasVal("&$D$12&"),Vol("&$D$12&"),none) when LocalYear("&$D$12&")="&$D$6&" and localMonth("&$D$12&") ="&$E$6&" and LocalDay("&$D$12&")="&$F$6&" and Barix("&$D$12&",reference:=StartOfDay)="&A27&"","Bar","","Close","A30C","0","All",,,"False","T","EveryTick")) -> 803 | O27: =IF(WEEKDAY(DATE($D$8,$E$8,$F$8))=6,RTD("cqg.rtd",,"StudyData","If(HasVal("&$D$12&"),Vol("&$D$12&"),none) when LocalYear("&$D$12&")="&$D$8&" and localMonth("&$D$12&") ="&$E$8&" and LocalDay("&$D$12&")="&$F$8&"+1 and Barix("&$D$12&",reference:=StartOfDay)="&A27&"","Bar","","Close","A30C","0","All",,,"False","T","EveryTick"),RTD("cqg.rtd",,"StudyData","If(HasVal("&$D$12&"),Vol("&$D$12&"),none) when LocalYear("&$D$12&")="&$D$7&" and localMonth("&$D$12&") ="&$E$7&" and LocalDay("&$D$12&")="&$F$7&" and Barix("&$D$12&",reference:=StartOfDay)="&A27&"","Bar","","Close","A30C","0","All",,,"False","T","EveryTick")) -> 771 | P27: =IF(WEEKDAY(DATE($D$9,$E$9,$F$9))=6,RTD("cqg.rtd",,"StudyData","If(HasVal("&$D$12&"),Vol("&$D$12&"),none) when LocalYear("&$D$12&")="&$D$9&" and localMonth("&$D$12&") ="&$E$9&" and LocalDay("&$D$12&")="&$F$9&"+1 and Barix("&$D$12&",reference:=StartOfDay)="&A27&"","Bar","","Close","A30C","0","All",,,"False","T","EveryTick"),RTD("cqg.rtd",,"StudyData","If(HasVal("&$D$12&"),Vol("&$D$12&"),none) when LocalYear("&$D$12&")="&$D$8&" and localMonth("&$D$12&") ="&$E$8&" and LocalDay("&$D$12&")="&$F$8&" and Barix("&$D$12&",reference:=StartOfDay)="&A27&"","Bar","","Close","A30C","0","All",,,"False","T","EveryTick")) -> 1576 | Q27: =IF(WEEKDAY(DATE($D$10,$E$10,$F$10))=6,RTD("cqg.rtd",,"StudyData","If(HasVal("&$D$12&"),Vol("&$D$12&"),none) when LocalYear("&$D$12&")="&$D$10&" and localMonth("&$D$12&") ="&$E$10&" and LocalDay("&$D$12&")="&$F$10&"+1 and Barix("&$D$12&",reference:=StartOfDay)="&A27&"","Bar","","Close","A30C","0","All",,,"False","T","EveryTick"),RTD("cqg.rtd",,"StudyData","If(HasVal("&$D$12&"),Vol("&$D$12&"),none) when LocalYear("&$D$12&")="&$D$9&" and localMonth("&$D$12&") ="&$E$9&" and LocalDay("&$D$12&")="&$F$9&" and Barix("&$D$12&",reference:=StartOfDay)="&A27&"","Bar","","Close","A30C","0","All",,,"False","T","EveryTick")) -> 802 | R27: =IF(WEEKDAY(DATE($D$11,$E$11,$F$11))=6,RTD("cqg.rtd",,"StudyData","If(HasVal("&$D$12&"),Vol("&$D$12&"),none) when LocalYear("&$D$12&")="&$D$11&" and localMonth("&$D$12&") ="&$E$11&" and LocalDay("&$D$12&")="&$F$11&"+1 and Barix("&$D$12&",reference:=StartOfDay)="&A27&"","Bar","","Close","A30C","0","All",,,"False","T","EveryTick"),RTD("cqg.rtd",,"StudyData","If(HasVal("&$D$12&"),Vol("&$D$12&"),none) when LocalYear("&$D$12&")="&$D$10&" and localMonth("&$D$12&") ="&$E$10&" and LocalDay("&$D$12&")="&$F$10&" and Barix("&$D$12&",reference:=StartOfDay)="&A27&"","Bar","","Close","A30C","0","All",,,"False","T","EveryTick")) -> 747
A28: 27 | B28: 04:25:00 | H28: =IF(WEEKDAY(DATE($D$2,$E$2,$F$2))=6,RTD("cqg.rtd",,"StudyData","If(HasVal("&$D$12&"),Vol("&$D$12&"),none) when LocalYear("&$D$12&")="&$D$2&" and localMonth("&$D$12&") ="&$E$2&" and LocalDay("&$D$12&")="&$F$2&"+1 and Barix("&$D$12&",reference:=StartOfDay)="&A28&"","Bar","","Close","A30C","0","All",,,"False","T","EveryTick"),RTD("cqg.rtd",,"StudyData","If(HasVal("&$D$12&"),Vol("&$D$12&"),none) when LocalYear("&$D$12&")="&$D$1&" and localMonth("&$D$12&") ="&$E$1&" and LocalDay("&$D$12&")="&$F$1&" and Barix("&$D$12&",reference:=StartOfDay)="&A28&"","Bar","","Close","A30C","0","All",,,"False","T","EveryTick")) -> 75 | I28: 118.1111111 | J28: =IF(WEEKDAY(DATE($D$3,$E$3,$F$3))=6,RTD("cqg.rtd",,"StudyData","If(HasVal("&$D$12&"),Vol("&$D$12&"),none) when LocalYear("&$D$12&")="&$D$3&" and localMonth("&$D$12&") ="&$E$3&" and LocalDay("&$D$12&")="&$F$3&"+1 and Barix("&$D$12&",reference:=StartOfDay)="&A28&"","Bar","","Close","A30C","0","All",,,"False","T","EveryTick"),RTD("cqg.rtd",,"StudyData","If(HasVal("&$D$12&"),Vol("&$D$12&"),none) when LocalYear("&$D$12&")="&$D$2&" and localMonth("&$D$12&") ="&$E$2&" and LocalDay("&$D$12&")="&$F$2&" and Barix("&$D$12&",reference:=StartOfDay)="&A28&"","Bar","","Close","A30C","0","All",,,"False","T","EveryTick")) -> 97 | K28: =IF(WEEKDAY(DATE($D$4,$E$4,$F$4))=6,RTD("cqg.rtd",,"StudyData","If(HasVal("&$D$12&"),Vol("&$D$12&"),none) when LocalYear("&$D$12&")="&$D$4&" and localMonth("&$D$12&") ="&$E$4&" and LocalDay("&$D$12&")="&$F$4&"+1 and Barix("&$D$12&",reference:=StartOfDay)="&A28&"","Bar","","Close","A30C","0","All",,,"False","T","EveryTick"),RTD("cqg.rtd",,"StudyData","If(HasVal("&$D$12&"),Vol("&$D$12&"),none) when LocalYear("&$D$12&")="&$D$3&" and localMonth("&$D$12&") ="&$E$3&" and LocalDay("&$D$12&")="&$F$3&" and Barix("&$D$12&",reference:=StartOfDay)="&A28&"","Bar","","Close","A30C","0","All",,,"False","T","EveryTick")) -> 127 | L28: =IF(WEEKDAY(DATE($D$5,$E$5,$F$5))=6,RTD("cqg.rtd",,"StudyData","If(HasVal("&$D$12&"),Vol("&$D$12&"),none) when LocalYear("&$D$12&")="&$D$5&" and localMonth("&$D$12&") ="&$E$5&" and LocalDay("&$D$12&")="&$F$5&"+1 and Barix("&$D$12&",reference:=StartOfDay)="&A28&"","Bar","","Close","A30C","0","All",,,"False","T","EveryTick"),RTD("cqg.rtd",,"StudyData","If(HasVal("&$D$12&"),Vol("&$D$12&"),none) when LocalYear("&$D$12&")="&$D$4&" and localMonth("&$D$12&") ="&$E$4&" and LocalDay("&$D$12&")="&$F$4&" and Barix("&$D$12&",reference:=StartOfDay)="&A28&"","Bar","","Close","A30C","0","All",,,"False","T","EveryTick")) -> 120 | M28: =IF(WEEKDAY(DATE($D$6,$E$6,$F$6))=6,RTD("cqg.rtd",,"StudyData","If(HasVal("&$D$12&"),Vol("&$D$12&"),none) when LocalYear("&$D$12&")="&$D$6&" and localMonth("&$D$12&") ="&$E$6&" and LocalDay("&$D$12&")="&$F$6&"+1 and Barix("&$D$12&",reference:=StartOfDay)="&A28&"","Bar","","Close","A30C","0","All",,,"False","T","EveryTick"),RTD("cqg.rtd",,"StudyData","If(HasVal("&$D$12&"),Vol("&$D$12&"),none) when LocalYear("&$D$12&")="&$D$5&" and localMonth("&$D$12&") ="&$E$5&" and LocalDay("&$D$12&")="&$F$5&" and Barix("&$D$12&",reference:=StartOfDay)="&A28&"","Bar","","Close","A30C","0","All",,,"False","T","EveryTick")) -> 166 | N28: =IF(WEEKDAY(DATE($D$7,$E$7,$F$7))=6,RTD("cqg.rtd",,"StudyData","If(HasVal("&$D$12&"),Vol("&$D$12&"),none) when LocalYear("&$D$12&")="&$D$7&" and localMonth("&$D$12&") ="&$E$7&" and LocalDay("&$D$12&")="&$F$7&"+1 and Barix("&$D$12&",reference:=StartOfDay)="&A28&"","Bar","","Close","A30C","0","All",,,"False","T","EveryTick"),RTD("cqg.rtd",,"StudyData","If(HasVal("&$D$12&"),Vol("&$D$12&"),none) when LocalYear("&$D$12&")="&$D$6&" and localMonth("&$D$12&") ="&$E$6&" and LocalDay("&$D$12&")="&$F$6&" and Barix("&$D$12&",reference:=StartOfDay)="&A28&"","Bar","","Close","A30C","0","All",,,"False","T","EveryTick")) -> 162 | O28: =IF(WEEKDAY(DATE($D$8,$E$8,$F$8))=6,RTD("cqg.rtd",,"StudyData","If(HasVal("&$D$12&"),Vol("&$D$12&"),none) when LocalYear("&$D$12&")="&$D$8&" and localMonth("&$D$12&") ="&$E$8&" and LocalDay("&$D$12&")="&$F$8&"+1 and Barix("&$D$12&",reference:=StartOfDay)="&A28&"","Bar","","Close","A30C","0","All",,,"False","T","EveryTick"),RTD("cqg.rtd",,"StudyData","If(HasVal("&$D$12&"),Vol("&$D$12&"),none) when LocalYear("&$D$12&")="&$D$7&" and localMonth("&$D$12&") ="&$E$7&" and LocalDay("&$D$12&")="&$F$7&" and Barix("&$D$12&",reference:=StartOfDay)="&A28&"","Bar","","Close","A30C","0","All",,,"False","T","EveryTick")) -> 69 | P28: =IF(WEEKDAY(DATE($D$9,$E$9,$F$9))=6,RTD("cqg.rtd",,"StudyData","If(HasVal("&$D$12&"),Vol("&$D$12&"),none) when LocalYear("&$D$12&")="&$D$9&" and localMonth("&$D$12&") ="&$E$9&" and LocalDay("&$D$12&")="&$F$9&"+1 and Barix("&$D$12&",reference:=StartOfDay)="&A28&"","Bar","","Close","A30C","0","All",,,"False","T","EveryTick"),RTD("cqg.rtd",,"StudyData","If(HasVal("&$D$12&"),Vol("&$D$12&"),none) when LocalYear("&$D$12&")="&$D$8&" and localMonth("&$D$12&") ="&$E$8&" and LocalDay("&$D$12&")="&$F$8&" and Barix("&$D$12&",reference:=StartOfDay)="&A28&"","Bar","","Close","A30C","0","All",,,"False","T","EveryTick")) -> 75 | Q28: =IF(WEEKDAY(DATE($D$10,$E$10,$F$10))=6,RTD("cqg.rtd",,"StudyData","If(HasVal("&$D$12&"),Vol("&$D$12&"),none) when LocalYear("&$D$12&")="&$D$10&" and localMonth("&$D$12&") ="&$E$10&" and LocalDay("&$D$12&")="&$F$10&"+1 and Barix("&$D$12&",reference:=StartOfDay)="&A28&"","Bar","","Close","A30C","0","All",,,"False","T","EveryTick"),RTD("cqg.rtd",,"StudyData","If(HasVal("&$D$12&"),Vol("&$D$12&"),none) when LocalYear("&$D$12&")="&$D$9&" and localMonth("&$D$12&") ="&$E$9&" and LocalDay("&$D$12&")="&$F$9&" and Barix("&$D$12&",reference:=StartOfDay)="&A28&"","Bar","","Close","A30C","0","All",,,"False","T","EveryTick")) -> 112 | R28: =IF(WEEKDAY(DATE($D$11,$E$11,$F$11))=6,RTD("cqg.rtd",,"StudyData","If(HasVal("&$D$12&"),Vol("&$D$12&"),none) when LocalYear("&$D$12&")="&$D$11&" and localMonth("&$D$12&") ="&$E$11&" and LocalDay("&$D$12&")="&$F$11&"+1 and Barix("&$D$12&",reference:=StartOfDay)="&A28&"","Bar","","Close","A30C","0","All",,,"False","T","EveryTick"),RTD("cqg.rtd",,"StudyData","If(HasVal("&$D$12&"),Vol("&$D$12&"),none) when LocalYear("&$D$12&")="&$D$10&" and localMonth("&$D$12&") ="&$E$10&" and LocalDay("&$D$12&")="&$F$10&" and Barix("&$D$12&",reference:=StartOfDay)="&A28&"","Bar","","Close","A30C","0","All",,,"False","T","EveryTick")) -> 135
A29: 28 | B29: 04:55:00 | C29: =D14 -> Nikkei 225 Index - All Sessions (SGX), Dec 20 | H29: =IF(WEEKDAY(DATE($D$2,$E$2,$F$2))=6,RTD("cqg.rtd",,"StudyData","If(HasVal("&$D$12&"),Vol("&$D$12&"),none) when LocalYear("&$D$12&")="&$D$2&" and localMonth("&$D$12&") ="&$E$2&" and LocalDay("&$D$12&")="&$F$2&"+1 and Barix("&$D$12&",reference:=StartOfDay)="&A29&"","Bar","","Close","A30C","0","All",,,"False","T","EveryTick"),RTD("cqg.rtd",,"StudyData","If(HasVal("&$D$12&"),Vol("&$D$12&"),none) when LocalYear("&$D$12&")="&$D$1&" and localMonth("&$D$12&") ="&$E$1&" and LocalDay("&$D$12&")="&$F$1&" and Barix("&$D$12&",reference:=StartOfDay)="&A29&"","Bar","","Close","A30C","0","All",,,"False","T","EveryTick")) -> 19 | I29: 25.66666667 | J29: =IF(WEEKDAY(DATE($D$3,$E$3,$F$3))=6,RTD("cqg.rtd",,"StudyData","If(HasVal("&$D$12&"),Vol("&$D$12&"),none) when LocalYear("&$D$12&")="&$D$3&" and localMonth("&$D$12&") ="&$E$3&" and LocalDay("&$D$12&")="&$F$3&"+1 and Barix("&$D$12&",reference:=StartOfDay)="&A29&"","Bar","","Close","A30C","0","All",,,"False","T","EveryTick"),RTD("cqg.rtd",,"StudyData","If(HasVal("&$D$12&"),Vol("&$D$12&"),none) when LocalYear("&$D$12&")="&$D$2&" and localMonth("&$D$12&") ="&$E$2&" and LocalDay("&$D$12&")="&$F$2&" and Barix("&$D$12&",reference:=StartOfDay)="&A29&"","Bar","","Close","A30C","0","All",,,"False","T","EveryTick")) -> 22 | K29: =IF(WEEKDAY(DATE($D$4,$E$4,$F$4))=6,RTD("cqg.rtd",,"StudyData","If(HasVal("&$D$12&"),Vol("&$D$12&"),none) when LocalYear("&$D$12&")="&$D$4&" and localMonth("&$D$12&") ="&$E$4&" and LocalDay("&$D$12&")="&$F$4&"+1 and Barix("&$D$12&",reference:=StartOfDay)="&A29&"","Bar","","Close","A30C","0","All",,,"False","T","EveryTick"),RTD("cqg.rtd",,"StudyData","If(HasVal("&$D$12&"),Vol("&$D$12&"),none) when LocalYear("&$D$12&")="&$D$3&" and localMonth("&$D$12&") ="&$E$3&" and LocalDay("&$D$12&")="&$F$3&" and Barix("&$D$12&",reference:=StartOfDay)="&A29&"","Bar","","Close","A30C","0","All",,,"False","T","EveryTick")) -> 14 | L29: =IF(WEEKDAY(DATE($D$5,$E$5,$F$5))=6,RTD("cqg.rtd",,"StudyData","If(HasVal("&$D$12&"),Vol("&$D$12&"),none) when LocalYear("&$D$12&")="&$D$5&" and localMonth("&$D$12&") ="&$E$5&" and LocalDay("&$D$12&")="&$F$5&"+1 and Barix("&$D$12&",reference:=StartOfDay)="&A29&"","Bar","","Close","A30C","0","All",,,"False","T","EveryTick"),RTD("cqg.rtd",,"StudyData","If(HasVal("&$D$12&"),Vol("&$D$12&"),none) when LocalYear("&$D$12&")="&$D$4&" and localMonth("&$D$12&") ="&$E$4&" and LocalDay("&$D$12&")="&$F$4&" and Barix("&$D$12&",reference:=StartOfDay)="&A29&"","Bar","","Close","A30C","0","All",,,"False","T","EveryTick")) -> 33 | M29: =IF(WEEKDAY(DATE($D$6,$E$6,$F$6))=6,RTD("cqg.rtd",,"StudyData","If(HasVal("&$D$12&"),Vol("&$D$12&"),none) when LocalYear("&$D$12&")="&$D$6&" and localMonth("&$D$12&") ="&$E$6&" and LocalDay("&$D$12&")="&$F$6&"+1 and Barix("&$D$12&",reference:=StartOfDay)="&A29&"","Bar","","Close","A30C","0","All",,,"False","T","EveryTick"),RTD("cqg.rtd",,"StudyData","If(HasVal("&$D$12&"),Vol("&$D$12&"),none) when LocalYear("&$D$12&")="&$D$5&" and localMonth("&$D$12&") ="&$E$5&" and LocalDay("&$D$12&")="&$F$5&" and Barix("&$D$12&",reference:=StartOfDay)="&A29&"","Bar","","Close","A30C","0","All",,,"False","T","EveryTick")) -> 24 | N29: =IF(WEEKDAY(DATE($D$7,$E$7,$F$7))=6,RTD("cqg.rtd",,"StudyData","If(HasVal("&$D$12&"),Vol("&$D$12&"),none) when LocalYear("&$D$12&")="&$D$7&" and localMonth("&$D$12&") ="&$E$7&" and LocalDay("&$D$12&")="&$F$7&"+1 and Barix("&$D$12&",reference:=StartOfDay)="&A29&"","Bar","","Close","A30C","0","All",,,"False","T","EveryTick"),RTD("cqg.rtd",,"StudyData","If(HasVal("&$D$12&"),Vol("&$D$12&"),none) when LocalYear("&$D$12&")="&$D$6&" and localMonth("&$D$12&") ="&$E$6&" and LocalDay("&$D$12&")="&$F$6&" and Barix("&$D$12&",reference:=StartOfDay)="&A29&"","Bar","","Close","A30C","0","All",,,"False","T","EveryTick")) -> 26 | O29: =IF(WEEKDAY(DATE($D$8,$E$8,$F$8))=6,RTD("cqg.rtd",,"StudyData","If(HasVal("&$D$12&"),Vol("&$D$12&"),none) when LocalYear("&$D$12&")="&$D$8&" and localMonth("&$D$12&") ="&$E$8&" and LocalDay("&$D$12&")="&$F$8&"+1 and Barix("&$D$12&",reference:=StartOfDay)="&A29&"","Bar","","Close","A30C","0","All",,,"False","T","EveryTick"),RTD("cqg.rtd",,"StudyData","If(HasVal("&$D$12&"),Vol("&$D$12&"),none) when LocalYear("&$D$12&")="&$D$7&" and localMonth("&$D$12&") ="&$E$7&" and LocalDay("&$D$12&")="&$F$7&" and Barix("&$D$12&",reference:=StartOfDay)="&A29&"","Bar","","Close","A30C","0","All",,,"False","T","EveryTick")) -> 39 | P29: =IF(WEEKDAY(DATE($D$9,$E$9,$F$9))=6,RTD("cqg.rtd",,"StudyData","If(HasVal("&$D$12&"),Vol("&$D$12&"),none) when LocalYear("&$D$12&")="&$D$9&" and localMonth("&$D$12&") ="&$E$9&" and LocalDay("&$D$12&")="&$F$9&"+1 and Barix("&$D$12&",reference:=StartOfDay)="&A29&"","Bar","","Close","A30C","0","All",,,"False","T","EveryTick"),RTD("cqg.rtd",,"StudyData","If(HasVal("&$D$12&"),Vol("&$D$12&"),none) when LocalYear("&$D$12&")="&$D$8&" and localMonth("&$D$12&") ="&$E$8&" and LocalDay("&$D$12&")="&$F$8&" and Barix("&$D$12&",reference:=StartOfDay)="&A29&"","Bar","","Close","A30C","0","All",,,"False","T","EveryTick")) -> 26 | Q29: =IF(WEEKDAY(DATE($D$10,$E$10,$F$10))=6,RTD("cqg.rtd",,"StudyData","If(HasVal("&$D$12&"),Vol("&$D$12&"),none) when LocalYear("&$D$12&")="&$D$10&" and localMonth("&$D$12&") ="&$E$10&" and LocalDay("&$D$12&")="&$F$10&"+1 and Barix("&$D$12&",reference:=StartOfDay)="&A29&"","Bar","","Close","A30C","0","All",,,"False","T","EveryTick"),RTD("cqg.rtd",,"StudyData","If(HasVal("&$D$12&"),Vol("&$D$12&"),none) when LocalYear("&$D$12&")="&$D$9&" and localMonth("&$D$12&") ="&$E$9&" and LocalDay("&$D$12&")="&$F$9&" and Barix("&$D$12&",reference:=StartOfDay)="&A29&"","Bar","","Close","A30C","0","All",,,"False","T","EveryTick")) -> 24 | R29: =IF(WEEKDAY(DATE($D$11,$E$11,$F$11))=6,RTD("cqg.rtd",,"StudyData","If(HasVal("&$D$12&"),Vol("&$D$12&"),none) when LocalYear("&$D$12&")="&$D$11&" and localMonth("&$D$12&") ="&$E$11&" and LocalDay("&$D$12&")="&$F$11&"+1 and Barix("&$D$12&",reference:=StartOfDay)="&A29&"","Bar","","Close","A30C","0","All",,,"False","T","EveryTick"),RTD("cqg.rtd",,"StudyData","If(HasVal("&$D$12&"),Vol("&$D$12&"),none) when LocalYear("&$D$12&")="&$D$10&" and localMonth("&$D$12&") ="&$E$10&" and LocalDay("&$D$12&")="&$F$10&" and Barix("&$D$12&",reference:=StartOfDay)="&A29&"","Bar","","Close","A30C","0","All",,,"False","T","EveryTick")) -> 23
A30: 29 | B30: 07:30:00 | H30: =RTD("cqg.rtd",,"StudyData","If(HasVal("&$D$12&"),Vol("&$D$12&"),none) when LocalYear("&$D$12&")="&$D$1&" and localMonth("&$D$12&") ="&$E$1&" and LocalDay("&$D$12&")="&$F$1&" and Barix("&$D$12&",reference:=StartOfDay)="&A30&"","Bar","","Close","A30C","0","All",,,"False","T","EveryTick") ->  | I30: 1662.555556 | J30: =RTD("cqg.rtd",,"StudyData", "If(HasVal("&$D$12&"),Vol("&$D$12&"),none) when LocalYear("&$D$12&")="&$D$2&" and localMonth("&$D$12&") ="&$E$2&" and LocalDay("&$D$12&")="&$F$2&" and Barix("&$D$12&",reference:=StartOfDay)="&A30&"", "Bar", "", "Close","A30C","0","All",,,"False","T","EveryTick") -> 2735 | K30: =RTD("cqg.rtd",,"StudyData","If(HasVal("&$D$12&"),Vol("&$D$12&"),none) when LocalYear("&$D$12&")="&$D$3&" and localMonth("&$D$12&") ="&$E$3&" and LocalDay("&$D$12&")="&$F$3&" and Barix("&$D$12&",reference:=StartOfDay)="&A30&"","Bar","","Close","A30C","0","All",,,"False","T","EveryTick") -> 1073 | L30: =RTD("cqg.rtd",,"StudyData","If(HasVal("&$D$12&"),Vol("&$D$12&"),none) when LocalYear("&$D$12&")="&$D$4&" and localMonth("&$D$12&") ="&$E$4&" and LocalDay("&$D$12&")="&$F$4&" and Barix("&$D$12&",reference:=StartOfDay)="&A30&"","Bar","","Close","A30C","0","All",,,"False","T","EveryTick") -> 1495 | M30: =RTD("cqg.rtd",,"StudyData","If(HasVal("&$D$12&"),Vol("&$D$12&"),none) when LocalYear("&$D$12&")="&$D$5&" and localMonth("&$D$12&") ="&$E$5&" and LocalDay("&$D$12&")="&$F$5&" and Barix("&$D$12&",reference:=StartOfDay)="&A30&"","Bar","","Close","A30C","0","All",,,"False","T","EveryTick") -> 1354 | N30: =RTD("cqg.rtd",,"StudyData", "If(HasVal("&$D$12&"),Vol("&$D$12&"),none) when LocalYear("&$D$12&")="&$D$6&" and localMonth("&$D$12&") ="&$E$6&" and LocalDay("&$D$12&")="&$F$6&" and Barix("&$D$12&",reference:=StartOfDay)="&A30&"", "Bar", "", "Close","A30C","0","All",,,"False","T","EveryTick") -> 2779 | O30: =RTD("cqg.rtd",,"StudyData","If(HasVal("&$D$12&"),Vol("&$D$12&"),none) when LocalYear("&$D$12&")="&$D$7&" and localMonth("&$D$12&") ="&$E$7&" and LocalDay("&$D$12&")="&$F$7&" and Barix("&$D$12&",reference:=StartOfDay)="&A30&"","Bar","","Close","A30C","0","All",,,"False","T","EveryTick") -> 1254 | P30: =RTD("cqg.rtd",,"StudyData","If(HasVal("&$D$12&"),Vol("&$D$12&"),none) when LocalYear("&$D$12&")="&$D$8&" and localMonth("&$D$12&") ="&$E$8&" and LocalDay("&$D$12&")="&$F$8&" and Barix("&$D$12&",reference:=StartOfDay)="&A30&"","Bar","","Close","A30C","0","All",,,"False","T","EveryTick") -> 1511 | Q30: =RTD("cqg.rtd",,"StudyData", "If(HasVal("&$D$12&"),Vol("&$D$12&"),none) when LocalYear("&$D$12&")="&$D$9&" and localMonth("&$D$12&") ="&$E$9&" and LocalDay("&$D$12&")="&$F$9&" and Barix("&$D$12&",reference:=StartOfDay)="&A30&"", "Bar", "", "Close","A30C","0","All",,,"False","T","EveryTick") -> 1057 | R30: =RTD("cqg.rtd",,"StudyData","If(HasVal("&$D$12&"),Vol("&$D$12&"),none) when LocalYear("&$D$12&")="&$D$10&" and localMonth("&$D$12&") ="&$E$10&" and LocalDay("&$D$12&")="&$F$10&" and Barix("&$D$12&",reference:=StartOfDay)="&A30&"","Bar","","Close","A30C","0","All",,,"False","T","EveryTick") -> 1705
A31: 30 | B31: 08:00:00 | H31: =RTD("cqg.rtd",,"StudyData","If(HasVal("&$D$12&"),Vol("&$D$12&"),none) when LocalYear("&$D$12&")="&$D$1&" and localMonth("&$D$12&") ="&$E$1&" and LocalDay("&$D$12&")="&$F$1&" and Barix("&$D$12&",reference:=StartOfDay)="&A31&"","Bar","","Close","A30C","0","All",,,"False","T","EveryTick") ->  | I31: 4883.666667 | J31: =RTD("cqg.rtd",,"StudyData", "If(HasVal("&$D$12&"),Vol("&$D$12&"),none) when LocalYear("&$D$12&")="&$D$2&" and localMonth("&$D$12&") ="&$E$2&" and LocalDay("&$D$12&")="&$F$2&" and Barix("&$D$12&",reference:=StartOfDay)="&A31&"", "Bar", "", "Close","A30C","0","All",,,"False","T","EveryTick") -> 6249 | K31: =RTD("cqg.rtd",,"StudyData","If(HasVal("&$D$12&"),Vol("&$D$12&"),none) when LocalYear("&$D$12&")="&$D$3&" and localMonth("&$D$12&") ="&$E$3&" and LocalDay("&$D$12&")="&$F$3&" and Barix("&$D$12&",reference:=StartOfDay)="&A31&"","Bar","","Close","A30C","0","All",,,"False","T","EveryTick") -> 4036 | L31: =RTD("cqg.rtd",,"StudyData","If(HasVal("&$D$12&"),Vol("&$D$12&"),none) when LocalYear("&$D$12&")="&$D$4&" and localMonth("&$D$12&") ="&$E$4&" and LocalDay("&$D$12&")="&$F$4&" and Barix("&$D$12&",reference:=StartOfDay)="&A31&"","Bar","","Close","A30C","0","All",,,"False","T","EveryTick") -> 3824 | M31: =RTD("cqg.rtd",,"StudyData", "If(HasVal("&$D$12&"),Vol("&$D$12&"),none) when LocalYear("&$D$12&")="&$D$5&" and localMonth("&$D$12&") ="&$E$5&" and LocalDay("&$D$12&")="&$F$5&" and Barix("&$D$12&",reference:=StartOfDay)="&A31&"", "Bar", "", "Close","A30C","0","All",,,"False","T","EveryTick") -> 3865 | N31: =RTD("cqg.rtd",,"StudyData", "If(HasVal("&$D$12&"),Vol("&$D$12&"),none) when LocalYear("&$D$12&")="&$D$6&" and localMonth("&$D$12&") ="&$E$6&" and LocalDay("&$D$12&")="&$F$6&" and Barix("&$D$12&",reference:=StartOfDay)="&A31&"", "Bar", "", "Close","A30C","0","All",,,"False","T","EveryTick") -> 9712 | O31: =RTD("cqg.rtd",,"StudyData","If(HasVal("&$D$12&"),Vol("&$D$12&"),none) when LocalYear("&$D$12&")="&$D$7&" and localMonth("&$D$12&") ="&$E$7&" and LocalDay("&$D$12&")="&$F$7&" and Barix("&$D$12&",reference:=StartOfDay)="&A31&"","Bar","","Close","A30C","0","All",,,"False","T","EveryTick") -> 4679 | P31: =RTD("cqg.rtd",,"StudyData", "If(HasVal("&$D$12&"),Vol("&$D$12&"),none) when LocalYear("&$D$12&")="&$D$8&" and localMonth("&$D$12&") ="&$E$8&" and LocalDay("&$D$12&")="&$F$8&" and Barix("&$D$12&",reference:=StartOfDay)="&A31&"", "Bar", "", "Close","A30C","0","All",,,"False","T","EveryTick") -> 3083 | Q31: =RTD("cqg.rtd",,"StudyData", "If(HasVal("&$D$12&"),Vol("&$D$12&"),none) when LocalYear("&$D$12&")="&$D$9&" and localMonth("&$D$12&") ="&$E$9&" and LocalDay("&$D$12&")="&$F$9&" and Barix("&$D$12&",reference:=StartOfDay)="&A31&"", "Bar", "", "Close","A30C","0","All",,,"False","T","EveryTick") -> 2909 | R31: =RTD("cqg.rtd",,"StudyData","If(HasVal("&$D$12&"),Vol("&$D$12&"),none) when LocalYear("&$D$12&")="&$D$10&" and localMonth("&$D$12&") ="&$E$10&" and LocalDay("&$D$12&")="&$F$10&" and Barix("&$D$12&",reference:=StartOfDay)="&A31&"","Bar","","Close","A30C","0","All",,,"False","T","EveryTick") -> 5596
A32: 31 | B32: 08:30:00 | H32: =RTD("cqg.rtd",,"StudyData","If(HasVal("&$D$12&"),Vol("&$D$12&"),none) when LocalYear("&$D$12&")="&$D$1&" and localMonth("&$D$12&") ="&$E$1&" and LocalDay("&$D$12&")="&$F$1&" and Barix("&$D$12&",reference:=StartOfDay)="&A32&"","Bar","","Close","A30C","0","All",,,"False","T","EveryTick") ->  | I32: 2507.888889 | J32: =RTD("cqg.rtd",,"StudyData", "If(HasVal("&$D$12&"),Vol("&$D$12&"),none) when LocalYear("&$D$12&")="&$D$2&" and localMonth("&$D$12&") ="&$E$2&" and LocalDay("&$D$12&")="&$F$2&" and Barix("&$D$12&",reference:=StartOfDay)="&A32&"", "Bar", "", "Close","A30C","0","All",,,"False","T","EveryTick") -> 3158 | K32: =RTD("cqg.rtd",,"StudyData","If(HasVal("&$D$12&"),Vol("&$D$12&"),none) when LocalYear("&$D$12&")="&$D$3&" and localMonth("&$D$12&") ="&$E$3&" and LocalDay("&$D$12&")="&$F$3&" and Barix("&$D$12&",reference:=StartOfDay)="&A32&"","Bar","","Close","A30C","0","All",,,"False","T","EveryTick") -> 2287 | L32: =RTD("cqg.rtd",,"StudyData", "If(HasVal("&$D$12&"),Vol("&$D$12&"),none) when LocalYear("&$D$12&")="&$D$4&" and localMonth("&$D$12&") ="&$E$4&" and LocalDay("&$D$12&")="&$F$4&" and Barix("&$D$12&",reference:=StartOfDay)="&A32&"", "Bar", "", "Close","A30C","0","All",,,"False","T","EveryTick") -> 1872 | M32: =RTD("cqg.rtd",,"StudyData", "If(HasVal("&$D$12&"),Vol("&$D$12&"),none) when LocalYear("&$D$12&")="&$D$5&" and localMonth("&$D$12&") ="&$E$5&" and LocalDay("&$D$12&")="&$F$5&" and Barix("&$D$12&",reference:=StartOfDay)="&A32&"", "Bar", "", "Close","A30C","0","All",,,"False","T","EveryTick") -> 3098 | N32: =RTD("cqg.rtd",,"StudyData", "If(HasVal("&$D$12&"),Vol("&$D$12&"),none) when LocalYear("&$D$12&")="&$D$6&" and localMonth("&$D$12&") ="&$E$6&" and LocalDay("&$D$12&")="&$F$6&" and Barix("&$D$12&",reference:=StartOfDay)="&A32&"", "Bar", "", "Close","A30C","0","All",,,"False","T","EveryTick") -> 3065 | O32: =RTD("cqg.rtd",,"StudyData", "If(HasVal("&$D$12&"),Vol("&$D$12&"),none) when LocalYear("&$D$12&")="&$D$7&" and localMonth("&$D$12&") ="&$E$7&" and LocalDay("&$D$12&")="&$F$7&" and Barix("&$D$12&",reference:=StartOfDay)="&A32&"", "Bar", "", "Close","A30C","0","All",,,"False","T","EveryTick") -> 2696 | P32: =RTD("cqg.rtd",,"StudyData", "If(HasVal("&$D$12&"),Vol("&$D$12&"),none) when LocalYear("&$D$12&")="&$D$8&" and localMonth("&$D$12&") ="&$E$8&" and LocalDay("&$D$12&")="&$F$8&" and Barix("&$D$12&",reference:=StartOfDay)="&A32&"", "Bar", "", "Close","A30C","0","All",,,"False","T","EveryTick") -> 1933 | Q32: =RTD("cqg.rtd",,"StudyData", "If(HasVal("&$D$12&"),Vol("&$D$12&"),none) when LocalYear("&$D$12&")="&$D$9&" and localMonth("&$D$12&") ="&$E$9&" and LocalDay("&$D$12&")="&$F$9&" and Barix("&$D$12&",reference:=StartOfDay)="&A32&"", "Bar", "", "Close","A30C","0","All",,,"False","T","EveryTick") -> 2303 | R32: =RTD("cqg.rtd",,"StudyData","If(HasVal("&$D$12&"),Vol("&$D$12&"),none) when LocalYear("&$D$12&")="&$D$10&" and localMonth("&$D$12&") ="&$E$10&" and LocalDay("&$D$12&")="&$F$10&" and Barix("&$D$12&",reference:=StartOfDay)="&A32&"","Bar","","Close","A30C","0","All",,,"False","T","EveryTick") -> 2159
A33: 32 | B33: 09:00:00 | H33: =RTD("cqg.rtd",,"StudyData","If(HasVal("&$D$12&"),Vol("&$D$12&"),none) when LocalYear("&$D$12&")="&$D$1&" and localMonth("&$D$12&") ="&$E$1&" and LocalDay("&$D$12&")="&$F$1&" and Barix("&$D$12&",reference:=StartOfDay)="&A33&"","Bar","","Close","A30C","0","All",,,"False","T","EveryTick") ->  | I33: 2283.222222 | J33: =RTD("cqg.rtd",,"StudyData", "If(HasVal("&$D$12&"),Vol("&$D$12&"),none) when LocalYear("&$D$12&")="&$D$2&" and localMonth("&$D$12&") ="&$E$2&" and LocalDay("&$D$12&")="&$F$2&" and Barix("&$D$12&",reference:=StartOfDay)="&A33&"", "Bar", "", "Close","A30C","0","All",,,"False","T","EveryTick") -> 2031 | K33: =RTD("cqg.rtd",,"StudyData", "If(HasVal("&$D$12&"),Vol("&$D$12&"),none) when LocalYear("&$D$12&")="&$D$3&" and localMonth("&$D$12&") ="&$E$3&" and LocalDay("&$D$12&")="&$F$3&" and Barix("&$D$12&",reference:=StartOfDay)="&A33&"", "Bar", "", "Close","A30C","0","All",,,"False","T","EveryTick") -> 2830 | L33: =RTD("cqg.rtd",,"StudyData", "If(HasVal("&$D$12&"),Vol("&$D$12&"),none) when LocalYear("&$D$12&")="&$D$4&" and localMonth("&$D$12&") ="&$E$4&" and LocalDay("&$D$12&")="&$F$4&" and Barix("&$D$12&",reference:=StartOfDay)="&A33&"", "Bar", "", "Close","A30C","0","All",,,"False","T","EveryTick") -> 2273 | M33: =RTD("cqg.rtd",,"StudyData", "If(HasVal("&$D$12&"),Vol("&$D$12&"),none) when LocalYear("&$D$12&")="&$D$5&" and localMonth("&$D$12&") ="&$E$5&" and LocalDay("&$D$12&")="&$F$5&" and Barix("&$D$12&",reference:=StartOfDay)="&A33&"", "Bar", "", "Close","A30C","0","All",,,"False","T","EveryTick") -> 2385 | N33: =RTD("cqg.rtd",,"StudyData", "If(HasVal("&$D$12&"),Vol("&$D$12&"),none) when LocalYear("&$D$12&")="&$D$6&" and localMonth("&$D$12&") ="&$E$6&" and LocalDay("&$D$12&")="&$F$6&" and Barix("&$D$12&",reference:=StartOfDay)="&A33&"", "Bar", "", "Close","A30C","0","All",,,"False","T","EveryTick") -> 2469 | O33: =RTD("cqg.rtd",,"StudyData", "If(HasVal("&$D$12&"),Vol("&$D$12&"),none) when LocalYear("&$D$12&")="&$D$7&" and localMonth("&$D$12&") ="&$E$7&" and LocalDay("&$D$12&")="&$F$7&" and Barix("&$D$12&",reference:=StartOfDay)="&A33&"", "Bar", "", "Close","A30C","0","All",,,"False","T","EveryTick") -> 1913 | P33: =RTD("cqg.rtd",,"StudyData", "If(HasVal("&$D$12&"),Vol("&$D$12&"),none) when LocalYear("&$D$12&")="&$D$8&" and localMonth("&$D$12&") ="&$E$8&" and LocalDay("&$D$12&")="&$F$8&" and Barix("&$D$12&",reference:=StartOfDay)="&A33&"", "Bar", "", "Close","A30C","0","All",,,"False","T","EveryTick") -> 2063 | Q33: =RTD("cqg.rtd",,"StudyData", "If(HasVal("&$D$12&"),Vol("&$D$12&"),none) when LocalYear("&$D$12&")="&$D$9&" and localMonth("&$D$12&") ="&$E$9&" and LocalDay("&$D$12&")="&$F$9&" and Barix("&$D$12&",reference:=StartOfDay)="&A33&"", "Bar", "", "Close","A30C","0","All",,,"False","T","EveryTick") -> 2065 | R33: =RTD("cqg.rtd",,"StudyData","If(HasVal("&$D$12&"),Vol("&$D$12&"),none) when LocalYear("&$D$12&")="&$D$10&" and localMonth("&$D$12&") ="&$E$10&" and LocalDay("&$D$12&")="&$F$10&" and Barix("&$D$12&",reference:=StartOfDay)="&A33&"","Bar","","Close","A30C","0","All",,,"False","T","EveryTick") -> 2520
A34: 33 | B34: 09:30:00 | H34: =RTD("cqg.rtd",,"StudyData","If(HasVal("&$D$12&"),Vol("&$D$12&"),none) when LocalYear("&$D$12&")="&$D$1&" and localMonth("&$D$12&") ="&$E$1&" and LocalDay("&$D$12&")="&$F$1&" and Barix("&$D$12&",reference:=StartOfDay)="&A34&"","Bar","","Close","A30C","0","All",,,"False","T","EveryTick") ->  | I34: 2325 | J34: =RTD("cqg.rtd",,"StudyData", "If(HasVal("&$D$12&"),Vol("&$D$12&"),none) when LocalYear("&$D$12&")="&$D$2&" and localMonth("&$D$12&") ="&$E$2&" and LocalDay("&$D$12&")="&$F$2&" and Barix("&$D$12&",reference:=StartOfDay)="&A34&"", "Bar", "", "Close","A30C","0","All",,,"False","T","EveryTick") -> 2413 | K34: =RTD("cqg.rtd",,"StudyData", "If(HasVal("&$D$12&"),Vol("&$D$12&"),none) when LocalYear("&$D$12&")="&$D$3&" and localMonth("&$D$12&") ="&$E$3&" and LocalDay("&$D$12&")="&$F$3&" and Barix("&$D$12&",reference:=StartOfDay)="&A34&"", "Bar", "", "Close","A30C","0","All",,,"False","T","EveryTick") -> 5048 | L34: =RTD("cqg.rtd",,"StudyData", "If(HasVal("&$D$12&"),Vol("&$D$12&"),none) when LocalYear("&$D$12&")="&$D$4&" and localMonth("&$D$12&") ="&$E$4&" and LocalDay("&$D$12&")="&$F$4&" and Barix("&$D$12&",reference:=StartOfDay)="&A34&"", "Bar", "", "Close","A30C","0","All",,,"False","T","EveryTick") -> 2237 | M34: =RTD("cqg.rtd",,"StudyData", "If(HasVal("&$D$12&"),Vol("&$D$12&"),none) when LocalYear("&$D$12&")="&$D$5&" and localMonth("&$D$12&") ="&$E$5&" and LocalDay("&$D$12&")="&$F$5&" and Barix("&$D$12&",reference:=StartOfDay)="&A34&"", "Bar", "", "Close","A30C","0","All",,,"False","T","EveryTick") -> 2436 | N34: =RTD("cqg.rtd",,"StudyData", "If(HasVal("&$D$12&"),Vol("&$D$12&"),none) when LocalYear("&$D$12&")="&$D$6&" and localMonth("&$D$12&") ="&$E$6&" and LocalDay("&$D$12&")="&$F$6&" and Barix("&$D$12&",reference:=StartOfDay)="&A34&"", "Bar", "", "Close","A30C","0","All",,,"False","T","EveryTick") -> 1877 | O34: =RTD("cqg.rtd",,"StudyData", "If(HasVal("&$D$12&"),Vol("&$D$12&"),none) when LocalYear("&$D$12&")="&$D$7&" and localMonth("&$D$12&") ="&$E$7&" and LocalDay("&$D$12&")="&$F$7&" and Barix("&$D$12&",reference:=StartOfDay)="&A34&"", "Bar", "", "Close","A30C","0","All",,,"False","T","EveryTick") -> 1943 | P34: =RTD("cqg.rtd",,"StudyData", "If(HasVal("&$D$12&"),Vol("&$D$12&"),none) when LocalYear("&$D$12&")="&$D$8&" and localMonth("&$D$12&") ="&$E$8&" and LocalDay("&$D$12&")="&$F$8&" and Barix("&$D$12&",reference:=StartOfDay)="&A34&"", "Bar", "", "Close","A30C","0","All",,,"False","T","EveryTick") -> 1684 | Q34: =RTD("cqg.rtd",,"StudyData", "If(HasVal("&$D$12&"),Vol("&$D$12&"),none) when LocalYear("&$D$12&")="&$D$9&" and localMonth("&$D$12&") ="&$E$9&" and LocalDay("&$D$12&")="&$F$9&" and Barix("&$D$12&",reference:=StartOfDay)="&A34&"", "Bar", "", "Close","A30C","0","All",,,"False","T","EveryTick") -> 1530 | R34: =RTD("cqg.rtd",,"StudyData","If(HasVal("&$D$12&"),Vol("&$D$12&"),none) when LocalYear("&$D$12&")="&$D$10&" and localMonth("&$D$12&") ="&$E$10&" and LocalDay("&$D$12&")="&$F$10&" and Barix("&$D$12&",reference:=StartOfDay)="&A34&"","Bar","","Close","A30C","0","All",,,"False","T","EveryTick") -> 1757
A35: 34 | B35: 10:00:00 | H35: =RTD("cqg.rtd",,"StudyData","If(HasVal("&$D$12&"),Vol("&$D$12&"),none) when LocalYear("&$D$12&")="&$D$1&" and localMonth("&$D$12&") ="&$E$1&" and LocalDay("&$D$12&")="&$F$1&" and Barix("&$D$12&",reference:=StartOfDay)="&A35&"","Bar","","Close","A30C","0","All",,,"False","T","EveryTick") ->  | I35: 2137.777778 | J35: =RTD("cqg.rtd",,"StudyData", "If(HasVal("&$D$12&"),Vol("&$D$12&"),none) when LocalYear("&$D$12&")="&$D$2&" and localMonth("&$D$12&") ="&$E$2&" and LocalDay("&$D$12&")="&$F$2&" and Barix("&$D$12&",reference:=StartOfDay)="&A35&"", "Bar", "", "Close","A30C","0","All",,,"False","T","EveryTick") -> 1261 | K35: =RTD("cqg.rtd",,"StudyData", "If(HasVal("&$D$12&"),Vol("&$D$12&"),none) when LocalYear("&$D$12&")="&$D$3&" and localMonth("&$D$12&") ="&$E$3&" and LocalDay("&$D$12&")="&$F$3&" and Barix("&$D$12&",reference:=StartOfDay)="&A35&"", "Bar", "", "Close","A30C","0","All",,,"False","T","EveryTick") -> 3551 | L35: =RTD("cqg.rtd",,"StudyData", "If(HasVal("&$D$12&"),Vol("&$D$12&"),none) when LocalYear("&$D$12&")="&$D$4&" and localMonth("&$D$12&") ="&$E$4&" and LocalDay("&$D$12&")="&$F$4&" and Barix("&$D$12&",reference:=StartOfDay)="&A35&"", "Bar", "", "Close","A30C","0","All",,,"False","T","EveryTick") -> 3299 | M35: =RTD("cqg.rtd",,"StudyData", "If(HasVal("&$D$12&"),Vol("&$D$12&"),none) when LocalYear("&$D$12&")="&$D$5&" and localMonth("&$D$12&") ="&$E$5&" and LocalDay("&$D$12&")="&$F$5&" and Barix("&$D$12&",reference:=StartOfDay)="&A35&"", "Bar", "", "Close","A30C","0","All",,,"False","T","EveryTick") -> 1564 | N35: =RTD("cqg.rtd",,"StudyData", "If(HasVal("&$D$12&"),Vol("&$D$12&"),none) when LocalYear("&$D$12&")="&$D$6&" and localMonth("&$D$12&") ="&$E$6&" and LocalDay("&$D$12&")="&$F$6&" and Barix("&$D$12&",reference:=StartOfDay)="&A35&"", "Bar", "", "Close","A30C","0","All",,,"False","T","EveryTick") -> 1277 | O35: =RTD("cqg.rtd",,"StudyData", "If(HasVal("&$D$12&"),Vol("&$D$12&"),none) when LocalYear("&$D$12&")="&$D$7&" and localMonth("&$D$12&") ="&$E$7&" and LocalDay("&$D$12&")="&$F$7&" and Barix("&$D$12&",reference:=StartOfDay)="&A35&"", "Bar", "", "Close","A30C","0","All",,,"False","T","EveryTick") -> 1409 | P35: =RTD("cqg.rtd",,"StudyData", "If(HasVal("&$D$12&"),Vol("&$D$12&"),none) when LocalYear("&$D$12&")="&$D$8&" and localMonth("&$D$12&") ="&$E$8&" and LocalDay("&$D$12&")="&$F$8&" and Barix("&$D$12&",reference:=StartOfDay)="&A35&"", "Bar", "", "Close","A30C","0","All",,,"False","T","EveryTick") -> 1208 | Q35: =RTD("cqg.rtd",,"StudyData", "If(HasVal("&$D$12&"),Vol("&$D$12&"),none) when LocalYear("&$D$12&")="&$D$9&" and localMonth("&$D$12&") ="&$E$9&" and LocalDay("&$D$12&")="&$F$9&" and Barix("&$D$12&",reference:=StartOfDay)="&A35&"", "Bar", "", "Close","A30C","0","All",,,"False","T","EveryTick") -> 1935 | R35: =RTD("cqg.rtd",,"StudyData","If(HasVal("&$D$12&"),Vol("&$D$12&"),none) when LocalYear("&$D$12&")="&$D$10&" and localMonth("&$D$12&") ="&$E$10&" and LocalDay("&$D$12&")="&$F$10&" and Barix("&$D$12&",reference:=StartOfDay)="&A35&"","Bar","","Close","A30C","0","All",,,"False","T","EveryTick") -> 3736
A36: 35 | B36: 10:30:00 | H36: =RTD("cqg.rtd",,"StudyData","If(HasVal("&$D$12&"),Vol("&$D$12&"),none) when LocalYear("&$D$12&")="&$D$1&" and localMonth("&$D$12&") ="&$E$1&" and LocalDay("&$D$12&")="&$F$1&" and Barix("&$D$12&",reference:=StartOfDay)="&A36&"","Bar","","Close","A30C","0","All",,,"False","T","EveryTick") ->  | I36: 1447.333333 | J36: =RTD("cqg.rtd",,"StudyData", "If(HasVal("&$D$12&"),Vol("&$D$12&"),none) when LocalYear("&$D$12&")="&$D$2&" and localMonth("&$D$12&") ="&$E$2&" and LocalDay("&$D$12&")="&$F$2&" and Barix("&$D$12&",reference:=StartOfDay)="&A36&"", "Bar", "", "Close","A30C","0","All",,,"False","T","EveryTick") -> 1499 | K36: =RTD("cqg.rtd",,"StudyData", "If(HasVal("&$D$12&"),Vol("&$D$12&"),none) when LocalYear("&$D$12&")="&$D$3&" and localMonth("&$D$12&") ="&$E$3&" and LocalDay("&$D$12&")="&$F$3&" and Barix("&$D$12&",reference:=StartOfDay)="&A36&"", "Bar", "", "Close","A30C","0","All",,,"False","T","EveryTick") -> 1907 | L36: =RTD("cqg.rtd",,"StudyData", "If(HasVal("&$D$12&"),Vol("&$D$12&"),none) when LocalYear("&$D$12&")="&$D$4&" and localMonth("&$D$12&") ="&$E$4&" and LocalDay("&$D$12&")="&$F$4&" and Barix("&$D$12&",reference:=StartOfDay)="&A36&"", "Bar", "", "Close","A30C","0","All",,,"False","T","EveryTick") -> 1271 | M36: =RTD("cqg.rtd",,"StudyData", "If(HasVal("&$D$12&"),Vol("&$D$12&"),none) when LocalYear("&$D$12&")="&$D$5&" and localMonth("&$D$12&") ="&$E$5&" and LocalDay("&$D$12&")="&$F$5&" and Barix("&$D$12&",reference:=StartOfDay)="&A36&"", "Bar", "", "Close","A30C","0","All",,,"False","T","EveryTick") -> 1033 | N36: =RTD("cqg.rtd",,"StudyData", "If(HasVal("&$D$12&"),Vol("&$D$12&"),none) when LocalYear("&$D$12&")="&$D$6&" and localMonth("&$D$12&") ="&$E$6&" and LocalDay("&$D$12&")="&$F$6&" and Barix("&$D$12&",reference:=StartOfDay)="&A36&"", "Bar", "", "Close","A30C","0","All",,,"False","T","EveryTick") -> 746 | O36: =RTD("cqg.rtd",,"StudyData", "If(HasVal("&$D$12&"),Vol("&$D$12&"),none) when LocalYear("&$D$12&")="&$D$7&" and localMonth("&$D$12&") ="&$E$7&" and LocalDay("&$D$12&")="&$F$7&" and Barix("&$D$12&",reference:=StartOfDay)="&A36&"", "Bar", "", "Close","A30C","0","All",,,"False","T","EveryTick") -> 1407 | P36: =RTD("cqg.rtd",,"StudyData", "If(HasVal("&$D$12&"),Vol("&$D$12&"),none) when LocalYear("&$D$12&")="&$D$8&" and localMonth("&$D$12&") ="&$E$8&" and LocalDay("&$D$12&")="&$F$8&" and Barix("&$D$12&",reference:=StartOfDay)="&A36&"", "Bar", "", "Close","A30C","0","All",,,"False","T","EveryTick") -> 935 | Q36: =RTD("cqg.rtd",,"StudyData", "If(HasVal("&$D$12&"),Vol("&$D$12&"),none) when LocalYear("&$D$12&")="&$D$9&" and localMonth("&$D$12&") ="&$E$9&" and LocalDay("&$D$12&")="&$F$9&" and Barix("&$D$12&",reference:=StartOfDay)="&A36&"", "Bar", "", "Close","A30C","0","All",,,"False","T","EveryTick") -> 2600 | R36: =RTD("cqg.rtd",,"StudyData","If(HasVal("&$D$12&"),Vol("&$D$12&"),none) when LocalYear("&$D$12&")="&$D$10&" and localMonth("&$D$12&") ="&$E$10&" and LocalDay("&$D$12&")="&$F$10&" and Barix("&$D$12&",reference:=StartOfDay)="&A36&"","Bar","","Close","A30C","0","All",,,"False","T","EveryTick") -> 1628
A37: 36 | B37: 11:00:00 | H37: =RTD("cqg.rtd",,"StudyData","If(HasVal("&$D$12&"),Vol("&$D$12&"),none) when LocalYear("&$D$12&")="&$D$1&" and localMonth("&$D$12&") ="&$E$1&" and LocalDay("&$D$12&")="&$F$1&" and Barix("&$D$12&",reference:=StartOfDay)="&A37&"","Bar","","Close","A30C","0","All",,,"False","T","EveryTick") ->  | I37: 1111.444444 | J37: =RTD("cqg.rtd",,"StudyData", "If(HasVal("&$D$12&"),Vol("&$D$12&"),none) when LocalYear("&$D$12&")="&$D$2&" and localMonth("&$D$12&") ="&$E$2&" and LocalDay("&$D$12&")="&$F$2&" and Barix("&$D$12&",reference:=StartOfDay)="&A37&"", "Bar", "", "Close","A30C","0","All",,,"False","T","EveryTick") -> 980 | K37: =RTD("cqg.rtd",,"StudyData", "If(HasVal("&$D$12&"),Vol("&$D$12&"),none) when LocalYear("&$D$12&")="&$D$3&" and localMonth("&$D$12&") ="&$E$3&" and LocalDay("&$D$12&")="&$F$3&" and Barix("&$D$12&",reference:=StartOfDay)="&A37&"", "Bar", "", "Close","A30C","0","All",,,"False","T","EveryTick") -> 1022 | L37: =RTD("cqg.rtd",,"StudyData", "If(HasVal("&$D$12&"),Vol("&$D$12&"),none) when LocalYear("&$D$12&")="&$D$4&" and localMonth("&$D$12&") ="&$E$4&" and LocalDay("&$D$12&")="&$F$4&" and Barix("&$D$12&",reference:=StartOfDay)="&A37&"", "Bar", "", "Close","A30C","0","All",,,"False","T","EveryTick") -> 959 | M37: =RTD("cqg.rtd",,"StudyData", "If(HasVal("&$D$12&"),Vol("&$D$12&"),none) when LocalYear("&$D$12&")="&$D$5&" and localMonth("&$D$12&") ="&$E$5&" and LocalDay("&$D$12&")="&$F$5&" and Barix("&$D$12&",reference:=StartOfDay)="&A37&"", "Bar", "", "Close","A30C","0","All",,,"False","T","EveryTick") -> 838 | N37: =RTD("cqg.rtd",,"StudyData", "If(HasVal("&$D$12&"),Vol("&$D$12&"),none) when LocalYear("&$D$12&")="&$D$6&" and localMonth("&$D$12&") ="&$E$6&" and LocalDay("&$D$12&")="&$F$6&" and Barix("&$D$12&",reference:=StartOfDay)="&A37&"", "Bar", "", "Close","A30C","0","All",,,"False","T","EveryTick") -> 534 | O37: =RTD("cqg.rtd",,"StudyData", "If(HasVal("&$D$12&"),Vol("&$D$12&"),none) when LocalYear("&$D$12&")="&$D$7&" and localMonth("&$D$12&") ="&$E$7&" and LocalDay("&$D$12&")="&$F$7&" and Barix("&$D$12&",reference:=StartOfDay)="&A37&"", "Bar", "", "Close","A30C","0","All",,,"False","T","EveryTick") -> 967 | P37: =RTD("cqg.rtd",,"StudyData", "If(HasVal("&$D$12&"),Vol("&$D$12&"),none) when LocalYear("&$D$12&")="&$D$8&" and localMonth("&$D$12&") ="&$E$8&" and LocalDay("&$D$12&")="&$F$8&" and Barix("&$D$12&",reference:=StartOfDay)="&A37&"", "Bar", "", "Close","A30C","0","All",,,"False","T","EveryTick") -> 830 | Q37: =RTD("cqg.rtd",,"StudyData", "If(HasVal("&$D$12&"),Vol("&$D$12&"),none) when LocalYear("&$D$12&")="&$D$9&" and localMonth("&$D$12&") ="&$E$9&" and LocalDay("&$D$12&")="&$F$9&" and Barix("&$D$12&",reference:=StartOfDay)="&A37&"", "Bar", "", "Close","A30C","0","All",,,"False","T","EveryTick") -> 2606 | R37: =RTD("cqg.rtd",,"StudyData","If(HasVal("&$D$12&"),Vol("&$D$12&"),none) when LocalYear("&$D$12&")="&$D$10&" and localMonth("&$D$12&") ="&$E$10&" and LocalDay("&$D$12&")="&$F$10&" and Barix("&$D$12&",reference:=StartOfDay)="&A37&"","Bar","","Close","A30C","0","All",,,"False","T","EveryTick") -> 1267
A38: 37 | B38: 11:30:00 | F38: ZUC | G38: 1 | H38: =RTD("cqg.rtd",,"StudyData","If(HasVal("&$D$12&"),Vol("&$D$12&"),none) when LocalYear("&$D$12&")="&$D$1&" and localMonth("&$D$12&") ="&$E$1&" and LocalDay("&$D$12&")="&$F$1&" and Barix("&$D$12&",reference:=StartOfDay)="&A38&"","Bar","","Close","A30C","0","All",,,"False","T","EveryTick") ->  | I38: 1938.666667 | J38: =RTD("cqg.rtd",,"StudyData", "If(HasVal("&$D$12&"),Vol("&$D$12&"),none) when LocalYear("&$D$12&")="&$D$2&" and localMonth("&$D$12&") ="&$E$2&" and LocalDay("&$D$12&")="&$F$2&" and Barix("&$D$12&",reference:=StartOfDay)="&A38&"", "Bar", "", "Close","A30C","0","All",,,"False","T","EveryTick") -> 1876 | K38: =RTD("cqg.rtd",,"StudyData", "If(HasVal("&$D$12&"),Vol("&$D$12&"),none) when LocalYear("&$D$12&")="&$D$3&" and localMonth("&$D$12&") ="&$E$3&" and LocalDay("&$D$12&")="&$F$3&" and Barix("&$D$12&",reference:=StartOfDay)="&A38&"", "Bar", "", "Close","A30C","0","All",,,"False","T","EveryTick") -> 2024 | L38: =RTD("cqg.rtd",,"StudyData", "If(HasVal("&$D$12&"),Vol("&$D$12&"),none) when LocalYear("&$D$12&")="&$D$4&" and localMonth("&$D$12&") ="&$E$4&" and LocalDay("&$D$12&")="&$F$4&" and Barix("&$D$12&",reference:=StartOfDay)="&A38&"", "Bar", "", "Close","A30C","0","All",,,"False","T","EveryTick") -> 1040 | M38: =RTD("cqg.rtd",,"StudyData", "If(HasVal("&$D$12&"),Vol("&$D$12&"),none) when LocalYear("&$D$12&")="&$D$5&" and localMonth("&$D$12&") ="&$E$5&" and LocalDay("&$D$12&")="&$F$5&" and Barix("&$D$12&",reference:=StartOfDay)="&A38&"", "Bar", "", "Close","A30C","0","All",,,"False","T","EveryTick") -> 1484 | N38: =RTD("cqg.rtd",,"StudyData", "If(HasVal("&$D$12&"),Vol("&$D$12&"),none) when LocalYear("&$D$12&")="&$D$6&" and localMonth("&$D$12&") ="&$E$6&" and LocalDay("&$D$12&")="&$F$6&" and Barix("&$D$12&",reference:=StartOfDay)="&A38&"", "Bar", "", "Close","A30C","0","All",,,"False","T","EveryTick") -> 2156 | O38: =RTD("cqg.rtd",,"StudyData", "If(HasVal("&$D$12&"),Vol("&$D$12&"),none) when LocalYear("&$D$12&")="&$D$7&" and localMonth("&$D$12&") ="&$E$7&" and LocalDay("&$D$12&")="&$F$7&" and Barix("&$D$12&",reference:=StartOfDay)="&A38&"", "Bar", "", "Close","A30C","0","All",,,"False","T","EveryTick") -> 1548 | P38: =RTD("cqg.rtd",,"StudyData", "If(HasVal("&$D$12&"),Vol("&$D$12&"),none) when LocalYear("&$D$12&")="&$D$8&" and localMonth("&$D$12&") ="&$E$8&" and LocalDay("&$D$12&")="&$F$8&" and Barix("&$D$12&",reference:=StartOfDay)="&A38&"", "Bar", "", "Close","A30C","0","All",,,"False","T","EveryTick") -> 1539 | Q38: =RTD("cqg.rtd",,"StudyData", "If(HasVal("&$D$12&"),Vol("&$D$12&"),none) when LocalYear("&$D$12&")="&$D$9&" and localMonth("&$D$12&") ="&$E$9&" and LocalDay("&$D$12&")="&$F$9&" and Barix("&$D$12&",reference:=StartOfDay)="&A38&"", "Bar", "", "Close","A30C","0","All",,,"False","T","EveryTick") -> 3272 | R38: =RTD("cqg.rtd",,"StudyData","If(HasVal("&$D$12&"),Vol("&$D$12&"),none) when LocalYear("&$D$12&")="&$D$10&" and localMonth("&$D$12&") ="&$E$10&" and LocalDay("&$D$12&")="&$F$10&" and Barix("&$D$12&",reference:=StartOfDay)="&A38&"","Bar","","Close","A30C","0","All",,,"False","T","EveryTick") -> 2509
A39: 38 | B39: 12:00:00 | H39: =RTD("cqg.rtd",,"StudyData","If(HasVal("&$D$12&"),Vol("&$D$12&"),none) when LocalYear("&$D$12&")="&$D$1&" and localMonth("&$D$12&") ="&$E$1&" and LocalDay("&$D$12&")="&$F$1&" and Barix("&$D$12&",reference:=StartOfDay)="&A39&"","Bar","","Close","A30C","0","All",,,"False","T","EveryTick") ->  | I39: 1671.444444 | J39: =RTD("cqg.rtd",,"StudyData", "If(HasVal("&$D$12&"),Vol("&$D$12&"),none) when LocalYear("&$D$12&")="&$D$2&" and localMonth("&$D$12&") ="&$E$2&" and LocalDay("&$D$12&")="&$F$2&" and Barix("&$D$12&",reference:=StartOfDay)="&A39&"", "Bar", "", "Close","A30C","0","All",,,"False","T","EveryTick") -> 1048 | K39: =RTD("cqg.rtd",,"StudyData", "If(HasVal("&$D$12&"),Vol("&$D$12&"),none) when LocalYear("&$D$12&")="&$D$3&" and localMonth("&$D$12&") ="&$E$3&" and LocalDay("&$D$12&")="&$F$3&" and Barix("&$D$12&",reference:=StartOfDay)="&A39&"", "Bar", "", "Close","A30C","0","All",,,"False","T","EveryTick") -> 1801 | L39: =RTD("cqg.rtd",,"StudyData", "If(HasVal("&$D$12&"),Vol("&$D$12&"),none) when LocalYear("&$D$12&")="&$D$4&" and localMonth("&$D$12&") ="&$E$4&" and LocalDay("&$D$12&")="&$F$4&" and Barix("&$D$12&",reference:=StartOfDay)="&A39&"", "Bar", "", "Close","A30C","0","All",,,"False","T","EveryTick") -> 765 | M39: =RTD("cqg.rtd",,"StudyData", "If(HasVal("&$D$12&"),Vol("&$D$12&"),none) when LocalYear("&$D$12&")="&$D$5&" and localMonth("&$D$12&") ="&$E$5&" and LocalDay("&$D$12&")="&$F$5&" and Barix("&$D$12&",reference:=StartOfDay)="&A39&"", "Bar", "", "Close","A30C","0","All",,,"False","T","EveryTick") -> 903 | N39: =RTD("cqg.rtd",,"StudyData", "If(HasVal("&$D$12&"),Vol("&$D$12&"),none) when LocalYear("&$D$12&")="&$D$6&" and localMonth("&$D$12&") ="&$E$6&" and LocalDay("&$D$12&")="&$F$6&" and Barix("&$D$12&",reference:=StartOfDay)="&A39&"", "Bar", "", "Close","A30C","0","All",,,"False","T","EveryTick") -> 1162 | O39: =RTD("cqg.rtd",,"StudyData", "If(HasVal("&$D$12&"),Vol("&$D$12&"),none) when LocalYear("&$D$12&")="&$D$7&" and localMonth("&$D$12&") ="&$E$7&" and LocalDay("&$D$12&")="&$F$7&" and Barix("&$D$12&",reference:=StartOfDay)="&A39&"", "Bar", "", "Close","A30C","0","All",,,"False","T","EveryTick") -> 1264 | P39: =RTD("cqg.rtd",,"StudyData", "If(HasVal("&$D$12&"),Vol("&$D$12&"),none) when LocalYear("&$D$12&")="&$D$8&" and localMonth("&$D$12&") ="&$E$8&" and LocalDay("&$D$12&")="&$F$8&" and Barix("&$D$12&",reference:=StartOfDay)="&A39&"", "Bar", "", "Close","A30C","0","All",,,"False","T","EveryTick") -> 927 | Q39: =RTD("cqg.rtd",,"StudyData", "If(HasVal("&$D$12&"),Vol("&$D$12&"),none) when LocalYear("&$D$12&")="&$D$9&" and localMonth("&$D$12&") ="&$E$9&" and LocalDay("&$D$12&")="&$F$9&" and Barix("&$D$12&",reference:=StartOfDay)="&A39&"", "Bar", "", "Close","A30C","0","All",,,"False","T","EveryTick") -> 3923 | R39: =RTD("cqg.rtd",,"StudyData","If(HasVal("&$D$12&"),Vol("&$D$12&"),none) when LocalYear("&$D$12&")="&$D$10&" and localMonth("&$D$12&") ="&$E$10&" and LocalDay("&$D$12&")="&$F$10&" and Barix("&$D$12&",reference:=StartOfDay)="&A39&"","Bar","","Close","A30C","0","All",,,"False","T","EveryTick") -> 3250
A40: 39 | B40: 12:30:00 | H40: =RTD("cqg.rtd",,"StudyData","If(HasVal("&$D$12&"),Vol("&$D$12&"),none) when LocalYear("&$D$12&")="&$D$1&" and localMonth("&$D$12&") ="&$E$1&" and LocalDay("&$D$12&")="&$F$1&" and Barix("&$D$12&",reference:=StartOfDay)="&A40&"","Bar","","Close","A30C","0","All",,,"False","T","EveryTick") ->  | I40: 2250.888889 | J40: =RTD("cqg.rtd",,"StudyData", "If(HasVal("&$D$12&"),Vol("&$D$12&"),none) when LocalYear("&$D$12&")="&$D$2&" and localMonth("&$D$12&") ="&$E$2&" and LocalDay("&$D$12&")="&$F$2&" and Barix("&$D$12&",reference:=StartOfDay)="&A40&"", "Bar", "", "Close","A30C","0","All",,,"False","T","EveryTick") -> 1331 | K40: =RTD("cqg.rtd",,"StudyData", "If(HasVal("&$D$12&"),Vol("&$D$12&"),none) when LocalYear("&$D$12&")="&$D$3&" and localMonth("&$D$12&") ="&$E$3&" and LocalDay("&$D$12&")="&$F$3&" and Barix("&$D$12&",reference:=StartOfDay)="&A40&"", "Bar", "", "Close","A30C","0","All",,,"False","T","EveryTick") -> 1441 | L40: =RTD("cqg.rtd",,"StudyData", "If(HasVal("&$D$12&"),Vol("&$D$12&"),none) when LocalYear("&$D$12&")="&$D$4&" and localMonth("&$D$12&") ="&$E$4&" and LocalDay("&$D$12&")="&$F$4&" and Barix("&$D$12&",reference:=StartOfDay)="&A40&"", "Bar", "", "Close","A30C","0","All",,,"False","T","EveryTick") -> 914 | M40: =RTD("cqg.rtd",,"StudyData", "If(HasVal("&$D$12&"),Vol("&$D$12&"),none) when LocalYear("&$D$12&")="&$D$5&" and localMonth("&$D$12&") ="&$E$5&" and LocalDay("&$D$12&")="&$F$5&" and Barix("&$D$12&",reference:=StartOfDay)="&A40&"", "Bar", "", "Close","A30C","0","All",,,"False","T","EveryTick") -> 1100 | N40: =RTD("cqg.rtd",,"StudyData", "If(HasVal("&$D$12&"),Vol("&$D$12&"),none) when LocalYear("&$D$12&")="&$D$6&" and localMonth("&$D$12&") ="&$E$6&" and LocalDay("&$D$12&")="&$F$6&" and Barix("&$D$12&",reference:=StartOfDay)="&A40&"", "Bar", "", "Close","A30C","0","All",,,"False","T","EveryTick") -> 799 | O40: =RTD("cqg.rtd",,"StudyData", "If(HasVal("&$D$12&"),Vol("&$D$12&"),none) when LocalYear("&$D$12&")="&$D$7&" and localMonth("&$D$12&") ="&$E$7&" and LocalDay("&$D$12&")="&$F$7&" and Barix("&$D$12&",reference:=StartOfDay)="&A40&"", "Bar", "", "Close","A30C","0","All",,,"False","T","EveryTick") -> 6981 | P40: =RTD("cqg.rtd",,"StudyData", "If(HasVal("&$D$12&"),Vol("&$D$12&"),none) when LocalYear("&$D$12&")="&$D$8&" and localMonth("&$D$12&") ="&$E$8&" and LocalDay("&$D$12&")="&$F$8&" and Barix("&$D$12&",reference:=StartOfDay)="&A40&"", "Bar", "", "Close","A30C","0","All",,,"False","T","EveryTick") -> 950 | Q40: =RTD("cqg.rtd",,"StudyData", "If(HasVal("&$D$12&"),Vol("&$D$12&"),none) when LocalYear("&$D$12&")="&$D$9&" and localMonth("&$D$12&") ="&$E$9&" and LocalDay("&$D$12&")="&$F$9&" and Barix("&$D$12&",reference:=StartOfDay)="&A40&"", "Bar", "", "Close","A30C","0","All",,,"False","T","EveryTick") -> 3227 | R40: =RTD("cqg.rtd",,"StudyData","If(HasVal("&$D$12&"),Vol("&$D$12&"),none) when LocalYear("&$D$12&")="&$D$10&" and localMonth("&$D$12&") ="&$E$10&" and LocalDay("&$D$12&")="&$F$10&" and Barix("&$D$12&",reference:=StartOfDay)="&A40&"","Bar","","Close","A30C","0","All",,,"False","T","EveryTick") -> 3515
A41: 40 | B41: 13:00:00 | H41: =RTD("cqg.rtd",,"StudyData","If(HasVal("&$D$12&"),Vol("&$D$12&"),none) when LocalYear("&$D$12&")="&$D$1&" and localMonth("&$D$12&") ="&$E$1&" and LocalDay("&$D$12&")="&$F$1&" and Barix("&$D$12&",reference:=StartOfDay)="&A41&"","Bar","","Close","A30C","0","All",,,"False","T","EveryTick") ->  | I41: 3956.555556 | J41: =RTD("cqg.rtd",,"StudyData", "If(HasVal("&$D$12&"),Vol("&$D$12&"),none) when LocalYear("&$D$12&")="&$D$2&" and localMonth("&$D$12&") ="&$E$2&" and LocalDay("&$D$12&")="&$F$2&" and Barix("&$D$12&",reference:=StartOfDay)="&A41&"", "Bar", "", "Close","A30C","0","All",,,"False","T","EveryTick") -> 2197 | K41: =RTD("cqg.rtd",,"StudyData", "If(HasVal("&$D$12&"),Vol("&$D$12&"),none) when LocalYear("&$D$12&")="&$D$3&" and localMonth("&$D$12&") ="&$E$3&" and LocalDay("&$D$12&")="&$F$3&" and Barix("&$D$12&",reference:=StartOfDay)="&A41&"", "Bar", "", "Close","A30C","0","All",,,"False","T","EveryTick") -> 2483 | L41: =RTD("cqg.rtd",,"StudyData", "If(HasVal("&$D$12&"),Vol("&$D$12&"),none) when LocalYear("&$D$12&")="&$D$4&" and localMonth("&$D$12&") ="&$E$4&" and LocalDay("&$D$12&")="&$F$4&" and Barix("&$D$12&",reference:=StartOfDay)="&A41&"", "Bar", "", "Close","A30C","0","All",,,"False","T","EveryTick") -> 2025 | M41: =RTD("cqg.rtd",,"StudyData", "If(HasVal("&$D$12&"),Vol("&$D$12&"),none) when LocalYear("&$D$12&")="&$D$5&" and localMonth("&$D$12&") ="&$E$5&" and LocalDay("&$D$12&")="&$F$5&" and Barix("&$D$12&",reference:=StartOfDay)="&A41&"", "Bar", "", "Close","A30C","0","All",,,"False","T","EveryTick") -> 2529 | N41: =RTD("cqg.rtd",,"StudyData", "If(HasVal("&$D$12&"),Vol("&$D$12&"),none) when LocalYear("&$D$12&")="&$D$6&" and localMonth("&$D$12&") ="&$E$6&" and LocalDay("&$D$12&")="&$F$6&" and Barix("&$D$12&",reference:=StartOfDay)="&A41&"", "Bar", "", "Close","A30C","0","All",,,"False","T","EveryTick") -> 2346 | O41: =RTD("cqg.rtd",,"StudyData", "If(HasVal("&$D$12&"),Vol("&$D$12&"),none) when LocalYear("&$D$12&")="&$D$7&" and localMonth("&$D$12&") ="&$E$7&" and LocalDay("&$D$12&")="&$F$7&" and Barix("&$D$12&",reference:=StartOfDay)="&A41&"", "Bar", "", "Close","A30C","0","All",,,"False","T","EveryTick") -> 12781 | P41: =RTD("cqg.rtd",,"StudyData", "If(HasVal("&$D$12&"),Vol("&$D$12&"),none) when LocalYear("&$D$12&")="&$D$8&" and localMonth("&$D$12&") ="&$E$8&" and LocalDay("&$D$12&")="&$F$8&" and Barix("&$D$12&",reference:=StartOfDay)="&A41&"", "Bar", "", "Close","A30C","0","All",,,"False","T","EveryTick") -> 1185 | Q41: =RTD("cqg.rtd",,"StudyData", "If(HasVal("&$D$12&"),Vol("&$D$12&"),none) when LocalYear("&$D$12&")="&$D$9&" and localMonth("&$D$12&") ="&$E$9&" and LocalDay("&$D$12&")="&$F$9&" and Barix("&$D$12&",reference:=StartOfDay)="&A41&"", "Bar", "", "Close","A30C","0","All",,,"False","T","EveryTick") -> 4481 | R41: =RTD("cqg.rtd",,"StudyData","If(HasVal("&$D$12&"),Vol("&$D$12&"),none) when LocalYear("&$D$12&")="&$D$10&" and localMonth("&$D$12&") ="&$E$10&" and LocalDay("&$D$12&")="&$F$10&" and Barix("&$D$12&",reference:=StartOfDay)="&A41&"","Bar","","Close","A30C","0","All",,,"False","T","EveryTick") -> 5582
A42: 41 | B42: 13:30:00 | H42: =RTD("cqg.rtd",,"StudyData","If(HasVal("&$D$12&"),Vol("&$D$12&"),none) when LocalYear("&$D$12&")="&$D$1&" and localMonth("&$D$12&") ="&$E$1&" and LocalDay("&$D$12&")="&$F$1&" and Barix("&$D$12&",reference:=StartOfDay)="&A42&"","Bar","","Close","A30C","0","All",,,"False","T","EveryTick") ->  | I42: 5521.111111 | J42: =RTD("cqg.rtd",,"StudyData", "If(HasVal("&$D$12&"),Vol("&$D$12&"),none) when LocalYear("&$D$12&")="&$D$2&" and localMonth("&$D$12&") ="&$E$2&" and LocalDay("&$D$12&")="&$F$2&" and Barix("&$D$12&",reference:=StartOfDay)="&A42&"", "Bar", "", "Close","A30C","0","All",,,"False","T","EveryTick") -> 3858 | K42: =RTD("cqg.rtd",,"StudyData", "If(HasVal("&$D$12&"),Vol("&$D$12&"),none) when LocalYear("&$D$12&")="&$D$3&" and localMonth("&$D$12&") ="&$E$3&" and LocalDay("&$D$12&")="&$F$3&" and Barix("&$D$12&",reference:=StartOfDay)="&A42&"", "Bar", "", "Close","A30C","0","All",,,"False","T","EveryTick") -> 3403 | L42: =RTD("cqg.rtd",,"StudyData", "If(HasVal("&$D$12&"),Vol("&$D$12&"),none) when LocalYear("&$D$12&")="&$D$4&" and localMonth("&$D$12&") ="&$E$4&" and LocalDay("&$D$12&")="&$F$4&" and Barix("&$D$12&",reference:=StartOfDay)="&A42&"", "Bar", "", "Close","A30C","0","All",,,"False","T","EveryTick") -> 6013 | M42: =RTD("cqg.rtd",,"StudyData", "If(HasVal("&$D$12&"),Vol("&$D$12&"),none) when LocalYear("&$D$12&")="&$D$5&" and localMonth("&$D$12&") ="&$E$5&" and LocalDay("&$D$12&")="&$F$5&" and Barix("&$D$12&",reference:=StartOfDay)="&A42&"", "Bar", "", "Close","A30C","0","All",,,"False","T","EveryTick") -> 3526 | N42: =RTD("cqg.rtd",,"StudyData", "If(HasVal("&$D$12&"),Vol("&$D$12&"),none) when LocalYear("&$D$12&")="&$D$6&" and localMonth("&$D$12&") ="&$E$6&" and LocalDay("&$D$12&")="&$F$6&" and Barix("&$D$12&",reference:=StartOfDay)="&A42&"", "Bar", "", "Close","A30C","0","All",,,"False","T","EveryTick") -> 5045 | O42: =RTD("cqg.rtd",,"StudyData", "If(HasVal("&$D$12&"),Vol("&$D$12&"),none) when LocalYear("&$D$12&")="&$D$7&" and localMonth("&$D$12&") ="&$E$7&" and LocalDay("&$D$12&")="&$F$7&" and Barix("&$D$12&",reference:=StartOfDay)="&A42&"", "Bar", "", "Close","A30C","0","All",,,"False","T","EveryTick") -> 8139 | P42: =RTD("cqg.rtd",,"StudyData", "If(HasVal("&$D$12&"),Vol("&$D$12&"),none) when LocalYear("&$D$12&")="&$D$8&" and localMonth("&$D$12&") ="&$E$8&" and LocalDay("&$D$12&")="&$F$8&" and Barix("&$D$12&",reference:=StartOfDay)="&A42&"", "Bar", "", "Close","A30C","0","All",,,"False","T","EveryTick") -> 4134 | Q42: =RTD("cqg.rtd",,"StudyData", "If(HasVal("&$D$12&"),Vol("&$D$12&"),none) when LocalYear("&$D$12&")="&$D$9&" and localMonth("&$D$12&") ="&$E$9&" and LocalDay("&$D$12&")="&$F$9&" and Barix("&$D$12&",reference:=StartOfDay)="&A42&"", "Bar", "", "Close","A30C","0","All",,,"False","T","EveryTick") -> 9077 | R42: =RTD("cqg.rtd",,"StudyData","If(HasVal("&$D$12&"),Vol("&$D$12&"),none) when LocalYear("&$D$12&")="&$D$10&" and localMonth("&$D$12&") ="&$E$10&" and LocalDay("&$D$12&")="&$F$10&" and Barix("&$D$12&",reference:=StartOfDay)="&A42&"","Bar","","Close","A30C","0","All",,,"False","T","EveryTick") -> 6495
A43: 42 | B43: 14:00:00 | H43: =RTD("cqg.rtd",,"StudyData","If(HasVal("&$D$12&"),Vol("&$D$12&"),none) when LocalYear("&$D$12&")="&$D$1&" and localMonth("&$D$12&") ="&$E$1&" and LocalDay("&$D$12&")="&$F$1&" and Barix("&$D$12&",reference:=StartOfDay)="&A43&"","Bar","","Close","A30C","0","All",,,"False","T","EveryTick") ->  | I43: 7003.333333 | J43: =RTD("cqg.rtd",,"StudyData", "If(HasVal("&$D$12&"),Vol("&$D$12&"),none) when LocalYear("&$D$12&")="&$D$2&" and localMonth("&$D$12&") ="&$E$2&" and LocalDay("&$D$12&")="&$F$2&" and Barix("&$D$12&",reference:=StartOfDay)="&A43&"", "Bar", "", "Close","A30C","0","All",,,"False","T","EveryTick") -> 5415 | K43: =RTD("cqg.rtd",,"StudyData", "If(HasVal("&$D$12&"),Vol("&$D$12&"),none) when LocalYear("&$D$12&")="&$D$3&" and localMonth("&$D$12&") ="&$E$3&" and LocalDay("&$D$12&")="&$F$3&" and Barix("&$D$12&",reference:=StartOfDay)="&A43&"", "Bar", "", "Close","A30C","0","All",,,"False","T","EveryTick") -> 6671 | L43: =RTD("cqg.rtd",,"StudyData", "If(HasVal("&$D$12&"),Vol("&$D$12&"),none) when LocalYear("&$D$12&")="&$D$4&" and localMonth("&$D$12&") ="&$E$4&" and LocalDay("&$D$12&")="&$F$4&" and Barix("&$D$12&",reference:=StartOfDay)="&A43&"", "Bar", "", "Close","A30C","0","All",,,"False","T","EveryTick") -> 6400 | M43: =RTD("cqg.rtd",,"StudyData", "If(HasVal("&$D$12&"),Vol("&$D$12&"),none) when LocalYear("&$D$12&")="&$D$5&" and localMonth("&$D$12&") ="&$E$5&" and LocalDay("&$D$12&")="&$F$5&" and Barix("&$D$12&",reference:=StartOfDay)="&A43&"", "Bar", "", "Close","A30C","0","All",,,"False","T","EveryTick") -> 4455 | N43: =RTD("cqg.rtd",,"StudyData", "If(HasVal("&$D$12&"),Vol("&$D$12&"),none) when LocalYear("&$D$12&")="&$D$6&" and localMonth("&$D$12&") ="&$E$6&" and LocalDay("&$D$12&")="&$F$6&" and Barix("&$D$12&",reference:=StartOfDay)="&A43&"", "Bar", "", "Close","A30C","0","All",,,"False","T","EveryTick") -> 9020 | O43: =RTD("cqg.rtd",,"StudyData", "If(HasVal("&$D$12&"),Vol("&$D$12&"),none) when LocalYear("&$D$12&")="&$D$7&" and localMonth("&$D$12&") ="&$E$7&" and LocalDay("&$D$12&")="&$F$7&" and Barix("&$D$12&",reference:=StartOfDay)="&A43&"", "Bar", "", "Close","A30C","0","All",,,"False","T","EveryTick") -> 7631 | P43: =RTD("cqg.rtd",,"StudyData", "If(HasVal("&$D$12&"),Vol("&$D$12&"),none) when LocalYear("&$D$12&")="&$D$8&" and localMonth("&$D$12&") ="&$E$8&" and LocalDay("&$D$12&")="&$F$8&" and Barix("&$D$12&",reference:=StartOfDay)="&A43&"", "Bar", "", "Close","A30C","0","All",,,"False","T","EveryTick") -> 5200 | Q43: =RTD("cqg.rtd",,"StudyData", "If(HasVal("&$D$12&"),Vol("&$D$12&"),none) when LocalYear("&$D$12&")="&$D$9&" and localMonth("&$D$12&") ="&$E$9&" and LocalDay("&$D$12&")="&$F$9&" and Barix("&$D$12&",reference:=StartOfDay)="&A43&"", "Bar", "", "Close","A30C","0","All",,,"False","T","EveryTick") -> 10010 | R43: =RTD("cqg.rtd",,"StudyData","If(HasVal("&$D$12&"),Vol("&$D$12&"),none) when LocalYear("&$D$12&")="&$D$10&" and localMonth("&$D$12&") ="&$E$10&" and LocalDay("&$D$12&")="&$F$10&" and Barix("&$D$12&",reference:=StartOfDay)="&A43&"","Bar","","Close","A30C","0","All",,,"False","T","EveryTick") -> 8228

Sheet Volume (2) (hidden)
A1: 0 | B1: 17:00:00 | C1: =RTD("cqg.rtd",,"StudyData",$D$12, "Bar", "", "Time","D","0",,,,,"T") -> 2020-10-12 | D1: =YEAR(C1) -> 2020 | E1: =MONTH(C1) -> 10 | F1: =DAY(C1) -> 12 | H1: =IF(A1="",NA(),RTD("cqg.rtd",,"StudyData", "If(HasVal("&$D$12&"),Vol("&$D$12&"),none) when LocalYear("&$D$12&")="&$D$2&" and localMonth("&$D$12&") ="&$E$2&" and LocalDay("&$D$12&")="&$F$2&" and Barix("&$D$12&",reference:=StartOfDay)="&A1&"", "Bar", "", "Close","A30C","0","All",,,"False","T","EveryTick")) -> 1179 | I1: =IFERROR(IF(A1="",NA(),AVERAGE(J1:R1)),0) -> 1040.333333 | J1: =IF(A1="",NA(),RTD("cqg.rtd",,"StudyData", "If(HasVal("&$D$12&"),Vol("&$D$12&"),none) when LocalYear("&$D$12&")="&$D$3&" and localMonth("&$D$12&") ="&$E$3&" and LocalDay("&$D$12&")="&$F$3&" and Barix("&$D$12&",reference:=StartOfDay)="&A1&"", "Bar", "", "Close","A30C","0","All",,,"False","T","EveryTick")) -> 1474 | K1: =IF(A1="",NA(),RTD("cqg.rtd",,"StudyData", "If(HasVal("&$D$12&"),Vol("&$D$12&"),none) when LocalYear("&$D$12&")="&$D$4&" and localMonth("&$D$12&") ="&$E$4&" and LocalDay("&$D$12&")="&$F$4&" and Barix("&$D$12&",reference:=StartOfDay)="&A1&"", "Bar", "", "Close","A30C","0","All",,,"False","T","EveryTick")) -> 1546 | L1: =IF(A1="",NA(),RTD("cqg.rtd",,"StudyData", "If(HasVal("&$D$12&"),Vol("&$D$12&"),none) when LocalYear("&$D$12&")="&$D$5&" and localMonth("&$D$12&") ="&$E$5&" and LocalDay("&$D$12&")="&$F$5&" and Barix("&$D$12&",reference:=StartOfDay)="&A1&"", "Bar", "", "Close","A30C","0","All",,,"False","T","EveryTick")) -> 589 | M1: =IF(A1="",NA(),RTD("cqg.rtd",,"StudyData", "If(HasVal("&$D$12&"),Vol("&$D$12&"),none) when LocalYear("&$D$12&")="&$D$6&" and localMonth("&$D$12&") ="&$E$6&" and LocalDay("&$D$12&")="&$F$6&" and Barix("&$D$12&",reference:=StartOfDay)="&A1&"", "Bar", "", "Close","A30C","0","All",,,"False","T","EveryTick")) -> 835 | N1: =IF(A1="",NA(),RTD("cqg.rtd",,"StudyData", "If(HasVal("&$D$12&"),Vol("&$D$12&"),none) when LocalYear("&$D$12&")="&$D$7&" and localMonth("&$D$12&") ="&$E$7&" and LocalDay("&$D$12&")="&$F$7&" and Barix("&$D$12&",reference:=StartOfDay)="&A1&"", "Bar", "", "Close","A30C","0","All",,,"False","T","EveryTick")) -> 522 | O1: =IF(A1="",NA(),RTD("cqg.rtd",,"StudyData", "If(HasVal("&$D$12&"),Vol("&$D$12&"),none) when LocalYear("&$D$12&")="&$D$8&" and localMonth("&$D$12&") ="&$E$8&" and LocalDay("&$D$12&")="&$F$8&" and Barix("&$D$12&",reference:=StartOfDay)="&A1&"", "Bar", "", "Close","A30C","0","All",,,"False","T","EveryTick")) -> 299 | P1: =IF(A1="",NA(),RTD("cqg.rtd",,"StudyData", "If(HasVal("&$D$12&"),Vol("&$D$12&"),none) when LocalYear("&$D$12&")="&$D$9&" and localMonth("&$D$12&") ="&$E$9&" and LocalDay("&$D$12&")="&$F$9&" and Barix("&$D$12&",reference:=StartOfDay)="&A1&"", "Bar", "", "Close","A30C","0","All",,,"False","T","EveryTick")) -> 1057 | Q1: =IF(A1="",NA(),RTD("cqg.rtd",,"StudyData", "If(HasVal("&$D$12&"),Vol("&$D$12&"),none) when LocalYear("&$D$12&")="&$D$10&" and localMonth("&$D$12&") ="&$E$10&" and LocalDay("&$D$12&")="&$F$10&" and Barix("&$D$12&",reference:=StartOfDay)="&A1&"", "Bar", "", "Close","A30C","0","All",,,"False","T","EveryTick")) -> 2673 | R1: =IF(A1="",NA(),RTD("cqg.rtd",,"StudyData", "If(HasVal("&$D$12&"),Vol("&$D$12&"),none) when LocalYear("&$D$12&")="&$D$11&" and localMonth("&$D$12&") ="&$E$11&" and LocalDay("&$D$12&")="&$F$11&" and Barix("&$D$12&",reference:=StartOfDay)="&A1&"", "Bar", "", "Close","A30C","0","All",,,"False","T","EveryTick")) -> 368 | S1: =IF(H1>(1+($T$1/100))*I1,H1,NA()) -> 1179 | T1: 0
A2: =IF($D$12="QGA","",A1+1) -> 1 | B2: 17:30:00 | C2: =RTD("cqg.rtd",,"StudyData",$D$12, "Bar", "", "Time","D","-1",,,,,"T") -> 2020-10-09 | D2: =YEAR(C2) -> 2020 | E2: =MONTH(C2) -> 10 | F2: =DAY(C2) -> 9 | G2: =RTD("cqg.rtd",,"StudyData",$D$12, "Bar", "", "Close","D","-1",,,,,"T") -> 15421 | H2: =IF(A2="",NA(),RTD("cqg.rtd",,"StudyData", "If(HasVal("&$D$12&"),Vol("&$D$12&"),none) when LocalYear("&$D$12&")="&$D$2&" and localMonth("&$D$12&") ="&$E$2&" and LocalDay("&$D$12&")="&$F$2&" and Barix("&$D$12&",reference:=StartOfDay)="&A2&"", "Bar", "", "Close","A30C","0","All",,,"False","T","EveryTick")) -> 1337 | I2: =IFERROR(IF(A2="",NA(),AVERAGE(J2:R2)),0) -> 811.8888889 | J2: =IF(A2="",NA(),RTD("cqg.rtd",,"StudyData", "If(HasVal("&$D$12&"),Vol("&$D$12&"),none) when LocalYear("&$D$12&")="&$D$3&" and localMonth("&$D$12&") ="&$E$3&" and LocalDay("&$D$12&")="&$F$3&" and Barix("&$D$12&",reference:=StartOfDay)="&A2&"", "Bar", "", "Close","A30C","0","All",,,"False","T","EveryTick")) -> 1028 | K2: =IF(A2="",NA(),RTD("cqg.rtd",,"StudyData", "If(HasVal("&$D$12&"),Vol("&$D$12&"),none) when LocalYear("&$D$12&")="&$D$4&" and localMonth("&$D$12&") ="&$E$4&" and LocalDay("&$D$12&")="&$F$4&" and Barix("&$D$12&",reference:=StartOfDay)="&A2&"", "Bar", "", "Close","A30C","0","All",,,"False","T","EveryTick")) -> 546 | L2: =IF(A2="",NA(),RTD("cqg.rtd",,"StudyData", "If(HasVal("&$D$12&"),Vol("&$D$12&"),none) when LocalYear("&$D$12&")="&$D$5&" and localMonth("&$D$12&") ="&$E$5&" and LocalDay("&$D$12&")="&$F$5&" and Barix("&$D$12&",reference:=StartOfDay)="&A2&"", "Bar", "", "Close","A30C","0","All",,,"False","T","EveryTick")) -> 847 | M2: =IF(A2="",NA(),RTD("cqg.rtd",,"StudyData", "If(HasVal("&$D$12&"),Vol("&$D$12&"),none) when LocalYear("&$D$12&")="&$D$6&" and localMonth("&$D$12&") ="&$E$6&" and LocalDay("&$D$12&")="&$F$6&" and Barix("&$D$12&",reference:=StartOfDay)="&A2&"", "Bar", "", "Close","A30C","0","All",,,"False","T","EveryTick")) -> 739 | N2: =IF(A2="",NA(),RTD("cqg.rtd",,"StudyData", "If(HasVal("&$D$12&"),Vol("&$D$12&"),none) when LocalYear("&$D$12&")="&$D$7&" and localMonth("&$D$12&") ="&$E$7&" and LocalDay("&$D$12&")="&$F$7&" and Barix("&$D$12&",reference:=StartOfDay)="&A2&"", "Bar", "", "Close","A30C","0","All",,,"False","T","EveryTick")) -> 1646 | O2: =IF(A2="",NA(),RTD("cqg.rtd",,"StudyData", "If(HasVal("&$D$12&"),Vol("&$D$12&"),none) when LocalYear("&$D$12&")="&$D$8&" and localMonth("&$D$12&") ="&$E$8&" and LocalDay("&$D$12&")="&$F$8&" and Barix("&$D$12&",reference:=StartOfDay)="&A2&"", "Bar", "", "Close","A30C","0","All",,,"False","T","EveryTick")) -> 514 | P2: =IF(A2="",NA(),RTD("cqg.rtd",,"StudyData", "If(HasVal("&$D$12&"),Vol("&$D$12&"),none) when LocalYear("&$D$12&")="&$D$9&" and localMonth("&$D$12&") ="&$E$9&" and LocalDay("&$D$12&")="&$F$9&" and Barix("&$D$12&",reference:=StartOfDay)="&A2&"", "Bar", "", "Close","A30C","0","All",,,"False","T","EveryTick")) -> 626 | Q2: =IF(A2="",NA(),RTD("cqg.rtd",,"StudyData", "If(HasVal("&$D$12&"),Vol("&$D$12&"),none) when LocalYear("&$D$12&")="&$D$10&" and localMonth("&$D$12&") ="&$E$10&" and LocalDay("&$D$12&")="&$F$10&" and Barix("&$D$12&",reference:=StartOfDay)="&A2&"", "Bar", "", "Close","A30C","0","All",,,"False","T","EveryTick")) -> 964 | R2: =IF(A2="",NA(),RTD("cqg.rtd",,"StudyData", "If(HasVal("&$D$12&"),Vol("&$D$12&"),none) when LocalYear("&$D$12&")="&$D$11&" and localMonth("&$D$12&") ="&$E$11&" and LocalDay("&$D$12&")="&$F$11&" and Barix("&$D$12&",reference:=StartOfDay)="&A2&"", "Bar", "", "Close","A30C","0","All",,,"False","T","EveryTick")) -> 397 | S2: =IF(H2>(1+($T$1/100))*I2,H2,NA()) -> 1337
A3: =IF($D$12="QGA","",A2+1) -> 2 | B3: 18:00:00 | C3: =RTD("cqg.rtd",,"StudyData",$D$12, "Bar", "", "Time","D","-2",,,,,"T") -> 2020-10-08 | D3: 2020 | E3: 10 | F3: 8 | G3: =RTD("cqg.rtd",,"StudyData",$D$12, "Bar", "", "Close","D","-2",,,,,"T") -> 15453 | H3: =IF(A3="",NA(),RTD("cqg.rtd",,"StudyData", "If(HasVal("&$D$12&"),Vol("&$D$12&"),none) when LocalYear("&$D$12&")="&$D$2&" and localMonth("&$D$12&") ="&$E$2&" and LocalDay("&$D$12&")="&$F$2&" and Barix("&$D$12&",reference:=StartOfDay)="&A3&"", "Bar", "", "Close","A30C","0","All",,,"False","T","EveryTick")) -> 579 | I3: =IFERROR(IF(A3="",NA(),AVERAGE(J3:R3)),0) -> 617.4444444 | J3: =IF(A3="",NA(),RTD("cqg.rtd",,"StudyData", "If(HasVal("&$D$12&"),Vol("&$D$12&"),none) when LocalYear("&$D$12&")="&$D$3&" and localMonth("&$D$12&") ="&$E$3&" and LocalDay("&$D$12&")="&$F$3&" and Barix("&$D$12&",reference:=StartOfDay)="&A3&"", "Bar", "", "Close","A30C","0","All",,,"False","T","EveryTick")) -> 1138 | K3: =IF(A3="",NA(),RTD("cqg.rtd",,"StudyData", "If(HasVal("&$D$12&"),Vol("&$D$12&"),none) when LocalYear("&$D$12&")="&$D$4&" and localMonth("&$D$12&") ="&$E$4&" and LocalDay("&$D$12&")="&$F$4&" and Barix("&$D$12&",reference:=StartOfDay)="&A3&"", "Bar", "", "Close","A30C","0","All",,,"False","T","EveryTick")) -> 489 | L3: =IF(A3="",NA(),RTD("cqg.rtd",,"StudyData", "If(HasVal("&$D$12&"),Vol("&$D$12&"),none) when LocalYear("&$D$12&")="&$D$5&" and localMonth("&$D$12&") ="&$E$5&" and LocalDay("&$D$12&")="&$F$5&" and Barix("&$D$12&",reference:=StartOfDay)="&A3&"", "Bar", "", "Close","A30C","0","All",,,"False","T","EveryTick")) -> 837 | M3: =IF(A3="",NA(),RTD("cqg.rtd",,"StudyData", "If(HasVal("&$D$12&"),Vol("&$D$12&"),none) when LocalYear("&$D$12&")="&$D$6&" and localMonth("&$D$12&") ="&$E$6&" and LocalDay("&$D$12&")="&$F$6&" and Barix("&$D$12&",reference:=StartOfDay)="&A3&"", "Bar", "", "Close","A30C","0","All",,,"False","T","EveryTick")) -> 222 | N3: =IF(A3="",NA(),RTD("cqg.rtd",,"StudyData", "If(HasVal("&$D$12&"),Vol("&$D$12&"),none) when LocalYear("&$D$12&")="&$D$7&" and localMonth("&$D$12&") ="&$E$7&" and LocalDay("&$D$12&")="&$F$7&" and Barix("&$D$12&",reference:=StartOfDay)="&A3&"", "Bar", "", "Close","A30C","0","All",,,"False","T","EveryTick")) -> 639 | O3: =IF(A3="",NA(),RTD("cqg.rtd",,"StudyData", "If(HasVal("&$D$12&"),Vol("&$D$12&"),none) when LocalYear("&$D$12&")="&$D$8&" and localMonth("&$D$12&") ="&$E$8&" and LocalDay("&$D$12&")="&$F$8&" and Barix("&$D$12&",reference:=StartOfDay)="&A3&"", "Bar", "", "Close","A30C","0","All",,,"False","T","EveryTick")) -> 158 | P3: =IF(A3="",NA(),RTD("cqg.rtd",,"StudyData", "If(HasVal("&$D$12&"),Vol("&$D$12&"),none) when LocalYear("&$D$12&")="&$D$9&" and localMonth("&$D$12&") ="&$E$9&" and LocalDay("&$D$12&")="&$F$9&" and Barix("&$D$12&",reference:=StartOfDay)="&A3&"", "Bar", "", "Close","A30C","0","All",,,"False","T","EveryTick")) -> 1039 | Q3: =IF(A3="",NA(),RTD("cqg.rtd",,"StudyData", "If(HasVal("&$D$12&"),Vol("&$D$12&"),none) when LocalYear("&$D$12&")="&$D$10&" and localMonth("&$D$12&") ="&$E$10&" and LocalDay("&$D$12&")="&$F$10&" and Barix("&$D$12&",reference:=StartOfDay)="&A3&"", "Bar", "", "Close","A30C","0","All",,,"False","T","EveryTick")) -> 632 | R3: =IF(A3="",NA(),RTD("cqg.rtd",,"StudyData", "If(HasVal("&$D$12&"),Vol("&$D$12&"),none) when LocalYear("&$D$12&")="&$D$11&" and localMonth("&$D$12&") ="&$E$11&" and LocalDay("&$D$12&")="&$F$11&" and Barix("&$D$12&",reference:=StartOfDay)="&A3&"", "Bar", "", "Close","A30C","0","All",,,"False","T","EveryTick")) -> 403
A4: 3 | B4: 18:30:00 | C4: =RTD("cqg.rtd",,"StudyData",$D$12, "Bar", "", "Time","D","-3",,,,,"T") -> 2020-10-07 | D4: 2020 | E4: 10 | F4: 7 | G4: =RTD("cqg.rtd",,"StudyData",$D$12, "Bar", "", "Close","D","-3",,,,,"T") -> 15425 | H4: =IF(A4="",NA(),RTD("cqg.rtd",,"StudyData", "If(HasVal("&$D$12&"),Vol("&$D$12&"),none) when LocalYear("&$D$12&")="&$D$2&" and localMonth("&$D$12&") ="&$E$2&" and LocalDay("&$D$12&")="&$F$2&" and Barix("&$D$12&",reference:=StartOfDay)="&A4&"", "Bar", "", "Close","A30C","0","All",,,"False","T","EveryTick")) -> 938 | I4: 609.2222222 | J4: =IF(A4="",NA(),RTD("cqg.rtd",,"StudyData", "If(HasVal("&$D$12&"),Vol("&$D$12&"),none) when LocalYear("&$D$12&")="&$D$3&" and localMonth("&$D$12&") ="&$E$3&" and LocalDay("&$D$12&")="&$F$3&" and Barix("&$D$12&",reference:=StartOfDay)="&A4&"", "Bar", "", "Close","A30C","0","All",,,"False","T","EveryTick")) -> 1409 | K4: =IF(A4="",NA(),RTD("cqg.rtd",,"StudyData", "If(HasVal("&$D$12&"),Vol("&$D$12&"),none) when LocalYear("&$D$12&")="&$D$4&" and localMonth("&$D$12&") ="&$E$4&" and LocalDay("&$D$12&")="&$F$4&" and Barix("&$D$12&",reference:=StartOfDay)="&A4&"", "Bar", "", "Close","A30C","0","All",,,"False","T","EveryTick")) -> 136 | L4: =IF(A4="",NA(),RTD("cqg.rtd",,"StudyData", "If(HasVal("&$D$12&"),Vol("&$D$12&"),none) when LocalYear("&$D$12&")="&$D$5&" and localMonth("&$D$12&") ="&$E$5&" and LocalDay("&$D$12&")="&$F$5&" and Barix("&$D$12&",reference:=StartOfDay)="&A4&"", "Bar", "", "Close","A30C","0","All",,,"False","T","EveryTick")) -> 299 | M4: =IF(A4="",NA(),RTD("cqg.rtd",,"StudyData", "If(HasVal("&$D$12&"),Vol("&$D$12&"),none) when LocalYear("&$D$12&")="&$D$6&" and localMonth("&$D$12&") ="&$E$6&" and LocalDay("&$D$12&")="&$F$6&" and Barix("&$D$12&",reference:=StartOfDay)="&A4&"", "Bar", "", "Close","A30C","0","All",,,"False","T","EveryTick")) -> 203 | N4: =IF(A4="",NA(),RTD("cqg.rtd",,"StudyData", "If(HasVal("&$D$12&"),Vol("&$D$12&"),none) when LocalYear("&$D$12&")="&$D$7&" and localMonth("&$D$12&") ="&$E$7&" and LocalDay("&$D$12&")="&$F$7&" and Barix("&$D$12&",reference:=StartOfDay)="&A4&"", "Bar", "", "Close","A30C","0","All",,,"False","T","EveryTick")) -> 657 | O4: =IF(A4="",NA(),RTD("cqg.rtd",,"StudyData", "If(HasVal("&$D$12&"),Vol("&$D$12&"),none) when LocalYear("&$D$12&")="&$D$8&" and localMonth("&$D$12&") ="&$E$8&" and LocalDay("&$D$12&")="&$F$8&" and Barix("&$D$12&",reference:=StartOfDay)="&A4&"", "Bar", "", "Close","A30C","0","All",,,"False","T","EveryTick")) -> 158 | P4: =IF(A4="",NA(),RTD("cqg.rtd",,"StudyData", "If(HasVal("&$D$12&"),Vol("&$D$12&"),none) when LocalYear("&$D$12&")="&$D$9&" and localMonth("&$D$12&") ="&$E$9&" and LocalDay("&$D$12&")="&$F$9&" and Barix("&$D$12&",reference:=StartOfDay)="&A4&"", "Bar", "", "Close","A30C","0","All",,,"False","T","EveryTick")) -> 1076 | Q4: =IF(A4="",NA(),RTD("cqg.rtd",,"StudyData", "If(HasVal("&$D$12&"),Vol("&$D$12&"),none) when LocalYear("&$D$12&")="&$D$10&" and localMonth("&$D$12&") ="&$E$10&" and LocalDay("&$D$12&")="&$F$10&" and Barix("&$D$12&",reference:=StartOfDay)="&A4&"", "Bar", "", "Close","A30C","0","All",,,"False","T","EveryTick")) -> 1164 | R4: =IF(A4="",NA(),RTD("cqg.rtd",,"StudyData", "If(HasVal("&$D$12&"),Vol("&$D$12&"),none) when LocalYear("&$D$12&")="&$D$11&" and localMonth("&$D$12&") ="&$E$11&" and LocalDay("&$D$12&")="&$F$11&" and Barix("&$D$12&",reference:=StartOfDay)="&A4&"", "Bar", "", "Close","A30C","0","All",,,"False","T","EveryTick")) -> 381 | S4: 938
A5: 4 | B5: 19:00:00 | C5: =RTD("cqg.rtd",,"StudyData",$D$12, "Bar", "", "Time","D","-4",,,,,"T") -> 2020-10-06 | D5: 2020 | E5: 10 | F5: 6 | G5: =RTD("cqg.rtd",,"StudyData",$D$12, "Bar", "", "Close","D","-4",,,,,"T") -> 15350 | H5: =IF(A5="",NA(),RTD("cqg.rtd",,"StudyData", "If(HasVal("&$D$12&"),Vol("&$D$12&"),none) when LocalYear("&$D$12&")="&$D$2&" and localMonth("&$D$12&") ="&$E$2&" and LocalDay("&$D$12&")="&$F$2&" and Barix("&$D$12&",reference:=StartOfDay)="&A5&"", "Bar", "", "Close","A30C","0","All",,,"False","T","EveryTick")) -> 1312 | I5: 555 | J5: =IF(A5="",NA(),RTD("cqg.rtd",,"StudyData", "If(HasVal("&$D$12&"),Vol("&$D$12&"),none) when LocalYear("&$D$12&")="&$D$3&" and localMonth("&$D$12&") ="&$E$3&" and LocalDay("&$D$12&")="&$F$3&" and Barix("&$D$12&",reference:=StartOfDay)="&A5&"", "Bar", "", "Close","A30C","0","All",,,"False","T","EveryTick")) -> 933 | K5: =IF(A5="",NA(),RTD("cqg.rtd",,"StudyData", "If(HasVal("&$D$12&"),Vol("&$D$12&"),none) when LocalYear("&$D$12&")="&$D$4&" and localMonth("&$D$12&") ="&$E$4&" and LocalDay("&$D$12&")="&$F$4&" and Barix("&$D$12&",reference:=StartOfDay)="&A5&"", "Bar", "", "Close","A30C","0","All",,,"False","T","EveryTick")) -> 164 | L5: =IF(A5="",NA(),RTD("cqg.rtd",,"StudyData", "If(HasVal("&$D$12&"),Vol("&$D$12&"),none) when LocalYear("&$D$12&")="&$D$5&" and localMonth("&$D$12&") ="&$E$5&" and LocalDay("&$D$12&")="&$F$5&" and Barix("&$D$12&",reference:=StartOfDay)="&A5&"", "Bar", "", "Close","A30C","0","All",,,"False","T","EveryTick")) -> 434 | M5: =IF(A5="",NA(),RTD("cqg.rtd",,"StudyData", "If(HasVal("&$D$12&"),Vol("&$D$12&"),none) when LocalYear("&$D$12&")="&$D$6&" and localMonth("&$D$12&") ="&$E$6&" and LocalDay("&$D$12&")="&$F$6&" and Barix("&$D$12&",reference:=StartOfDay)="&A5&"", "Bar", "", "Close","A30C","0","All",,,"False","T","EveryTick")) -> 468 | N5: =IF(A5="",NA(),RTD("cqg.rtd",,"StudyData", "If(HasVal("&$D$12&"),Vol("&$D$12&"),none) when LocalYear("&$D$12&")="&$D$7&" and localMonth("&$D$12&") ="&$E$7&" and LocalDay("&$D$12&")="&$F$7&" and Barix("&$D$12&",reference:=StartOfDay)="&A5&"", "Bar", "", "Close","A30C","0","All",,,"False","T","EveryTick")) -> 619 | O5: =IF(A5="",NA(),RTD("cqg.rtd",,"StudyData", "If(HasVal("&$D$12&"),Vol("&$D$12&"),none) when LocalYear("&$D$12&")="&$D$8&" and localMonth("&$D$12&") ="&$E$8&" and LocalDay("&$D$12&")="&$F$8&" and Barix("&$D$12&",reference:=StartOfDay)="&A5&"", "Bar", "", "Close","A30C","0","All",,,"False","T","EveryTick")) -> 344 | P5: =IF(A5="",NA(),RTD("cqg.rtd",,"StudyData", "If(HasVal("&$D$12&"),Vol("&$D$12&"),none) when LocalYear("&$D$12&")="&$D$9&" and localMonth("&$D$12&") ="&$E$9&" and LocalDay("&$D$12&")="&$F$9&" and Barix("&$D$12&",reference:=StartOfDay)="&A5&"", "Bar", "", "Close","A30C","0","All",,,"False","T","EveryTick")) -> 792 | Q5: =IF(A5="",NA(),RTD("cqg.rtd",,"StudyData", "If(HasVal("&$D$12&"),Vol("&$D$12&"),none) when LocalYear("&$D$12&")="&$D$10&" and localMonth("&$D$12&") ="&$E$10&" and LocalDay("&$D$12&")="&$F$10&" and Barix("&$D$12&",reference:=StartOfDay)="&A5&"", "Bar", "", "Close","A30C","0","All",,,"False","T","EveryTick")) -> 1010 | R5: =IF(A5="",NA(),RTD("cqg.rtd",,"StudyData", "If(HasVal("&$D$12&"),Vol("&$D$12&"),none) when LocalYear("&$D$12&")="&$D$11&" and localMonth("&$D$12&") ="&$E$11&" and LocalDay("&$D$12&")="&$F$11&" and Barix("&$D$12&",reference:=StartOfDay)="&A5&"", "Bar", "", "Close","A30C","0","All",,,"False","T","EveryTick")) -> 231 | S5: 1312
A6: 5 | B6: 19:30:00 | C6: =RTD("cqg.rtd",,"StudyData",$D$12, "Bar", "", "Time","D","-5",,,,,"T") -> 2020-10-05 | D6: 2020 | E6: 10 | F6: 5 | G6: =RTD("cqg.rtd",,"StudyData",$D$12, "Bar", "", "Close","D","-5",,,,,"T") -> 15213 | H6: =IF(A6="",NA(),RTD("cqg.rtd",,"StudyData", "If(HasVal("&$D$12&"),Vol("&$D$12&"),none) when LocalYear("&$D$12&")="&$D$2&" and localMonth("&$D$12&") ="&$E$2&" and LocalDay("&$D$12&")="&$F$2&" and Barix("&$D$12&",reference:=StartOfDay)="&A6&"", "Bar", "", "Close","A30C","0","All",,,"False","T","EveryTick")) -> 1073 | I6: 521 | J6: =IF(A6="",NA(),RTD("cqg.rtd",,"StudyData", "If(HasVal("&$D$12&"),Vol("&$D$12&"),none) when LocalYear("&$D$12&")="&$D$3&" and localMonth("&$D$12&") ="&$E$3&" and LocalDay("&$D$12&")="&$F$3&" and Barix("&$D$12&",reference:=StartOfDay)="&A6&"", "Bar", "", "Close","A30C","0","All",,,"False","T","EveryTick")) -> 1191 | K6: =IF(A6="",NA(),RTD("cqg.rtd",,"StudyData", "If(HasVal("&$D$12&"),Vol("&$D$12&"),none) when LocalYear("&$D$12&")="&$D$4&" and localMonth("&$D$12&") ="&$E$4&" and LocalDay("&$D$12&")="&$F$4&" and Barix("&$D$12&",reference:=StartOfDay)="&A6&"", "Bar", "", "Close","A30C","0","All",,,"False","T","EveryTick")) -> 313 | L6: =IF(A6="",NA(),RTD("cqg.rtd",,"StudyData", "If(HasVal("&$D$12&"),Vol("&$D$12&"),none) when LocalYear("&$D$12&")="&$D$5&" and localMonth("&$D$12&") ="&$E$5&" and LocalDay("&$D$12&")="&$F$5&" and Barix("&$D$12&",reference:=StartOfDay)="&A6&"", "Bar", "", "Close","A30C","0","All",,,"False","T","EveryTick")) -> 531 | M6: =IF(A6="",NA(),RTD("cqg.rtd",,"StudyData", "If(HasVal("&$D$12&"),Vol("&$D$12&"),none) when LocalYear("&$D$12&")="&$D$6&" and localMonth("&$D$12&") ="&$E$6&" and LocalDay("&$D$12&")="&$F$6&" and Barix("&$D$12&",reference:=StartOfDay)="&A6&"", "Bar", "", "Close","A30C","0","All",,,"False","T","EveryTick")) -> 283 | N6: =IF(A6="",NA(),RTD("cqg.rtd",,"StudyData", "If(HasVal("&$D$12&"),Vol("&$D$12&"),none) when LocalYear("&$D$12&")="&$D$7&" and localMonth("&$D$12&") ="&$E$7&" and LocalDay("&$D$12&")="&$F$7&" and Barix("&$D$12&",reference:=StartOfDay)="&A6&"", "Bar", "", "Close","A30C","0","All",,,"False","T","EveryTick")) -> 1070 | O6: =IF(A6="",NA(),RTD("cqg.rtd",,"StudyData", "If(HasVal("&$D$12&"),Vol("&$D$12&"),none) when LocalYear("&$D$12&")="&$D$8&" and localMonth("&$D$12&") ="&$E$8&" and LocalDay("&$D$12&")="&$F$8&" and Barix("&$D$12&",reference:=StartOfDay)="&A6&"", "Bar", "", "Close","A30C","0","All",,,"False","T","EveryTick")) -> 216 | P6: =IF(A6="",NA(),RTD("cqg.rtd",,"StudyData", "If(HasVal("&$D$12&"),Vol("&$D$12&"),none) when LocalYear("&$D$12&")="&$D$9&" and localMonth("&$D$12&") ="&$E$9&" and LocalDay("&$D$12&")="&$F$9&" and Barix("&$D$12&",reference:=StartOfDay)="&A6&"", "Bar", "", "Close","A30C","0","All",,,"False","T","EveryTick")) -> 553 | Q6: =IF(A6="",NA(),RTD("cqg.rtd",,"StudyData", "If(HasVal("&$D$12&"),Vol("&$D$12&"),none) when LocalYear("&$D$12&")="&$D$10&" and localMonth("&$D$12&") ="&$E$10&" and LocalDay("&$D$12&")="&$F$10&" and Barix("&$D$12&",reference:=StartOfDay)="&A6&"", "Bar", "", "Close","A30C","0","All",,,"False","T","EveryTick")) -> 328 | R6: =IF(A6="",NA(),RTD("cqg.rtd",,"StudyData", "If(HasVal("&$D$12&"),Vol("&$D$12&"),none) when LocalYear("&$D$12&")="&$D$11&" and localMonth("&$D$12&") ="&$E$11&" and LocalDay("&$D$12&")="&$F$11&" and Barix("&$D$12&",reference:=StartOfDay)="&A6&"", "Bar", "", "Close","A30C","0","All",,,"False","T","EveryTick")) -> 204 | S6: 1073
A7: 6 | B7: 20:00:00 | C7: =RTD("cqg.rtd",,"StudyData",$D$12, "Bar", "", "Time","D","-6",,,,,"T") -> 2020-10-02 | D7: 2020 | E7: 10 | F7: 2 | G7: =RTD("cqg.rtd",,"StudyData",$D$12, "Bar", "", "Close","D","-6",,,,,"T") -> 15150 | H7: =IF(A7="",NA(),RTD("cqg.rtd",,"StudyData", "If(HasVal("&$D$12&"),Vol("&$D$12&"),none) when LocalYear("&$D$12&")="&$D$2&" and localMonth("&$D$12&") ="&$E$2&" and LocalDay("&$D$12&")="&$F$2&" and Barix("&$D$12&",reference:=StartOfDay)="&A7&"", "Bar", "", "Close","A30C","0","All",,,"False","T","EveryTick")) -> 1426 | I7: 722.2222222 | J7: =IF(A7="",NA(),RTD("cqg.rtd",,"StudyData", "If(HasVal("&$D$12&"),Vol("&$D$12&"),none) when LocalYear("&$D$12&")="&$D$3&" and localMonth("&$D$12&") ="&$E$3&" and LocalDay("&$D$12&")="&$F$3&" and Barix("&$D$12&",reference:=StartOfDay)="&A7&"", "Bar", "", "Close","A30C","0","All",,,"False","T","EveryTick")) -> 1330 | K7: =IF(A7="",NA(),RTD("cqg.rtd",,"StudyData", "If(HasVal("&$D$12&"),Vol("&$D$12&"),none) when LocalYear("&$D$12&")="&$D$4&" and localMonth("&$D$12&") ="&$E$4&" and LocalDay("&$D$12&")="&$F$4&" and Barix("&$D$12&",reference:=StartOfDay)="&A7&"", "Bar", "", "Close","A30C","0","All",,,"False","T","EveryTick")) -> 568 | L7: =IF(A7="",NA(),RTD("cqg.rtd",,"StudyData", "If(HasVal("&$D$12&"),Vol("&$D$12&"),none) when LocalYear("&$D$12&")="&$D$5&" and localMonth("&$D$12&") ="&$E$5&" and LocalDay("&$D$12&")="&$F$5&" and Barix("&$D$12&",reference:=StartOfDay)="&A7&"", "Bar", "", "Close","A30C","0","All",,,"False","T","EveryTick")) -> 417 | M7: =IF(A7="",NA(),RTD("cqg.rtd",,"StudyData", "If(HasVal("&$D$12&"),Vol("&$D$12&"),none) when LocalYear("&$D$12&")="&$D$6&" and localMonth("&$D$12&") ="&$E$6&" and LocalDay("&$D$12&")="&$F$6&" and Barix("&$D$12&",reference:=StartOfDay)="&A7&"", "Bar", "", "Close","A30C","0","All",,,"False","T","EveryTick")) -> 1360 | N7: =IF(A7="",NA(),RTD("cqg.rtd",,"StudyData", "If(HasVal("&$D$12&"),Vol("&$D$12&"),none) when LocalYear("&$D$12&")="&$D$7&" and localMonth("&$D$12&") ="&$E$7&" and LocalDay("&$D$12&")="&$F$7&" and Barix("&$D$12&",reference:=StartOfDay)="&A7&"", "Bar", "", "Close","A30C","0","All",,,"False","T","EveryTick")) -> 728 | O7: =IF(A7="",NA(),RTD("cqg.rtd",,"StudyData", "If(HasVal("&$D$12&"),Vol("&$D$12&"),none) when LocalYear("&$D$12&")="&$D$8&" and localMonth("&$D$12&") ="&$E$8&" and LocalDay("&$D$12&")="&$F$8&" and Barix("&$D$12&",reference:=StartOfDay)="&A7&"", "Bar", "", "Close","A30C","0","All",,,"False","T","EveryTick")) -> 250 | P7: =IF(A7="",NA(),RTD("cqg.rtd",,"StudyData", "If(HasVal("&$D$12&"),Vol("&$D$12&"),none) when LocalYear("&$D$12&")="&$D$9&" and localMonth("&$D$12&") ="&$E$9&" and LocalDay("&$D$12&")="&$F$9&" and Barix("&$D$12&",reference:=StartOfDay)="&A7&"", "Bar", "", "Close","A30C","0","All",,,"False","T","EveryTick")) -> 998 | Q7: =IF(A7="",NA(),RTD("cqg.rtd",,"StudyData", "If(HasVal("&$D$12&"),Vol("&$D$12&"),none) when LocalYear("&$D$12&")="&$D$10&" and localMonth("&$D$12&") ="&$E$10&" and LocalDay("&$D$12&")="&$F$10&" and Barix("&$D$12&",reference:=StartOfDay)="&A7&"", "Bar", "", "Close","A30C","0","All",,,"False","T","EveryTick")) -> 505 | R7: =IF(A7="",NA(),RTD("cqg.rtd",,"StudyData", "If(HasVal("&$D$12&"),Vol("&$D$12&"),none) when LocalYear("&$D$12&")="&$D$11&" and localMonth("&$D$12&") ="&$E$11&" and LocalDay("&$D$12&")="&$F$11&" and Barix("&$D$12&",reference:=StartOfDay)="&A7&"", "Bar", "", "Close","A30C","0","All",,,"False","T","EveryTick")) -> 344 | S7: 1426
A8: 7 | B8: 20:30:00 | C8: =RTD("cqg.rtd",,"StudyData",$D$12, "Bar", "", "Time","D","-7",,,,,"T") -> 2020-10-01 | D8: 2020 | E8: 10 | F8: 1 | G8: =RTD("cqg.rtd",,"StudyData",$D$12, "Bar", "", "Close","D","-7",,,,,"T") -> 15382.5 | H8: =IF(A8="",NA(),RTD("cqg.rtd",,"StudyData", "If(HasVal("&$D$12&"),Vol("&$D$12&"),none) when LocalYear("&$D$12&")="&$D$2&" and localMonth("&$D$12&") ="&$E$2&" and LocalDay("&$D$12&")="&$F$2&" and Barix("&$D$12&",reference:=StartOfDay)="&A8&"", "Bar", "", "Close","A30C","0","All",,,"False","T","EveryTick")) -> 687 | I8: 781.8888889 | J8: =IF(A8="",NA(),RTD("cqg.rtd",,"StudyData", "If(HasVal("&$D$12&"),Vol("&$D$12&"),none) when LocalYear("&$D$12&")="&$D$3&" and localMonth("&$D$12&") ="&$E$3&" and LocalDay("&$D$12&")="&$F$3&" and Barix("&$D$12&",reference:=StartOfDay)="&A8&"", "Bar", "", "Close","A30C","0","All",,,"False","T","EveryTick")) -> 2013 | K8: =IF(A8="",NA(),RTD("cqg.rtd",,"StudyData", "If(HasVal("&$D$12&"),Vol("&$D$12&"),none) when LocalYear("&$D$12&")="&$D$4&" and localMonth("&$D$12&") ="&$E$4&" and LocalDay("&$D$12&")="&$F$4&" and Barix("&$D$12&",reference:=StartOfDay)="&A8&"", "Bar", "", "Close","A30C","0","All",,,"False","T","EveryTick")) -> 306 | L8: =IF(A8="",NA(),RTD("cqg.rtd",,"StudyData", "If(HasVal("&$D$12&"),Vol("&$D$12&"),none) when LocalYear("&$D$12&")="&$D$5&" and localMonth("&$D$12&") ="&$E$5&" and LocalDay("&$D$12&")="&$F$5&" and Barix("&$D$12&",reference:=StartOfDay)="&A8&"", "Bar", "", "Close","A30C","0","All",,,"False","T","EveryTick")) -> 1212 | M8: =IF(A8="",NA(),RTD("cqg.rtd",,"StudyData", "If(HasVal("&$D$12&"),Vol("&$D$12&"),none) when LocalYear("&$D$12&")="&$D$6&" and localMonth("&$D$12&") ="&$E$6&" and LocalDay("&$D$12&")="&$F$6&" and Barix("&$D$12&",reference:=StartOfDay)="&A8&"", "Bar", "", "Close","A30C","0","All",,,"False","T","EveryTick")) -> 718 | N8: =IF(A8="",NA(),RTD("cqg.rtd",,"StudyData", "If(HasVal("&$D$12&"),Vol("&$D$12&"),none) when LocalYear("&$D$12&")="&$D$7&" and localMonth("&$D$12&") ="&$E$7&" and LocalDay("&$D$12&")="&$F$7&" and Barix("&$D$12&",reference:=StartOfDay)="&A8&"", "Bar", "", "Close","A30C","0","All",,,"False","T","EveryTick")) -> 585 | O8: =IF(A8="",NA(),RTD("cqg.rtd",,"StudyData", "If(HasVal("&$D$12&"),Vol("&$D$12&"),none) when LocalYear("&$D$12&")="&$D$8&" and localMonth("&$D$12&") ="&$E$8&" and LocalDay("&$D$12&")="&$F$8&" and Barix("&$D$12&",reference:=StartOfDay)="&A8&"", "Bar", "", "Close","A30C","0","All",,,"False","T","EveryTick")) -> 458 | P8: =IF(A8="",NA(),RTD("cqg.rtd",,"StudyData", "If(HasVal("&$D$12&"),Vol("&$D$12&"),none) when LocalYear("&$D$12&")="&$D$9&" and localMonth("&$D$12&") ="&$E$9&" and LocalDay("&$D$12&")="&$F$9&" and Barix("&$D$12&",reference:=StartOfDay)="&A8&"", "Bar", "", "Close","A30C","0","All",,,"False","T","EveryTick")) -> 763 | Q8: =IF(A8="",NA(),RTD("cqg.rtd",,"StudyData", "If(HasVal("&$D$12&"),Vol("&$D$12&"),none) when LocalYear("&$D$12&")="&$D$10&" and localMonth("&$D$12&") ="&$E$10&" and LocalDay("&$D$12&")="&$F$10&" and Barix("&$D$12&",reference:=StartOfDay)="&A8&"", "Bar", "", "Close","A30C","0","All",,,"False","T","EveryTick")) -> 489 | R8: =IF(A8="",NA(),RTD("cqg.rtd",,"StudyData", "If(HasVal("&$D$12&"),Vol("&$D$12&"),none) when LocalYear("&$D$12&")="&$D$11&" and localMonth("&$D$12&") ="&$E$11&" and LocalDay("&$D$12&")="&$F$11&" and Barix("&$D$12&",reference:=StartOfDay)="&A8&"", "Bar", "", "Close","A30C","0","All",,,"False","T","EveryTick")) -> 493
A9: 8 | B9: 21:00:00 | C9: =RTD("cqg.rtd",,"StudyData",$D$12, "Bar", "", "Time","D","-8",,,,,"T") -> 2020-09-30 | D9: 2020 | E9: 9 | F9: 30 | G9: =RTD("cqg.rtd",,"StudyData",$D$12, "Bar", "", "Close","D","-8",,,,,"T") -> 15120 | H9: =IF(A9="",NA(),RTD("cqg.rtd",,"StudyData", "If(HasVal("&$D$12&"),Vol("&$D$12&"),none) when LocalYear("&$D$12&")="&$D$2&" and localMonth("&$D$12&") ="&$E$2&" and LocalDay("&$D$12&")="&$F$2&" and Barix("&$D$12&",reference:=StartOfDay)="&A9&"", "Bar", "", "Close","A30C","0","All",,,"False","T","EveryTick")) -> 593 | I9: 751.7777778 | J9: =IF(A9="",NA(),RTD("cqg.rtd",,"StudyData", "If(HasVal("&$D$12&"),Vol("&$D$12&"),none) when LocalYear("&$D$12&")="&$D$3&" and localMonth("&$D$12&") ="&$E$3&" and LocalDay("&$D$12&")="&$F$3&" and Barix("&$D$12&",reference:=StartOfDay)="&A9&"", "Bar", "", "Close","A30C","0","All",,,"False","T","EveryTick")) -> 1379 | K9: =IF(A9="",NA(),RTD("cqg.rtd",,"StudyData", "If(HasVal("&$D$12&"),Vol("&$D$12&"),none) when LocalYear("&$D$12&")="&$D$4&" and localMonth("&$D$12&") ="&$E$4&" and LocalDay("&$D$12&")="&$F$4&" and Barix("&$D$12&",reference:=StartOfDay)="&A9&"", "Bar", "", "Close","A30C","0","All",,,"False","T","EveryTick")) -> 217 | L9: =IF(A9="",NA(),RTD("cqg.rtd",,"StudyData", "If(HasVal("&$D$12&"),Vol("&$D$12&"),none) when LocalYear("&$D$12&")="&$D$5&" and localMonth("&$D$12&") ="&$E$5&" and LocalDay("&$D$12&")="&$F$5&" and Barix("&$D$12&",reference:=StartOfDay)="&A9&"", "Bar", "", "Close","A30C","0","All",,,"False","T","EveryTick")) -> 632 | M9: =IF(A9="",NA(),RTD("cqg.rtd",,"StudyData", "If(HasVal("&$D$12&"),Vol("&$D$12&"),none) when LocalYear("&$D$12&")="&$D$6&" and localMonth("&$D$12&") ="&$E$6&" and LocalDay("&$D$12&")="&$F$6&" and Barix("&$D$12&",reference:=StartOfDay)="&A9&"", "Bar", "", "Close","A30C","0","All",,,"False","T","EveryTick")) -> 350 | N9: =IF(A9="",NA(),RTD("cqg.rtd",,"StudyData", "If(HasVal("&$D$12&"),Vol("&$D$12&"),none) when LocalYear("&$D$12&")="&$D$7&" and localMonth("&$D$12&") ="&$E$7&" and LocalDay("&$D$12&")="&$F$7&" and Barix("&$D$12&",reference:=StartOfDay)="&A9&"", "Bar", "", "Close","A30C","0","All",,,"False","T","EveryTick")) -> 1076 | O9: =IF(A9="",NA(),RTD("cqg.rtd",,"StudyData", "If(HasVal("&$D$12&"),Vol("&$D$12&"),none) when LocalYear("&$D$12&")="&$D$8&" and localMonth("&$D$12&") ="&$E$8&" and LocalDay("&$D$12&")="&$F$8&" and Barix("&$D$12&",reference:=StartOfDay)="&A9&"", "Bar", "", "Close","A30C","0","All",,,"False","T","EveryTick")) -> 1024 | P9: =IF(A9="",NA(),RTD("cqg.rtd",,"StudyData", "If(HasVal("&$D$12&"),Vol("&$D$12&"),none) when LocalYear("&$D$12&")="&$D$9&" and localMonth("&$D$12&") ="&$E$9&" and LocalDay("&$D$12&")="&$F$9&" and Barix("&$D$12&",reference:=StartOfDay)="&A9&"", "Bar", "", "Close","A30C","0","All",,,"False","T","EveryTick")) -> 885 | Q9: =IF(A9="",NA(),RTD("cqg.rtd",,"StudyData", "If(HasVal("&$D$12&"),Vol("&$D$12&"),none) when LocalYear("&$D$12&")="&$D$10&" and localMonth("&$D$12&") ="&$E$10&" and LocalDay("&$D$12&")="&$F$10&" and Barix("&$D$12&",reference:=StartOfDay)="&A9&"", "Bar", "", "Close","A30C","0","All",,,"False","T","EveryTick")) -> 585 | R9: =IF(A9="",NA(),RTD("cqg.rtd",,"StudyData", "If(HasVal("&$D$12&"),Vol("&$D$12&"),none) when LocalYear("&$D$12&")="&$D$11&" and localMonth("&$D$12&") ="&$E$11&" and LocalDay("&$D$12&")="&$F$11&" and Barix("&$D$12&",reference:=StartOfDay)="&A9&"", "Bar", "", "Close","A30C","0","All",,,"False","T","EveryTick")) -> 618
A10: 9 | B10: 21:30:00 | C10: =RTD("cqg.rtd",,"StudyData",$D$12, "Bar", "", "Time","D","-9",,,,,"T") -> 2020-09-29 | D10: 2020 | E10: 9 | F10: 29 | G10: =RTD("cqg.rtd",,"StudyData",$D$12, "Bar", "", "Close","D","-9",,,,,"T") -> 15172.5 | H10: =IF(A10="",NA(),RTD("cqg.rtd",,"StudyData", "If(HasVal("&$D$12&"),Vol("&$D$12&"),none) when LocalYear("&$D$12&")="&$D$2&" and localMonth("&$D$12&") ="&$E$2&" and LocalDay("&$D$12&")="&$F$2&" and Barix("&$D$12&",reference:=StartOfDay)="&A10&"", "Bar", "", "Close","A30C","0","All",,,"False","T","EveryTick")) -> 1777 | I10: 2588.444444 | J10: =IF(A10="",NA(),RTD("cqg.rtd",,"StudyData", "If(HasVal("&$D$12&"),Vol("&$D$12&"),none) when LocalYear("&$D$12&")="&$D$3&" and localMonth("&$D$12&") ="&$E$3&" and LocalDay("&$D$12&")="&$F$3&" and Barix("&$D$12&",reference:=StartOfDay)="&A10&"", "Bar", "", "Close","A30C","0","All",,,"False","T","EveryTick")) -> 2386 | K10: =IF(A10="",NA(),RTD("cqg.rtd",,"StudyData", "If(HasVal("&$D$12&"),Vol("&$D$12&"),none) when LocalYear("&$D$12&")="&$D$4&" and localMonth("&$D$12&") ="&$E$4&" and LocalDay("&$D$12&")="&$F$4&" and Barix("&$D$12&",reference:=StartOfDay)="&A10&"", "Bar", "", "Close","A30C","0","All",,,"False","T","EveryTick")) -> 1272 | L10: =IF(A10="",NA(),RTD("cqg.rtd",,"StudyData", "If(HasVal("&$D$12&"),Vol("&$D$12&"),none) when LocalYear("&$D$12&")="&$D$5&" and localMonth("&$D$12&") ="&$E$5&" and LocalDay("&$D$12&")="&$F$5&" and Barix("&$D$12&",reference:=StartOfDay)="&A10&"", "Bar", "", "Close","A30C","0","All",,,"False","T","EveryTick")) -> 2828 | M10: =IF(A10="",NA(),RTD("cqg.rtd",,"StudyData", "If(HasVal("&$D$12&"),Vol("&$D$12&"),none) when LocalYear("&$D$12&")="&$D$6&" and localMonth("&$D$12&") ="&$E$6&" and LocalDay("&$D$12&")="&$F$6&" and Barix("&$D$12&",reference:=StartOfDay)="&A10&"", "Bar", "", "Close","A30C","0","All",,,"False","T","EveryTick")) -> 2688 | N10: =IF(A10="",NA(),RTD("cqg.rtd",,"StudyData", "If(HasVal("&$D$12&"),Vol("&$D$12&"),none) when LocalYear("&$D$12&")="&$D$7&" and localMonth("&$D$12&") ="&$E$7&" and LocalDay("&$D$12&")="&$F$7&" and Barix("&$D$12&",reference:=StartOfDay)="&A10&"", "Bar", "", "Close","A30C","0","All",,,"False","T","EveryTick")) -> 7213 | O10: =IF(A10="",NA(),RTD("cqg.rtd",,"StudyData", "If(HasVal("&$D$12&"),Vol("&$D$12&"),none) when LocalYear("&$D$12&")="&$D$8&" and localMonth("&$D$12&") ="&$E$8&" and LocalDay("&$D$12&")="&$F$8&" and Barix("&$D$12&",reference:=StartOfDay)="&A10&"", "Bar", "", "Close","A30C","0","All",,,"False","T","EveryTick")) -> 1455 | P10: =IF(A10="",NA(),RTD("cqg.rtd",,"StudyData", "If(HasVal("&$D$12&"),Vol("&$D$12&"),none) when LocalYear("&$D$12&")="&$D$9&" and localMonth("&$D$12&") ="&$E$9&" and LocalDay("&$D$12&")="&$F$9&" and Barix("&$D$12&",reference:=StartOfDay)="&A10&"", "Bar", "", "Close","A30C","0","All",,,"False","T","EveryTick")) -> 3321 | Q10: =IF(A10="",NA(),RTD("cqg.rtd",,"StudyData", "If(HasVal("&$D$12&"),Vol("&$D$12&"),none) when LocalYear("&$D$12&")="&$D$10&" and localMonth("&$D$12&") ="&$E$10&" and LocalDay("&$D$12&")="&$F$10&" and Barix("&$D$12&",reference:=StartOfDay)="&A10&"", "Bar", "", "Close","A30C","0","All",,,"False","T","EveryTick")) -> 1094 | R10: =IF(A10="",NA(),RTD("cqg.rtd",,"StudyData", "If(HasVal("&$D$12&"),Vol("&$D$12&"),none) when LocalYear("&$D$12&")="&$D$11&" and localMonth("&$D$12&") ="&$E$11&" and LocalDay("&$D$12&")="&$F$11&" and Barix("&$D$12&",reference:=StartOfDay)="&A10&"", "Bar", "", "Close","A30C","0","All",,,"False","T","EveryTick")) -> 1039
A11: 10 | B11: 22:00:00 | C11: =RTD("cqg.rtd",,"StudyData",$D$12, "Bar", "", "Time","D","-10",,,,,"T") -> 2020-09-28 | D11: 2020 | E11: 9 | F11: 28 | G11: =RTD("cqg.rtd",,"StudyData",$D$12, "Bar", "", "Close","D","-10",,,,,"T") -> 15205 | H11: =IF(A11="",NA(),RTD("cqg.rtd",,"StudyData", "If(HasVal("&$D$12&"),Vol("&$D$12&"),none) when LocalYear("&$D$12&")="&$D$2&" and localMonth("&$D$12&") ="&$E$2&" and LocalDay("&$D$12&")="&$F$2&" and Barix("&$D$12&",reference:=StartOfDay)="&A11&"", "Bar", "", "Close","A30C","0","All",,,"False","T","EveryTick")) -> 1384 | I11: 1624.111111 | J11: =IF(A11="",NA(),RTD("cqg.rtd",,"StudyData", "If(HasVal("&$D$12&"),Vol("&$D$12&"),none) when LocalYear("&$D$12&")="&$D$3&" and localMonth("&$D$12&") ="&$E$3&" and LocalDay("&$D$12&")="&$F$3&" and Barix("&$D$12&",reference:=StartOfDay)="&A11&"", "Bar", "", "Close","A30C","0","All",,,"False","T","EveryTick")) -> 1820 | K11: =IF(A11="",NA(),RTD("cqg.rtd",,"StudyData", "If(HasVal("&$D$12&"),Vol("&$D$12&"),none) when LocalYear("&$D$12&")="&$D$4&" and localMonth("&$D$12&") ="&$E$4&" and LocalDay("&$D$12&")="&$F$4&" and Barix("&$D$12&",reference:=StartOfDay)="&A11&"", "Bar", "", "Close","A30C","0","All",,,"False","T","EveryTick")) -> 636 | L11: =IF(A11="",NA(),RTD("cqg.rtd",,"StudyData", "If(HasVal("&$D$12&"),Vol("&$D$12&"),none) when LocalYear("&$D$12&")="&$D$5&" and localMonth("&$D$12&") ="&$E$5&" and LocalDay("&$D$12&")="&$F$5&" and Barix("&$D$12&",reference:=StartOfDay)="&A11&"", "Bar", "", "Close","A30C","0","All",,,"False","T","EveryTick")) -> 999 | M11: =IF(A11="",NA(),RTD("cqg.rtd",,"StudyData", "If(HasVal("&$D$12&"),Vol("&$D$12&"),none) when LocalYear("&$D$12&")="&$D$6&" and localMonth("&$D$12&") ="&$E$6&" and LocalDay("&$D$12&")="&$F$6&" and Barix("&$D$12&",reference:=StartOfDay)="&A11&"", "Bar", "", "Close","A30C","0","All",,,"False","T","EveryTick")) -> 973 | N11: =IF(A11="",NA(),RTD("cqg.rtd",,"StudyData", "If(HasVal("&$D$12&"),Vol("&$D$12&"),none) when LocalYear("&$D$12&")="&$D$7&" and localMonth("&$D$12&") ="&$E$7&" and LocalDay("&$D$12&")="&$F$7&" and Barix("&$D$12&",reference:=StartOfDay)="&A11&"", "Bar", "", "Close","A30C","0","All",,,"False","T","EveryTick")) -> 3350 | O11: =IF(A11="",NA(),RTD("cqg.rtd",,"StudyData", "If(HasVal("&$D$12&"),Vol("&$D$12&"),none) when LocalYear("&$D$12&")="&$D$8&" and localMonth("&$D$12&") ="&$E$8&" and LocalDay("&$D$12&")="&$F$8&" and Barix("&$D$12&",reference:=StartOfDay)="&A11&"", "Bar", "", "Close","A30C","0","All",,,"False","T","EveryTick")) -> 2095 | P11: =IF(A11="",NA(),RTD("cqg.rtd",,"StudyData", "If(HasVal("&$D$12&"),Vol("&$D$12&"),none) when LocalYear("&$D$12&")="&$D$9&" and localMonth("&$D$12&") ="&$E$9&" and LocalDay("&$D$12&")="&$F$9&" and Barix("&$D$12&",reference:=StartOfDay)="&A11&"", "Bar", "", "Close","A30C","0","All",,,"False","T","EveryTick")) -> 3072 | Q11: =IF(A11="",NA(),RTD("cqg.rtd",,"StudyData", "If(HasVal("&$D$12&"),Vol("&$D$12&"),none) when LocalYear("&$D$12&")="&$D$10&" and localMonth("&$D$12&") ="&$E$10&" and LocalDay("&$D$12&")="&$F$10&" and Barix("&$D$12&",reference:=StartOfDay)="&A11&"", "Bar", "", "Close","A30C","0","All",,,"False","T","EveryTick")) -> 1111 | R11: =IF(A11="",NA(),RTD("cqg.rtd",,"StudyData", "If(HasVal("&$D$12&"),Vol("&$D$12&"),none) when LocalYear("&$D$12&")="&$D$11&" and localMonth("&$D$12&") ="&$E$11&" and LocalDay("&$D$12&")="&$F$11&" and Barix("&$D$12&",reference:=StartOfDay)="&A11&"", "Bar", "", "Close","A30C","0","All",,,"False","T","EveryTick")) -> 561
A12: 11 | B12: 22:30:00 | D12: CN | H12: =IF(A12="",NA(),RTD("cqg.rtd",,"StudyData", "If(HasVal("&$D$12&"),Vol("&$D$12&"),none) when LocalYear("&$D$12&")="&$D$2&" and localMonth("&$D$12&") ="&$E$2&" and LocalDay("&$D$12&")="&$F$2&" and Barix("&$D$12&",reference:=StartOfDay)="&A12&"", "Bar", "", "Close","A30C","0","All",,,"False","T","EveryTick")) -> 1340 | I12: 1320.111111 | J12: =IF(A12="",NA(),RTD("cqg.rtd",,"StudyData", "If(HasVal("&$D$12&"),Vol("&$D$12&"),none) when LocalYear("&$D$12&")="&$D$3&" and localMonth("&$D$12&") ="&$E$3&" and LocalDay("&$D$12&")="&$F$3&" and Barix("&$D$12&",reference:=StartOfDay)="&A12&"", "Bar", "", "Close","A30C","0","All",,,"False","T","EveryTick")) -> 1473 | K12: =IF(A12="",NA(),RTD("cqg.rtd",,"StudyData", "If(HasVal("&$D$12&"),Vol("&$D$12&"),none) when LocalYear("&$D$12&")="&$D$4&" and localMonth("&$D$12&") ="&$E$4&" and LocalDay("&$D$12&")="&$F$4&" and Barix("&$D$12&",reference:=StartOfDay)="&A12&"", "Bar", "", "Close","A30C","0","All",,,"False","T","EveryTick")) -> 870 | L12: =IF(A12="",NA(),RTD("cqg.rtd",,"StudyData", "If(HasVal("&$D$12&"),Vol("&$D$12&"),none) when LocalYear("&$D$12&")="&$D$5&" and localMonth("&$D$12&") ="&$E$5&" and LocalDay("&$D$12&")="&$F$5&" and Barix("&$D$12&",reference:=StartOfDay)="&A12&"", "Bar", "", "Close","A30C","0","All",,,"False","T","EveryTick")) -> 1562 | M12: =IF(A12="",NA(),RTD("cqg.rtd",,"StudyData", "If(HasVal("&$D$12&"),Vol("&$D$12&"),none) when LocalYear("&$D$12&")="&$D$6&" and localMonth("&$D$12&") ="&$E$6&" and LocalDay("&$D$12&")="&$F$6&" and Barix("&$D$12&",reference:=StartOfDay)="&A12&"", "Bar", "", "Close","A30C","0","All",,,"False","T","EveryTick")) -> 1827 | N12: =IF(A12="",NA(),RTD("cqg.rtd",,"StudyData", "If(HasVal("&$D$12&"),Vol("&$D$12&"),none) when LocalYear("&$D$12&")="&$D$7&" and localMonth("&$D$12&") ="&$E$7&" and LocalDay("&$D$12&")="&$F$7&" and Barix("&$D$12&",reference:=StartOfDay)="&A12&"", "Bar", "", "Close","A30C","0","All",,,"False","T","EveryTick")) -> 1516 | O12: =IF(A12="",NA(),RTD("cqg.rtd",,"StudyData", "If(HasVal("&$D$12&"),Vol("&$D$12&"),none) when LocalYear("&$D$12&")="&$D$8&" and localMonth("&$D$12&") ="&$E$8&" and LocalDay("&$D$12&")="&$F$8&" and Barix("&$D$12&",reference:=StartOfDay)="&A12&"", "Bar", "", "Close","A30C","0","All",,,"False","T","EveryTick")) -> 691 | P12: =IF(A12="",NA(),RTD("cqg.rtd",,"StudyData", "If(HasVal("&$D$12&"),Vol("&$D$12&"),none) when LocalYear("&$D$12&")="&$D$9&" and localMonth("&$D$12&") ="&$E$9&" and LocalDay("&$D$12&")="&$F$9&" and Barix("&$D$12&",reference:=StartOfDay)="&A12&"", "Bar", "", "Close","A30C","0","All",,,"False","T","EveryTick")) -> 1852 | Q12: =IF(A12="",NA(),RTD("cqg.rtd",,"StudyData", "If(HasVal("&$D$12&"),Vol("&$D$12&"),none) when LocalYear("&$D$12&")="&$D$10&" and localMonth("&$D$12&") ="&$E$10&" and LocalDay("&$D$12&")="&$F$10&" and Barix("&$D$12&",reference:=StartOfDay)="&A12&"", "Bar", "", "Close","A30C","0","All",,,"False","T","EveryTick")) -> 1596 | R12: =IF(A12="",NA(),RTD("cqg.rtd",,"StudyData", "If(HasVal("&$D$12&"),Vol("&$D$12&"),none) when LocalYear("&$D$12&")="&$D$11&" and localMonth("&$D$12&") ="&$E$11&" and LocalDay("&$D$12&")="&$F$11&" and Barix("&$D$12&",reference:=StartOfDay)="&A12&"", "Bar", "", "Close","A30C","0","All",,,"False","T","EveryTick")) -> 494 | S12: 1340
A13: =IF($D$12="QGA",0,A12+1) -> 12 | B13: 23:00:00 | D13: =RTD("cqg.rtd", ,"ContractData",D12, "LastQuoteToday",, "T") -> 15511 | G13: =C1 -> 2020-10-12 | H13: =IF(A13="",NA(),RTD("cqg.rtd",,"StudyData", "If(HasVal("&$D$12&"),Vol("&$D$12&"),none) when LocalYear("&$D$12&")="&$D$2&" and localMonth("&$D$12&") ="&$E$2&" and LocalDay("&$D$12&")="&$F$2&" and Barix("&$D$12&",reference:=StartOfDay)="&A13&"", "Bar", "", "Close","A30C","0","All",,,"False","T","EveryTick")) -> 1547 | I13: 1280.111111 | J13: =IF(A13="",NA(),RTD("cqg.rtd",,"StudyData", "If(HasVal("&$D$12&"),Vol("&$D$12&"),none) when LocalYear("&$D$12&")="&$D$3&" and localMonth("&$D$12&") ="&$E$3&" and LocalDay("&$D$12&")="&$F$3&" and Barix("&$D$12&",reference:=StartOfDay)="&A13&"", "Bar", "", "Close","A30C","0","All",,,"False","T","EveryTick")) -> 2569 | K13: =IF(A13="",NA(),RTD("cqg.rtd",,"StudyData", "If(HasVal("&$D$12&"),Vol("&$D$12&"),none) when LocalYear("&$D$12&")="&$D$4&" and localMonth("&$D$12&") ="&$E$4&" and LocalDay("&$D$12&")="&$F$4&" and Barix("&$D$12&",reference:=StartOfDay)="&A13&"", "Bar", "", "Close","A30C","0","All",,,"False","T","EveryTick")) -> 1378 | L13: =IF(A13="",NA(),RTD("cqg.rtd",,"StudyData", "If(HasVal("&$D$12&"),Vol("&$D$12&"),none) when LocalYear("&$D$12&")="&$D$5&" and localMonth("&$D$12&") ="&$E$5&" and LocalDay("&$D$12&")="&$F$5&" and Barix("&$D$12&",reference:=StartOfDay)="&A13&"", "Bar", "", "Close","A30C","0","All",,,"False","T","EveryTick")) -> 1354 | M13: =IF(A13="",NA(),RTD("cqg.rtd",,"StudyData", "If(HasVal("&$D$12&"),Vol("&$D$12&"),none) when LocalYear("&$D$12&")="&$D$6&" and localMonth("&$D$12&") ="&$E$6&" and LocalDay("&$D$12&")="&$F$6&" and Barix("&$D$12&",reference:=StartOfDay)="&A13&"", "Bar", "", "Close","A30C","0","All",,,"False","T","EveryTick")) -> 1342 | N13: =IF(A13="",NA(),RTD("cqg.rtd",,"StudyData", "If(HasVal("&$D$12&"),Vol("&$D$12&"),none) when LocalYear("&$D$12&")="&$D$7&" and localMonth("&$D$12&") ="&$E$7&" and LocalDay("&$D$12&")="&$F$7&" and Barix("&$D$12&",reference:=StartOfDay)="&A13&"", "Bar", "", "Close","A30C","0","All",,,"False","T","EveryTick")) -> 937 | O13: =IF(A13="",NA(),RTD("cqg.rtd",,"StudyData", "If(HasVal("&$D$12&"),Vol("&$D$12&"),none) when LocalYear("&$D$12&")="&$D$8&" and localMonth("&$D$12&") ="&$E$8&" and LocalDay("&$D$12&")="&$F$8&" and Barix("&$D$12&",reference:=StartOfDay)="&A13&"", "Bar", "", "Close","A30C","0","All",,,"False","T","EveryTick")) -> 901 | P13: =IF(A13="",NA(),RTD("cqg.rtd",,"StudyData", "If(HasVal("&$D$12&"),Vol("&$D$12&"),none) when LocalYear("&$D$12&")="&$D$9&" and localMonth("&$D$12&") ="&$E$9&" and LocalDay("&$D$12&")="&$F$9&" and Barix("&$D$12&",reference:=StartOfDay)="&A13&"", "Bar", "", "Close","A30C","0","All",,,"False","T","EveryTick")) -> 1464 | Q13: =IF(A13="",NA(),RTD("cqg.rtd",,"StudyData", "If(HasVal("&$D$12&"),Vol("&$D$12&"),none) when LocalYear("&$D$12&")="&$D$10&" and localMonth("&$D$12&") ="&$E$10&" and LocalDay("&$D$12&")="&$F$10&" and Barix("&$D$12&",reference:=StartOfDay)="&A13&"", "Bar", "", "Close","A30C","0","All",,,"False","T","EveryTick")) -> 1283 | R13: =IF(A13="",NA(),RTD("cqg.rtd",,"StudyData", "If(HasVal("&$D$12&"),Vol("&$D$12&"),none) when LocalYear("&$D$12&")="&$D$11&" and localMonth("&$D$12&") ="&$E$11&" and LocalDay("&$D$12&")="&$F$11&" and Barix("&$D$12&",reference:=StartOfDay)="&A13&"", "Bar", "", "Close","A30C","0","All",,,"False","T","EveryTick")) -> 293 | S13: 1547
A14: =A13+1 -> 13 | B14: 23:30:00 | D14: =RTD("cqg.rtd", ,"ContractData",D12, "LongDescription",, "T") -> SGX FTSE China A50 Index, Oct 20 | G14: =C2 -> 2020-10-09 | H14: =IF(A14="",NA(),RTD("cqg.rtd",,"StudyData", "If(HasVal("&$D$12&"),Vol("&$D$12&"),none) when LocalYear("&$D$12&")="&$D$2&" and localMonth("&$D$12&") ="&$E$2&" and LocalDay("&$D$12&")="&$F$2&" and Barix("&$D$12&",reference:=StartOfDay)="&A14&"", "Bar", "", "Close","A30C","0","All",,,"False","T","EveryTick")) -> 1351 | I14: 874.7777778 | J14: =IF(A14="",NA(),RTD("cqg.rtd",,"StudyData", "If(HasVal("&$D$12&"),Vol("&$D$12&"),none) when LocalYear("&$D$12&")="&$D$3&" and localMonth("&$D$12&") ="&$E$3&" and LocalDay("&$D$12&")="&$F$3&" and Barix("&$D$12&",reference:=StartOfDay)="&A14&"", "Bar", "", "Close","A30C","0","All",,,"False","T","EveryTick")) -> 1483 | K14: =IF(A14="",NA(),RTD("cqg.rtd",,"StudyData", "If(HasVal("&$D$12&"),Vol("&$D$12&"),none) when LocalYear("&$D$12&")="&$D$4&" and localMonth("&$D$12&") ="&$E$4&" and LocalDay("&$D$12&")="&$F$4&" and Barix("&$D$12&",reference:=StartOfDay)="&A14&"", "Bar", "", "Close","A30C","0","All",,,"False","T","EveryTick")) -> 1152 | L14: =IF(A14="",NA(),RTD("cqg.rtd",,"StudyData", "If(HasVal("&$D$12&"),Vol("&$D$12&"),none) when LocalYear("&$D$12&")="&$D$5&" and localMonth("&$D$12&") ="&$E$5&" and LocalDay("&$D$12&")="&$F$5&" and Barix("&$D$12&",reference:=StartOfDay)="&A14&"", "Bar", "", "Close","A30C","0","All",,,"False","T","EveryTick")) -> 637 | M14: =IF(A14="",NA(),RTD("cqg.rtd",,"StudyData", "If(HasVal("&$D$12&"),Vol("&$D$12&"),none) when LocalYear("&$D$12&")="&$D$6&" and localMonth("&$D$12&") ="&$E$6&" and LocalDay("&$D$12&")="&$F$6&" and Barix("&$D$12&",reference:=StartOfDay)="&A14&"", "Bar", "", "Close","A30C","0","All",,,"False","T","EveryTick")) -> 644 | N14: =IF(A14="",NA(),RTD("cqg.rtd",,"StudyData", "If(HasVal("&$D$12&"),Vol("&$D$12&"),none) when LocalYear("&$D$12&")="&$D$7&" and localMonth("&$D$12&") ="&$E$7&" and LocalDay("&$D$12&")="&$F$7&" and Barix("&$D$12&",reference:=StartOfDay)="&A14&"", "Bar", "", "Close","A30C","0","All",,,"False","T","EveryTick")) -> 876 | O14: =IF(A14="",NA(),RTD("cqg.rtd",,"StudyData", "If(HasVal("&$D$12&"),Vol("&$D$12&"),none) when LocalYear("&$D$12&")="&$D$8&" and localMonth("&$D$12&") ="&$E$8&" and LocalDay("&$D$12&")="&$F$8&" and Barix("&$D$12&",reference:=StartOfDay)="&A14&"", "Bar", "", "Close","A30C","0","All",,,"False","T","EveryTick")) -> 403 | P14: =IF(A14="",NA(),RTD("cqg.rtd",,"StudyData", "If(HasVal("&$D$12&"),Vol("&$D$12&"),none) when LocalYear("&$D$12&")="&$D$9&" and localMonth("&$D$12&") ="&$E$9&" and LocalDay("&$D$12&")="&$F$9&" and Barix("&$D$12&",reference:=StartOfDay)="&A14&"", "Bar", "", "Close","A30C","0","All",,,"False","T","EveryTick")) -> 1128 | Q14: =IF(A14="",NA(),RTD("cqg.rtd",,"StudyData", "If(HasVal("&$D$12&"),Vol("&$D$12&"),none) when LocalYear("&$D$12&")="&$D$10&" and localMonth("&$D$12&") ="&$E$10&" and LocalDay("&$D$12&")="&$F$10&" and Barix("&$D$12&",reference:=StartOfDay)="&A14&"", "Bar", "", "Close","A30C","0","All",,,"False","T","EveryTick")) -> 1189 | R14: =IF(A14="",NA(),RTD("cqg.rtd",,"StudyData", "If(HasVal("&$D$12&"),Vol("&$D$12&"),none) when LocalYear("&$D$12&")="&$D$11&" and localMonth("&$D$12&") ="&$E$11&" and LocalDay("&$D$12&")="&$F$11&" and Barix("&$D$12&",reference:=StartOfDay)="&A14&"", "Bar", "", "Close","A30C","0","All",,,"False","T","EveryTick")) -> 361 | S14: 1351
A15: 14 | B15: 00:00:00 | G15: 2020-10-08 | H15: =IF(WEEKDAY(DATE($D$2,$E$2,$F$2))=6,RTD("cqg.rtd",,"StudyData","If(HasVal("&$D$12&"),Vol("&$D$12&"),none) when LocalYear("&$D$12&")="&$D$2&" and localMonth("&$D$12&") ="&$E$2&" and LocalDay("&$D$12&")="&$F$2&"+1 and Barix("&$D$12&",reference:=StartOfDay)="&A15&"","Bar","","Close","A30C","0","All",,,"False","T","EveryTick"),RTD("cqg.rtd",,"StudyData","If(HasVal("&$D$12&"),Vol("&$D$12&"),none) when LocalYear("&$D$12&")="&$D$1&" and localMonth("&$D$12&") ="&$E$1&" and LocalDay("&$D$12&")="&$F$1&" and Barix("&$D$12&",reference:=StartOfDay)="&A15&"","Bar","","Close","A30C","0","All",,,"False","T","EveryTick")) -> 910 | I15: 972.5555556 | J15: =IF(WEEKDAY(DATE($D$3,$E$3,$F$3))=6,RTD("cqg.rtd",,"StudyData","If(HasVal("&$D$12&"),Vol("&$D$12&"),none) when LocalYear("&$D$12&")="&$D$3&" and localMonth("&$D$12&") ="&$E$3&" and LocalDay("&$D$12&")="&$F$3&"+1 and Barix("&$D$12&",reference:=StartOfDay)="&A15&"","Bar","","Close","A30C","0","All",,,"False","T","EveryTick"),RTD("cqg.rtd",,"StudyData","If(HasVal("&$D$12&"),Vol("&$D$12&"),none) when LocalYear("&$D$12&")="&$D$2&" and localMonth("&$D$12&") ="&$E$2&" and LocalDay("&$D$12&")="&$F$2&" and Barix("&$D$12&",reference:=StartOfDay)="&A15&"","Bar","","Close","A30C","0","All",,,"False","T","EveryTick")) -> 1207 | K15: =IF(WEEKDAY(DATE($D$4,$E$4,$F$4))=6,RTD("cqg.rtd",,"StudyData","If(HasVal("&$D$12&"),Vol("&$D$12&"),none) when LocalYear("&$D$12&")="&$D$4&" and localMonth("&$D$12&") ="&$E$4&" and LocalDay("&$D$12&")="&$F$4&"+1 and Barix("&$D$12&",reference:=StartOfDay)="&A15&"","Bar","","Close","A30C","0","All",,,"False","T","EveryTick"),RTD("cqg.rtd",,"StudyData","If(HasVal("&$D$12&"),Vol("&$D$12&"),none) when LocalYear("&$D$12&")="&$D$3&" and localMonth("&$D$12&") ="&$E$3&" and LocalDay("&$D$12&")="&$F$3&" and Barix("&$D$12&",reference:=StartOfDay)="&A15&"","Bar","","Close","A30C","0","All",,,"False","T","EveryTick")) -> 2281 | L15: =IF(WEEKDAY(DATE($D$5,$E$5,$F$5))=6,RTD("cqg.rtd",,"StudyData","If(HasVal("&$D$12&"),Vol("&$D$12&"),none) when LocalYear("&$D$12&")="&$D$5&" and localMonth("&$D$12&") ="&$E$5&" and LocalDay("&$D$12&")="&$F$5&"+1 and Barix("&$D$12&",reference:=StartOfDay)="&A15&"","Bar","","Close","A30C","0","All",,,"False","T","EveryTick"),RTD("cqg.rtd",,"StudyData","If(HasVal("&$D$12&"),Vol("&$D$12&"),none) when LocalYear("&$D$12&")="&$D$4&" and localMonth("&$D$12&") ="&$E$4&" and LocalDay("&$D$12&")="&$F$4&" and Barix("&$D$12&",reference:=StartOfDay)="&A15&"","Bar","","Close","A30C","0","All",,,"False","T","EveryTick")) -> 339 | M15: =IF(WEEKDAY(DATE($D$6,$E$6,$F$6))=6,RTD("cqg.rtd",,"StudyData","If(HasVal("&$D$12&"),Vol("&$D$12&"),none) when LocalYear("&$D$12&")="&$D$6&" and localMonth("&$D$12&") ="&$E$6&" and LocalDay("&$D$12&")="&$F$6&"+1 and Barix("&$D$12&",reference:=StartOfDay)="&A15&"","Bar","","Close","A30C","0","All",,,"False","T","EveryTick"),RTD("cqg.rtd",,"StudyData","If(HasVal("&$D$12&"),Vol("&$D$12&"),none) when LocalYear("&$D$12&")="&$D$5&" and localMonth("&$D$12&") ="&$E$5&" and LocalDay("&$D$12&")="&$F$5&" and Barix("&$D$12&",reference:=StartOfDay)="&A15&"","Bar","","Close","A30C","0","All",,,"False","T","EveryTick")) -> 220 | N15: =IF(WEEKDAY(DATE($D$7,$E$7,$F$7))=6,RTD("cqg.rtd",,"StudyData","If(HasVal("&$D$12&"),Vol("&$D$12&"),none) when LocalYear("&$D$12&")="&$D$7&" and localMonth("&$D$12&") ="&$E$7&" and LocalDay("&$D$12&")="&$F$7&"+1 and Barix("&$D$12&",reference:=StartOfDay)="&A15&"","Bar","","Close","A30C","0","All",,,"False","T","EveryTick"),RTD("cqg.rtd",,"StudyData","If(HasVal("&$D$12&"),Vol("&$D$12&"),none) when LocalYear("&$D$12&")="&$D$6&" and localMonth("&$D$12&") ="&$E$6&" and LocalDay("&$D$12&")="&$F$6&" and Barix("&$D$12&",reference:=StartOfDay)="&A15&"","Bar","","Close","A30C","0","All",,,"False","T","EveryTick")) -> 2470 | O15: =IF(WEEKDAY(DATE($D$8,$E$8,$F$8))=6,RTD("cqg.rtd",,"StudyData","If(HasVal("&$D$12&"),Vol("&$D$12&"),none) when LocalYear("&$D$12&")="&$D$8&" and localMonth("&$D$12&") ="&$E$8&" and LocalDay("&$D$12&")="&$F$8&"+1 and Barix("&$D$12&",reference:=StartOfDay)="&A15&"","Bar","","Close","A30C","0","All",,,"False","T","EveryTick"),RTD("cqg.rtd",,"StudyData","If(HasVal("&$D$12&"),Vol("&$D$12&"),none) when LocalYear("&$D$12&")="&$D$7&" and localMonth("&$D$12&") ="&$E$7&" and LocalDay("&$D$12&")="&$F$7&" and Barix("&$D$12&",reference:=StartOfDay)="&A15&"","Bar","","Close","A30C","0","All",,,"False","T","EveryTick")) -> 727 | P15: =IF(WEEKDAY(DATE($D$9,$E$9,$F$9))=6,RTD("cqg.rtd",,"StudyData","If(HasVal("&$D$12&"),Vol("&$D$12&"),none) when LocalYear("&$D$12&")="&$D$9&" and localMonth("&$D$12&") ="&$E$9&" and LocalDay("&$D$12&")="&$F$9&"+1 and Barix("&$D$12&",reference:=StartOfDay)="&A15&"","Bar","","Close","A30C","0","All",,,"False","T","EveryTick"),RTD("cqg.rtd",,"StudyData","If(HasVal("&$D$12&"),Vol("&$D$12&"),none) when LocalYear("&$D$12&")="&$D$8&" and localMonth("&$D$12&") ="&$E$8&" and LocalDay("&$D$12&")="&$F$8&" and Barix("&$D$12&",reference:=StartOfDay)="&A15&"","Bar","","Close","A30C","0","All",,,"False","T","EveryTick")) -> 818 | Q15: =IF(WEEKDAY(DATE($D$10,$E$10,$F$10))=6,RTD("cqg.rtd",,"StudyData","If(HasVal("&$D$12&"),Vol("&$D$12&"),none) when LocalYear("&$D$12&")="&$D$10&" and localMonth("&$D$12&") ="&$E$10&" and LocalDay("&$D$12&")="&$F$10&"+1 and Barix("&$D$12&",reference:=StartOfDay)="&A15&"","Bar","","Close","A30C","0","All",,,"False","T","EveryTick"),RTD("cqg.rtd",,"StudyData","If(HasVal("&$D$12&"),Vol("&$D$12&"),none) when LocalYear("&$D$12&")="&$D$9&" and localMonth("&$D$12&") ="&$E$9&" and LocalDay("&$D$12&")="&$F$9&" and Barix("&$D$12&",reference:=StartOfDay)="&A15&"","Bar","","Close","A30C","0","All",,,"False","T","EveryTick")) -> 624 | R15: =IF(WEEKDAY(DATE($D$11,$E$11,$F$11))=6,RTD("cqg.rtd",,"StudyData","If(HasVal("&$D$12&"),Vol("&$D$12&"),none) when LocalYear("&$D$12&")="&$D$11&" and localMonth("&$D$12&") ="&$E$11&" and LocalDay("&$D$12&")="&$F$11&"+1 and Barix("&$D$12&",reference:=StartOfDay)="&A15&"","Bar","","Close","A30C","0","All",,,"False","T","EveryTick"),RTD("cqg.rtd",,"StudyData","If(HasVal("&$D$12&"),Vol("&$D$12&"),none) when LocalYear("&$D$12&")="&$D$10&" and localMonth("&$D$12&") ="&$E$10&" and LocalDay("&$D$12&")="&$F$10&" and Barix("&$D$12&",reference:=StartOfDay)="&A15&"","Bar","","Close","A30C","0","All",,,"False","T","EveryTick")) -> 67
A16: 15 | B16: 00:30:00 | D16: =RTD("cqg.rtd", ,"ContractData",D12, "Ticksize",, "T") -> 1 | G16: 2020-10-07 | H16: =IF(WEEKDAY(DATE($D$2,$E$2,$F$2))=6,RTD("cqg.rtd",,"StudyData","If(HasVal("&$D$12&"),Vol("&$D$12&"),none) when LocalYear("&$D$12&")="&$D$2&" and localMonth("&$D$12&") ="&$E$2&" and LocalDay("&$D$12&")="&$F$2&"+1 and Barix("&$D$12&",reference:=StartOfDay)="&A16&"","Bar","","Close","A30C","0","All",,,"False","T","EveryTick"),RTD("cqg.rtd",,"StudyData","If(HasVal("&$D$12&"),Vol("&$D$12&"),none) when LocalYear("&$D$12&")="&$D$1&" and localMonth("&$D$12&") ="&$E$1&" and LocalDay("&$D$12&")="&$F$1&" and Barix("&$D$12&",reference:=StartOfDay)="&A16&"","Bar","","Close","A30C","0","All",,,"False","T","EveryTick")) -> 603 | I16: 762.2222222 | J16: =IF(WEEKDAY(DATE($D$3,$E$3,$F$3))=6,RTD("cqg.rtd",,"StudyData","If(HasVal("&$D$12&"),Vol("&$D$12&"),none) when LocalYear("&$D$12&")="&$D$3&" and localMonth("&$D$12&") ="&$E$3&" and LocalDay("&$D$12&")="&$F$3&"+1 and Barix("&$D$12&",reference:=StartOfDay)="&A16&"","Bar","","Close","A30C","0","All",,,"False","T","EveryTick"),RTD("cqg.rtd",,"StudyData","If(HasVal("&$D$12&"),Vol("&$D$12&"),none) when LocalYear("&$D$12&")="&$D$2&" and localMonth("&$D$12&") ="&$E$2&" and LocalDay("&$D$12&")="&$F$2&" and Barix("&$D$12&",reference:=StartOfDay)="&A16&"","Bar","","Close","A30C","0","All",,,"False","T","EveryTick")) -> 1306 | K16: =IF(WEEKDAY(DATE($D$4,$E$4,$F$4))=6,RTD("cqg.rtd",,"StudyData","If(HasVal("&$D$12&"),Vol("&$D$12&"),none) when LocalYear("&$D$12&")="&$D$4&" and localMonth("&$D$12&") ="&$E$4&" and LocalDay("&$D$12&")="&$F$4&"+1 and Barix("&$D$12&",reference:=StartOfDay)="&A16&"","Bar","","Close","A30C","0","All",,,"False","T","EveryTick"),RTD("cqg.rtd",,"StudyData","If(HasVal("&$D$12&"),Vol("&$D$12&"),none) when LocalYear("&$D$12&")="&$D$3&" and localMonth("&$D$12&") ="&$E$3&" and LocalDay("&$D$12&")="&$F$3&" and Barix("&$D$12&",reference:=StartOfDay)="&A16&"","Bar","","Close","A30C","0","All",,,"False","T","EveryTick")) -> 1228 | L16: =IF(WEEKDAY(DATE($D$5,$E$5,$F$5))=6,RTD("cqg.rtd",,"StudyData","If(HasVal("&$D$12&"),Vol("&$D$12&"),none) when LocalYear("&$D$12&")="&$D$5&" and localMonth("&$D$12&") ="&$E$5&" and LocalDay("&$D$12&")="&$F$5&"+1 and Barix("&$D$12&",reference:=StartOfDay)="&A16&"","Bar","","Close","A30C","0","All",,,"False","T","EveryTick"),RTD("cqg.rtd",,"StudyData","If(HasVal("&$D$12&"),Vol("&$D$12&"),none) when LocalYear("&$D$12&")="&$D$4&" and localMonth("&$D$12&") ="&$E$4&" and LocalDay("&$D$12&")="&$F$4&" and Barix("&$D$12&",reference:=StartOfDay)="&A16&"","Bar","","Close","A30C","0","All",,,"False","T","EveryTick")) -> 312 | M16: =IF(WEEKDAY(DATE($D$6,$E$6,$F$6))=6,RTD("cqg.rtd",,"StudyData","If(HasVal("&$D$12&"),Vol("&$D$12&"),none) when LocalYear("&$D$12&")="&$D$6&" and localMonth("&$D$12&") ="&$E$6&" and LocalDay("&$D$12&")="&$F$6&"+1 and Barix("&$D$12&",reference:=StartOfDay)="&A16&"","Bar","","Close","A30C","0","All",,,"False","T","EveryTick"),RTD("cqg.rtd",,"StudyData","If(HasVal("&$D$12&"),Vol("&$D$12&"),none) when LocalYear("&$D$12&")="&$D$5&" and localMonth("&$D$12&") ="&$E$5&" and LocalDay("&$D$12&")="&$F$5&" and Barix("&$D$12&",reference:=StartOfDay)="&A16&"","Bar","","Close","A30C","0","All",,,"False","T","EveryTick")) -> 324 | N16: =IF(WEEKDAY(DATE($D$7,$E$7,$F$7))=6,RTD("cqg.rtd",,"StudyData","If(HasVal("&$D$12&"),Vol("&$D$12&"),none) when LocalYear("&$D$12&")="&$D$7&" and localMonth("&$D$12&") ="&$E$7&" and LocalDay("&$D$12&")="&$F$7&"+1 and Barix("&$D$12&",reference:=StartOfDay)="&A16&"","Bar","","Close","A30C","0","All",,,"False","T","EveryTick"),RTD("cqg.rtd",,"StudyData","If(HasVal("&$D$12&"),Vol("&$D$12&"),none) when LocalYear("&$D$12&")="&$D$6&" and localMonth("&$D$12&") ="&$E$6&" and LocalDay("&$D$12&")="&$F$6&" and Barix("&$D$12&",reference:=StartOfDay)="&A16&"","Bar","","Close","A30C","0","All",,,"False","T","EveryTick")) -> 857 | O16: =IF(WEEKDAY(DATE($D$8,$E$8,$F$8))=6,RTD("cqg.rtd",,"StudyData","If(HasVal("&$D$12&"),Vol("&$D$12&"),none) when LocalYear("&$D$12&")="&$D$8&" and localMonth("&$D$12&") ="&$E$8&" and LocalDay("&$D$12&")="&$F$8&"+1 and Barix("&$D$12&",reference:=StartOfDay)="&A16&"","Bar","","Close","A30C","0","All",,,"False","T","EveryTick"),RTD("cqg.rtd",,"StudyData","If(HasVal("&$D$12&"),Vol("&$D$12&"),none) when LocalYear("&$D$12&")="&$D$7&" and localMonth("&$D$12&") ="&$E$7&" and LocalDay("&$D$12&")="&$F$7&" and Barix("&$D$12&",reference:=StartOfDay)="&A16&"","Bar","","Close","A30C","0","All",,,"False","T","EveryTick")) -> 515 | P16: =IF(WEEKDAY(DATE($D$9,$E$9,$F$9))=6,RTD("cqg.rtd",,"StudyData","If(HasVal("&$D$12&"),Vol("&$D$12&"),none) when LocalYear("&$D$12&")="&$D$9&" and localMonth("&$D$12&") ="&$E$9&" and LocalDay("&$D$12&")="&$F$9&"+1 and Barix("&$D$12&",reference:=StartOfDay)="&A16&"","Bar","","Close","A30C","0","All",,,"False","T","EveryTick"),RTD("cqg.rtd",,"StudyData","If(HasVal("&$D$12&"),Vol("&$D$12&"),none) when LocalYear("&$D$12&")="&$D$8&" and localMonth("&$D$12&") ="&$E$8&" and LocalDay("&$D$12&")="&$F$8&" and Barix("&$D$12&",reference:=StartOfDay)="&A16&"","Bar","","Close","A30C","0","All",,,"False","T","EveryTick")) -> 807 | Q16: =IF(WEEKDAY(DATE($D$10,$E$10,$F$10))=6,RTD("cqg.rtd",,"StudyData","If(HasVal("&$D$12&"),Vol("&$D$12&"),none) when LocalYear("&$D$12&")="&$D$10&" and localMonth("&$D$12&") ="&$E$10&" and LocalDay("&$D$12&")="&$F$10&"+1 and Barix("&$D$12&",reference:=StartOfDay)="&A16&"","Bar","","Close","A30C","0","All",,,"False","T","EveryTick"),RTD("cqg.rtd",,"StudyData","If(HasVal("&$D$12&"),Vol("&$D$12&"),none) when LocalYear("&$D$12&")="&$D$9&" and localMonth("&$D$12&") ="&$E$9&" and LocalDay("&$D$12&")="&$F$9&" and Barix("&$D$12&",reference:=StartOfDay)="&A16&"","Bar","","Close","A30C","0","All",,,"False","T","EveryTick")) -> 1438 | R16: =IF(WEEKDAY(DATE($D$11,$E$11,$F$11))=6,RTD("cqg.rtd",,"StudyData","If(HasVal("&$D$12&"),Vol("&$D$12&"),none) when LocalYear("&$D$12&")="&$D$11&" and localMonth("&$D$12&") ="&$E$11&" and LocalDay("&$D$12&")="&$F$11&"+1 and Barix("&$D$12&",reference:=StartOfDay)="&A16&"","Bar","","Close","A30C","0","All",,,"False","T","EveryTick"),RTD("cqg.rtd",,"StudyData","If(HasVal("&$D$12&"),Vol("&$D$12&"),none) when LocalYear("&$D$12&")="&$D$10&" and localMonth("&$D$12&") ="&$E$10&" and LocalDay("&$D$12&")="&$F$10&" and Barix("&$D$12&",reference:=StartOfDay)="&A16&"","Bar","","Close","A30C","0","All",,,"False","T","EveryTick")) -> 73
A17: 16 | B17: 01:00:00 | D17: =IF(D16>=1,0,IF(LEN(D16)-2=1,2,LEN(D16)-2)) -> 0 | F17: =VLOOKUP(D17,D18:E25,2,FALSE) -> # | G17: 2020-10-06 | H17: =IF(WEEKDAY(DATE($D$2,$E$2,$F$2))=6,RTD("cqg.rtd",,"StudyData","If(HasVal("&$D$12&"),Vol("&$D$12&"),none) when LocalYear("&$D$12&")="&$D$2&" and localMonth("&$D$12&") ="&$E$2&" and LocalDay("&$D$12&")="&$F$2&"+1 and Barix("&$D$12&",reference:=StartOfDay)="&A17&"","Bar","","Close","A30C","0","All",,,"False","T","EveryTick"),RTD("cqg.rtd",,"StudyData","If(HasVal("&$D$12&"),Vol("&$D$12&"),none) when LocalYear("&$D$12&")="&$D$1&" and localMonth("&$D$12&") ="&$E$1&" and LocalDay("&$D$12&")="&$F$1&" and Barix("&$D$12&",reference:=StartOfDay)="&A17&"","Bar","","Close","A30C","0","All",,,"False","T","EveryTick")) -> 253 | I17: 703.5555556 | J17: =IF(WEEKDAY(DATE($D$3,$E$3,$F$3))=6,RTD("cqg.rtd",,"StudyData","If(HasVal("&$D$12&"),Vol("&$D$12&"),none) when LocalYear("&$D$12&")="&$D$3&" and localMonth("&$D$12&") ="&$E$3&" and LocalDay("&$D$12&")="&$F$3&"+1 and Barix("&$D$12&",reference:=StartOfDay)="&A17&"","Bar","","Close","A30C","0","All",,,"False","T","EveryTick"),RTD("cqg.rtd",,"StudyData","If(HasVal("&$D$12&"),Vol("&$D$12&"),none) when LocalYear("&$D$12&")="&$D$2&" and localMonth("&$D$12&") ="&$E$2&" and LocalDay("&$D$12&")="&$F$2&" and Barix("&$D$12&",reference:=StartOfDay)="&A17&"","Bar","","Close","A30C","0","All",,,"False","T","EveryTick")) -> 1122 | K17: =IF(WEEKDAY(DATE($D$4,$E$4,$F$4))=6,RTD("cqg.rtd",,"StudyData","If(HasVal("&$D$12&"),Vol("&$D$12&"),none) when LocalYear("&$D$12&")="&$D$4&" and localMonth("&$D$12&") ="&$E$4&" and LocalDay("&$D$12&")="&$F$4&"+1 and Barix("&$D$12&",reference:=StartOfDay)="&A17&"","Bar","","Close","A30C","0","All",,,"False","T","EveryTick"),RTD("cqg.rtd",,"StudyData","If(HasVal("&$D$12&"),Vol("&$D$12&"),none) when LocalYear("&$D$12&")="&$D$3&" and localMonth("&$D$12&") ="&$E$3&" and LocalDay("&$D$12&")="&$F$3&" and Barix("&$D$12&",reference:=StartOfDay)="&A17&"","Bar","","Close","A30C","0","All",,,"False","T","EveryTick")) -> 478 | L17: =IF(WEEKDAY(DATE($D$5,$E$5,$F$5))=6,RTD("cqg.rtd",,"StudyData","If(HasVal("&$D$12&"),Vol("&$D$12&"),none) when LocalYear("&$D$12&")="&$D$5&" and localMonth("&$D$12&") ="&$E$5&" and LocalDay("&$D$12&")="&$F$5&"+1 and Barix("&$D$12&",reference:=StartOfDay)="&A17&"","Bar","","Close","A30C","0","All",,,"False","T","EveryTick"),RTD("cqg.rtd",,"StudyData","If(HasVal("&$D$12&"),Vol("&$D$12&"),none) when LocalYear("&$D$12&")="&$D$4&" and localMonth("&$D$12&") ="&$E$4&" and LocalDay("&$D$12&")="&$F$4&" and Barix("&$D$12&",reference:=StartOfDay)="&A17&"","Bar","","Close","A30C","0","All",,,"False","T","EveryTick")) -> 540 | M17: =IF(WEEKDAY(DATE($D$6,$E$6,$F$6))=6,RTD("cqg.rtd",,"StudyData","If(HasVal("&$D$12&"),Vol("&$D$12&"),none) when LocalYear("&$D$12&")="&$D$6&" and localMonth("&$D$12&") ="&$E$6&" and LocalDay("&$D$12&")="&$F$6&"+1 and Barix("&$D$12&",reference:=StartOfDay)="&A17&"","Bar","","Close","A30C","0","All",,,"False","T","EveryTick"),RTD("cqg.rtd",,"StudyData","If(HasVal("&$D$12&"),Vol("&$D$12&"),none) when LocalYear("&$D$12&")="&$D$5&" and localMonth("&$D$12&") ="&$E$5&" and LocalDay("&$D$12&")="&$F$5&" and Barix("&$D$12&",reference:=StartOfDay)="&A17&"","Bar","","Close","A30C","0","All",,,"False","T","EveryTick")) -> 356 | N17: =IF(WEEKDAY(DATE($D$7,$E$7,$F$7))=6,RTD("cqg.rtd",,"StudyData","If(HasVal("&$D$12&"),Vol("&$D$12&"),none) when LocalYear("&$D$12&")="&$D$7&" and localMonth("&$D$12&") ="&$E$7&" and LocalDay("&$D$12&")="&$F$7&"+1 and Barix("&$D$12&",reference:=StartOfDay)="&A17&"","Bar","","Close","A30C","0","All",,,"False","T","EveryTick"),RTD("cqg.rtd",,"StudyData","If(HasVal("&$D$12&"),Vol("&$D$12&"),none) when LocalYear("&$D$12&")="&$D$6&" and localMonth("&$D$12&") ="&$E$6&" and LocalDay("&$D$12&")="&$F$6&" and Barix("&$D$12&",reference:=StartOfDay)="&A17&"","Bar","","Close","A30C","0","All",,,"False","T","EveryTick")) -> 953 | O17: =IF(WEEKDAY(DATE($D$8,$E$8,$F$8))=6,RTD("cqg.rtd",,"StudyData","If(HasVal("&$D$12&"),Vol("&$D$12&"),none) when LocalYear("&$D$12&")="&$D$8&" and localMonth("&$D$12&") ="&$E$8&" and LocalDay("&$D$12&")="&$F$8&"+1 and Barix("&$D$12&",reference:=StartOfDay)="&A17&"","Bar","","Close","A30C","0","All",,,"False","T","EveryTick"),RTD("cqg.rtd",,"StudyData","If(HasVal("&$D$12&"),Vol("&$D$12&"),none) when LocalYear("&$D$12&")="&$D$7&" and localMonth("&$D$12&") ="&$E$7&" and LocalDay("&$D$12&")="&$F$7&" and Barix("&$D$12&",reference:=StartOfDay)="&A17&"","Bar","","Close","A30C","0","All",,,"False","T","EveryTick")) -> 1068 | P17: =IF(WEEKDAY(DATE($D$9,$E$9,$F$9))=6,RTD("cqg.rtd",,"StudyData","If(HasVal("&$D$12&"),Vol("&$D$12&"),none) when LocalYear("&$D$12&")="&$D$9&" and localMonth("&$D$12&") ="&$E$9&" and LocalDay("&$D$12&")="&$F$9&"+1 and Barix("&$D$12&",reference:=StartOfDay)="&A17&"","Bar","","Close","A30C","0","All",,,"False","T","EveryTick"),RTD("cqg.rtd",,"StudyData","If(HasVal("&$D$12&"),Vol("&$D$12&"),none) when LocalYear("&$D$12&")="&$D$8&" and localMonth("&$D$12&") ="&$E$8&" and LocalDay("&$D$12&")="&$F$8&" and Barix("&$D$12&",reference:=StartOfDay)="&A17&"","Bar","","Close","A30C","0","All",,,"False","T","EveryTick")) -> 791 | Q17: =IF(WEEKDAY(DATE($D$10,$E$10,$F$10))=6,RTD("cqg.rtd",,"StudyData","If(HasVal("&$D$12&"),Vol("&$D$12&"),none) when LocalYear("&$D$12&")="&$D$10&" and localMonth("&$D$12&") ="&$E$10&" and LocalDay("&$D$12&")="&$F$10&"+1 and Barix("&$D$12&",reference:=StartOfDay)="&A17&"","Bar","","Close","A30C","0","All",,,"False","T","EveryTick"),RTD("cqg.rtd",,"StudyData","If(HasVal("&$D$12&"),Vol("&$D$12&"),none) when LocalYear("&$D$12&")="&$D$9&" and localMonth("&$D$12&") ="&$E$9&" and LocalDay("&$D$12&")="&$F$9&" and Barix("&$D$12&",reference:=StartOfDay)="&A17&"","Bar","","Close","A30C","0","All",,,"False","T","EveryTick")) -> 850 | R17: =IF(WEEKDAY(DATE($D$11,$E$11,$F$11))=6,RTD("cqg.rtd",,"StudyData","If(HasVal("&$D$12&"),Vol("&$D$12&"),none) when LocalYear("&$D$12&")="&$D$11&" and localMonth("&$D$12&") ="&$E$11&" and LocalDay("&$D$12&")="&$F$11&"+1 and Barix("&$D$12&",reference:=StartOfDay)="&A17&"","Bar","","Close","A30C","0","All",,,"False","T","EveryTick"),RTD("cqg.rtd",,"StudyData","If(HasVal("&$D$12&"),Vol("&$D$12&"),none) when LocalYear("&$D$12&")="&$D$10&" and localMonth("&$D$12&") ="&$E$10&" and LocalDay("&$D$12&")="&$F$10&" and Barix("&$D$12&",reference:=StartOfDay)="&A17&"","Bar","","Close","A30C","0","All",,,"False","T","EveryTick")) -> 174
A18: 17 | B18: 01:30:00 | D18: 0 | E18: # | G18: 2020-10-05 | H18: =IF(WEEKDAY(DATE($D$2,$E$2,$F$2))=6,RTD("cqg.rtd",,"StudyData","If(HasVal("&$D$12&"),Vol("&$D$12&"),none) when LocalYear("&$D$12&")="&$D$2&" and localMonth("&$D$12&") ="&$E$2&" and LocalDay("&$D$12&")="&$F$2&"+1 and Barix("&$D$12&",reference:=StartOfDay)="&A18&"","Bar","","Close","A30C","0","All",,,"False","T","EveryTick"),RTD("cqg.rtd",,"StudyData","If(HasVal("&$D$12&"),Vol("&$D$12&"),none) when LocalYear("&$D$12&")="&$D$1&" and localMonth("&$D$12&") ="&$E$1&" and LocalDay("&$D$12&")="&$F$1&" and Barix("&$D$12&",reference:=StartOfDay)="&A18&"","Bar","","Close","A30C","0","All",,,"False","T","EveryTick")) -> 460 | I18: 726.4444444 | J18: =IF(WEEKDAY(DATE($D$3,$E$3,$F$3))=6,RTD("cqg.rtd",,"StudyData","If(HasVal("&$D$12&"),Vol("&$D$12&"),none) when LocalYear("&$D$12&")="&$D$3&" and localMonth("&$D$12&") ="&$E$3&" and LocalDay("&$D$12&")="&$F$3&"+1 and Barix("&$D$12&",reference:=StartOfDay)="&A18&"","Bar","","Close","A30C","0","All",,,"False","T","EveryTick"),RTD("cqg.rtd",,"StudyData","If(HasVal("&$D$12&"),Vol("&$D$12&"),none) when LocalYear("&$D$12&")="&$D$2&" and localMonth("&$D$12&") ="&$E$2&" and LocalDay("&$D$12&")="&$F$2&" and Barix("&$D$12&",reference:=StartOfDay)="&A18&"","Bar","","Close","A30C","0","All",,,"False","T","EveryTick")) -> 897 | K18: =IF(WEEKDAY(DATE($D$4,$E$4,$F$4))=6,RTD("cqg.rtd",,"StudyData","If(HasVal("&$D$12&"),Vol("&$D$12&"),none) when LocalYear("&$D$12&")="&$D$4&" and localMonth("&$D$12&") ="&$E$4&" and LocalDay("&$D$12&")="&$F$4&"+1 and Barix("&$D$12&",reference:=StartOfDay)="&A18&"","Bar","","Close","A30C","0","All",,,"False","T","EveryTick"),RTD("cqg.rtd",,"StudyData","If(HasVal("&$D$12&"),Vol("&$D$12&"),none) when LocalYear("&$D$12&")="&$D$3&" and localMonth("&$D$12&") ="&$E$3&" and LocalDay("&$D$12&")="&$F$3&" and Barix("&$D$12&",reference:=StartOfDay)="&A18&"","Bar","","Close","A30C","0","All",,,"False","T","EveryTick")) -> 1030 | L18: =IF(WEEKDAY(DATE($D$5,$E$5,$F$5))=6,RTD("cqg.rtd",,"StudyData","If(HasVal("&$D$12&"),Vol("&$D$12&"),none) when LocalYear("&$D$12&")="&$D$5&" and localMonth("&$D$12&") ="&$E$5&" and LocalDay("&$D$12&")="&$F$5&"+1 and Barix("&$D$12&",reference:=StartOfDay)="&A18&"","Bar","","Close","A30C","0","All",,,"False","T","EveryTick"),RTD("cqg.rtd",,"StudyData","If(HasVal("&$D$12&"),Vol("&$D$12&"),none) when LocalYear("&$D$12&")="&$D$4&" and localMonth("&$D$12&") ="&$E$4&" and LocalDay("&$D$12&")="&$F$4&" and Barix("&$D$12&",reference:=StartOfDay)="&A18&"","Bar","","Close","A30C","0","All",,,"False","T","EveryTick")) -> 292 | M18: =IF(WEEKDAY(DATE($D$6,$E$6,$F$6))=6,RTD("cqg.rtd",,"StudyData","If(HasVal("&$D$12&"),Vol("&$D$12&"),none) when LocalYear("&$D$12&")="&$D$6&" and localMonth("&$D$12&") ="&$E$6&" and LocalDay("&$D$12&")="&$F$6&"+1 and Barix("&$D$12&",reference:=StartOfDay)="&A18&"","Bar","","Close","A30C","0","All",,,"False","T","EveryTick"),RTD("cqg.rtd",,"StudyData","If(HasVal("&$D$12&"),Vol("&$D$12&"),none) when LocalYear("&$D$12&")="&$D$5&" and localMonth("&$D$12&") ="&$E$5&" and LocalDay("&$D$12&")="&$F$5&" and Barix("&$D$12&",reference:=StartOfDay)="&A18&"","Bar","","Close","A30C","0","All",,,"False","T","EveryTick")) -> 679 | N18: =IF(WEEKDAY(DATE($D$7,$E$7,$F$7))=6,RTD("cqg.rtd",,"StudyData","If(HasVal("&$D$12&"),Vol("&$D$12&"),none) when LocalYear("&$D$12&")="&$D$7&" and localMonth("&$D$12&") ="&$E$7&" and LocalDay("&$D$12&")="&$F$7&"+1 and Barix("&$D$12&",reference:=StartOfDay)="&A18&"","Bar","","Close","A30C","0","All",,,"False","T","EveryTick"),RTD("cqg.rtd",,"StudyData","If(HasVal("&$D$12&"),Vol("&$D$12&"),none) when LocalYear("&$D$12&")="&$D$6&" and localMonth("&$D$12&") ="&$E$6&" and LocalDay("&$D$12&")="&$F$6&" and Barix("&$D$12&",reference:=StartOfDay)="&A18&"","Bar","","Close","A30C","0","All",,,"False","T","EveryTick")) -> 1484 | O18: =IF(WEEKDAY(DATE($D$8,$E$8,$F$8))=6,RTD("cqg.rtd",,"StudyData","If(HasVal("&$D$12&"),Vol("&$D$12&"),none) when LocalYear("&$D$12&")="&$D$8&" and localMonth("&$D$12&") ="&$E$8&" and LocalDay("&$D$12&")="&$F$8&"+1 and Barix("&$D$12&",reference:=StartOfDay)="&A18&"","Bar","","Close","A30C","0","All",,,"False","T","EveryTick"),RTD("cqg.rtd",,"StudyData","If(HasVal("&$D$12&"),Vol("&$D$12&"),none) when LocalYear("&$D$12&")="&$D$7&" and localMonth("&$D$12&") ="&$E$7&" and LocalDay("&$D$12&")="&$F$7&" and Barix("&$D$12&",reference:=StartOfDay)="&A18&"","Bar","","Close","A30C","0","All",,,"False","T","EveryTick")) -> 368 | P18: =IF(WEEKDAY(DATE($D$9,$E$9,$F$9))=6,RTD("cqg.rtd",,"StudyData","If(HasVal("&$D$12&"),Vol("&$D$12&"),none) when LocalYear("&$D$12&")="&$D$9&" and localMonth("&$D$12&") ="&$E$9&" and LocalDay("&$D$12&")="&$F$9&"+1 and Barix("&$D$12&",reference:=StartOfDay)="&A18&"","Bar","","Close","A30C","0","All",,,"False","T","EveryTick"),RTD("cqg.rtd",,"StudyData","If(HasVal("&$D$12&"),Vol("&$D$12&"),none) when LocalYear("&$D$12&")="&$D$8&" and localMonth("&$D$12&") ="&$E$8&" and LocalDay("&$D$12&")="&$F$8&" and Barix("&$D$12&",reference:=StartOfDay)="&A18&"","Bar","","Close","A30C","0","All",,,"False","T","EveryTick")) -> 565 | Q18: =IF(WEEKDAY(DATE($D$10,$E$10,$F$10))=6,RTD("cqg.rtd",,"StudyData","If(HasVal("&$D$12&"),Vol("&$D$12&"),none) when LocalYear("&$D$12&")="&$D$10&" and localMonth("&$D$12&") ="&$E$10&" and LocalDay("&$D$12&")="&$F$10&"+1 and Barix("&$D$12&",reference:=StartOfDay)="&A18&"","Bar","","Close","A30C","0","All",,,"False","T","EveryTick"),RTD("cqg.rtd",,"StudyData","If(HasVal("&$D$12&"),Vol("&$D$12&"),none) when LocalYear("&$D$12&")="&$D$9&" and localMonth("&$D$12&") ="&$E$9&" and LocalDay("&$D$12&")="&$F$9&" and Barix("&$D$12&",reference:=StartOfDay)="&A18&"","Bar","","Close","A30C","0","All",,,"False","T","EveryTick")) -> 1170 | R18: =IF(WEEKDAY(DATE($D$11,$E$11,$F$11))=6,RTD("cqg.rtd",,"StudyData","If(HasVal("&$D$12&"),Vol("&$D$12&"),none) when LocalYear("&$D$12&")="&$D$11&" and localMonth("&$D$12&") ="&$E$11&" and LocalDay("&$D$12&")="&$F$11&"+1 and Barix("&$D$12&",reference:=StartOfDay)="&A18&"","Bar","","Close","A30C","0","All",,,"False","T","EveryTick"),RTD("cqg.rtd",,"StudyData","If(HasVal("&$D$12&"),Vol("&$D$12&"),none) when LocalYear("&$D$12&")="&$D$10&" and localMonth("&$D$12&") ="&$E$10&" and LocalDay("&$D$12&")="&$F$10&" and Barix("&$D$12&",reference:=StartOfDay)="&A18&"","Bar","","Close","A30C","0","All",,,"False","T","EveryTick")) -> 53
A19: 18 | B19: 02:00:00 | D19: 1 | E19: #.0 | G19: 2020-10-02 | H19: =IF(WEEKDAY(DATE($D$2,$E$2,$F$2))=6,RTD("cqg.rtd",,"StudyData","If(HasVal("&$D$12&"),Vol("&$D$12&"),none) when LocalYear("&$D$12&")="&$D$2&" and localMonth("&$D$12&") ="&$E$2&" and LocalDay("&$D$12&")="&$F$2&"+1 and Barix("&$D$12&",reference:=StartOfDay)="&A19&"","Bar","","Close","A30C","0","All",,,"False","T","EveryTick"),RTD("cqg.rtd",,"StudyData","If(HasVal("&$D$12&"),Vol("&$D$12&"),none) when LocalYear("&$D$12&")="&$D$1&" and localMonth("&$D$12&") ="&$E$1&" and LocalDay("&$D$12&")="&$F$1&" and Barix("&$D$12&",reference:=StartOfDay)="&A19&"","Bar","","Close","A30C","0","All",,,"False","T","EveryTick")) -> 212 | I19: 797.4444444 | J19: =IF(WEEKDAY(DATE($D$3,$E$3,$F$3))=6,RTD("cqg.rtd",,"StudyData","If(HasVal("&$D$12&"),Vol("&$D$12&"),none) when LocalYear("&$D$12&")="&$D$3&" and localMonth("&$D$12&") ="&$E$3&" and LocalDay("&$D$12&")="&$F$3&"+1 and Barix("&$D$12&",reference:=StartOfDay)="&A19&"","Bar","","Close","A30C","0","All",,,"False","T","EveryTick"),RTD("cqg.rtd",,"StudyData","If(HasVal("&$D$12&"),Vol("&$D$12&"),none) when LocalYear("&$D$12&")="&$D$2&" and localMonth("&$D$12&") ="&$E$2&" and LocalDay("&$D$12&")="&$F$2&" and Barix("&$D$12&",reference:=StartOfDay)="&A19&"","Bar","","Close","A30C","0","All",,,"False","T","EveryTick")) -> 1099 | K19: =IF(WEEKDAY(DATE($D$4,$E$4,$F$4))=6,RTD("cqg.rtd",,"StudyData","If(HasVal("&$D$12&"),Vol("&$D$12&"),none) when LocalYear("&$D$12&")="&$D$4&" and localMonth("&$D$12&") ="&$E$4&" and LocalDay("&$D$12&")="&$F$4&"+1 and Barix("&$D$12&",reference:=StartOfDay)="&A19&"","Bar","","Close","A30C","0","All",,,"False","T","EveryTick"),RTD("cqg.rtd",,"StudyData","If(HasVal("&$D$12&"),Vol("&$D$12&"),none) when LocalYear("&$D$12&")="&$D$3&" and localMonth("&$D$12&") ="&$E$3&" and LocalDay("&$D$12&")="&$F$3&" and Barix("&$D$12&",reference:=StartOfDay)="&A19&"","Bar","","Close","A30C","0","All",,,"False","T","EveryTick")) -> 1614 | L19: =IF(WEEKDAY(DATE($D$5,$E$5,$F$5))=6,RTD("cqg.rtd",,"StudyData","If(HasVal("&$D$12&"),Vol("&$D$12&"),none) when LocalYear("&$D$12&")="&$D$5&" and localMonth("&$D$12&") ="&$E$5&" and LocalDay("&$D$12&")="&$F$5&"+1 and Barix("&$D$12&",reference:=StartOfDay)="&A19&"","Bar","","Close","A30C","0","All",,,"False","T","EveryTick"),RTD("cqg.rtd",,"StudyData","If(HasVal("&$D$12&"),Vol("&$D$12&"),none) when LocalYear("&$D$12&")="&$D$4&" and localMonth("&$D$12&") ="&$E$4&" and LocalDay("&$D$12&")="&$F$4&" and Barix("&$D$12&",reference:=StartOfDay)="&A19&"","Bar","","Close","A30C","0","All",,,"False","T","EveryTick")) -> 609 | M19: =IF(WEEKDAY(DATE($D$6,$E$6,$F$6))=6,RTD("cqg.rtd",,"StudyData","If(HasVal("&$D$12&"),Vol("&$D$12&"),none) when LocalYear("&$D$12&")="&$D$6&" and localMonth("&$D$12&") ="&$E$6&" and LocalDay("&$D$12&")="&$F$6&"+1 and Barix("&$D$12&",reference:=StartOfDay)="&A19&"","Bar","","Close","A30C","0","All",,,"False","T","EveryTick"),RTD("cqg.rtd",,"StudyData","If(HasVal("&$D$12&"),Vol("&$D$12&"),none) when LocalYear("&$D$12&")="&$D$5&" and localMonth("&$D$12&") ="&$E$5&" and LocalDay("&$D$12&")="&$F$5&" and Barix("&$D$12&",reference:=StartOfDay)="&A19&"","Bar","","Close","A30C","0","All",,,"False","T","EveryTick")) -> 134 | N19: =IF(WEEKDAY(DATE($D$7,$E$7,$F$7))=6,RTD("cqg.rtd",,"StudyData","If(HasVal("&$D$12&"),Vol("&$D$12&"),none) when LocalYear("&$D$12&")="&$D$7&" and localMonth("&$D$12&") ="&$E$7&" and LocalDay("&$D$12&")="&$F$7&"+1 and Barix("&$D$12&",reference:=StartOfDay)="&A19&"","Bar","","Close","A30C","0","All",,,"False","T","EveryTick"),RTD("cqg.rtd",,"StudyData","If(HasVal("&$D$12&"),Vol("&$D$12&"),none) when LocalYear("&$D$12&")="&$D$6&" and localMonth("&$D$12&") ="&$E$6&" and LocalDay("&$D$12&")="&$F$6&" and Barix("&$D$12&",reference:=StartOfDay)="&A19&"","Bar","","Close","A30C","0","All",,,"False","T","EveryTick")) -> 390 | O19: =IF(WEEKDAY(DATE($D$8,$E$8,$F$8))=6,RTD("cqg.rtd",,"StudyData","If(HasVal("&$D$12&"),Vol("&$D$12&"),none) when LocalYear("&$D$12&")="&$D$8&" and localMonth("&$D$12&") ="&$E$8&" and LocalDay("&$D$12&")="&$F$8&"+1 and Barix("&$D$12&",reference:=StartOfDay)="&A19&"","Bar","","Close","A30C","0","All",,,"False","T","EveryTick"),RTD("cqg.rtd",,"StudyData","If(HasVal("&$D$12&"),Vol("&$D$12&"),none) when LocalYear("&$D$12&")="&$D$7&" and localMonth("&$D$12&") ="&$E$7&" and LocalDay("&$D$12&")="&$F$7&" and Barix("&$D$12&",reference:=StartOfDay)="&A19&"","Bar","","Close","A30C","0","All",,,"False","T","EveryTick")) -> 539 | P19: =IF(WEEKDAY(DATE($D$9,$E$9,$F$9))=6,RTD("cqg.rtd",,"StudyData","If(HasVal("&$D$12&"),Vol("&$D$12&"),none) when LocalYear("&$D$12&")="&$D$9&" and localMonth("&$D$12&") ="&$E$9&" and LocalDay("&$D$12&")="&$F$9&"+1 and Barix("&$D$12&",reference:=StartOfDay)="&A19&"","Bar","","Close","A30C","0","All",,,"False","T","EveryTick"),RTD("cqg.rtd",,"StudyData","If(HasVal("&$D$12&"),Vol("&$D$12&"),none) when LocalYear("&$D$12&")="&$D$8&" and localMonth("&$D$12&") ="&$E$8&" and LocalDay("&$D$12&")="&$F$8&" and Barix("&$D$12&",reference:=StartOfDay)="&A19&"","Bar","","Close","A30C","0","All",,,"False","T","EveryTick")) -> 1767 | Q19: =IF(WEEKDAY(DATE($D$10,$E$10,$F$10))=6,RTD("cqg.rtd",,"StudyData","If(HasVal("&$D$12&"),Vol("&$D$12&"),none) when LocalYear("&$D$12&")="&$D$10&" and localMonth("&$D$12&") ="&$E$10&" and LocalDay("&$D$12&")="&$F$10&"+1 and Barix("&$D$12&",reference:=StartOfDay)="&A19&"","Bar","","Close","A30C","0","All",,,"False","T","EveryTick"),RTD("cqg.rtd",,"StudyData","If(HasVal("&$D$12&"),Vol("&$D$12&"),none) when LocalYear("&$D$12&")="&$D$9&" and localMonth("&$D$12&") ="&$E$9&" and LocalDay("&$D$12&")="&$F$9&" and Barix("&$D$12&",reference:=StartOfDay)="&A19&"","Bar","","Close","A30C","0","All",,,"False","T","EveryTick")) -> 939 | R19: =IF(WEEKDAY(DATE($D$11,$E$11,$F$11))=6,RTD("cqg.rtd",,"StudyData","If(HasVal("&$D$12&"),Vol("&$D$12&"),none) when LocalYear("&$D$12&")="&$D$11&" and localMonth("&$D$12&") ="&$E$11&" and LocalDay("&$D$12&")="&$F$11&"+1 and Barix("&$D$12&",reference:=StartOfDay)="&A19&"","Bar","","Close","A30C","0","All",,,"False","T","EveryTick"),RTD("cqg.rtd",,"StudyData","If(HasVal("&$D$12&"),Vol("&$D$12&"),none) when LocalYear("&$D$12&")="&$D$10&" and localMonth("&$D$12&") ="&$E$10&" and LocalDay("&$D$12&")="&$F$10&" and Barix("&$D$12&",reference:=StartOfDay)="&A19&"","Bar","","Close","A30C","0","All",,,"False","T","EveryTick")) -> 86
A20: 19 | B20: 02:30:00 | D20: 2 | E20: #.00 | G20: 2020-10-01 | H20: =IF(WEEKDAY(DATE($D$2,$E$2,$F$2))=6,RTD("cqg.rtd",,"StudyData","If(HasVal("&$D$12&"),Vol("&$D$12&"),none) when LocalYear("&$D$12&")="&$D$2&" and localMonth("&$D$12&") ="&$E$2&" and LocalDay("&$D$12&")="&$F$2&"+1 and Barix("&$D$12&",reference:=StartOfDay)="&A20&"","Bar","","Close","A30C","0","All",,,"False","T","EveryTick"),RTD("cqg.rtd",,"StudyData","If(HasVal("&$D$12&"),Vol("&$D$12&"),none) when LocalYear("&$D$12&")="&$D$1&" and localMonth("&$D$12&") ="&$E$1&" and LocalDay("&$D$12&")="&$F$1&" and Barix("&$D$12&",reference:=StartOfDay)="&A20&"","Bar","","Close","A30C","0","All",,,"False","T","EveryTick")) -> 959 | I20: 1210.888889 | J20: =IF(WEEKDAY(DATE($D$3,$E$3,$F$3))=6,RTD("cqg.rtd",,"StudyData","If(HasVal("&$D$12&"),Vol("&$D$12&"),none) when LocalYear("&$D$12&")="&$D$3&" and localMonth("&$D$12&") ="&$E$3&" and LocalDay("&$D$12&")="&$F$3&"+1 and Barix("&$D$12&",reference:=StartOfDay)="&A20&"","Bar","","Close","A30C","0","All",,,"False","T","EveryTick"),RTD("cqg.rtd",,"StudyData","If(HasVal("&$D$12&"),Vol("&$D$12&"),none) when LocalYear("&$D$12&")="&$D$2&" and localMonth("&$D$12&") ="&$E$2&" and LocalDay("&$D$12&")="&$F$2&" and Barix("&$D$12&",reference:=StartOfDay)="&A20&"","Bar","","Close","A30C","0","All",,,"False","T","EveryTick")) -> 2022 | K20: =IF(WEEKDAY(DATE($D$4,$E$4,$F$4))=6,RTD("cqg.rtd",,"StudyData","If(HasVal("&$D$12&"),Vol("&$D$12&"),none) when LocalYear("&$D$12&")="&$D$4&" and localMonth("&$D$12&") ="&$E$4&" and LocalDay("&$D$12&")="&$F$4&"+1 and Barix("&$D$12&",reference:=StartOfDay)="&A20&"","Bar","","Close","A30C","0","All",,,"False","T","EveryTick"),RTD("cqg.rtd",,"StudyData","If(HasVal("&$D$12&"),Vol("&$D$12&"),none) when LocalYear("&$D$12&")="&$D$3&" and localMonth("&$D$12&") ="&$E$3&" and LocalDay("&$D$12&")="&$F$3&" and Barix("&$D$12&",reference:=StartOfDay)="&A20&"","Bar","","Close","A30C","0","All",,,"False","T","EveryTick")) -> 841 | L20: =IF(WEEKDAY(DATE($D$5,$E$5,$F$5))=6,RTD("cqg.rtd",,"StudyData","If(HasVal("&$D$12&"),Vol("&$D$12&"),none) when LocalYear("&$D$12&")="&$D$5&" and localMonth("&$D$12&") ="&$E$5&" and LocalDay("&$D$12&")="&$F$5&"+1 and Barix("&$D$12&",reference:=StartOfDay)="&A20&"","Bar","","Close","A30C","0","All",,,"False","T","EveryTick"),RTD("cqg.rtd",,"StudyData","If(HasVal("&$D$12&"),Vol("&$D$12&"),none) when LocalYear("&$D$12&")="&$D$4&" and localMonth("&$D$12&") ="&$E$4&" and LocalDay("&$D$12&")="&$F$4&" and Barix("&$D$12&",reference:=StartOfDay)="&A20&"","Bar","","Close","A30C","0","All",,,"False","T","EveryTick")) -> 3712 | M20: =IF(WEEKDAY(DATE($D$6,$E$6,$F$6))=6,RTD("cqg.rtd",,"StudyData","If(HasVal("&$D$12&"),Vol("&$D$12&"),none) when LocalYear("&$D$12&")="&$D$6&" and localMonth("&$D$12&") ="&$E$6&" and LocalDay("&$D$12&")="&$F$6&"+1 and Barix("&$D$12&",reference:=StartOfDay)="&A20&"","Bar","","Close","A30C","0","All",,,"False","T","EveryTick"),RTD("cqg.rtd",,"StudyData","If(HasVal("&$D$12&"),Vol("&$D$12&"),none) when LocalYear("&$D$12&")="&$D$5&" and localMonth("&$D$12&") ="&$E$5&" and LocalDay("&$D$12&")="&$F$5&" and Barix("&$D$12&",reference:=StartOfDay)="&A20&"","Bar","","Close","A30C","0","All",,,"False","T","EveryTick")) -> 289 | N20: =IF(WEEKDAY(DATE($D$7,$E$7,$F$7))=6,RTD("cqg.rtd",,"StudyData","If(HasVal("&$D$12&"),Vol("&$D$12&"),none) when LocalYear("&$D$12&")="&$D$7&" and localMonth("&$D$12&") ="&$E$7&" and LocalDay("&$D$12&")="&$F$7&"+1 and Barix("&$D$12&",reference:=StartOfDay)="&A20&"","Bar","","Close","A30C","0","All",,,"False","T","EveryTick"),RTD("cqg.rtd",,"StudyData","If(HasVal("&$D$12&"),Vol("&$D$12&"),none) when LocalYear("&$D$12&")="&$D$6&" and localMonth("&$D$12&") ="&$E$6&" and LocalDay("&$D$12&")="&$F$6&" and Barix("&$D$12&",reference:=StartOfDay)="&A20&"","Bar","","Close","A30C","0","All",,,"False","T","EveryTick")) -> 536 | O20: =IF(WEEKDAY(DATE($D$8,$E$8,$F$8))=6,RTD("cqg.rtd",,"StudyData","If(HasVal("&$D$12&"),Vol("&$D$12&"),none) when LocalYear("&$D$12&")="&$D$8&" and localMonth("&$D$12&") ="&$E$8&" and LocalDay("&$D$12&")="&$F$8&"+1 and Barix("&$D$12&",reference:=StartOfDay)="&A20&"","Bar","","Close","A30C","0","All",,,"False","T","EveryTick"),RTD("cqg.rtd",,"StudyData","If(HasVal("&$D$12&"),Vol("&$D$12&"),none) when LocalYear("&$D$12&")="&$D$7&" and localMonth("&$D$12&") ="&$E$7&" and LocalDay("&$D$12&")="&$F$7&" and Barix("&$D$12&",reference:=StartOfDay)="&A20&"","Bar","","Close","A30C","0","All",,,"False","T","EveryTick")) -> 1193 | P20: =IF(WEEKDAY(DATE($D$9,$E$9,$F$9))=6,RTD("cqg.rtd",,"StudyData","If(HasVal("&$D$12&"),Vol("&$D$12&"),none) when LocalYear("&$D$12&")="&$D$9&" and localMonth("&$D$12&") ="&$E$9&" and LocalDay("&$D$12&")="&$F$9&"+1 and Barix("&$D$12&",reference:=StartOfDay)="&A20&"","Bar","","Close","A30C","0","All",,,"False","T","EveryTick"),RTD("cqg.rtd",,"StudyData","If(HasVal("&$D$12&"),Vol("&$D$12&"),none) when LocalYear("&$D$12&")="&$D$8&" and localMonth("&$D$12&") ="&$E$8&" and LocalDay("&$D$12&")="&$F$8&" and Barix("&$D$12&",reference:=StartOfDay)="&A20&"","Bar","","Close","A30C","0","All",,,"False","T","EveryTick")) -> 1182 | Q20: =IF(WEEKDAY(DATE($D$10,$E$10,$F$10))=6,RTD("cqg.rtd",,"StudyData","If(HasVal("&$D$12&"),Vol("&$D$12&"),none) when LocalYear("&$D$12&")="&$D$10&" and localMonth("&$D$12&") ="&$E$10&" and LocalDay("&$D$12&")="&$F$10&"+1 and Barix("&$D$12&",reference:=StartOfDay)="&A20&"","Bar","","Close","A30C","0","All",,,"False","T","EveryTick"),RTD("cqg.rtd",,"StudyData","If(HasVal("&$D$12&"),Vol("&$D$12&"),none) when LocalYear("&$D$12&")="&$D$9&" and localMonth("&$D$12&") ="&$E$9&" and LocalDay("&$D$12&")="&$F$9&" and Barix("&$D$12&",reference:=StartOfDay)="&A20&"","Bar","","Close","A30C","0","All",,,"False","T","EveryTick")) -> 967 | R20: =IF(WEEKDAY(DATE($D$11,$E$11,$F$11))=6,RTD("cqg.rtd",,"StudyData","If(HasVal("&$D$12&"),Vol("&$D$12&"),none) when LocalYear("&$D$12&")="&$D$11&" and localMonth("&$D$12&") ="&$E$11&" and LocalDay("&$D$12&")="&$F$11&"+1 and Barix("&$D$12&",reference:=StartOfDay)="&A20&"","Bar","","Close","A30C","0","All",,,"False","T","EveryTick"),RTD("cqg.rtd",,"StudyData","If(HasVal("&$D$12&"),Vol("&$D$12&"),none) when LocalYear("&$D$12&")="&$D$10&" and localMonth("&$D$12&") ="&$E$10&" and LocalDay("&$D$12&")="&$F$10&" and Barix("&$D$12&",reference:=StartOfDay)="&A20&"","Bar","","Close","A30C","0","All",,,"False","T","EveryTick")) -> 156
A21: 20 | B21: 03:00:00 | D21: 3 | E21: #.000 | G21: 2020-09-30 | H21: =IF(WEEKDAY(DATE($D$2,$E$2,$F$2))=6,RTD("cqg.rtd",,"StudyData","If(HasVal("&$D$12&"),Vol("&$D$12&"),none) when LocalYear("&$D$12&")="&$D$2&" and localMonth("&$D$12&") ="&$E$2&" and LocalDay("&$D$12&")="&$F$2&"+1 and Barix("&$D$12&",reference:=StartOfDay)="&A21&"","Bar","","Close","A30C","0","All",,,"False","T","EveryTick"),RTD("cqg.rtd",,"StudyData","If(HasVal("&$D$12&"),Vol("&$D$12&"),none) when LocalYear("&$D$12&")="&$D$1&" and localMonth("&$D$12&") ="&$E$1&" and LocalDay("&$D$12&")="&$F$1&" and Barix("&$D$12&",reference:=StartOfDay)="&A21&"","Bar","","Close","A30C","0","All",,,"False","T","EveryTick")) -> 432 | I21: 1027.666667 | J21: =IF(WEEKDAY(DATE($D$3,$E$3,$F$3))=6,RTD("cqg.rtd",,"StudyData","If(HasVal("&$D$12&"),Vol("&$D$12&"),none) when LocalYear("&$D$12&")="&$D$3&" and localMonth("&$D$12&") ="&$E$3&" and LocalDay("&$D$12&")="&$F$3&"+1 and Barix("&$D$12&",reference:=StartOfDay)="&A21&"","Bar","","Close","A30C","0","All",,,"False","T","EveryTick"),RTD("cqg.rtd",,"StudyData","If(HasVal("&$D$12&"),Vol("&$D$12&"),none) when LocalYear("&$D$12&")="&$D$2&" and localMonth("&$D$12&") ="&$E$2&" and LocalDay("&$D$12&")="&$F$2&" and Barix("&$D$12&",reference:=StartOfDay)="&A21&"","Bar","","Close","A30C","0","All",,,"False","T","EveryTick")) -> 1413 | K21: =IF(WEEKDAY(DATE($D$4,$E$4,$F$4))=6,RTD("cqg.rtd",,"StudyData","If(HasVal("&$D$12&"),Vol("&$D$12&"),none) when LocalYear("&$D$12&")="&$D$4&" and localMonth("&$D$12&") ="&$E$4&" and LocalDay("&$D$12&")="&$F$4&"+1 and Barix("&$D$12&",reference:=StartOfDay)="&A21&"","Bar","","Close","A30C","0","All",,,"False","T","EveryTick"),RTD("cqg.rtd",,"StudyData","If(HasVal("&$D$12&"),Vol("&$D$12&"),none) when LocalYear("&$D$12&")="&$D$3&" and localMonth("&$D$12&") ="&$E$3&" and LocalDay("&$D$12&")="&$F$3&" and Barix("&$D$12&",reference:=StartOfDay)="&A21&"","Bar","","Close","A30C","0","All",,,"False","T","EveryTick")) -> 651 | L21: =IF(WEEKDAY(DATE($D$5,$E$5,$F$5))=6,RTD("cqg.rtd",,"StudyData","If(HasVal("&$D$12&"),Vol("&$D$12&"),none) when LocalYear("&$D$12&")="&$D$5&" and localMonth("&$D$12&") ="&$E$5&" and LocalDay("&$D$12&")="&$F$5&"+1 and Barix("&$D$12&",reference:=StartOfDay)="&A21&"","Bar","","Close","A30C","0","All",,,"False","T","EveryTick"),RTD("cqg.rtd",,"StudyData","If(HasVal("&$D$12&"),Vol("&$D$12&"),none) when LocalYear("&$D$12&")="&$D$4&" and localMonth("&$D$12&") ="&$E$4&" and LocalDay("&$D$12&")="&$F$4&" and Barix("&$D$12&",reference:=StartOfDay)="&A21&"","Bar","","Close","A30C","0","All",,,"False","T","EveryTick")) -> 3286 | M21: =IF(WEEKDAY(DATE($D$6,$E$6,$F$6))=6,RTD("cqg.rtd",,"StudyData","If(HasVal("&$D$12&"),Vol("&$D$12&"),none) when LocalYear("&$D$12&")="&$D$6&" and localMonth("&$D$12&") ="&$E$6&" and LocalDay("&$D$12&")="&$F$6&"+1 and Barix("&$D$12&",reference:=StartOfDay)="&A21&"","Bar","","Close","A30C","0","All",,,"False","T","EveryTick"),RTD("cqg.rtd",,"StudyData","If(HasVal("&$D$12&"),Vol("&$D$12&"),none) when LocalYear("&$D$12&")="&$D$5&" and localMonth("&$D$12&") ="&$E$5&" and LocalDay("&$D$12&")="&$F$5&" and Barix("&$D$12&",reference:=StartOfDay)="&A21&"","Bar","","Close","A30C","0","All",,,"False","T","EveryTick")) -> 685 | N21: =IF(WEEKDAY(DATE($D$7,$E$7,$F$7))=6,RTD("cqg.rtd",,"StudyData","If(HasVal("&$D$12&"),Vol("&$D$12&"),none) when LocalYear("&$D$12&")="&$D$7&" and localMonth("&$D$12&") ="&$E$7&" and LocalDay("&$D$12&")="&$F$7&"+1 and Barix("&$D$12&",reference:=StartOfDay)="&A21&"","Bar","","Close","A30C","0","All",,,"False","T","EveryTick"),RTD("cqg.rtd",,"StudyData","If(HasVal("&$D$12&"),Vol("&$D$12&"),none) when LocalYear("&$D$12&")="&$D$6&" and localMonth("&$D$12&") ="&$E$6&" and LocalDay("&$D$12&")="&$F$6&" and Barix("&$D$12&",reference:=StartOfDay)="&A21&"","Bar","","Close","A30C","0","All",,,"False","T","EveryTick")) -> 836 | O21: =IF(WEEKDAY(DATE($D$8,$E$8,$F$8))=6,RTD("cqg.rtd",,"StudyData","If(HasVal("&$D$12&"),Vol("&$D$12&"),none) when LocalYear("&$D$12&")="&$D$8&" and localMonth("&$D$12&") ="&$E$8&" and LocalDay("&$D$12&")="&$F$8&"+1 and Barix("&$D$12&",reference:=StartOfDay)="&A21&"","Bar","","Close","A30C","0","All",,,"False","T","EveryTick"),RTD("cqg.rtd",,"StudyData","If(HasVal("&$D$12&"),Vol("&$D$12&"),none) when LocalYear("&$D$12&")="&$D$7&" and localMonth("&$D$12&") ="&$E$7&" and LocalDay("&$D$12&")="&$F$7&" and Barix("&$D$12&",reference:=StartOfDay)="&A21&"","Bar","","Close","A30C","0","All",,,"False","T","EveryTick")) -> 814 | P21: =IF(WEEKDAY(DATE($D$9,$E$9,$F$9))=6,RTD("cqg.rtd",,"StudyData","If(HasVal("&$D$12&"),Vol("&$D$12&"),none) when LocalYear("&$D$12&")="&$D$9&" and localMonth("&$D$12&") ="&$E$9&" and LocalDay("&$D$12&")="&$F$9&"+1 and Barix("&$D$12&",reference:=StartOfDay)="&A21&"","Bar","","Close","A30C","0","All",,,"False","T","EveryTick"),RTD("cqg.rtd",,"StudyData","If(HasVal("&$D$12&"),Vol("&$D$12&"),none) when LocalYear("&$D$12&")="&$D$8&" and localMonth("&$D$12&") ="&$E$8&" and LocalDay("&$D$12&")="&$F$8&" and Barix("&$D$12&",reference:=StartOfDay)="&A21&"","Bar","","Close","A30C","0","All",,,"False","T","EveryTick")) -> 955 | Q21: =IF(WEEKDAY(DATE($D$10,$E$10,$F$10))=6,RTD("cqg.rtd",,"StudyData","If(HasVal("&$D$12&"),Vol("&$D$12&"),none) when LocalYear("&$D$12&")="&$D$10&" and localMonth("&$D$12&") ="&$E$10&" and LocalDay("&$D$12&")="&$F$10&"+1 and Barix("&$D$12&",reference:=StartOfDay)="&A21&"","Bar","","Close","A30C","0","All",,,"False","T","EveryTick"),RTD("cqg.rtd",,"StudyData","If(HasVal("&$D$12&"),Vol("&$D$12&"),none) when LocalYear("&$D$12&")="&$D$9&" and localMonth("&$D$12&") ="&$E$9&" and LocalDay("&$D$12&")="&$F$9&" and Barix("&$D$12&",reference:=StartOfDay)="&A21&"","Bar","","Close","A30C","0","All",,,"False","T","EveryTick")) -> 485 | R21: =IF(WEEKDAY(DATE($D$11,$E$11,$F$11))=6,RTD("cqg.rtd",,"StudyData","If(HasVal("&$D$12&"),Vol("&$D$12&"),none) when LocalYear("&$D$12&")="&$D$11&" and localMonth("&$D$12&") ="&$E$11&" and LocalDay("&$D$12&")="&$F$11&"+1 and Barix("&$D$12&",reference:=StartOfDay)="&A21&"","Bar","","Close","A30C","0","All",,,"False","T","EveryTick"),RTD("cqg.rtd",,"StudyData","If(HasVal("&$D$12&"),Vol("&$D$12&"),none) when LocalYear("&$D$12&")="&$D$10&" and localMonth("&$D$12&") ="&$E$10&" and LocalDay("&$D$12&")="&$F$10&" and Barix("&$D$12&",reference:=StartOfDay)="&A21&"","Bar","","Close","A30C","0","All",,,"False","T","EveryTick")) -> 124
